Workbook

Sheet Overview

Sheet Select School
B3: =VLOOKUP(C3,SchList!$I$1:$J$499,2,FALSE) -> 9999 | C3: 1

Sheet Grade 3 Report
A2: Click here to return to the school and sheet selection interface
A3: ='Select School'!B3 -> 9999
A4: =TEXT(A3,"0000")&"-"&VLOOKUP(A3,SchList!$A$2:$B$504,2,FALSE) -> 9999-District
A5: Reading - Grade 3
A6: Satisfactory Progress Cut Scores at 57% or above | B6: Total # of Students | C6: % of Students Tested | D6: ='G3-5 Matrix'!C2&" ["&'G3-5 Matrix'!C3&"]" -> Overall [56] | F6: ='G3-5 Matrix'!D2&" ["&'G3-5 Matrix'!D3&"]" -> Vocabulary [16] | H6: ='G3-5 Matrix'!E2&" ["&'G3-5 Matrix'!E3&"]" -> Reading Application [24] | J6: ='G3-5 Matrix'!F2&" ["&'G3-5 Matrix'!F3&"]" -> Literary Analysis Fiction/Nonfiction [12] | L6: ='G3-5 Matrix'!G2&" ["&'G3-5 Matrix'!G3&"]" -> Informational Text/ Research Process [4]
D7: Average Score | E7: % Satisfactory | F7: Average Score | G7: % Satisfactory | H7: Average Score | I7: % Satisfactory | J7: Average Score | K7: % Satisfactory | L7: Average Score | M7: % Satisfactory
A8: Total Students | B8: =IFERROR(VLOOKUP(TEXT($A$3,"0000"),Mem_All!$A$3:$O$501,7,FALSE),0) -> 26789 | C8: =IFERROR((IF(OR(B8=0,B8="",B8="NA"),"NA",((IF(VLOOKUP($A$3,'G3-RALL'!$A$6:$AM$501,3,FALSE)>=B8,"100% ("&VLOOKUP($A$3,'G3-RALL'!$A$6:$AM$501,3,FALSE)&")",(ROUND((VLOOKUP($A$3,'G3-RALL'!$A$6:$AM$501,3,FALSE)/B8*100),0))&"% ("&IF(VLOOKUP($A$3,'G3-RALL'!$A$6:$AM$501,3,FALSE)="",0,VLOOKUP($A$3,'G3-RALL'!$A$6:$AM$501,3,FALSE))&")"))))),"0% (0)") -> 95% (25383) | D8: =IFERROR((IF($C8="NA","NA",VLOOKUP($A$3,'G3-RALL'!$A$6:$AM$501,4,FALSE))),"NA") -> 30.9538313 | E8: =IFERROR((IF($C8="NA","NA",VLOOKUP($A$3,'G3-RALL'!$A$6:$AM$501,6,FALSE)&"% ("&IF(VLOOKUP($A$3,'G3-RALL'!$A$6:$AM$501,5,FALSE)="",0,VLOOKUP($A$3,'G3-RALL'!$A$6:$AM$501,5,FALSE))&")")),"NA") -> 50% (12615) | F8: =IFERROR((IF($C8="NA","NA",VLOOKUP($A$3,'G3-RALL'!$A$6:$AM$501,7,FALSE))),"NA") -> 10.31503762 | G8: NA | H8: =IFERROR((IF($C8="NA","NA",VLOOKUP($A$3,'G3-RALL'!$A$6:$AM$501,10,FALSE))),"NA") -> 13.01922547 | I8: NA | J8: =IFERROR((IF($C8="NA","NA",VLOOKUP($A$3,'G3-RALL'!$A$6:$AM$501,13,FALSE))),"NA") -> 5.041248079 | K8: NA | L8: =IFERROR((IF($C8="NA","NA",VLOOKUP($A$3,'G3-RALL'!$A$6:$AM$501,16,FALSE))),"NA") -> 2.577414017 | M8: NA
A9: White | B9: =IFERROR(VLOOKUP(TEXT($A$3,"0000"),MEM_W!$A$3:$O$501,7,FALSE),0) -> 2014 | C9: =IFERROR((IF(OR(B9=0,B9="",B9="NA"),"NA",((IF(VLOOKUP($A$3,'G3-RW'!$A$6:$AM$500,3,FALSE)>=B9,"100% ("&VLOOKUP($A$3,'G3-RW'!$A$6:$AM$500,3,FALSE)&")",(ROUND((VLOOKUP($A$3,'G3-RW'!$A$6:$AM$500,3,FALSE)/B9*100),0))&"% ("&IF(VLOOKUP($A$3,'G3-RW'!$A$6:$AM$500,3,FALSE)="",0,VLOOKUP($A$3,'G3-RW'!$A$6:$AM$500,3,FALSE))&")"))))),"0% (0)") -> 90% (1818) | D9: =IFERROR((IF($C9="NA","NA",VLOOKUP($A$3,'G3-RW'!$A$6:$AM$501,4,FALSE))),"NA") -> 37.66820682 | E9: =IFERROR((IF($C9="NA","NA",VLOOKUP($A$3,'G3-RW'!$A$6:$AM$501,6,FALSE)&"% ("&IF(VLOOKUP($A$3,'G3-RW'!$A$6:$AM$501,5,FALSE)="",0,VLOOKUP($A$3,'G3-RW'!$A$6:$AM$501,5,FALSE))&")")),"NA") -> 74% (1337) | F9: =IFERROR((IF($C9="NA","NA",VLOOKUP($A$3,'G3-RW'!$A$6:$AM$501,7,FALSE))),"NA") -> 12.19460946 | G9: NA | H9: =IFERROR((IF($C9="NA","NA",VLOOKUP($A$3,'G3-RW'!$A$6:$AM$501,10,FALSE))),"NA") -> 16.0720022 | I9: NA | J9: =IFERROR((IF($C9="NA","NA",VLOOKUP($A$3,'G3-RW'!$A$6:$AM$501,13,FALSE))),"NA") -> 6.273872387 | K9: NA | L9: =IFERROR((IF($C9="NA","NA",VLOOKUP($A$3,'G3-RW'!$A$6:$AM$501,16,FALSE))),"NA") -> 3.145324532 | M9: NA
A10: Black | B10: =IFERROR(VLOOKUP(TEXT($A$3,"0000"),MEM_B!$A$3:$O$501,7,FALSE),0) -> 6128 | C10: =IFERROR((IF(OR(B10=0,B10="",B10="NA"),"NA",((IF(VLOOKUP($A$3,'G3-RB'!$A$6:$R$500,3,FALSE)>=B10,"100% ("&VLOOKUP($A$3,'G3-RB'!$A$6:$R$500,3,FALSE)&")",(ROUND((VLOOKUP($A$3,'G3-RB'!$A$6:$R$500,3,FALSE)/B10*100),0))&"% ("&IF(VLOOKUP($A$3,'G3-RB'!$A$6:$R$500,3,FALSE)="",0,VLOOKUP($A$3,'G3-RB'!$A$6:$R$500,3,FALSE))&")"))))),"0% (0)") -> 97% (5933) | D10: =IFERROR((IF($C10="NA","NA",VLOOKUP($A$3,'G3-RB'!$A$6:$AM$501,4,FALSE))),"NA") -> 27.57798753 | E10: =IFERROR((IF($C10="NA","NA",VLOOKUP($A$3,'G3-RB'!$A$6:$AM$501,6,FALSE)&"% ("&IF(VLOOKUP($A$3,'G3-RB'!$A$6:$AM$501,5,FALSE)="",0,VLOOKUP($A$3,'G3-RB'!$A$6:$AM$501,5,FALSE))&")")),"NA") -> 36% (2159) | F10: =IFERROR((IF($C10="NA","NA",VLOOKUP($A$3,'G3-RB'!$A$6:$AM$501,7,FALSE))),"NA") -> 9.385117141 | G10: NA | H10: =IFERROR((IF($C10="NA","NA",VLOOKUP($A$3,'G3-RB'!$A$6:$AM$501,10,FALSE))),"NA") -> 11.41137704 | I10: NA | J10: =IFERROR((IF($C10="NA","NA",VLOOKUP($A$3,'G3-RB'!$A$6:$AM$501,13,FALSE))),"NA") -> 4.54549132 | K10: NA | L10: =IFERROR((IF($C10="NA","NA",VLOOKUP($A$3,'G3-RB'!$A$6:$AM$501,16,FALSE))),"NA") -> 2.245828417 | M10: NA
A11: Hispanic | B11: =IFERROR(VLOOKUP(TEXT($A$3,"0000"),MEM_H!$A$3:$O$501,7,FALSE),0) -> 18043 | C11: =IFERROR((IF(OR(B11=0,B11="",B11="NA"),"NA",((IF(VLOOKUP($A$3,'G3-RH'!$A$6:$AM$500,3,FALSE)>=B11,"100% ("&VLOOKUP($A$3,'G3-RH'!$A$6:$AM$500,3,FALSE)&")",(ROUND((VLOOKUP($A$3,'G3-RH'!$A$6:$AM$500,3,FALSE)/B11*100),0))&"% ("&IF(VLOOKUP($A$3,'G3-RH'!$A$6:$AM$500,3,FALSE)="",0,VLOOKUP($A$3,'G3-RH'!$A$6:$AM$500,3,FALSE))&")"))))),"0% (0)") -> 94% (17050) | D11: =IFERROR((IF($C11="NA","NA",VLOOKUP($A$3,'G3-RH'!$A$6:$AM$501,4,FALSE))),"NA") -> 31.26975367 | E11: =IFERROR((IF($C11="NA","NA",VLOOKUP($A$3,'G3-RH'!$A$6:$AM$501,6,FALSE)&"% ("&IF(VLOOKUP($A$3,'G3-RH'!$A$6:$AM$501,5,FALSE)="",0,VLOOKUP($A$3,'G3-RH'!$A$6:$AM$501,5,FALSE))&")")),"NA") -> 51% (8739) | F11: =IFERROR((IF($C11="NA","NA",VLOOKUP($A$3,'G3-RH'!$A$6:$AM$501,7,FALSE))),"NA") -> 10.40008211 | G11: NA | H11: =IFERROR((IF($C11="NA","NA",VLOOKUP($A$3,'G3-RH'!$A$6:$AM$501,10,FALSE))),"NA") -> 13.18833431 | I11: NA | J11: =IFERROR((IF($C11="NA","NA",VLOOKUP($A$3,'G3-RH'!$A$6:$AM$501,13,FALSE))),"NA") -> 5.061536657 | K11: NA | L11: =IFERROR((IF($C11="NA","NA",VLOOKUP($A$3,'G3-RH'!$A$6:$AM$501,16,FALSE))),"NA") -> 2.622686217 | M11: NA
A12: Asian | B12: =IFERROR(VLOOKUP(TEXT($A$3,"0000"),MEM_A!$A$3:$O$501,7,FALSE),0) -> 286 | C12: =IFERROR((IF(OR(B12=0,B12="",B12="NA"),"NA",((IF(VLOOKUP($A$3,'G3-RA'!$A$6:$AM$500,3,FALSE)>=B12,"100% ("&VLOOKUP($A$3,'G3-RA'!$A$6:$AM$500,3,FALSE)&")",(ROUND((VLOOKUP($A$3,'G3-RA'!$A$6:$AM$500,3,FALSE)/B12*100),0))&"% ("&IF(VLOOKUP($A$3,'G3-RA'!$A$6:$AM$500,3,FALSE)="",0,VLOOKUP($A$3,'G3-RA'!$A$6:$AM$500,3,FALSE))&")"))))),"0% (0)") -> 94% (269) | D12: =IFERROR((IF($C12="NA","NA",VLOOKUP($A$3,'G3-RA'!$A$6:$AM$501,4,FALSE))),"NA") -> 37.81747212 | E12: =IFERROR((IF($C12="NA","NA",VLOOKUP($A$3,'G3-RA'!$A$6:$AM$501,6,FALSE)&"% ("&IF(VLOOKUP($A$3,'G3-RA'!$A$6:$AM$501,5,FALSE)="",0,VLOOKUP($A$3,'G3-RA'!$A$6:$AM$501,5,FALSE))&")")),"NA") -> 75% (202) | F12: =IFERROR((IF($C12="NA","NA",VLOOKUP($A$3,'G3-RA'!$A$6:$AM$501,7,FALSE))),"NA") -> 12.27063197 | G12: NA | H12: =IFERROR((IF($C12="NA","NA",VLOOKUP($A$3,'G3-RA'!$A$6:$AM$501,10,FALSE))),"NA") -> 16.22527881 | I12: NA | J12: =IFERROR((IF($C12="NA","NA",VLOOKUP($A$3,'G3-RA'!$A$6:$AM$501,13,FALSE))),"NA") -> 6.294795539 | K12: NA | L12: =IFERROR((IF($C12="NA","NA",VLOOKUP($A$3,'G3-RA'!$A$6:$AM$501,16,FALSE))),"NA") -> 3.039033457 | M12: NA
A13: Am. Indian | B13: =IFERROR(VLOOKUP(TEXT($A$3,"0000"),MEM_I!$A$3:$O$501,7,FALSE),0) -> 9 | C13: =IFERROR((IF(OR(B13=0,B13="",B13="NA"),"NA",((IF(VLOOKUP($A$3,'G3-RI'!$A$6:$AM$500,3,FALSE)>=B13,"100% ("&VLOOKUP($A$3,'G3-RI'!$A$6:$AM$500,3,FALSE)&")",(ROUND((VLOOKUP($A$3,'G3-RI'!$A$6:$AM$500,3,FALSE)/B13*100),0))&"% ("&IF(VLOOKUP($A$3,'G3-RI'!$A$6:$AM$500,3,FALSE)="",0,VLOOKUP($A$3,'G3-RI'!$A$6:$AM$500,3,FALSE))&")"))))),"0% (0)") -> 100% (10) | D13: =IFERROR((IF($C13="NA","NA",VLOOKUP($A$3,'G3-RI'!$A$6:$AM$501,4,FALSE))),"NA") -> 32.5 | E13: =IFERROR((IF($C13="NA","NA",VLOOKUP($A$3,'G3-RI'!$A$6:$AM$501,6,FALSE)&"% ("&IF(VLOOKUP($A$3,'G3-RI'!$A$6:$AM$501,5,FALSE)="",0,VLOOKUP($A$3,'G3-RI'!$A$6:$AM$501,5,FALSE))&")")),"NA") -> 50% (5) | F13: =IFERROR((IF($C13="NA","NA",VLOOKUP($A$3,'G3-RI'!$A$6:$AM$501,7,FALSE))),"NA") -> 10.6 | G13: NA | H13: =IFERROR((IF($C13="NA","NA",VLOOKUP($A$3,'G3-RI'!$A$6:$AM$501,10,FALSE))),"NA") -> 14.6 | I13: NA | J13: =IFERROR((IF($C13="NA","NA",VLOOKUP($A$3,'G3-RI'!$A$6:$AM$501,13,FALSE))),"NA") -> 4.9 | K13: NA | L13: =IFERROR((IF($C13="NA","NA",VLOOKUP($A$3,'G3-RI'!$A$6:$AM$501,16,FALSE))),"NA") -> 2.4 | M13: NA
A14: ED | B14: =IFERROR(VLOOKUP(TEXT($A$3,"0000"),MEM_ED!$A$3:$O$501,7,FALSE),0) -> 20496 | C14: =IFERROR((IF(OR(B14=0,B14="",B14="NA"),"NA",((IF(VLOOKUP($A$3,'G3-RED'!$A$6:$AM$500,3,FALSE)>=B14,"100% ("&VLOOKUP($A$3,'G3-RED'!$A$6:$AM$500,3,FALSE)&")",(ROUND((VLOOKUP($A$3,'G3-RED'!$A$6:$AM$500,3,FALSE)/B14*100),0))&"% ("&IF(VLOOKUP($A$3,'G3-RED'!$A$6:$AM$500,3,FALSE)="",0,VLOOKUP($A$3,'G3-RED'!$A$6:$AM$500,3,FALSE))&")"))))),"0% (0)") -> 100% (20526) | D14: =IFERROR((IF($C14="NA","NA",VLOOKUP($A$3,'G3-RED'!$A$6:$AM$501,4,FALSE))),"NA") -> 29.31026503 | E14: =IFERROR((IF($C14="NA","NA",VLOOKUP($A$3,'G3-RED'!$A$6:$AM$501,6,FALSE)&"% ("&IF(VLOOKUP($A$3,'G3-RED'!$A$6:$AM$501,5,FALSE)="",0,VLOOKUP($A$3,'G3-RED'!$A$6:$AM$501,5,FALSE))&")")),"NA") -> 44% (8948) | F14: =IFERROR((IF($C14="NA","NA",VLOOKUP($A$3,'G3-RED'!$A$6:$AM$501,7,FALSE))),"NA") -> 9.849313066 | G14: NA | H14: =IFERROR((IF($C14="NA","NA",VLOOKUP($A$3,'G3-RED'!$A$6:$AM$501,10,FALSE))),"NA") -> 12.28968138 | I14: NA | J14: =IFERROR((IF($C14="NA","NA",VLOOKUP($A$3,'G3-RED'!$A$6:$AM$501,13,FALSE))),"NA") -> 4.735291825 | K14: NA | L14: =IFERROR((IF($C14="NA","NA",VLOOKUP($A$3,'G3-RED'!$A$6:$AM$501,16,FALSE))),"NA") -> 2.439876255 | M14: NA
A15: ELL | B15: =IFERROR(VLOOKUP(TEXT($A$3,"0000"),MEM_ELL!$A$3:$O$501,7,FALSE),0) -> 12483 | C15: =IFERROR((IF(OR(B15=0,B15="",B15="NA"),"NA",((IF(VLOOKUP($A$3,'G3-RELL'!$A$6:$AM$500,3,FALSE)>=B15,"100% ("&VLOOKUP($A$3,'G3-RELL'!$A$6:$AM$500,3,FALSE)&")",(ROUND((VLOOKUP($A$3,'G3-RELL'!$A$6:$AM$500,3,FALSE)/B15*100),0))&"% ("&IF(VLOOKUP($A$3,'G3-RELL'!$A$6:$AM$500,3,FALSE)="",0,VLOOKUP($A$3,'G3-RELL'!$A$6:$AM$500,3,FALSE))&")"))))),"0% (0)") -> 96% (11959) | D15: =IFERROR((IF($C15="NA","NA",VLOOKUP($A$3,'G3-RELL'!$A$6:$AM$501,4,FALSE))),"NA") -> 28.83267832 | E15: =IFERROR((IF($C15="NA","NA",VLOOKUP($A$3,'G3-RELL'!$A$6:$AM$501,6,FALSE)&"% ("&IF(VLOOKUP($A$3,'G3-RELL'!$A$6:$AM$501,5,FALSE)="",0,VLOOKUP($A$3,'G3-RELL'!$A$6:$AM$501,5,FALSE))&")")),"NA") -> 42% (5071) | F15: =IFERROR((IF($C15="NA","NA",VLOOKUP($A$3,'G3-RELL'!$A$6:$AM$501,7,FALSE))),"NA") -> 9.657663684 | G15: NA | H15: =IFERROR((IF($C15="NA","NA",VLOOKUP($A$3,'G3-RELL'!$A$6:$AM$501,10,FALSE))),"NA") -> 12.14633331 | I15: NA | J15: =IFERROR((IF($C15="NA","NA",VLOOKUP($A$3,'G3-RELL'!$A$6:$AM$501,13,FALSE))),"NA") -> 4.605485408 | K15: NA | L15: =IFERROR((IF($C15="NA","NA",VLOOKUP($A$3,'G3-RELL'!$A$6:$AM$501,16,FALSE))),"NA") -> 2.423195919 | M15: NA
A16: SWD | B16: =IFERROR(VLOOKUP(TEXT($A$3,"0000"),MEM_SWD!$A$3:$O$501,7,FALSE),0) -> 2324 | C16: =IFERROR((IF(OR(B16=0,B16="",B16="NA"),"NA",((IF(VLOOKUP($A$3,'G3-RSWD'!$A$6:$AM$500,3,FALSE)>=B16,"100% ("&VLOOKUP($A$3,'G3-RSWD'!$A$6:$AM$500,3,FALSE)&")",(ROUND((VLOOKUP($A$3,'G3-RSWD'!$A$6:$AM$500,3,FALSE)/B16*100),0))&"% ("&IF(VLOOKUP($A$3,'G3-RSWD'!$A$6:$AM$500,3,FALSE)="",0,VLOOKUP($A$3,'G3-RSWD'!$A$6:$AM$500,3,FALSE))&")"))))),"0% (0)") -> 94% (2187) | D16: =IFERROR((IF($C16="NA","NA",VLOOKUP($A$3,'G3-RSWD'!$A$6:$AM$501,4,FALSE))),"NA") -> 21.64234111 | E16: =IFERROR((IF($C16="NA","NA",VLOOKUP($A$3,'G3-RSWD'!$A$6:$AM$501,6,FALSE)&"% ("&IF(VLOOKUP($A$3,'G3-RSWD'!$A$6:$AM$501,5,FALSE)="",0,VLOOKUP($A$3,'G3-RSWD'!$A$6:$AM$501,5,FALSE))&")")),"NA") -> 16% (351) | F16: =IFERROR((IF($C16="NA","NA",VLOOKUP($A$3,'G3-RSWD'!$A$6:$AM$501,7,FALSE))),"NA") -> 7.248422497 | G16: NA | H16: =IFERROR((IF($C16="NA","NA",VLOOKUP($A$3,'G3-RSWD'!$A$6:$AM$501,10,FALSE))),"NA") -> 9.008230453 | I16: NA | J16: =IFERROR((IF($C16="NA","NA",VLOOKUP($A$3,'G3-RSWD'!$A$6:$AM$501,13,FALSE))),"NA") -> 3.670598994 | K16: NA | L16: =IFERROR((IF($C16="NA","NA",VLOOKUP($A$3,'G3-RSWD'!$A$6:$AM$501,16,FALSE))),"NA") -> 1.724462734 | M16: NA
A17: Math - Grade 3
A18: Satisfactory Progress Cut Scores at 60% or above | B18: Total # of Students | C18: % of Students Tested | D18: ='G3-5 Matrix'!C10&" ["&'G3-5 Matrix'!C11&"]" -> Overall [30] | F18: ='G3-5 Matrix'!D10&" ["&'G3-5 Matrix'!D11&"]" -> Number: Operations, Problems, & Statistics [30] | H18: ='G3-5 Matrix'!E10&" ["&'G3-5 Matrix'!E11&"]" -> Number: Fractions [0] | J18: ='G3-5 Matrix'!F10&" ["&'G3-5 Matrix'!F11&"]" -> Geometry and Measurement [0]
D19: Average Score | E19: % Satisfactory | F19: Average Score | G19: % Satisfactory | H19: Average Score | I19: % Satisfactory | J19: Average Score | K19: % Satisfactory
A20: All students | B20: =IFERROR(VLOOKUP(TEXT($A$3,"0000"),Mem_All!$A$3:$O$501,7,FALSE),0) -> 26789 | C20: =IFERROR((IF(OR(B20=0,B20="",B20="NA"),"NA",((IF(VLOOKUP($A$3,'G3-MALL'!$A$6:$AG$500,3,FALSE)>=B20,"100% ("&VLOOKUP($A$3,'G3-MALL'!$A$6:$AG$500,3,FALSE)&")",(ROUND((VLOOKUP($A$3,'G3-MALL'!$A$6:$AG$500,3,FALSE)/B20*100),0))&"% ("&IF(VLOOKUP($A$3,'G3-MALL'!$A$6:$AG$500,3,FALSE)="",0,VLOOKUP($A$3,'G3-MALL'!$A$6:$AG$500,3,FALSE))&")"))))),"0% (0)") -> 94% (25140) | D20: =IFERROR((IF($C20="NA","NA",VLOOKUP($A$3,'G3-MALL'!$A$6:$AM$500,4,FALSE))),"NA") -> 18.84044153 | E20: =IF($C20="NA","NA",VLOOKUP($A$3,'G3-MALL'!$A$6:$AM$500,6,FALSE)&"% ("&IF(VLOOKUP($A$3,'G3-MALL'!$A$6:$AM$500,5,FALSE)="",0,VLOOKUP($A$3,'G3-MALL'!$A$6:$AM$500,5,FALSE))&")") -> 59% (14767) | F20: =IFERROR((IF($C20="NA","NA",VLOOKUP($A$3,'G3-MALL'!$A$6:$AM$500,7,FALSE))),"NA") -> 18.84044153 | G20: NA | H20: NT | I20: NT | J20: NT | K20: NT
A21: White | B21: =IFERROR(VLOOKUP(TEXT($A$3,"0000"),MEM_W!$A$3:$O$501,7,FALSE),0) -> 2014 | C21: =IFERROR((IF(OR(B21=0,B21="",B21="NA"),"NA",((IF(VLOOKUP($A$3,'G3-MW'!$A$6:$AG$500,3,FALSE)>=B21,"100% ("&VLOOKUP($A$3,'G3-MW'!$A$6:$AG$500,3,FALSE)&")",(ROUND((VLOOKUP($A$3,'G3-MW'!$A$6:$AG$500,3,FALSE)/B21*100),0))&"% ("&IF(VLOOKUP($A$3,'G3-MW'!$A$6:$AG$500,3,FALSE)="",0,VLOOKUP($A$3,'G3-MW'!$A$6:$AG$500,3,FALSE))&")"))))),"0% (0)") -> 90% (1806) | D21: =IFERROR((IF($C21="NA","NA",VLOOKUP($A$3,'G3-MW'!$A$6:$AM$500,4,FALSE))),"NA") -> 21.78571429 | E21: =IFERROR((IF($C21="NA","NA",ROUND(VLOOKUP($A$3,'G3-MW'!$A$6:$AM$500,6,FALSE),0)&"% ("&IF(VLOOKUP($A$3,'G3-MW'!$A$6:$AM$500,5,FALSE)="",0,VLOOKUP($A$3,'G3-MW'!$A$6:$AM$500,5,FALSE))&")")),"NA") -> 77% (1392) | F21: =IFERROR((IF($C21="NA","NA",VLOOKUP($A$3,'G3-MW'!$A$6:$AM$500,7,FALSE))),"NA") -> 21.78571429 | G21: NA | H21: NT | I21: NT | J21: NT | K21: NT
A22: Black | B22: =IFERROR(VLOOKUP(TEXT($A$3,"0000"),MEM_B!$A$3:$O$501,7,FALSE),0) -> 6128 | C22: =IFERROR((IF(OR(B22=0,B22="",B22="NA"),"NA",((IF(VLOOKUP($A$3,'G3-MB'!$A$6:$AG$500,3,FALSE)>=B22,"100% ("&VLOOKUP($A$3,'G3-MB'!$A$6:$AG$500,3,FALSE)&")",(ROUND((VLOOKUP($A$3,'G3-MB'!$A$6:$AG$500,3,FALSE)/B22*100),0))&"% ("&IF(VLOOKUP($A$3,'G3-MB'!$A$6:$AG$500,3,FALSE)="",0,VLOOKUP($A$3,'G3-MB'!$A$6:$AG$500,3,FALSE))&")"))))),"0% (0)") -> 96% (5861) | D22: =IFERROR((IF($C22="NA","NA",VLOOKUP($A$3,'G3-MB'!$A$6:$AM$500,4,FALSE))),"NA") -> 17.15063982 | E22: =IFERROR((IF($C22="NA","NA",ROUND(VLOOKUP($A$3,'G3-MB'!$A$6:$AM$500,6,FALSE),0)&"% ("&IF(VLOOKUP($A$3,'G3-MB'!$A$6:$AM$500,5,FALSE)="",0,VLOOKUP($A$3,'G3-MB'!$A$6:$AM$500,5,FALSE))&")")),"NA") -> 48% (2812) | F22: =IFERROR((IF($C22="NA","NA",VLOOKUP($A$3,'G3-MB'!$A$6:$AM$500,7,FALSE))),"NA") -> 17.15063982 | G22: NA | H22: NT | I22: NT | J22: NT | K22: NT
A23: Hispanic | B23: =IFERROR(VLOOKUP(TEXT($A$3,"0000"),MEM_H!$A$3:$O$501,7,FALSE),0) -> 18043 | C23: =IFERROR((IF(OR(B23=0,B23="",B23="NA"),"NA",((IF(VLOOKUP($A$3,'G3-MH'!$A$6:$AG$500,3,FALSE)>=B23,"100% ("&VLOOKUP($A$3,'G3-MH'!$A$6:$AG$500,3,FALSE)&")",(ROUND((VLOOKUP($A$3,'G3-MH'!$A$6:$AG$500,3,FALSE)/B23*100),0))&"% ("&IF(VLOOKUP($A$3,'G3-MH'!$A$6:$AG$500,3,FALSE)="",0,VLOOKUP($A$3,'G3-MH'!$A$6:$AG$500,3,FALSE))&")"))))),"0% (0)") -> 94% (16905) | D23: =IFERROR((IF($C23="NA","NA",VLOOKUP($A$3,'G3-MH'!$A$6:$AM$500,4,FALSE))),"NA") -> 19.0412659 | E23: =IFERROR((IF($C23="NA","NA",ROUND(VLOOKUP($A$3,'G3-MH'!$A$6:$AM$500,6,FALSE),0)&"% ("&IF(VLOOKUP($A$3,'G3-MH'!$A$6:$AM$500,5,FALSE)="",0,VLOOKUP($A$3,'G3-MH'!$A$6:$AM$500,5,FALSE))&")")),"NA") -> 60% (10164) | F23: =IFERROR((IF($C23="NA","NA",VLOOKUP($A$3,'G3-MH'!$A$6:$AM$500,7,FALSE))),"NA") -> 19.0412659 | G23: NA | H23: NT | I23: NT | J23: NT | K23: NT
A24: Asian | B24: =IFERROR(VLOOKUP(TEXT($A$3,"0000"),MEM_A!$A$3:$O$501,7,FALSE),0) -> 286 | C24: =IFERROR((IF(OR(B24=0,B24="",B24="NA"),"NA",((IF(VLOOKUP($A$3,'G3-MA'!$A$6:$AG$500,3,FALSE)>=B24,"100% ("&VLOOKUP($A$3,'G3-MA'!$A$6:$AG$500,3,FALSE)&")",(ROUND((VLOOKUP($A$3,'G3-MA'!$A$6:$AG$500,3,FALSE)/B24*100),0))&"% ("&IF(VLOOKUP($A$3,'G3-MA'!$A$6:$AG$500,3,FALSE)="",0,VLOOKUP($A$3,'G3-MA'!$A$6:$AG$500,3,FALSE))&")"))))),"0% (0)") -> 90% (257) | D24: =IFERROR((IF($C24="NA","NA",VLOOKUP($A$3,'G3-MA'!$A$6:$AM$500,4,FALSE))),"NA") -> 22.78132296 | E24: =IFERROR((IF($C24="NA","NA",ROUND(VLOOKUP($A$3,'G3-MA'!$A$6:$AM$500,6,FALSE),0)&"% ("&IF(VLOOKUP($A$3,'G3-MA'!$A$6:$AM$500,5,FALSE)="",0,VLOOKUP($A$3,'G3-MA'!$A$6:$AM$500,5,FALSE))&")")),"NA") -> 83% (213) | F24: =IFERROR((IF($C24="NA","NA",VLOOKUP($A$3,'G3-MA'!$A$6:$AM$500,7,FALSE))),"NA") -> 22.78132296 | G24: NA | H24: NT | I24: NT | J24: NT | K24: NT
A25: Am. Indian | B25: =IFERROR(VLOOKUP(TEXT($A$3,"0000"),MEM_I!$A$3:$O$501,7,FALSE),0) -> 9 | C25: =IFERROR((IF(OR(B25=0,B25="",B25="NA"),"NA",((IF(VLOOKUP($A$3,'G3-MI'!$A$6:$AG$500,3,FALSE)>=B25,"100% ("&VLOOKUP($A$3,'G3-MI'!$A$6:$AG$500,3,FALSE)&")",(ROUND((VLOOKUP($A$3,'G3-MI'!$A$6:$AG$500,3,FALSE)/B25*100),0))&"% ("&IF(VLOOKUP($A$3,'G3-MI'!$A$6:$AG$500,3,FALSE)="",0,VLOOKUP($A$3,'G3-MI'!$A$6:$AG$500,3,FALSE))&")"))))),"0% (0)") -> 100% (10) | D25: =IFERROR((IF($C25="NA","NA",VLOOKUP($A$3,'G3-MI'!$A$6:$AM$500,4,FALSE))),"NA") -> 19.5 | E25: =IFERROR((IF($C25="NA","NA",ROUND(VLOOKUP($A$3,'G3-MI'!$A$6:$AM$500,6,FALSE),0)&"% ("&IF(VLOOKUP($A$3,'G3-MI'!$A$6:$AM$500,5,FALSE)="",0,VLOOKUP($A$3,'G3-MI'!$A$6:$AM$500,5,FALSE))&")")),"NA") -> 70% (7) | F25: =IFERROR((IF($C25="NA","NA",VLOOKUP($A$3,'G3-MI'!$A$6:$AM$500,7,FALSE))),"NA") -> 19.5 | G25: NA | H25: NT | I25: NT | J25: NT | K25: NT
A26: ED | B26: =IFERROR(VLOOKUP(TEXT($A$3,"0000"),MEM_ED!$A$3:$O$501,7,FALSE),0) -> 20496 | C26: =IFERROR((IF(OR(B26=0,B26="",B26="NA"),"NA",((IF(VLOOKUP($A$3,'G3-MED'!$A$6:$AG$500,3,FALSE)>=B26,"100% ("&VLOOKUP($A$3,'G3-MED'!$A$6:$AG$500,3,FALSE)&")",(ROUND((VLOOKUP($A$3,'G3-MED'!$A$6:$AG$500,3,FALSE)/B26*100),0))&"% ("&IF(VLOOKUP($A$3,'G3-MED'!$A$6:$AG$500,3,FALSE)="",0,VLOOKUP($A$3,'G3-MED'!$A$6:$AG$500,3,FALSE))&")"))))),"0% (0)") -> 99% (20371) | D26: =IFERROR((IF($C26="NA","NA",VLOOKUP($A$3,'G3-MED'!$A$6:$AM$500,4,FALSE))),"NA") -> 18.12812331 | E26: =IFERROR((IF($C26="NA","NA",ROUND(VLOOKUP($A$3,'G3-MED'!$A$6:$AM$500,6,FALSE),0)&"% ("&IF(VLOOKUP($A$3,'G3-MED'!$A$6:$AM$500,5,FALSE)="",0,VLOOKUP($A$3,'G3-MED'!$A$6:$AM$500,5,FALSE))&")")),"NA") -> 54% (11047) | F26: =IFERROR((IF($C26="NA","NA",VLOOKUP($A$3,'G3-MED'!$A$6:$AM$500,7,FALSE))),"NA") -> 18.12812331 | G26: NA | H26: NT | I26: NT | J26: NT | K26: NT
A27: ELL | B27: =IFERROR(VLOOKUP(TEXT($A$3,"0000"),MEM_ELL!$A$3:$O$501,7,FALSE),0) -> 12483 | C27: =IFERROR((IF(OR(B27=0,B27="",B27="NA"),"NA",((IF(VLOOKUP($A$3,'G3-MELL'!$A$6:$AG$500,3,FALSE)>=B27,"100% ("&VLOOKUP($A$3,'G3-MELL'!$A$6:$AG$500,3,FALSE)&")",(ROUND((VLOOKUP($A$3,'G3-MELL'!$A$6:$AG$500,3,FALSE)/B27*100),0))&"% ("&IF(VLOOKUP($A$3,'G3-MELL'!$A$6:$AG$500,3,FALSE)="",0,VLOOKUP($A$3,'G3-MELL'!$A$6:$AG$500,3,FALSE))&")"))))),"0% (0)") -> 96% (11939) | D27: =IFERROR((IF($C27="NA","NA",VLOOKUP($A$3,'G3-MELL'!$A$6:$AM$500,4,FALSE))),"NA") -> 18.14389815 | E27: =IFERROR((IF($C27="NA","NA",ROUND(VLOOKUP($A$3,'G3-MELL'!$A$6:$AM$500,6,FALSE),0)&"% ("&IF(VLOOKUP($A$3,'G3-MELL'!$A$6:$AM$500,5,FALSE)="",0,VLOOKUP($A$3,'G3-MELL'!$A$6:$AM$500,5,FALSE))&")")),"NA") -> 54% (6491) | F27: =IFERROR((IF($C27="NA","NA",VLOOKUP($A$3,'G3-MELL'!$A$6:$AM$500,7,FALSE))),"NA") -> 18.14389815 | G27: NA | H27: NT | I27: NT | J27: NT | K27: NT
A28: SWD | B28: =IFERROR(VLOOKUP(TEXT($A$3,"0000"),MEM_SWD!$A$3:$O$501,7,FALSE),0) -> 2324 | C28: =IFERROR((IF(OR(B28=0,B28="",B28="NA"),"NA",((IF(VLOOKUP($A$3,'G3-MSWD'!$A$6:$AG$500,3,FALSE)>=B28,"100% ("&VLOOKUP($A$3,'G3-MSWD'!$A$6:$AG$500,3,FALSE)&")",(ROUND((VLOOKUP($A$3,'G3-MSWD'!$A$6:$AG$500,3,FALSE)/B28*100),0))&"% ("&IF(VLOOKUP($A$3,'G3-MSWD'!$A$6:$AG$500,3,FALSE)="",0,VLOOKUP($A$3,'G3-MSWD'!$A$6:$AG$500,3,FALSE))&")"))))),"0% (0)") -> 94% (2173) | D28: =IFERROR((IF($C28="NA","NA",VLOOKUP($A$3,'G3-MSWD'!$A$6:$AM$500,4,FALSE))),"NA") -> 14.97873907 | E28: =IFERROR((IF($C28="NA","NA",ROUND(VLOOKUP($A$3,'G3-MSWD'!$A$6:$AM$500,6,FALSE),0)&"% ("&IF(VLOOKUP($A$3,'G3-MSWD'!$A$6:$AM$500,5,FALSE)="",0,VLOOKUP($A$3,'G3-MSWD'!$A$6:$AM$500,5,FALSE))&")")),"NA") -> 34% (740) | F28: =IFERROR((IF($C28="NA","NA",VLOOKUP($A$3,'G3-MSWD'!$A$6:$AM$500,7,FALSE))),"NA") -> 14.97873907 | G28: NA | H28: NT | I28: NT | J28: NT | K28: NT

Sheet Grade 4 Report
A2: Click here to return to the school and sheet selection interface
A3: ='Select School'!B3 -> 9999
A4: =TEXT(A3,"0000")&"-"&VLOOKUP(A3,SchList!$A$2:$B$504,2,FALSE) -> 9999-District
A5: Reading - Grade 4
A6: Satisfactory Progress Cut Scores at 63% or above | B6: Total # of Students | C6: % of Students Tested | D6: ='G3-5 Matrix'!C2&" ["&'G3-5 Matrix'!C5&"]" -> Overall [56] | F6: ='G3-5 Matrix'!D2&" ["&'G3-5 Matrix'!D5&"]" -> Vocabulary [15] | H6: ='G3-5 Matrix'!E2&" ["&'G3-5 Matrix'!E5&"]" -> Reading Application [24] | J6: ='G3-5 Matrix'!F2&" ["&'G3-5 Matrix'!F5&"]" -> Literary Analysis Fiction/Nonfiction [13] | L6: ='G3-5 Matrix'!G2&" ["&'G3-5 Matrix'!G5&"]" -> Informational Text/ Research Process [4]
D7: Average Score | E7: % Satisfactory | F7: Average Score | G7: % Satisfactory | H7: Average Score | I7: % Satisfactory | J7: Average Score | K7: % Satisfactory | L7: Average Score | M7: % Satisfactory
A8: All students | B8: =IFERROR(VLOOKUP(TEXT($A$3,"0000"),Mem_All!$A$3:$O$501,8,FALSE),0) -> 25346 | C8: =IFERROR((IF(OR(B8=0,B8="",B8="NA"),"NA",((IF(VLOOKUP($A$3,'G4-RALL'!$A$6:$AM$500,3,FALSE)>=B8,"100% ("&VLOOKUP($A$3,'G4-RALL'!$A$6:$AM$500,3,FALSE)&")",(ROUND((VLOOKUP($A$3,'G4-RALL'!$A$6:$AM$500,3,FALSE)/B8*100),0))&"% ("&IF(VLOOKUP($A$3,'G4-RALL'!$A$6:$AM$500,3,FALSE)="",0,VLOOKUP($A$3,'G4-RALL'!$A$6:$AM$500,3,FALSE))&")"))))),"NA") -> 95% (24147) | D8: =IFERROR((IF($C8="NA","NA",VLOOKUP($A$3,'G4-RALL'!$A$6:$AM$500,4,FALSE))),"NA") -> 34.83870046 | E8: =IFERROR((IF($C8="NA","NA",ROUND(VLOOKUP($A$3,'G4-RALL'!$A$6:$AM$500,6,FALSE),0)&"% ("&IF(VLOOKUP($A$3,'G4-RALL'!$A$6:$AM$500,5,FALSE)="",0,VLOOKUP($A$3,'G4-RALL'!$A$6:$AM$500,5,FALSE))&")")),"NA") -> 56% (13518) | F8: =IFERROR((IF($C8="NA","NA",VLOOKUP($A$3,'G4-RALL'!$A$6:$AM$500,7,FALSE))),"NA") -> 10.82961859 | G8: NA | H8: =IFERROR((IF($C8="NA","NA",VLOOKUP($A$3,'G4-RALL'!$A$6:$AM$500,10,FALSE))),"NA") -> 14.09845529 | I8: NA | J8: =IFERROR((IF($C8="NA","NA",VLOOKUP($A$3,'G4-RALL'!$A$6:$AM$500,13,FALSE))),"NA") -> 7.533937963 | K8: NA | L8: =IFERROR((IF($C8="NA","NA",VLOOKUP($A$3,'G4-RALL'!$A$6:$AM$500,16,FALSE))),"NA") -> 2.374965834 | M8: NA
A9: FCAT Level 1 | B9: =IFERROR(VLOOKUP(TEXT($A$3,"0000"),MEM_RL1!$A$3:$O$501,5,FALSE),0) -> 3558 | C9: =IFERROR((IF(OR(B9=0,B9="",B9="NA"),"NA",((IF(VLOOKUP($A$3,'G4-RL1'!$A$6:$AM$500,3,FALSE)>=B9,"100% ("&VLOOKUP($A$3,'G4-RL1'!$A$6:$AM$500,3,FALSE)&")",(ROUND((VLOOKUP($A$3,'G4-RL1'!$A$6:$AM$500,3,FALSE)/B9*100),0))&"% ("&IF(VLOOKUP($A$3,'G4-RL1'!$A$6:$AM$500,3,FALSE)="",0,VLOOKUP($A$3,'G4-RL1'!$A$6:$AM$500,3,FALSE))&")"))))),"NA") -> 97% (3443) | D9: =IFERROR((IF($C9="NA","NA",VLOOKUP($A$3,'G4-RL1'!$A$6:$AM$500,4,FALSE))),"NA") -> 21.52053442 | E9: =IFERROR((IF($C9="NA","NA",ROUND(VLOOKUP($A$3,'G4-RL1'!$A$6:$AM$500,6,FALSE),0)&"% ("&IF(VLOOKUP($A$3,'G4-RL1'!$A$6:$AM$500,5,FALSE)="",0,VLOOKUP($A$3,'G4-RL1'!$A$6:$AM$500,5,FALSE))&")")),"NA") -> 5% (178) | F9: =IFERROR((IF($C9="NA","NA",VLOOKUP($A$3,'G4-RL1'!$A$6:$AM$500,7,FALSE))),"NA") -> 6.968109207 | G9: NA | H9: =IFERROR((IF($C9="NA","NA",VLOOKUP($A$3,'G4-RL1'!$A$6:$AM$500,10,FALSE))),"NA") -> 8.680162649 | I9: NA | J9: =IFERROR((IF($C9="NA","NA",VLOOKUP($A$3,'G4-RL1'!$A$6:$AM$500,13,FALSE))),"NA") -> 4.541707813 | K9: NA | L9: =IFERROR((IF($C9="NA","NA",VLOOKUP($A$3,'G4-RL1'!$A$6:$AM$500,16,FALSE))),"NA") -> 1.342462968 | M9: NA
A10: FCAT Level 2 | B10: =IFERROR(VLOOKUP(TEXT($A$3,"0000"),MEM_RL2!$A$3:$O$501,5,FALSE),0) -> 6566 | C10: =IFERROR((IF(OR(B10=0,B10="",B10="NA"),"NA",((IF(VLOOKUP($A$3,'G4-RL2'!$A$6:$AM$500,3,FALSE)>=B10,"100% ("&VLOOKUP($A$3,'G4-RL2'!$A$6:$AM$500,3,FALSE)&")",(ROUND((VLOOKUP($A$3,'G4-RL2'!$A$6:$AM$500,3,FALSE)/B10*100),0))&"% ("&IF(VLOOKUP($A$3,'G4-RL2'!$A$6:$AM$500,3,FALSE)="",0,VLOOKUP($A$3,'G4-RL2'!$A$6:$AM$500,3,FALSE))&")"))))),"NA") -> 96% (6290) | D10: =IFERROR((IF($C10="NA","NA",VLOOKUP($A$3,'G4-RL2'!$A$6:$AM$500,4,FALSE))),"NA") -> 29.94508744 | E10: =IFERROR((IF($C10="NA","NA",ROUND(VLOOKUP($A$3,'G4-RL2'!$A$6:$AM$500,6,FALSE),0)&"% ("&IF(VLOOKUP($A$3,'G4-RL2'!$A$6:$AM$500,5,FALSE)="",0,VLOOKUP($A$3,'G4-RL2'!$A$6:$AM$500,5,FALSE))&")")),"NA") -> 28% (1780) | F10: =IFERROR((IF($C10="NA","NA",VLOOKUP($A$3,'G4-RL2'!$A$6:$AM$500,7,FALSE))),"NA") -> 9.75554849 | G10: NA | H10: =IFERROR((IF($C10="NA","NA",VLOOKUP($A$3,'G4-RL2'!$A$6:$AM$500,10,FALSE))),"NA") -> 11.92470588 | I10: NA | J10: =IFERROR((IF($C10="NA","NA",VLOOKUP($A$3,'G4-RL2'!$A$6:$AM$500,13,FALSE))),"NA") -> 6.340556439 | K10: NA | L10: =IFERROR((IF($C10="NA","NA",VLOOKUP($A$3,'G4-RL2'!$A$6:$AM$500,16,FALSE))),"NA") -> 1.928171701 | M10: NA
A11: FCAT Level 3 | B11: =IFERROR(VLOOKUP(TEXT($A$3,"0000"),MEM_RL3!$A$3:$O$501,5,FALSE),0) -> 5811 | C11: =IFERROR((IF(OR(B11=0,B11="",B11="NA"),"NA",((IF(VLOOKUP($A$3,'G4-RL3'!$A$6:$AM$500,3,FALSE)>=B11,"100% ("&VLOOKUP($A$3,'G4-RL3'!$A$6:$AM$500,3,FALSE)&")",(ROUND((VLOOKUP($A$3,'G4-RL3'!$A$6:$AM$500,3,FALSE)/B11*100),0))&"% ("&IF(VLOOKUP($A$3,'G4-RL3'!$A$6:$AM$500,3,FALSE)="",0,VLOOKUP($A$3,'G4-RL3'!$A$6:$AM$500,3,FALSE))&")"))))),"NA") -> 96% (5564) | D11: =IFERROR((IF($C11="NA","NA",VLOOKUP($A$3,'G4-RL3'!$A$6:$AM$500,4,FALSE))),"NA") -> 37.07287922 | E11: =IFERROR((IF($C11="NA","NA",ROUND(VLOOKUP($A$3,'G4-RL3'!$A$6:$AM$500,6,FALSE),0)&"% ("&IF(VLOOKUP($A$3,'G4-RL3'!$A$6:$AM$500,5,FALSE)="",0,VLOOKUP($A$3,'G4-RL3'!$A$6:$AM$500,5,FALSE))&")")),"NA") -> 70% (3884) | F11: =IFERROR((IF($C11="NA","NA",VLOOKUP($A$3,'G4-RL3'!$A$6:$AM$500,7,FALSE))),"NA") -> 11.5870417 | G11: NA | H11: =IFERROR((IF($C11="NA","NA",VLOOKUP($A$3,'G4-RL3'!$A$6:$AM$500,10,FALSE))),"NA") -> 14.91899712 | I11: NA | J11: =IFERROR((IF($C11="NA","NA",VLOOKUP($A$3,'G4-RL3'!$A$6:$AM$500,13,FALSE))),"NA") -> 8.003360891 | K11: NA | L11: =IFERROR((IF($C11="NA","NA",VLOOKUP($A$3,'G4-RL3'!$A$6:$AM$500,16,FALSE))),"NA") -> 2.562922358 | M11: NA
A12: FCAT Level 4 | B12: =IFERROR(VLOOKUP(TEXT($A$3,"0000"),MEM_RL4!$A$3:$O$501,5,FALSE),0) -> 5448 | C12: =IFERROR((IF(OR(B12=0,B12="",B12="NA"),"NA",((IF(VLOOKUP($A$3,'G4-RL4'!$A$6:$AM$500,3,FALSE)>=B12,"100% ("&VLOOKUP($A$3,'G4-RL4'!$A$6:$AM$500,3,FALSE)&")",(ROUND((VLOOKUP($A$3,'G4-RL4'!$A$6:$AM$500,3,FALSE)/B12*100),0))&"% ("&IF(VLOOKUP($A$3,'G4-RL4'!$A$6:$AM$500,3,FALSE)="",0,VLOOKUP($A$3,'G4-RL4'!$A$6:$AM$500,3,FALSE))&")"))))),"NA") -> 95% (5163) | D12: =IFERROR((IF($C12="NA","NA",VLOOKUP($A$3,'G4-RL4'!$A$6:$AM$500,4,FALSE))),"NA") -> 42.8454387 | E12: =IFERROR((IF($C12="NA","NA",ROUND(VLOOKUP($A$3,'G4-RL4'!$A$6:$AM$500,6,FALSE),0)&"% ("&IF(VLOOKUP($A$3,'G4-RL4'!$A$6:$AM$500,5,FALSE)="",0,VLOOKUP($A$3,'G4-RL4'!$A$6:$AM$500,5,FALSE))&")")),"NA") -> 93% (4816) | F12: =IFERROR((IF($C12="NA","NA",VLOOKUP($A$3,'G4-RL4'!$A$6:$AM$500,7,FALSE))),"NA") -> 12.91274453 | G12: NA | H12: =IFERROR((IF($C12="NA","NA",VLOOKUP($A$3,'G4-RL4'!$A$6:$AM$500,10,FALSE))),"NA") -> 17.48454387 | I12: NA | J12: =IFERROR((IF($C12="NA","NA",VLOOKUP($A$3,'G4-RL4'!$A$6:$AM$500,13,FALSE))),"NA") -> 9.420472593 | K12: NA | L12: =IFERROR((IF($C12="NA","NA",VLOOKUP($A$3,'G4-RL4'!$A$6:$AM$500,16,FALSE))),"NA") -> 3.033565756 | M12: NA
A13: FCAT Level 5 | B13: =IFERROR(VLOOKUP(TEXT($A$3,"0000"),MEM_RL5!$A$3:$O$501,4,FALSE),0) -> 2639 | C13: =IFERROR((IF(OR(B13=0,B13="",B13="NA"),"NA",((IF(VLOOKUP($A$3,'G4-RL5'!$A$6:$AM$500,3,FALSE)>=B13,"100% ("&VLOOKUP($A$3,'G4-RL5'!$A$6:$AM$500,3,FALSE)&")",(ROUND((VLOOKUP($A$3,'G4-RL5'!$A$6:$AM$500,3,FALSE)/B13*100),0))&"% ("&IF(VLOOKUP($A$3,'G4-RL5'!$A$6:$AM$500,3,FALSE)="",0,VLOOKUP($A$3,'G4-RL5'!$A$6:$AM$500,3,FALSE))&")"))))),"NA") -> 94% (2487) | D13: =IFERROR((IF($C13="NA","NA",VLOOKUP($A$3,'G4-RL5'!$A$6:$AM$500,4,FALSE))),"NA") -> 47.34977885 | E13: =IFERROR((IF($C13="NA","NA",ROUND(VLOOKUP($A$3,'G4-RL5'!$A$6:$AM$500,6,FALSE),0)&"% ("&IF(VLOOKUP($A$3,'G4-RL5'!$A$6:$AM$500,5,FALSE)="",0,VLOOKUP($A$3,'G4-RL5'!$A$6:$AM$500,5,FALSE))&")")),"NA") -> 99% (2471) | F13: =IFERROR((IF($C13="NA","NA",VLOOKUP($A$3,'G4-RL5'!$A$6:$AM$500,7,FALSE))),"NA") -> 13.87844793 | G13: NA | H13: =IFERROR((IF($C13="NA","NA",VLOOKUP($A$3,'G4-RL5'!$A$6:$AM$500,10,FALSE))),"NA") -> 19.56767189 | I13: NA | J13: =IFERROR((IF($C13="NA","NA",VLOOKUP($A$3,'G4-RL5'!$A$6:$AM$500,13,FALSE))),"NA") -> 10.52657821 | K13: NA | L13: =IFERROR((IF($C13="NA","NA",VLOOKUP($A$3,'G4-RL5'!$A$6:$AM$500,16,FALSE))),"NA") -> 3.372657821 | M13: NA
A14: White | B14: =IFERROR(VLOOKUP(TEXT($A$3,"0000"),MEM_W!$A$3:$O$501,8,FALSE),0) -> 2165 | C14: =IFERROR((IF(OR(B14=0,B14="",B14="NA"),"NA",((IF(VLOOKUP($A$3,'G4-RW'!$A$6:$AM$500,3,FALSE)>=B14,"100% ("&VLOOKUP($A$3,'G4-RW'!$A$6:$AM$500,3,FALSE)&")",(ROUND((VLOOKUP($A$3,'G4-RW'!$A$6:$AM$500,3,FALSE)/B14*100),0))&"% ("&IF(VLOOKUP($A$3,'G4-RW'!$A$6:$AM$500,3,FALSE)="",0,VLOOKUP($A$3,'G4-RW'!$A$6:$AM$500,3,FALSE))&")"))))),"NA") -> 92% (1986) | D14: =IFERROR((IF($C14="NA","NA",VLOOKUP($A$3,'G4-RW'!$A$6:$AM$500,4,FALSE))),"NA") -> 39.64486405 | E14: =IFERROR((IF($C14="NA","NA",ROUND(VLOOKUP($A$3,'G4-RW'!$A$6:$AM$500,6,FALSE),0)&"% ("&IF(VLOOKUP($A$3,'G4-RW'!$A$6:$AM$500,5,FALSE)="",0,VLOOKUP($A$3,'G4-RW'!$A$6:$AM$500,5,FALSE))&")")),"NA") -> 74% (1475) | F14: =IFERROR((IF($C14="NA","NA",VLOOKUP($A$3,'G4-RW'!$A$6:$AM$500,7,FALSE))),"NA") -> 12.23333333 | G14: NA | H14: =IFERROR((IF($C14="NA","NA",VLOOKUP($A$3,'G4-RW'!$A$6:$AM$500,10,FALSE))),"NA") -> 16.09461229 | I14: NA | J14: =IFERROR((IF($C14="NA","NA",VLOOKUP($A$3,'G4-RW'!$A$6:$AM$500,13,FALSE))),"NA") -> 8.506294058 | K14: NA | L14: =IFERROR((IF($C14="NA","NA",VLOOKUP($A$3,'G4-RW'!$A$6:$AM$500,16,FALSE))),"NA") -> 2.808308157 | M14: NA
A15: Black | B15: =IFERROR(VLOOKUP(TEXT($A$3,"0000"),MEM_B!$A$3:$O$501,8,FALSE),0) -> 5592 | C15: =IFERROR((IF(OR(B15=0,B15="",B15="NA"),"NA",((IF(VLOOKUP($A$3,'G4-RB'!$A$6:$AM$500,3,FALSE)>=B15,"100% ("&VLOOKUP($A$3,'G4-RB'!$A$6:$AM$500,3,FALSE)&")",(ROUND((VLOOKUP($A$3,'G4-RB'!$A$6:$AM$500,3,FALSE)/B15*100),0))&"% ("&IF(VLOOKUP($A$3,'G4-RB'!$A$6:$AM$500,3,FALSE)="",0,VLOOKUP($A$3,'G4-RB'!$A$6:$AM$500,3,FALSE))&")"))))),"NA") -> 97% (5397) | D15: =IFERROR((IF($C15="NA","NA",VLOOKUP($A$3,'G4-RB'!$A$6:$AM$500,4,FALSE))),"NA") -> 31.6976839 | E15: =IFERROR((IF($C15="NA","NA",ROUND(VLOOKUP($A$3,'G4-RB'!$A$6:$AM$500,6,FALSE),0)&"% ("&IF(VLOOKUP($A$3,'G4-RB'!$A$6:$AM$500,5,FALSE)="",0,VLOOKUP($A$3,'G4-RB'!$A$6:$AM$500,5,FALSE))&")")),"NA") -> 42% (2280) | F15: =IFERROR((IF($C15="NA","NA",VLOOKUP($A$3,'G4-RB'!$A$6:$AM$500,7,FALSE))),"NA") -> 9.966685195 | G15: NA | H15: =IFERROR((IF($C15="NA","NA",VLOOKUP($A$3,'G4-RB'!$A$6:$AM$500,10,FALSE))),"NA") -> 12.72962757 | I15: NA | J15: =IFERROR((IF($C15="NA","NA",VLOOKUP($A$3,'G4-RB'!$A$6:$AM$500,13,FALSE))),"NA") -> 6.947433759 | K15: NA | L15: =IFERROR((IF($C15="NA","NA",VLOOKUP($A$3,'G4-RB'!$A$6:$AM$500,16,FALSE))),"NA") -> 2.045988512 | M15: NA
A16: Hispanic | B16: =IFERROR(VLOOKUP(TEXT($A$3,"0000"),MEM_H!$A$3:$O$501,8,FALSE),0) -> 17152 | C16: =IFERROR((IF(OR(B16=0,B16="",B16="NA"),"NA",((IF(VLOOKUP($A$3,'G4-RH'!$A$6:$AM$500,3,FALSE)>=B16,"100% ("&VLOOKUP($A$3,'G4-RH'!$A$6:$AM$500,3,FALSE)&")",(ROUND((VLOOKUP($A$3,'G4-RH'!$A$6:$AM$500,3,FALSE)/B16*100),0))&"% ("&IF(VLOOKUP($A$3,'G4-RH'!$A$6:$AM$500,3,FALSE)="",0,VLOOKUP($A$3,'G4-RH'!$A$6:$AM$500,3,FALSE))&")"))))),"NA") -> 95% (16352) | D16: =IFERROR((IF($C16="NA","NA",VLOOKUP($A$3,'G4-RH'!$A$6:$AM$500,4,FALSE))),"NA") -> 35.17166707 | E16: =IFERROR((IF($C16="NA","NA",ROUND(VLOOKUP($A$3,'G4-RH'!$A$6:$AM$500,6,FALSE),0)&"% ("&IF(VLOOKUP($A$3,'G4-RH'!$A$6:$AM$500,5,FALSE)="",0,VLOOKUP($A$3,'G4-RH'!$A$6:$AM$500,5,FALSE))&")")),"NA") -> 58% (9462) | F16: =IFERROR((IF($C16="NA","NA",VLOOKUP($A$3,'G4-RH'!$A$6:$AM$500,7,FALSE))),"NA") -> 10.9212023 | G16: NA | H16: =IFERROR((IF($C16="NA","NA",VLOOKUP($A$3,'G4-RH'!$A$6:$AM$500,10,FALSE))),"NA") -> 14.25440313 | I16: NA | J16: =IFERROR((IF($C16="NA","NA",VLOOKUP($A$3,'G4-RH'!$A$6:$AM$500,13,FALSE))),"NA") -> 7.581837084 | K16: NA | L16: =IFERROR((IF($C16="NA","NA",VLOOKUP($A$3,'G4-RH'!$A$6:$AM$500,16,FALSE))),"NA") -> 2.41888454 | M16: NA
A17: Asian | B17: =IFERROR(VLOOKUP(TEXT($A$3,"0000"),MEM_A!$A$3:$O$501,8,FALSE),0) -> 309 | C17: =IFERROR((IF(OR(B17=0,B17="",B17="NA"),"NA",((IF(VLOOKUP($A$3,'G4-RA'!$A$6:$AM$500,3,FALSE)>=B17,"100% ("&VLOOKUP($A$3,'G4-RA'!$A$6:$AM$500,3,FALSE)&")",(ROUND((VLOOKUP($A$3,'G4-RA'!$A$6:$AM$500,3,FALSE)/B17*100),0))&"% ("&IF(VLOOKUP($A$3,'G4-RA'!$A$6:$AM$500,3,FALSE)="",0,VLOOKUP($A$3,'G4-RA'!$A$6:$AM$500,3,FALSE))&")"))))),"NA") -> 95% (293) | D17: =IFERROR((IF($C17="NA","NA",VLOOKUP($A$3,'G4-RA'!$A$6:$AM$500,4,FALSE))),"NA") -> 40.60273038 | E17: =IFERROR((IF($C17="NA","NA",ROUND(VLOOKUP($A$3,'G4-RA'!$A$6:$AM$500,6,FALSE),0)&"% ("&IF(VLOOKUP($A$3,'G4-RA'!$A$6:$AM$500,5,FALSE)="",0,VLOOKUP($A$3,'G4-RA'!$A$6:$AM$500,5,FALSE))&")")),"NA") -> 76% (224) | F17: =IFERROR((IF($C17="NA","NA",VLOOKUP($A$3,'G4-RA'!$A$6:$AM$500,7,FALSE))),"NA") -> 12.19249147 | G17: NA | H17: =IFERROR((IF($C17="NA","NA",VLOOKUP($A$3,'G4-RA'!$A$6:$AM$500,10,FALSE))),"NA") -> 16.72116041 | I17: NA | J17: =IFERROR((IF($C17="NA","NA",VLOOKUP($A$3,'G4-RA'!$A$6:$AM$500,13,FALSE))),"NA") -> 8.955972696 | K17: NA | L17: =IFERROR((IF($C17="NA","NA",VLOOKUP($A$3,'G4-RA'!$A$6:$AM$500,16,FALSE))),"NA") -> 2.744709898 | M17: NA
A18: Am. Indian | B18: =IFERROR(VLOOKUP(TEXT($A$3,"0000"),MEM_I!$A$3:$O$501,8,FALSE),0) -> 17 | C18: =IFERROR((IF(OR(B18=0,B18="",B18="NA"),"NA",((IF(VLOOKUP($A$3,'G4-RI'!$A$6:$AM$500,3,FALSE)>=B18,"100% ("&VLOOKUP($A$3,'G4-RI'!$A$6:$AM$500,3,FALSE)&")",(ROUND((VLOOKUP($A$3,'G4-RI'!$A$6:$AM$500,3,FALSE)/B18*100),0))&"% ("&IF(VLOOKUP($A$3,'G4-RI'!$A$6:$AM$500,3,FALSE)="",0,VLOOKUP($A$3,'G4-RI'!$A$6:$AM$500,3,FALSE))&")"))))),"NA") -> 94% (16) | D18: =IFERROR((IF($C18="NA","NA",VLOOKUP($A$3,'G4-RI'!$A$6:$AM$500,4,FALSE))),"NA") -> 38.6875 | E18: =IFERROR((IF($C18="NA","NA",ROUND(VLOOKUP($A$3,'G4-RI'!$A$6:$AM$500,6,FALSE),0)&"% ("&IF(VLOOKUP($A$3,'G4-RI'!$A$6:$AM$500,5,FALSE)="",0,VLOOKUP($A$3,'G4-RI'!$A$6:$AM$500,5,FALSE))&")")),"NA") -> 69% (11) | F18: =IFERROR((IF($C18="NA","NA",VLOOKUP($A$3,'G4-RI'!$A$6:$AM$500,7,FALSE))),"NA") -> 11.75 | G18: NA | H18: =IFERROR((IF($C18="NA","NA",VLOOKUP($A$3,'G4-RI'!$A$6:$AM$500,10,FALSE))),"NA") -> 15.9375 | I18: NA | J18: =IFERROR((IF($C18="NA","NA",VLOOKUP($A$3,'G4-RI'!$A$6:$AM$500,13,FALSE))),"NA") -> 8.875 | K18: NA | L18: =IFERROR((IF($C18="NA","NA",VLOOKUP($A$3,'G4-RI'!$A$6:$AM$500,16,FALSE))),"NA") -> 2.125 | M18: NA
A19: ED | B19: =IFERROR(VLOOKUP(TEXT($A$3,"0000"),MEM_ED!$A$3:$O$501,8,FALSE),0) -> 19082 | C19: =IFERROR((IF(OR(B19=0,B19="",B19="NA"),"NA",((IF(VLOOKUP($A$3,'G4-RED'!$A$6:$AM$500,3,FALSE)>=B19,"100% ("&VLOOKUP($A$3,'G4-RED'!$A$6:$AM$500,3,FALSE)&")",(ROUND((VLOOKUP($A$3,'G4-RED'!$A$6:$AM$500,3,FALSE)/B19*100),0))&"% ("&IF(VLOOKUP($A$3,'G4-RED'!$A$6:$AM$500,3,FALSE)="",0,VLOOKUP($A$3,'G4-RED'!$A$6:$AM$500,3,FALSE))&")"))))),"NA") -> 100% (19262) | D19: =IFERROR((IF($C19="NA","NA",VLOOKUP($A$3,'G4-RED'!$A$6:$AM$500,4,FALSE))),"NA") -> 33.41630672 | E19: =IFERROR((IF($C19="NA","NA",ROUND(VLOOKUP($A$3,'G4-RED'!$A$6:$AM$500,6,FALSE),0)&"% ("&IF(VLOOKUP($A$3,'G4-RED'!$A$6:$AM$500,5,FALSE)="",0,VLOOKUP($A$3,'G4-RED'!$A$6:$AM$500,5,FALSE))&")")),"NA") -> 50% (9684) | F19: =IFERROR((IF($C19="NA","NA",VLOOKUP($A$3,'G4-RED'!$A$6:$AM$500,7,FALSE))),"NA") -> 10.44240473 | G19: NA | H19: =IFERROR((IF($C19="NA","NA",VLOOKUP($A$3,'G4-RED'!$A$6:$AM$500,10,FALSE))),"NA") -> 13.50643755 | I19: NA | J19: =IFERROR((IF($C19="NA","NA",VLOOKUP($A$3,'G4-RED'!$A$6:$AM$500,13,FALSE))),"NA") -> 7.232634202 | K19: NA | L19: =IFERROR((IF($C19="NA","NA",VLOOKUP($A$3,'G4-RED'!$A$6:$AM$500,16,FALSE))),"NA") -> 2.245493718 | M19: NA
A20: ELL | B20: =IFERROR(VLOOKUP(TEXT($A$3,"0000"),MEM_ELL!$A$3:$O$501,8,FALSE),0) -> 9812 | C20: =IFERROR((IF(OR(B20=0,B20="",B20="NA"),"NA",((IF(VLOOKUP($A$3,'G4-RELL'!$A$6:$AM$500,3,FALSE)>=B20,"100% ("&VLOOKUP($A$3,'G4-RELL'!$A$6:$AM$500,3,FALSE)&")",(ROUND((VLOOKUP($A$3,'G4-RELL'!$A$6:$AM$500,3,FALSE)/B20*100),0))&"% ("&IF(VLOOKUP($A$3,'G4-RELL'!$A$6:$AM$500,3,FALSE)="",0,VLOOKUP($A$3,'G4-RELL'!$A$6:$AM$500,3,FALSE))&")"))))),"NA") -> 97% (9483) | D20: =IFERROR((IF($C20="NA","NA",VLOOKUP($A$3,'G4-RELL'!$A$6:$AM$500,4,FALSE))),"NA") -> 31.12137509 | E20: =IFERROR((IF($C20="NA","NA",ROUND(VLOOKUP($A$3,'G4-RELL'!$A$6:$AM$500,6,FALSE),0)&"% ("&IF(VLOOKUP($A$3,'G4-RELL'!$A$6:$AM$500,5,FALSE)="",0,VLOOKUP($A$3,'G4-RELL'!$A$6:$AM$500,5,FALSE))&")")),"NA") -> 42% (3945) | F20: =IFERROR((IF($C20="NA","NA",VLOOKUP($A$3,'G4-RELL'!$A$6:$AM$500,7,FALSE))),"NA") -> 9.778656543 | G20: NA | H20: =IFERROR((IF($C20="NA","NA",VLOOKUP($A$3,'G4-RELL'!$A$6:$AM$500,10,FALSE))),"NA") -> 12.62026785 | I20: NA | J20: =IFERROR((IF($C20="NA","NA",VLOOKUP($A$3,'G4-RELL'!$A$6:$AM$500,13,FALSE))),"NA") -> 6.617631551 | K20: NA | L20: =IFERROR((IF($C20="NA","NA",VLOOKUP($A$3,'G4-RELL'!$A$6:$AM$500,16,FALSE))),"NA") -> 2.10481915 | M20: NA
A21: SWD | B21: =IFERROR(VLOOKUP(TEXT($A$3,"0000"),MEM_SWD!$A$3:$O$501,8,FALSE),0) -> 2364 | C21: =IFERROR((IF(OR(B21=0,B21="",B21="NA"),"NA",((IF(VLOOKUP($A$3,'G4-RSWD'!$A$6:$AM$500,3,FALSE)>=B21,"100% ("&VLOOKUP($A$3,'G4-RSWD'!$A$6:$AM$500,3,FALSE)&")",(ROUND((VLOOKUP($A$3,'G4-RSWD'!$A$6:$AM$500,3,FALSE)/B21*100),0))&"% ("&IF(VLOOKUP($A$3,'G4-RSWD'!$A$6:$AM$500,3,FALSE)="",0,VLOOKUP($A$3,'G4-RSWD'!$A$6:$AM$500,3,FALSE))&")"))))),"NA") -> 96% (2262) | D21: =IFERROR((IF($C21="NA","NA",VLOOKUP($A$3,'G4-RSWD'!$A$6:$AM$500,4,FALSE))),"NA") -> 25.34774536 | E21: =IFERROR((IF($C21="NA","NA",ROUND(VLOOKUP($A$3,'G4-RSWD'!$A$6:$AM$500,6,FALSE),0)&"% ("&IF(VLOOKUP($A$3,'G4-RSWD'!$A$6:$AM$500,5,FALSE)="",0,VLOOKUP($A$3,'G4-RSWD'!$A$6:$AM$500,5,FALSE))&")")),"NA") -> 20% (458) | F21: =IFERROR((IF($C21="NA","NA",VLOOKUP($A$3,'G4-RSWD'!$A$6:$AM$500,7,FALSE))),"NA") -> 8.097922193 | G21: NA | H21: =IFERROR((IF($C21="NA","NA",VLOOKUP($A$3,'G4-RSWD'!$A$6:$AM$500,10,FALSE))),"NA") -> 10.19703802 | I21: NA | J21: =IFERROR((IF($C21="NA","NA",VLOOKUP($A$3,'G4-RSWD'!$A$6:$AM$500,13,FALSE))),"NA") -> 5.363527851 | K21: NA | L21: =IFERROR((IF($C21="NA","NA",VLOOKUP($A$3,'G4-RSWD'!$A$6:$AM$500,16,FALSE))),"NA") -> 1.702343059 | M21: NA | Q21: =ROUND(59.5,0) -> 60
A22: Math - Grade 4 | Q22: =ROUND(VLOOKUP($A$3,'G4-MALL'!$A$6:$AM$500,6,FALSE),0) -> 60
A23: Satisfactory Progress Cut Scores at 56% or above | B23: Total # of Students | C23: % of Students Tested | D23: ='G3-5 Matrix'!C13&" ["&'G3-5 Matrix'!C14&"]" -> Overall [34] | F23: ='G3-5 Matrix'!D13&" ["&'G3-5 Matrix'!D14&"]" -> Number: Operations & Problems [34] | H23: ='G3-5 Matrix'!E13&" ["&'G3-5 Matrix'!E14&"]" -> Number: Base Ten and Fractions [0] | J23: ='G3-5 Matrix'!F13&" ["&'G3-5 Matrix'!F14&"]" -> Geometry and Measurement [0] | Q23: =VLOOKUP($A$3,'G4-MALL'!$A$6:$AM$500,6,FALSE) -> 59.5
D24: Average Score | E24: % Satisfactory | F24: Average Score | G24: % Satisfactory | H24: Average Score | I24: % Satisfactory | J24: Average Score | K24: % Satisfactory
A25: All students | B25: =IFERROR(VLOOKUP(TEXT($A$3,"0000"),Mem_All!$A$3:$O$501,8,FALSE),0) -> 25346 | C25: =IFERROR((IF(OR(B25=0,B25="",B25="NA"),"NA",((IF(VLOOKUP($A$3,'G4-MALL'!$A$6:$AM$500,3,FALSE)>=B25,"100% ("&VLOOKUP($A$3,'G4-MALL'!$A$6:$AM$500,3,FALSE)&")",(ROUND((VLOOKUP($A$3,'G4-MALL'!$A$6:$AM$500,3,FALSE)/B25*100),0))&"% ("&IF(VLOOKUP($A$3,'G4-MALL'!$A$6:$AM$500,3,FALSE)="",0,VLOOKUP($A$3,'G4-MALL'!$A$6:$AM$500,3,FALSE))&")"))))),"NA") -> 94% (23841) | D25: =IFERROR((IF($C25="NA","NA",VLOOKUP($A$3,'G4-MALL'!$A$6:$AM$500,4,FALSE))),"NA") -> 20.089258 | E25: =IFERROR((IF($C25="NA","NA",ROUND(VLOOKUP($A$3,'G4-MALL'!$A$6:$AM$500,6,FALSE),0)&"% ("&IF(VLOOKUP($A$3,'G4-MALL'!$A$6:$AM$500,5,FALSE)="",0,VLOOKUP($A$3,'G4-MALL'!$A$6:$AM$500,5,FALSE))&")")),"NA") -> 60% (14185) | F25: =IFERROR((IF($C25="NA","NA",VLOOKUP($A$3,'G4-MALL'!$A$6:$AM$500,7,FALSE))),"NA") -> 20.089258 | G25: NA | H25: NT | I25: NT | J25: NT | K25: NT
A26: FCAT Level 1 | B26: =IFERROR(VLOOKUP(TEXT($A$3,"0000"),MEM_ML1!$A$3:$O$501,5,FALSE),0) -> 3307 | C26: =IFERROR((IF(OR(B26=0,B26="",B26="NA"),"NA",((IF(VLOOKUP($A$3,'G4-ML1'!$A$6:$AM$500,3,FALSE)>=B26,"100% ("&VLOOKUP($A$3,'G4-ML1'!$A$6:$AM$500,3,FALSE)&")",(ROUND((VLOOKUP($A$3,'G4-ML1'!$A$6:$AM$500,3,FALSE)/B26*100),0))&"% ("&IF(VLOOKUP($A$3,'G4-ML1'!$A$6:$AM$500,3,FALSE)="",0,VLOOKUP($A$3,'G4-ML1'!$A$6:$AM$500,3,FALSE))&")"))))),"NA") -> 95% (3132) | D26: =IFERROR((IF($C26="NA","NA",VLOOKUP($A$3,'G4-ML1'!$A$6:$AM$500,4,FALSE))),"NA") -> 13.0853129 | E26: =IFERROR((IF($C26="NA","NA",ROUND(VLOOKUP($A$3,'G4-ML1'!$A$6:$AM$500,6,FALSE),0)&"% ("&IF(VLOOKUP($A$3,'G4-ML1'!$A$6:$AM$500,5,FALSE)="",0,VLOOKUP($A$3,'G4-ML1'!$A$6:$AM$500,5,FALSE))&")")),"NA") -> 11% (339) | F26: =IFERROR((IF($C26="NA","NA",VLOOKUP($A$3,'G4-ML1'!$A$6:$AM$500,7,FALSE))),"NA") -> 13.0853129 | G26: NA | H26: NT | I26: NT | J26: NT | K26: NT
A27: FCAT Level 2 | B27: =IFERROR(VLOOKUP(TEXT($A$3,"0000"),MEM_ML2!$A$3:$O$501,5,FALSE),0) -> 5374 | C27: =IFERROR((IF(OR(B27=0,B27="",B27="NA"),"NA",((IF(VLOOKUP($A$3,'G4-ML2'!$A$6:$AM$500,3,FALSE)>=B27,"100% ("&VLOOKUP($A$3,'G4-ML2'!$A$6:$AM$500,3,FALSE)&")",(ROUND((VLOOKUP($A$3,'G4-ML2'!$A$6:$AM$500,3,FALSE)/B27*100),0))&"% ("&IF(VLOOKUP($A$3,'G4-ML2'!$A$6:$AM$500,3,FALSE)="",0,VLOOKUP($A$3,'G4-ML2'!$A$6:$AM$500,3,FALSE))&")"))))),"NA") -> 94% (5073) | D27: =IFERROR((IF($C27="NA","NA",VLOOKUP($A$3,'G4-ML2'!$A$6:$AM$500,4,FALSE))),"NA") -> 16.73682239 | E27: =IFERROR((IF($C27="NA","NA",ROUND(VLOOKUP($A$3,'G4-ML2'!$A$6:$AM$500,6,FALSE),0)&"% ("&IF(VLOOKUP($A$3,'G4-ML2'!$A$6:$AM$500,5,FALSE)="",0,VLOOKUP($A$3,'G4-ML2'!$A$6:$AM$500,5,FALSE))&")")),"NA") -> 32% (1646) | F27: =IFERROR((IF($C27="NA","NA",VLOOKUP($A$3,'G4-ML2'!$A$6:$AM$500,7,FALSE))),"NA") -> 16.73682239 | G27: NA | H27: NT | I27: NT | J27: NT | K27: NT
A28: FCAT Level 3 | B28: =IFERROR(VLOOKUP(TEXT($A$3,"0000"),MEM_ML3!$A$3:$O$501,5,FALSE),0) -> 7705 | C28: =IFERROR((IF(OR(B28=0,B28="",B28="NA"),"NA",((IF(VLOOKUP($A$3,'G4-ML3'!$A$6:$AM$500,3,FALSE)>=B28,"100% ("&VLOOKUP($A$3,'G4-ML3'!$A$6:$AM$500,3,FALSE)&")",(ROUND((VLOOKUP($A$3,'G4-ML3'!$A$6:$AM$500,3,FALSE)/B28*100),0))&"% ("&IF(VLOOKUP($A$3,'G4-ML3'!$A$6:$AM$500,3,FALSE)="",0,VLOOKUP($A$3,'G4-ML3'!$A$6:$AM$500,3,FALSE))&")"))))),"NA") -> 94% (7268) | D28: =IFERROR((IF($C28="NA","NA",VLOOKUP($A$3,'G4-ML3'!$A$6:$AM$500,4,FALSE))),"NA") -> 20.49770226 | E28: =IFERROR((IF($C28="NA","NA",ROUND(VLOOKUP($A$3,'G4-ML3'!$A$6:$AM$500,6,FALSE),0)&"% ("&IF(VLOOKUP($A$3,'G4-ML3'!$A$6:$AM$500,5,FALSE)="",0,VLOOKUP($A$3,'G4-ML3'!$A$6:$AM$500,5,FALSE))&")")),"NA") -> 68% (4965) | F28: =IFERROR((IF($C28="NA","NA",VLOOKUP($A$3,'G4-ML3'!$A$6:$AM$500,7,FALSE))),"NA") -> 20.49770226 | G28: NA | H28: NT | I28: NT | J28: NT | K28: NT
A29: FCAT Level 4 | B29: =IFERROR(VLOOKUP(TEXT($A$3,"0000"),MEM_ML4!$A$3:$O$501,5,FALSE),0) -> 4949 | C29: =IFERROR((IF(OR(B29=0,B29="",B29="NA"),"NA",((IF(VLOOKUP($A$3,'G4-ML4'!$A$6:$AM$500,3,FALSE)>=B29,"100% ("&VLOOKUP($A$3,'G4-ML4'!$A$6:$AM$500,3,FALSE)&")",(ROUND((VLOOKUP($A$3,'G4-ML4'!$A$6:$AM$500,3,FALSE)/B29*100),0))&"% ("&IF(VLOOKUP($A$3,'G4-ML4'!$A$6:$AM$500,3,FALSE)="",0,VLOOKUP($A$3,'G4-ML4'!$A$6:$AM$500,3,FALSE))&")"))))),"NA") -> 94% (4652) | D29: =IFERROR((IF($C29="NA","NA",VLOOKUP($A$3,'G4-ML4'!$A$6:$AM$500,4,FALSE))),"NA") -> 24.41356406 | E29: =IFERROR((IF($C29="NA","NA",ROUND(VLOOKUP($A$3,'G4-ML4'!$A$6:$AM$500,6,FALSE),0)&"% ("&IF(VLOOKUP($A$3,'G4-ML4'!$A$6:$AM$500,5,FALSE)="",0,VLOOKUP($A$3,'G4-ML4'!$A$6:$AM$500,5,FALSE))&")")),"NA") -> 92% (4260) | F29: =IFERROR((IF($C29="NA","NA",VLOOKUP($A$3,'G4-ML4'!$A$6:$AM$500,7,FALSE))),"NA") -> 24.41356406 | G29: NA | H29: NT | I29: NT | J29: NT | K29: NT
A30: FCAT Level 5 | B30: =IFERROR(VLOOKUP(TEXT($A$3,"0000"),MEM_ML5!$A$3:$M$501,5,FALSE),0) -> 2682 | C30: =IFERROR((IF(OR(B30=0,B30="",B30="NA"),"NA",((IF(VLOOKUP($A$3,'G4-ML5'!$A$6:$AM$500,3,FALSE)>=B30,"100% ("&VLOOKUP($A$3,'G4-ML5'!$A$6:$AM$500,3,FALSE)&")",(ROUND((VLOOKUP($A$3,'G4-ML5'!$A$6:$AM$500,3,FALSE)/B30*100),0))&"% ("&IF(VLOOKUP($A$3,'G4-ML5'!$A$6:$AM$500,3,FALSE)="",0,VLOOKUP($A$3,'G4-ML5'!$A$6:$AM$500,3,FALSE))&")"))))),"NA") -> 94% (2529) | D30: =IFERROR((IF($C30="NA","NA",VLOOKUP($A$3,'G4-ML5'!$A$6:$AM$500,4,FALSE))),"NA") -> 27.73879004 | E30: =IFERROR((IF($C30="NA","NA",ROUND(VLOOKUP($A$3,'G4-ML5'!$A$6:$AM$500,6,FALSE),0)&"% ("&IF(VLOOKUP($A$3,'G4-ML5'!$A$6:$AM$500,5,FALSE)="",0,VLOOKUP($A$3,'G4-ML5'!$A$6:$AM$500,5,FALSE))&")")),"NA") -> 99% (2494) | F30: =IFERROR((IF($C30="NA","NA",VLOOKUP($A$3,'G4-ML5'!$A$6:$AM$500,7,FALSE))),"NA") -> 27.73879004 | G30: NA | H30: NT | I30: NT | J30: NT | K30: NT
A31: White | B31: =IFERROR(VLOOKUP(TEXT($A$3,"0000"),MEM_W!$A$3:$O$501,8,FALSE),0) -> 2165 | C31: =IFERROR((IF(OR(B31=0,B31="",B31="NA"),"NA",((IF(VLOOKUP($A$3,'G4-MW'!$A$6:$AM$500,3,FALSE)>=B31,"100% ("&VLOOKUP($A$3,'G4-MW'!$A$6:$AM$500,3,FALSE)&")",(ROUND((VLOOKUP($A$3,'G4-MW'!$A$6:$AM$500,3,FALSE)/B31*100),0))&"% ("&IF(VLOOKUP($A$3,'G4-MW'!$A$6:$AM$500,3,FALSE)="",0,VLOOKUP($A$3,'G4-MW'!$A$6:$AM$500,3,FALSE))&")"))))),"NA") -> 91% (1968) | D31: =IFERROR((IF($C31="NA","NA",VLOOKUP($A$3,'G4-MW'!$A$6:$AM$500,4,FALSE))),"NA") -> 22.44496951 | E31: =IFERROR((IF($C31="NA","NA",ROUND(VLOOKUP($A$3,'G4-MW'!$A$6:$AM$500,6,FALSE),0)&"% ("&IF(VLOOKUP($A$3,'G4-MW'!$A$6:$AM$500,5,FALSE)="",0,VLOOKUP($A$3,'G4-MW'!$A$6:$AM$500,5,FALSE))&")")),"NA") -> 73% (1445) | F31: =IFERROR((IF($C31="NA","NA",VLOOKUP($A$3,'G4-MW'!$A$6:$AM$500,7,FALSE))),"NA") -> 22.44496951 | G31: NA | H31: NT | I31: NT | J31: NT | K31: NT
A32: Black | B32: =IFERROR(VLOOKUP(TEXT($A$3,"0000"),MEM_B!$A$3:$O$501,8,FALSE),0) -> 5592 | C32: =IFERROR((IF(OR(B32=0,B32="",B32="NA"),"NA",((IF(VLOOKUP($A$3,'G4-MB'!$A$6:$AM$500,3,FALSE)>=B32,"100% ("&VLOOKUP($A$3,'G4-MB'!$A$6:$AM$500,3,FALSE)&")",(ROUND((VLOOKUP($A$3,'G4-MB'!$A$6:$AM$500,3,FALSE)/B32*100),0))&"% ("&IF(VLOOKUP($A$3,'G4-MB'!$A$6:$AM$500,3,FALSE)="",0,VLOOKUP($A$3,'G4-MB'!$A$6:$AM$500,3,FALSE))&")"))))),"NA") -> 96% (5358) | D32: =IFERROR((IF($C32="NA","NA",VLOOKUP($A$3,'G4-MB'!$A$6:$AM$500,4,FALSE))),"NA") -> 18.66702128 | E32: =IFERROR((IF($C32="NA","NA",ROUND(VLOOKUP($A$3,'G4-MB'!$A$6:$AM$500,6,FALSE),0)&"% ("&IF(VLOOKUP($A$3,'G4-MB'!$A$6:$AM$500,5,FALSE)="",0,VLOOKUP($A$3,'G4-MB'!$A$6:$AM$500,5,FALSE))&")")),"NA") -> 51% (2729) | F32: =IFERROR((IF($C32="NA","NA",VLOOKUP($A$3,'G4-MB'!$A$6:$AM$500,7,FALSE))),"NA") -> 18.66702128 | G32: NA | H32: NT | I32: NT | J32: NT | K32: NT
A33: Hispanic | B33: =IFERROR(VLOOKUP(TEXT($A$3,"0000"),MEM_H!$A$3:$O$501,8,FALSE),0) -> 17152 | C33: =IFERROR((IF(OR(B33=0,B33="",B33="NA"),"NA",((IF(VLOOKUP($A$3,'G4-MH'!$A$6:$AM$500,3,FALSE)>=B33,"100% ("&VLOOKUP($A$3,'G4-MH'!$A$6:$AM$500,3,FALSE)&")",(ROUND((VLOOKUP($A$3,'G4-MH'!$A$6:$AM$500,3,FALSE)/B33*100),0))&"% ("&IF(VLOOKUP($A$3,'G4-MH'!$A$6:$AM$500,3,FALSE)="",0,VLOOKUP($A$3,'G4-MH'!$A$6:$AM$500,3,FALSE))&")"))))),"NA") -> 94% (16110) | D33: =IFERROR((IF($C33="NA","NA",VLOOKUP($A$3,'G4-MH'!$A$6:$AM$500,4,FALSE))),"NA") -> 20.19672253 | E33: =IFERROR((IF($C33="NA","NA",ROUND(VLOOKUP($A$3,'G4-MH'!$A$6:$AM$500,6,FALSE),0)&"% ("&IF(VLOOKUP($A$3,'G4-MH'!$A$6:$AM$500,5,FALSE)="",0,VLOOKUP($A$3,'G4-MH'!$A$6:$AM$500,5,FALSE))&")")),"NA") -> 60% (9697) | F33: =IFERROR((IF($C33="NA","NA",VLOOKUP($A$3,'G4-MH'!$A$6:$AM$500,7,FALSE))),"NA") -> 20.19672253 | G33: NA | H33: NT | I33: NT | J33: NT | K33: NT
A34: Asian | B34: =IFERROR(VLOOKUP(TEXT($A$3,"0000"),MEM_A!$A$3:$O$501,8,FALSE),0) -> 309 | C34: =IFERROR((IF(OR(B34=0,B34="",B34="NA"),"NA",((IF(VLOOKUP($A$3,'G4-MA'!$A$6:$AM$500,3,FALSE)>=B34,"100% ("&VLOOKUP($A$3,'G4-MA'!$A$6:$AM$500,3,FALSE)&")",(ROUND((VLOOKUP($A$3,'G4-MA'!$A$6:$AM$500,3,FALSE)/B34*100),0))&"% ("&IF(VLOOKUP($A$3,'G4-MA'!$A$6:$AM$500,3,FALSE)="",0,VLOOKUP($A$3,'G4-MA'!$A$6:$AM$500,3,FALSE))&")"))))),"NA") -> 92% (285) | D34: =IFERROR((IF($C34="NA","NA",VLOOKUP($A$3,'G4-MA'!$A$6:$AM$500,4,FALSE))),"NA") -> 23.93578947 | E34: =IFERROR((IF($C34="NA","NA",ROUND(VLOOKUP($A$3,'G4-MA'!$A$6:$AM$500,6,FALSE),0)&"% ("&IF(VLOOKUP($A$3,'G4-MA'!$A$6:$AM$500,5,FALSE)="",0,VLOOKUP($A$3,'G4-MA'!$A$6:$AM$500,5,FALSE))&")")),"NA") -> 80% (229) | F34: =IFERROR((IF($C34="NA","NA",VLOOKUP($A$3,'G4-MA'!$A$6:$AM$500,7,FALSE))),"NA") -> 23.93578947 | G34: NA | H34: NT | I34: NT | J34: NT | K34: NT
A35: Am. Indian | B35: =IFERROR(VLOOKUP(TEXT($A$3,"0000"),MEM_I!$A$3:$O$501,8,FALSE),0) -> 17 | C35: =IFERROR((IF(OR(B35=0,B35="",B35="NA"),"NA",((IF(VLOOKUP($A$3,'G4-MI'!$A$6:$AM$500,3,FALSE)>=B35,"100% ("&VLOOKUP($A$3,'G4-MI'!$A$6:$AM$500,3,FALSE)&")",(ROUND((VLOOKUP($A$3,'G4-MI'!$A$6:$AM$500,3,FALSE)/B35*100),0))&"% ("&IF(VLOOKUP($A$3,'G4-MI'!$A$6:$AM$500,3,FALSE)="",0,VLOOKUP($A$3,'G4-MI'!$A$6:$AM$500,3,FALSE))&")"))))),"NA") -> 94% (16) | D35: =IFERROR((IF($C35="NA","NA",VLOOKUP($A$3,'G4-MI'!$A$6:$AM$500,4,FALSE))),"NA") -> 22.9375 | E35: =IFERROR((IF($C35="NA","NA",ROUND(VLOOKUP($A$3,'G4-MI'!$A$6:$AM$500,6,FALSE),0)&"% ("&IF(VLOOKUP($A$3,'G4-MI'!$A$6:$AM$500,5,FALSE)="",0,VLOOKUP($A$3,'G4-MI'!$A$6:$AM$500,5,FALSE))&")")),"NA") -> 88% (14) | F35: =IFERROR((IF($C35="NA","NA",VLOOKUP($A$3,'G4-MI'!$A$6:$AM$500,7,FALSE))),"NA") -> 22.9375 | G35: NA | H35: NT | I35: NT | J35: NT | K35: NT
A36: ED | B36: =IFERROR(VLOOKUP(TEXT($A$3,"0000"),MEM_ED!$A$3:$O$501,8,FALSE),0) -> 19082 | C36: =IFERROR((IF(OR(B36=0,B36="",B36="NA"),"NA",((IF(VLOOKUP($A$3,'G4-MED'!$A$6:$AM$500,3,FALSE)>=B36,"100% ("&VLOOKUP($A$3,'G4-MED'!$A$6:$AM$500,3,FALSE)&")",(ROUND((VLOOKUP($A$3,'G4-MED'!$A$6:$AM$500,3,FALSE)/B36*100),0))&"% ("&IF(VLOOKUP($A$3,'G4-MED'!$A$6:$AM$500,3,FALSE)="",0,VLOOKUP($A$3,'G4-MED'!$A$6:$AM$500,3,FALSE))&")"))))),"NA") -> 100% (19039) | D36: =IFERROR((IF($C36="NA","NA",VLOOKUP($A$3,'G4-MED'!$A$6:$AM$500,4,FALSE))),"NA") -> 19.38971059 | E36: =IFERROR((IF($C36="NA","NA",ROUND(VLOOKUP($A$3,'G4-MED'!$A$6:$AM$500,6,FALSE),0)&"% ("&IF(VLOOKUP($A$3,'G4-MED'!$A$6:$AM$500,5,FALSE)="",0,VLOOKUP($A$3,'G4-MED'!$A$6:$AM$500,5,FALSE))&")")),"NA") -> 55% (10505) | F36: =IFERROR((IF($C36="NA","NA",VLOOKUP($A$3,'G4-MED'!$A$6:$AM$500,7,FALSE))),"NA") -> 19.38971059 | G36: NA | H36: NT | I36: NT | J36: NT | K36: NT
A37: ELL | B37: =IFERROR(VLOOKUP(TEXT($A$3,"0000"),MEM_ELL!$A$3:$O$501,8,FALSE),0) -> 9812 | C37: =IFERROR((IF(OR(B37=0,B37="",B37="NA"),"NA",((IF(VLOOKUP($A$3,'G4-MELL'!$A$6:$AM$500,3,FALSE)>=B37,"100% ("&VLOOKUP($A$3,'G4-MELL'!$A$6:$AM$500,3,FALSE)&")",(ROUND((VLOOKUP($A$3,'G4-MELL'!$A$6:$AM$500,3,FALSE)/B37*100),0))&"% ("&IF(VLOOKUP($A$3,'G4-MELL'!$A$6:$AM$500,3,FALSE)="",0,VLOOKUP($A$3,'G4-MELL'!$A$6:$AM$500,3,FALSE))&")"))))),"NA") -> 95% (9357) | D37: =IFERROR((IF($C37="NA","NA",VLOOKUP($A$3,'G4-MELL'!$A$6:$AM$500,4,FALSE))),"NA") -> 18.35342524 | E37: =IFERROR((IF($C37="NA","NA",ROUND(VLOOKUP($A$3,'G4-MELL'!$A$6:$AM$500,6,FALSE),0)&"% ("&IF(VLOOKUP($A$3,'G4-MELL'!$A$6:$AM$500,5,FALSE)="",0,VLOOKUP($A$3,'G4-MELL'!$A$6:$AM$500,5,FALSE))&")")),"NA") -> 48% (4517) | F37: =IFERROR((IF($C37="NA","NA",VLOOKUP($A$3,'G4-MELL'!$A$6:$AM$500,7,FALSE))),"NA") -> 18.35342524 | G37: NA | H37: NT | I37: NT | J37: NT | K37: NT
A38: SWD | B38: =IFERROR(VLOOKUP(TEXT($A$3,"0000"),MEM_SWD!$A$3:$O$501,8,FALSE),0) -> 2364 | C38: =IFERROR((IF(OR(B38=0,B38="",B38="NA"),"NA",((IF(VLOOKUP($A$3,'G4-MSWD'!$A$6:$AM$500,3,FALSE)>=B38,"100% ("&VLOOKUP($A$3,'G4-MSWD'!$A$6:$AM$500,3,FALSE)&")",(ROUND((VLOOKUP($A$3,'G4-MSWD'!$A$6:$AM$500,3,FALSE)/B38*100),0))&"% ("&IF(VLOOKUP($A$3,'G4-MSWD'!$A$6:$AM$500,3,FALSE)="",0,VLOOKUP($A$3,'G4-MSWD'!$A$6:$AM$500,3,FALSE))&")"))))),"NA") -> 93% (2187) | D38: =IFERROR((IF($C38="NA","NA",VLOOKUP($A$3,'G4-MSWD'!$A$6:$AM$500,4,FALSE))),"NA") -> 15.83616827 | E38: =IFERROR((IF($C38="NA","NA",ROUND(VLOOKUP($A$3,'G4-MSWD'!$A$6:$AM$500,6,FALSE),0)&"% ("&IF(VLOOKUP($A$3,'G4-MSWD'!$A$6:$AM$500,5,FALSE)="",0,VLOOKUP($A$3,'G4-MSWD'!$A$6:$AM$500,5,FALSE))&")")),"NA") -> 32% (698) | F38: =IFERROR((IF($C38="NA","NA",VLOOKUP($A$3,'G4-MSWD'!$A$6:$AM$500,7,FALSE))),"NA") -> 15.83616827 | G38: NA | H38: NT | I38: NT | J38: NT | K38: NT
A39: District Writing, No testing for the Fall Interim Assessment | P39: Writing Grade 4
P40: =H40 -> 0 | Q40: =J40 -> 0
P41: Number Tested | Q41: Number Tested
P42: =IFERROR(IF(VLOOKUP($A$3,'G4-WALL'!$A$6:$Z$500,9,FALSE)="","0",VLOOKUP($A$3,'G4-WALL'!$A$6:$Z$500,9,FALSE)),"Not Test") -> 18014 | Q42: =IFERROR(IF(VLOOKUP($A$3,'G4-WALL'!$A$6:$Z$500,17,FALSE)="","0",VLOOKUP($A$3,'G4-WALL'!$A$6:$Z$500,17,FALSE)),"Not Test") -> 17831
P43: =IFERROR(IF(VLOOKUP($A$3,'G4-WW'!$A$6:$Z$500,9,FALSE)="","0",VLOOKUP($A$3,'G4-WW'!$A$6:$Z$500,9,FALSE)),"Not Test") -> 1536 | Q43: =IFERROR(IF(VLOOKUP($A$3,'G4-WW'!$A$6:$Z$500,17,FALSE)="","0",VLOOKUP($A$3,'G4-WW'!$A$6:$Z$500,17,FALSE)),"Not Test") -> 1525
P44: =IFERROR(IF(VLOOKUP($A$3,'G4-WB'!$A$6:$Z$500,9,FALSE)="","0",VLOOKUP($A$3,'G4-WB'!$A$6:$Z$500,9,FALSE)),"Not Test") -> 3338 | Q44: =IFERROR(IF(VLOOKUP($A$3,'G4-WB'!$A$6:$Z$500,17,FALSE)="","0",VLOOKUP($A$3,'G4-WB'!$A$6:$Z$500,17,FALSE)),"Not Test") -> 3260
P45: =IFERROR(IF(VLOOKUP($A$3,'G4-WH'!$A$6:$Z$500,9,FALSE)="","0",VLOOKUP($A$3,'G4-WH'!$A$6:$Z$500,9,FALSE)),"Not Test") -> 12828 | Q45: =IFERROR(IF(VLOOKUP($A$3,'G4-WH'!$A$6:$Z$500,17,FALSE)="","0",VLOOKUP($A$3,'G4-WH'!$A$6:$Z$500,17,FALSE)),"Not Test") -> 12734
P46: =IFERROR(IF(VLOOKUP($A$3,'G4-WA'!$A$6:$Z$500,9,FALSE)="","0",VLOOKUP($A$3,'G4-WA'!$A$6:$Z$500,9,FALSE)),"Not Test") -> 224 | Q46: =IFERROR(IF(VLOOKUP($A$3,'G4-WA'!$A$6:$Z$500,17,FALSE)="","0",VLOOKUP($A$3,'G4-WA'!$A$6:$Z$500,17,FALSE)),"Not Test") -> 224
P47: =IFERROR(IF(VLOOKUP($A$3,'G4-WI'!$A$6:$Z$500,9,FALSE)="","0",VLOOKUP($A$3,'G4-WI'!$A$6:$Z$500,9,FALSE)),"Not Test") -> 13 | Q47: =IFERROR(IF(VLOOKUP($A$3,'G4-WI'!$A$6:$Z$500,17,FALSE)="","0",VLOOKUP($A$3,'G4-WI'!$A$6:$Z$500,17,FALSE)),"Not Test") -> 12
P48: =IFERROR(IF(VLOOKUP($A$3,'G4-WED'!$A$6:$Z$500,9,FALSE)="","0",VLOOKUP($A$3,'G4-WED'!$A$6:$Z$500,9,FALSE)),"Not Test") -> 14070 | Q48: =IFERROR(IF(VLOOKUP($A$3,'G4-WED'!$A$6:$Z$500,17,FALSE)="","0",VLOOKUP($A$3,'G4-WED'!$A$6:$Z$500,17,FALSE)),"Not Test") -> 13866
P49: =IFERROR(IF(VLOOKUP($A$3,'G4-WELL'!$A$6:$Z$500,9,FALSE)="","0",VLOOKUP($A$3,'G4-WELL'!$A$6:$Z$500,9,FALSE)),"Not Test") -> 7190 | Q49: =IFERROR(IF(VLOOKUP($A$3,'G4-WELL'!$A$6:$Z$500,17,FALSE)="","0",VLOOKUP($A$3,'G4-WELL'!$A$6:$Z$500,17,FALSE)),"Not Test") -> 7234
P50: =IFERROR(IF(VLOOKUP($A$3,'G4-WSWD'!$A$6:$Z$500,9,FALSE)="","0",VLOOKUP($A$3,'G4-WSWD'!$A$6:$Z$500,9,FALSE)),"Not Test") -> 1492 | Q50: =IFERROR(IF(VLOOKUP($A$3,'G4-WSWD'!$A$6:$Z$500,17,FALSE)="","0",VLOOKUP($A$3,'G4-WSWD'!$A$6:$Z$500,17,FALSE)),"Not Test") -> 1468

Sheet Grade 5 Report
A2: Click here to return to the school and sheet selection interface
A3: ='Select School'!B3 -> 9999
A4: =TEXT(A3,"0000")&"-"&VLOOKUP(A3,SchList!$A$2:$B$504,2,FALSE) -> 9999-District
A5: Reading - Grade 5
A6: Satisfactory Progress Cut Scores at 64% or above | B6: Total # of Students | C6: % of Students Tested | D6: ='G3-5 Matrix'!C2&" ["&'G3-5 Matrix'!C7&"]" -> Overall [56] | F6: ='G3-5 Matrix'!D2&" ["&'G3-5 Matrix'!D7&"]" -> Vocabulary [15] | H6: ='G3-5 Matrix'!E2&" ["&'G3-5 Matrix'!E7&"]" -> Reading Application [24] | J6: ='G3-5 Matrix'!F2&" ["&'G3-5 Matrix'!F7&"]" -> Literary Analysis Fiction/Nonfiction [11] | L6: ='G3-5 Matrix'!G2&" ["&'G3-5 Matrix'!G7&"]" -> Informational Text/ Research Process [6]
D7: Average Score | E7: % Satisfactory | F7: Average Score | G7: % Satisfactory | H7: Average Score | I7: % Satisfactory | J7: Average Score | K7: % Satisfactory | L7: Average Score | M7: % Satisfactory
A8: All students | B8: =IFERROR(VLOOKUP(TEXT($A$3,"0000"),Mem_All!$A$3:$O$501,9,FALSE),0) -> 25417 | C8: =IFERROR((IF(OR(B8=0,B8="",B8="NA"),"NA",((IF(VLOOKUP($A$3,'G5-RALL'!$A$6:$AM$500,3,FALSE)>=B8,"100% ("&VLOOKUP($A$3,'G5-RALL'!$A$6:$AM$500,3,FALSE)&")",(ROUND((VLOOKUP($A$3,'G5-RALL'!$A$6:$AM$500,3,FALSE)/B8*100),0))&"% ("&IF(VLOOKUP($A$3,'G5-RALL'!$A$6:$AM$500,3,FALSE)="",0,VLOOKUP($A$3,'G5-RALL'!$A$6:$AM$500,3,FALSE))&")"))))),"0% (0)") -> 95% (24205) | D8: =IFERROR((IF($C8="NA","NA",VLOOKUP($A$3,'G5-RALL'!$A$6:$AM$500,4,FALSE))),"NA") -> 35.76849824 | E8: =IFERROR((IF($C8="NA","NA",ROUND(VLOOKUP($A$3,'G5-RALL'!$A$6:$AM$500,6,FALSE),0)&"% ("&IF(VLOOKUP($A$3,'G5-RALL'!$A$6:$AM$500,5,FALSE)="",0,VLOOKUP($A$3,'G5-RALL'!$A$6:$AM$500,5,FALSE))&")")),"NA") -> 56% (13650) | F8: =IFERROR((IF($C8="NA","NA",VLOOKUP($A$3,'G5-RALL'!$A$6:$AM$500,7,FALSE))),"NA") -> 9.294563107 | G8: NA | H8: =IFERROR((IF($C8="NA","NA",VLOOKUP($A$3,'G5-RALL'!$A$6:$AM$500,10,FALSE))),"NA") -> 16.60549886 | I8: NA | J8: =IFERROR((IF($C8="NA","NA",VLOOKUP($A$3,'G5-RALL'!$A$6:$AM$500,13,FALSE))),"NA") -> 6.435765338 | K8: NA | L8: =IFERROR((IF($C8="NA","NA",VLOOKUP($A$3,'G5-RALL'!$A$6:$AM$500,16,FALSE))),"NA") -> 3.434881223 | M8: NA
A9: FCAT Level 1 | B9: =IFERROR(VLOOKUP(TEXT($A$3,"0000"),MEM_RL1!$A$3:$O$501,6,FALSE),0) -> 3675 | C9: =IFERROR((IF(OR(B9=0,B9="",B9="NA"),"NA",((IF(VLOOKUP($A$3,'G5-RL1'!$A$6:$AM$500,3,FALSE)>=B9,"100% ("&VLOOKUP($A$3,'G5-RL1'!$A$6:$AM$500,3,FALSE)&")",(ROUND((VLOOKUP($A$3,'G5-RL1'!$A$6:$AM$500,3,FALSE)/B9*100),0))&"% ("&IF(VLOOKUP($A$3,'G5-RL1'!$A$6:$AM$500,3,FALSE)="",0,VLOOKUP($A$3,'G5-RL1'!$A$6:$AM$500,3,FALSE))&")"))))),"0% (0)") -> 97% (3583) | D9: =IFERROR((IF($C9="NA","NA",VLOOKUP($A$3,'G5-RL1'!$A$6:$AM$500,4,FALSE))),"NA") -> 21.82743511 | E9: =IFERROR((IF($C9="NA","NA",ROUND(VLOOKUP($A$3,'G5-RL1'!$A$6:$AM$500,6,FALSE),0)&"% ("&IF(VLOOKUP($A$3,'G5-RL1'!$A$6:$AM$500,5,FALSE)="",0,VLOOKUP($A$3,'G5-RL1'!$A$6:$AM$500,5,FALSE))&")")),"NA") -> 5% (195) | F9: =IFERROR((IF($C9="NA","NA",VLOOKUP($A$3,'G5-RL1'!$A$6:$AM$500,7,FALSE))),"NA") -> 6.082054145 | G9: NA | H9: =IFERROR((IF($C9="NA","NA",VLOOKUP($A$3,'G5-RL1'!$A$6:$AM$500,10,FALSE))),"NA") -> 9.811638292 | I9: NA | J9: =IFERROR((IF($C9="NA","NA",VLOOKUP($A$3,'G5-RL1'!$A$6:$AM$500,13,FALSE))),"NA") -> 3.761512699 | K9: NA | L9: =IFERROR((IF($C9="NA","NA",VLOOKUP($A$3,'G5-RL1'!$A$6:$AM$500,16,FALSE))),"NA") -> 2.179039911 | M9: NA
A10: FCAT Level 2 | B10: =IFERROR(VLOOKUP(TEXT($A$3,"0000"),MEM_RL2!$A$3:$O$501,6,FALSE),0) -> 5952 | C10: =IFERROR((IF(OR(B10=0,B10="",B10="NA"),"NA",((IF(VLOOKUP($A$3,'G5-RL2'!$A$6:$AM$500,3,FALSE)>=B10,"100% ("&VLOOKUP($A$3,'G5-RL2'!$A$6:$AM$500,3,FALSE)&")",(ROUND((VLOOKUP($A$3,'G5-RL2'!$A$6:$AM$500,3,FALSE)/B10*100),0))&"% ("&IF(VLOOKUP($A$3,'G5-RL2'!$A$6:$AM$500,3,FALSE)="",0,VLOOKUP($A$3,'G5-RL2'!$A$6:$AM$500,3,FALSE))&")"))))),"0% (0)") -> 97% (5771) | D10: =IFERROR((IF($C10="NA","NA",VLOOKUP($A$3,'G5-RL2'!$A$6:$AM$500,4,FALSE))),"NA") -> 30.84971409 | E10: =IFERROR((IF($C10="NA","NA",ROUND(VLOOKUP($A$3,'G5-RL2'!$A$6:$AM$500,6,FALSE),0)&"% ("&IF(VLOOKUP($A$3,'G5-RL2'!$A$6:$AM$500,5,FALSE)="",0,VLOOKUP($A$3,'G5-RL2'!$A$6:$AM$500,5,FALSE))&")")),"NA") -> 28% (1594) | F10: =IFERROR((IF($C10="NA","NA",VLOOKUP($A$3,'G5-RL2'!$A$6:$AM$500,7,FALSE))),"NA") -> 8.295737307 | G10: NA | H10: =IFERROR((IF($C10="NA","NA",VLOOKUP($A$3,'G5-RL2'!$A$6:$AM$500,10,FALSE))),"NA") -> 14.37996881 | I10: NA | J10: =IFERROR((IF($C10="NA","NA",VLOOKUP($A$3,'G5-RL2'!$A$6:$AM$500,13,FALSE))),"NA") -> 5.206151447 | K10: NA | L10: =IFERROR((IF($C10="NA","NA",VLOOKUP($A$3,'G5-RL2'!$A$6:$AM$500,16,FALSE))),"NA") -> 2.987558482 | M10: NA
A11: FCAT Level 3 | B11: =IFERROR(VLOOKUP(TEXT($A$3,"0000"),MEM_RL3!$A$3:$O$501,6,FALSE),0) -> 6169 | C11: =IFERROR((IF(OR(B11=0,B11="",B11="NA"),"NA",((IF(VLOOKUP($A$3,'G5-RL3'!$A$6:$AM$500,3,FALSE)>=B11,"100% ("&VLOOKUP($A$3,'G5-RL3'!$A$6:$AM$500,3,FALSE)&")",(ROUND((VLOOKUP($A$3,'G5-RL3'!$A$6:$AM$500,3,FALSE)/B11*100),0))&"% ("&IF(VLOOKUP($A$3,'G5-RL3'!$A$6:$AM$500,3,FALSE)="",0,VLOOKUP($A$3,'G5-RL3'!$A$6:$AM$500,3,FALSE))&")"))))),"0% (0)") -> 96% (5936) | D11: =IFERROR((IF($C11="NA","NA",VLOOKUP($A$3,'G5-RL3'!$A$6:$AM$500,4,FALSE))),"NA") -> 37.8803403 | E11: =IFERROR((IF($C11="NA","NA",ROUND(VLOOKUP($A$3,'G5-RL3'!$A$6:$AM$500,6,FALSE),0)&"% ("&IF(VLOOKUP($A$3,'G5-RL3'!$A$6:$AM$500,5,FALSE)="",0,VLOOKUP($A$3,'G5-RL3'!$A$6:$AM$500,5,FALSE))&")")),"NA") -> 68% (4040) | F11: =IFERROR((IF($C11="NA","NA",VLOOKUP($A$3,'G5-RL3'!$A$6:$AM$500,7,FALSE))),"NA") -> 9.740801887 | G11: NA | H11: =IFERROR((IF($C11="NA","NA",VLOOKUP($A$3,'G5-RL3'!$A$6:$AM$500,10,FALSE))),"NA") -> 17.77095687 | I11: NA | J11: =IFERROR((IF($C11="NA","NA",VLOOKUP($A$3,'G5-RL3'!$A$6:$AM$500,13,FALSE))),"NA") -> 6.767941375 | K11: NA | L11: =IFERROR((IF($C11="NA","NA",VLOOKUP($A$3,'G5-RL3'!$A$6:$AM$500,16,FALSE))),"NA") -> 3.605306604 | M11: NA
A12: FCAT Level 4 | B12: =IFERROR(VLOOKUP(TEXT($A$3,"0000"),MEM_RL4!$A$3:$O$501,6,FALSE),0) -> 5984 | C12: =IFERROR((IF(OR(B12=0,B12="",B12="NA"),"NA",((IF(VLOOKUP($A$3,'G5-RL4'!$A$6:$AM$500,3,FALSE)>=B12,"100% ("&VLOOKUP($A$3,'G5-RL4'!$A$6:$AM$500,3,FALSE)&")",(ROUND((VLOOKUP($A$3,'G5-RL4'!$A$6:$AM$500,3,FALSE)/B12*100),0))&"% ("&IF(VLOOKUP($A$3,'G5-RL4'!$A$6:$AM$500,3,FALSE)="",0,VLOOKUP($A$3,'G5-RL4'!$A$6:$AM$500,3,FALSE))&")"))))),"0% (0)") -> 95% (5697) | D12: =IFERROR((IF($C12="NA","NA",VLOOKUP($A$3,'G5-RL4'!$A$6:$AM$500,4,FALSE))),"NA") -> 43.83988064 | E12: =IFERROR((IF($C12="NA","NA",ROUND(VLOOKUP($A$3,'G5-RL4'!$A$6:$AM$500,6,FALSE),0)&"% ("&IF(VLOOKUP($A$3,'G5-RL4'!$A$6:$AM$500,5,FALSE)="",0,VLOOKUP($A$3,'G5-RL4'!$A$6:$AM$500,5,FALSE))&")")),"NA") -> 93% (5307) | F12: =IFERROR((IF($C12="NA","NA",VLOOKUP($A$3,'G5-RL4'!$A$6:$AM$500,7,FALSE))),"NA") -> 11.10291381 | G12: NA | H12: =IFERROR((IF($C12="NA","NA",VLOOKUP($A$3,'G5-RL4'!$A$6:$AM$500,10,FALSE))),"NA") -> 20.43138494 | I12: NA | J12: =IFERROR((IF($C12="NA","NA",VLOOKUP($A$3,'G5-RL4'!$A$6:$AM$500,13,FALSE))),"NA") -> 8.18883623 | K12: NA | L12: =IFERROR((IF($C12="NA","NA",VLOOKUP($A$3,'G5-RL4'!$A$6:$AM$500,16,FALSE))),"NA") -> 4.122573284 | M12: NA
A13: FCAT Level 5 | B13: =IFERROR(VLOOKUP(TEXT($A$3,"0000"),MEM_RL5!$A$3:$O$501,5,FALSE),0) -> 2379 | C13: =IFERROR((IF(OR(B13=0,B13="",B13="NA"),"NA",((IF(VLOOKUP($A$3,'G5-RL5'!$A$6:$AM$500,3,FALSE)>=B13,"100% ("&VLOOKUP($A$3,'G5-RL5'!$A$6:$AM$500,3,FALSE)&")",(ROUND((VLOOKUP($A$3,'G5-RL5'!$A$6:$AM$500,3,FALSE)/B13*100),0))&"% ("&IF(VLOOKUP($A$3,'G5-RL5'!$A$6:$AM$500,3,FALSE)="",0,VLOOKUP($A$3,'G5-RL5'!$A$6:$AM$500,3,FALSE))&")"))))),"0% (0)") -> 93% (2214) | D13: =IFERROR((IF($C13="NA","NA",VLOOKUP($A$3,'G5-RL5'!$A$6:$AM$500,4,FALSE))),"NA") -> 48.45067751 | E13: =IFERROR((IF($C13="NA","NA",ROUND(VLOOKUP($A$3,'G5-RL5'!$A$6:$AM$500,6,FALSE),0)&"% ("&IF(VLOOKUP($A$3,'G5-RL5'!$A$6:$AM$500,5,FALSE)="",0,VLOOKUP($A$3,'G5-RL5'!$A$6:$AM$500,5,FALSE))&")")),"NA") -> 99% (2197) | F13: =IFERROR((IF($C13="NA","NA",VLOOKUP($A$3,'G5-RL5'!$A$6:$AM$500,7,FALSE))),"NA") -> 12.22682927 | G13: NA | H13: =IFERROR((IF($C13="NA","NA",VLOOKUP($A$3,'G5-RL5'!$A$6:$AM$500,10,FALSE))),"NA") -> 22.21594399 | I13: NA | J13: =IFERROR((IF($C13="NA","NA",VLOOKUP($A$3,'G5-RL5'!$A$6:$AM$500,13,FALSE))),"NA") -> 9.292818428 | K13: NA | L13: =IFERROR((IF($C13="NA","NA",VLOOKUP($A$3,'G5-RL5'!$A$6:$AM$500,16,FALSE))),"NA") -> 4.724525745 | M13: NA
A14: White | B14: =IFERROR(VLOOKUP(TEXT($A$3,"0000"),MEM_W!$A$3:$O$501,9,FALSE),0) -> 2121 | C14: =IFERROR((IF(OR(B14=0,B14="",B14="NA"),"NA",((IF(VLOOKUP($A$3,'G5-RW'!$A$6:$AM$500,3,FALSE)>=B14,"100% ("&VLOOKUP($A$3,'G5-RW'!$A$6:$AM$500,3,FALSE)&")",(ROUND((VLOOKUP($A$3,'G5-RW'!$A$6:$AM$500,3,FALSE)/B14*100),0))&"% ("&IF(VLOOKUP($A$3,'G5-RW'!$A$6:$AM$500,3,FALSE)="",0,VLOOKUP($A$3,'G5-RW'!$A$6:$AM$500,3,FALSE))&")"))))),"0% (0)") -> 91% (1924) | D14: =IFERROR((IF($C14="NA","NA",VLOOKUP($A$3,'G5-RW'!$A$6:$AM$500,4,FALSE))),"NA") -> 40.2049896 | E14: =IFERROR((IF($C14="NA","NA",ROUND(VLOOKUP($A$3,'G5-RW'!$A$6:$AM$500,6,FALSE),0)&"% ("&IF(VLOOKUP($A$3,'G5-RW'!$A$6:$AM$500,5,FALSE)="",0,VLOOKUP($A$3,'G5-RW'!$A$6:$AM$500,5,FALSE))&")")),"NA") -> 73% (1410) | F14: =IFERROR((IF($C14="NA","NA",VLOOKUP($A$3,'G5-RW'!$A$6:$AM$500,7,FALSE))),"NA") -> 10.53991684 | G14: NA | H14: =IFERROR((IF($C14="NA","NA",VLOOKUP($A$3,'G5-RW'!$A$6:$AM$500,10,FALSE))),"NA") -> 18.53757796 | I14: NA | J14: =IFERROR((IF($C14="NA","NA",VLOOKUP($A$3,'G5-RW'!$A$6:$AM$500,13,FALSE))),"NA") -> 7.308004158 | K14: NA | L14: =IFERROR((IF($C14="NA","NA",VLOOKUP($A$3,'G5-RW'!$A$6:$AM$500,16,FALSE))),"NA") -> 3.822193347 | M14: NA
A15: Black | B15: =IFERROR(VLOOKUP(TEXT($A$3,"0000"),MEM_B!$A$3:$O$501,9,FALSE),0) -> 5740 | C15: =IFERROR((IF(OR(B15=0,B15="",B15="NA"),"NA",((IF(VLOOKUP($A$3,'G5-RB'!$A$6:$AM$500,3,FALSE)>=B15,"100% ("&VLOOKUP($A$3,'G5-RB'!$A$6:$AM$500,3,FALSE)&")",(ROUND((VLOOKUP($A$3,'G5-RB'!$A$6:$AM$500,3,FALSE)/B15*100),0))&"% ("&IF(VLOOKUP($A$3,'G5-RB'!$A$6:$AM$500,3,FALSE)="",0,VLOOKUP($A$3,'G5-RB'!$A$6:$AM$500,3,FALSE))&")"))))),"0% (0)") -> 97% (5558) | D15: =IFERROR((IF($C15="NA","NA",VLOOKUP($A$3,'G5-RB'!$A$6:$AM$500,4,FALSE))),"NA") -> 33.78717164 | E15: =IFERROR((IF($C15="NA","NA",ROUND(VLOOKUP($A$3,'G5-RB'!$A$6:$AM$500,6,FALSE),0)&"% ("&IF(VLOOKUP($A$3,'G5-RB'!$A$6:$AM$500,5,FALSE)="",0,VLOOKUP($A$3,'G5-RB'!$A$6:$AM$500,5,FALSE))&")")),"NA") -> 47% (2616) | F15: =IFERROR((IF($C15="NA","NA",VLOOKUP($A$3,'G5-RB'!$A$6:$AM$500,7,FALSE))),"NA") -> 8.935570349 | G15: NA | H15: =IFERROR((IF($C15="NA","NA",VLOOKUP($A$3,'G5-RB'!$A$6:$AM$500,10,FALSE))),"NA") -> 15.57380353 | I15: NA | J15: =IFERROR((IF($C15="NA","NA",VLOOKUP($A$3,'G5-RB'!$A$6:$AM$500,13,FALSE))),"NA") -> 6.066516733 | K15: NA | L15: =IFERROR((IF($C15="NA","NA",VLOOKUP($A$3,'G5-RB'!$A$6:$AM$500,16,FALSE))),"NA") -> 3.208870097 | M15: NA
A16: Hispanic | B16: =IFERROR(VLOOKUP(TEXT($A$3,"0000"),MEM_H!$A$3:$O$501,9,FALSE),0) -> 17117 | C16: =IFERROR((IF(OR(B16=0,B16="",B16="NA"),"NA",((IF(VLOOKUP($A$3,'G5-RH'!$A$6:$AM$500,3,FALSE)>=B16,"100% ("&VLOOKUP($A$3,'G5-RH'!$A$6:$AM$500,3,FALSE)&")",(ROUND((VLOOKUP($A$3,'G5-RH'!$A$6:$AM$500,3,FALSE)/B16*100),0))&"% ("&IF(VLOOKUP($A$3,'G5-RH'!$A$6:$AM$500,3,FALSE)="",0,VLOOKUP($A$3,'G5-RH'!$A$6:$AM$500,3,FALSE))&")"))))),"0% (0)") -> 95% (16308) | D16: =IFERROR((IF($C16="NA","NA",VLOOKUP($A$3,'G5-RH'!$A$6:$AM$500,4,FALSE))),"NA") -> 35.79516802 | E16: =IFERROR((IF($C16="NA","NA",ROUND(VLOOKUP($A$3,'G5-RH'!$A$6:$AM$500,6,FALSE),0)&"% ("&IF(VLOOKUP($A$3,'G5-RH'!$A$6:$AM$500,5,FALSE)="",0,VLOOKUP($A$3,'G5-RH'!$A$6:$AM$500,5,FALSE))&")")),"NA") -> 57% (9313) | F16: =IFERROR((IF($C16="NA","NA",VLOOKUP($A$3,'G5-RH'!$A$6:$AM$500,7,FALSE))),"NA") -> 9.242200147 | G16: NA | H16: =IFERROR((IF($C16="NA","NA",VLOOKUP($A$3,'G5-RH'!$A$6:$AM$500,10,FALSE))),"NA") -> 16.67793721 | I16: NA | J16: =IFERROR((IF($C16="NA","NA",VLOOKUP($A$3,'G5-RH'!$A$6:$AM$500,13,FALSE))),"NA") -> 6.43116262 | K16: NA | L16: =IFERROR((IF($C16="NA","NA",VLOOKUP($A$3,'G5-RH'!$A$6:$AM$500,16,FALSE))),"NA") -> 3.453084376 | M16: NA
A17: Asian | B17: =IFERROR(VLOOKUP(TEXT($A$3,"0000"),MEM_A!$A$3:$O$501,9,FALSE),0) -> 320 | C17: =IFERROR((IF(OR(B17=0,B17="",B17="NA"),"NA",((IF(VLOOKUP($A$3,'G5-RA'!$A$6:$AM$500,3,FALSE)>=B17,"100% ("&VLOOKUP($A$3,'G5-RA'!$A$6:$AM$500,3,FALSE)&")",(ROUND((VLOOKUP($A$3,'G5-RA'!$A$6:$AM$500,3,FALSE)/B17*100),0))&"% ("&IF(VLOOKUP($A$3,'G5-RA'!$A$6:$AM$500,3,FALSE)="",0,VLOOKUP($A$3,'G5-RA'!$A$6:$AM$500,3,FALSE))&")"))))),"0% (0)") -> 94% (300) | D17: =IFERROR((IF($C17="NA","NA",VLOOKUP($A$3,'G5-RA'!$A$6:$AM$500,4,FALSE))),"NA") -> 41.467 | E17: =IFERROR((IF($C17="NA","NA",ROUND(VLOOKUP($A$3,'G5-RA'!$A$6:$AM$500,6,FALSE),0)&"% ("&IF(VLOOKUP($A$3,'G5-RA'!$A$6:$AM$500,5,FALSE)="",0,VLOOKUP($A$3,'G5-RA'!$A$6:$AM$500,5,FALSE))&")")),"NA") -> 78% (233) | F17: =IFERROR((IF($C17="NA","NA",VLOOKUP($A$3,'G5-RA'!$A$6:$AM$500,7,FALSE))),"NA") -> 10.614 | G17: NA | H17: =IFERROR((IF($C17="NA","NA",VLOOKUP($A$3,'G5-RA'!$A$6:$AM$500,10,FALSE))),"NA") -> 19.151 | I17: NA | J17: =IFERROR((IF($C17="NA","NA",VLOOKUP($A$3,'G5-RA'!$A$6:$AM$500,13,FALSE))),"NA") -> 7.854 | K17: NA | L17: =IFERROR((IF($C17="NA","NA",VLOOKUP($A$3,'G5-RA'!$A$6:$AM$500,16,FALSE))),"NA") -> 3.866 | M17: NA
A18: Am. Indian | B18: =IFERROR(VLOOKUP(TEXT($A$3,"0000"),MEM_I!$A$3:$O$501,9,FALSE),0) -> 25 | C18: =IFERROR((IF(OR(B18=0,B18="",B18="NA"),"NA",((IF(VLOOKUP($A$3,'G5-RI'!$A$6:$AM$500,3,FALSE)>=B18,"100% ("&VLOOKUP($A$3,'G5-RI'!$A$6:$AM$500,3,FALSE)&")",(ROUND((VLOOKUP($A$3,'G5-RI'!$A$6:$AM$500,3,FALSE)/B18*100),0))&"% ("&IF(VLOOKUP($A$3,'G5-RI'!$A$6:$AM$500,3,FALSE)="",0,VLOOKUP($A$3,'G5-RI'!$A$6:$AM$500,3,FALSE))&")"))))),"0% (0)") -> 92% (23) | D18: =IFERROR((IF($C18="NA","NA",VLOOKUP($A$3,'G5-RI'!$A$6:$AM$500,4,FALSE))),"NA") -> 37.26086957 | E18: =IFERROR((IF($C18="NA","NA",ROUND(VLOOKUP($A$3,'G5-RI'!$A$6:$AM$500,6,FALSE),0)&"% ("&IF(VLOOKUP($A$3,'G5-RI'!$A$6:$AM$500,5,FALSE)="",0,VLOOKUP($A$3,'G5-RI'!$A$6:$AM$500,5,FALSE))&")")),"NA") -> 57% (13) | F18: =IFERROR((IF($C18="NA","NA",VLOOKUP($A$3,'G5-RI'!$A$6:$AM$500,7,FALSE))),"NA") -> 10.08695652 | G18: NA | H18: =IFERROR((IF($C18="NA","NA",VLOOKUP($A$3,'G5-RI'!$A$6:$AM$500,10,FALSE))),"NA") -> 16.86956522 | I18: NA | J18: =IFERROR((IF($C18="NA","NA",VLOOKUP($A$3,'G5-RI'!$A$6:$AM$500,13,FALSE))),"NA") -> 6.739130435 | K18: NA | L18: =IFERROR((IF($C18="NA","NA",VLOOKUP($A$3,'G5-RI'!$A$6:$AM$500,16,FALSE))),"NA") -> 3.565217391 | M18: NA
A19: ED | B19: =IFERROR(VLOOKUP(TEXT($A$3,"0000"),MEM_ED!$A$3:$O$501,9,FALSE),0) -> 19195 | C19: =IFERROR((IF(OR(B19=0,B19="",B19="NA"),"NA",((IF(VLOOKUP($A$3,'G5-RED'!$A$6:$AM$500,3,FALSE)>=B19,"100% ("&VLOOKUP($A$3,'G5-RED'!$A$6:$AM$500,3,FALSE)&")",(ROUND((VLOOKUP($A$3,'G5-RED'!$A$6:$AM$500,3,FALSE)/B19*100),0))&"% ("&IF(VLOOKUP($A$3,'G5-RED'!$A$6:$AM$500,3,FALSE)="",0,VLOOKUP($A$3,'G5-RED'!$A$6:$AM$500,3,FALSE))&")"))))),"0% (0)") -> 100% (19405) | D19: =IFERROR((IF($C19="NA","NA",VLOOKUP($A$3,'G5-RED'!$A$6:$AM$500,4,FALSE))),"NA") -> 34.50761144 | E19: =IFERROR((IF($C19="NA","NA",ROUND(VLOOKUP($A$3,'G5-RED'!$A$6:$AM$500,6,FALSE),0)&"% ("&IF(VLOOKUP($A$3,'G5-RED'!$A$6:$AM$500,5,FALSE)="",0,VLOOKUP($A$3,'G5-RED'!$A$6:$AM$500,5,FALSE))&")")),"NA") -> 52% (9998) | F19: =IFERROR((IF($C19="NA","NA",VLOOKUP($A$3,'G5-RED'!$A$6:$AM$500,7,FALSE))),"NA") -> 8.982643649 | G19: NA | H19: =IFERROR((IF($C19="NA","NA",VLOOKUP($A$3,'G5-RED'!$A$6:$AM$500,10,FALSE))),"NA") -> 16.03814481 | I19: NA | J19: =IFERROR((IF($C19="NA","NA",VLOOKUP($A$3,'G5-RED'!$A$6:$AM$500,13,FALSE))),"NA") -> 6.185076011 | K19: NA | L19: =IFERROR((IF($C19="NA","NA",VLOOKUP($A$3,'G5-RED'!$A$6:$AM$500,16,FALSE))),"NA") -> 3.306158207 | M19: NA
A20: ELL | B20: =IFERROR(VLOOKUP(TEXT($A$3,"0000"),MEM_ELL!$A$3:$O$501,9,FALSE),0) -> 6219 | C20: =IFERROR((IF(OR(B20=0,B20="",B20="NA"),"NA",((IF(VLOOKUP($A$3,'G5-RELL'!$A$6:$AM$500,3,FALSE)>=B20,"100% ("&VLOOKUP($A$3,'G5-RELL'!$A$6:$AM$500,3,FALSE)&")",(ROUND((VLOOKUP($A$3,'G5-RELL'!$A$6:$AM$500,3,FALSE)/B20*100),0))&"% ("&IF(VLOOKUP($A$3,'G5-RELL'!$A$6:$AM$500,3,FALSE)="",0,VLOOKUP($A$3,'G5-RELL'!$A$6:$AM$500,3,FALSE))&")"))))),"0% (0)") -> 99% (6130) | D20: =IFERROR((IF($C20="NA","NA",VLOOKUP($A$3,'G5-RELL'!$A$6:$AM$500,4,FALSE))),"NA") -> 28.55334421 | E20: =IFERROR((IF($C20="NA","NA",ROUND(VLOOKUP($A$3,'G5-RELL'!$A$6:$AM$500,6,FALSE),0)&"% ("&IF(VLOOKUP($A$3,'G5-RELL'!$A$6:$AM$500,5,FALSE)="",0,VLOOKUP($A$3,'G5-RELL'!$A$6:$AM$500,5,FALSE))&")")),"NA") -> 28% (1729) | F20: =IFERROR((IF($C20="NA","NA",VLOOKUP($A$3,'G5-RELL'!$A$6:$AM$500,7,FALSE))),"NA") -> 7.422185971 | G20: NA | H20: =IFERROR((IF($C20="NA","NA",VLOOKUP($A$3,'G5-RELL'!$A$6:$AM$500,10,FALSE))),"NA") -> 13.29477977 | I20: NA | J20: =IFERROR((IF($C20="NA","NA",VLOOKUP($A$3,'G5-RELL'!$A$6:$AM$500,13,FALSE))),"NA") -> 5.007340946 | K20: NA | L20: =IFERROR((IF($C20="NA","NA",VLOOKUP($A$3,'G5-RELL'!$A$6:$AM$500,16,FALSE))),"NA") -> 2.82903752 | M20: NA
A21: SWD | B21: =IFERROR(VLOOKUP(TEXT($A$3,"0000"),MEM_SWD!$A$3:$O$501,9,FALSE),0) -> 2487 | C21: =IFERROR((IF(OR(B21=0,B21="",B21="NA"),"NA",((IF(VLOOKUP($A$3,'G5-RSWD'!$A$6:$AM$500,3,FALSE)>=B21,"100% ("&VLOOKUP($A$3,'G5-RSWD'!$A$6:$AM$500,3,FALSE)&")",(ROUND((VLOOKUP($A$3,'G5-RSWD'!$A$6:$AM$500,3,FALSE)/B21*100),0))&"% ("&IF(VLOOKUP($A$3,'G5-RSWD'!$A$6:$AM$500,3,FALSE)="",0,VLOOKUP($A$3,'G5-RSWD'!$A$6:$AM$500,3,FALSE))&")"))))),"0% (0)") -> 96% (2395) | D21: =IFERROR((IF($C21="NA","NA",VLOOKUP($A$3,'G5-RSWD'!$A$6:$AM$500,4,FALSE))),"NA") -> 26.26843424 | E21: =IFERROR((IF($C21="NA","NA",ROUND(VLOOKUP($A$3,'G5-RSWD'!$A$6:$AM$500,6,FALSE),0)&"% ("&IF(VLOOKUP($A$3,'G5-RSWD'!$A$6:$AM$500,5,FALSE)="",0,VLOOKUP($A$3,'G5-RSWD'!$A$6:$AM$500,5,FALSE))&")")),"NA") -> 23% (543) | F21: =IFERROR((IF($C21="NA","NA",VLOOKUP($A$3,'G5-RSWD'!$A$6:$AM$500,7,FALSE))),"NA") -> 7.186597077 | G21: NA | H21: =IFERROR((IF($C21="NA","NA",VLOOKUP($A$3,'G5-RSWD'!$A$6:$AM$500,10,FALSE))),"NA") -> 11.94087683 | I21: NA | J21: =IFERROR((IF($C21="NA","NA",VLOOKUP($A$3,'G5-RSWD'!$A$6:$AM$500,13,FALSE))),"NA") -> 4.592985386 | K21: NA | L21: =IFERROR((IF($C21="NA","NA",VLOOKUP($A$3,'G5-RSWD'!$A$6:$AM$500,16,FALSE))),"NA") -> 2.5634238 | M21: NA
A22: Math - Grade 5
A23: Satisfactory Progress Cut Scores at 62% or above | B23: Total # of Students | C23: % of Students Tested | D23: ='G3-5 Matrix'!C16&" ["&'G3-5 Matrix'!C17&"]" -> Overall [34] | F23: ='G3-5 Matrix'!D16&" ["&'G3-5 Matrix'!D17&"]" -> Number: Base Ten & Fractions [24] | H23: ='G3-5 Matrix'!E16&" ["&'G3-5 Matrix'!E17&"]" -> Expressions, Equations, & Statistics [10] | J23: ='G3-5 Matrix'!F16&" ["&'G3-5 Matrix'!F17&"]" -> Geometry and Measurement [0]
D24: Average Score | E24: % Satisfactory | F24: Average Score | G24: % Satisfactory | H24: Average Score | I24: % Satisfactory | J24: Average Score | K24: % Satisfactory
A25: All students | B25: =IFERROR(VLOOKUP(TEXT($A$3,"0000"),Mem_All!$A$3:$O$501,9,FALSE),0) -> 25417 | C25: =IFERROR((IF(OR(B25=0,B25="",B25="NA"),"NA",((IF(VLOOKUP($A$3,'G5-MALL'!$A$6:$AA$500,3,FALSE)>=B25,"100% ("&VLOOKUP($A$3,'G5-MALL'!$A$6:$AA$500,3,FALSE)&")",(ROUND((VLOOKUP($A$3,'G5-MALL'!$A$6:$AA$500,3,FALSE)/B25*100),0))&"% ("&IF(VLOOKUP($A$3,'G5-MALL'!$A$6:$AA$500,3,FALSE)="",0,VLOOKUP($A$3,'G5-MALL'!$A$6:$AA$500,3,FALSE))&")"))))),"0% (0)") -> 95% (24122) | D25: =IFERROR((IF($C25="NA","NA",VLOOKUP($A$3,'G5-MALL'!$A$6:$AM$500,4,FALSE))),"NA") -> 21.36680623 | E25: =IFERROR((IF($C25="NA","NA",ROUND(VLOOKUP($A$3,'G5-MALL'!$A$6:$AM$500,6,FALSE),0)&"% ("&IF(VLOOKUP($A$3,'G5-MALL'!$A$6:$AM$500,5,FALSE)="",0,VLOOKUP($A$3,'G5-MALL'!$A$6:$AM$500,5,FALSE))&")")),"NA") -> 57% (13750) | F25: =IFERROR((IF($C25="NA","NA",VLOOKUP($A$3,'G5-MALL'!$A$6:$AM$500,7,FALSE))),"NA") -> 14.7598292 | G25: NA | H25: =IFERROR((IF($C25="NA","NA",VLOOKUP($A$3,'G5-MALL'!$A$6:$AM$500,10,FALSE))),"NA") -> 6.609468535 | I25: NA | J25: NT | K25: NT
A26: FCAT Level 1 | B26: =IFERROR(VLOOKUP(TEXT($A$3,"0000"),MEM_ML1!$A$3:$O$501,6,FALSE),0) -> 4127 | C26: =IFERROR((IF(OR(B26=0,B26="",B26="NA"),"NA",((IF(VLOOKUP($A$3,'G5-ML1'!$A$6:$AG$500,3,FALSE)>=B26,"100% ("&VLOOKUP($A$3,'G5-ML1'!$A$6:$AG$500,3,FALSE)&")",(ROUND((VLOOKUP($A$3,'G5-ML1'!$A$6:$AG$500,3,FALSE)/B26*100),0))&"% ("&IF(VLOOKUP($A$3,'G5-ML1'!$A$6:$AG$500,3,FALSE)="",0,VLOOKUP($A$3,'G5-ML1'!$A$6:$AG$500,3,FALSE))&")"))))),"0% (0)") -> 95% (3920) | D26: =IFERROR((IF($C26="NA","NA",VLOOKUP($A$3,'G5-ML1'!$A$6:$AM$500,4,FALSE))),"NA") -> 12.8330102 | E26: =IFERROR((IF($C26="NA","NA",ROUND(VLOOKUP($A$3,'G5-ML1'!$A$6:$AM$500,6,FALSE),0)&"% ("&IF(VLOOKUP($A$3,'G5-ML1'!$A$6:$AM$500,5,FALSE)="",0,VLOOKUP($A$3,'G5-ML1'!$A$6:$AM$500,5,FALSE))&")")),"NA") -> 8% (315) | F26: =IFERROR((IF($C26="NA","NA",VLOOKUP($A$3,'G5-ML1'!$A$6:$AM$500,7,FALSE))),"NA") -> 8.736658163 | G26: NA | H26: =IFERROR((IF($C26="NA","NA",VLOOKUP($A$3,'G5-ML1'!$A$6:$AM$500,10,FALSE))),"NA") -> 4.103290816 | I26: NA | J26: NT | K26: NT
A27: FCAT Level 2 | B27: =IFERROR(VLOOKUP(TEXT($A$3,"0000"),MEM_ML2!$A$3:$O$501,6,FALSE),0) -> 4840 | C27: =IFERROR((IF(OR(B27=0,B27="",B27="NA"),"NA",((IF(VLOOKUP($A$3,'G5-ML2'!$A$6:$AG$500,3,FALSE)>=B27,"100% ("&VLOOKUP($A$3,'G5-ML2'!$A$6:$AG$500,3,FALSE)&")",(ROUND((VLOOKUP($A$3,'G5-ML2'!$A$6:$AG$500,3,FALSE)/B27*100),0))&"% ("&IF(VLOOKUP($A$3,'G5-ML2'!$A$6:$AG$500,3,FALSE)="",0,VLOOKUP($A$3,'G5-ML2'!$A$6:$AG$500,3,FALSE))&")"))))),"0% (0)") -> 96% (4637) | D27: =IFERROR((IF($C27="NA","NA",VLOOKUP($A$3,'G5-ML2'!$A$6:$AM$500,4,FALSE))),"NA") -> 17.83135648 | E27: =IFERROR((IF($C27="NA","NA",ROUND(VLOOKUP($A$3,'G5-ML2'!$A$6:$AM$500,6,FALSE),0)&"% ("&IF(VLOOKUP($A$3,'G5-ML2'!$A$6:$AM$500,5,FALSE)="",0,VLOOKUP($A$3,'G5-ML2'!$A$6:$AM$500,5,FALSE))&")")),"NA") -> 32% (1483) | F27: =IFERROR((IF($C27="NA","NA",VLOOKUP($A$3,'G5-ML2'!$A$6:$AM$500,7,FALSE))),"NA") -> 12.1006901 | G27: NA | H27: =IFERROR((IF($C27="NA","NA",VLOOKUP($A$3,'G5-ML2'!$A$6:$AM$500,10,FALSE))),"NA") -> 5.732348501 | I27: NA | J27: NT | K27: NT
A28: FCAT Level 3 | B28: =IFERROR(VLOOKUP(TEXT($A$3,"0000"),MEM_ML3!$A$3:$O$501,6,FALSE),0) -> 6752 | C28: =IFERROR((IF(OR(B28=0,B28="",B28="NA"),"NA",((IF(VLOOKUP($A$3,'G5-ML3'!$A$6:$AG$500,3,FALSE)>=B28,"100% ("&VLOOKUP($A$3,'G5-ML3'!$A$6:$AG$500,3,FALSE)&")",(ROUND((VLOOKUP($A$3,'G5-ML3'!$A$6:$AG$500,3,FALSE)/B28*100),0))&"% ("&IF(VLOOKUP($A$3,'G5-ML3'!$A$6:$AG$500,3,FALSE)="",0,VLOOKUP($A$3,'G5-ML3'!$A$6:$AG$500,3,FALSE))&")"))))),"0% (0)") -> 96% (6489) | D28: =IFERROR((IF($C28="NA","NA",VLOOKUP($A$3,'G5-ML3'!$A$6:$AM$500,4,FALSE))),"NA") -> 22.09298813 | E28: =IFERROR((IF($C28="NA","NA",ROUND(VLOOKUP($A$3,'G5-ML3'!$A$6:$AM$500,6,FALSE),0)&"% ("&IF(VLOOKUP($A$3,'G5-ML3'!$A$6:$AM$500,5,FALSE)="",0,VLOOKUP($A$3,'G5-ML3'!$A$6:$AM$500,5,FALSE))&")")),"NA") -> 64% (4140) | F28: =IFERROR((IF($C28="NA","NA",VLOOKUP($A$3,'G5-ML3'!$A$6:$AM$500,7,FALSE))),"NA") -> 15.17133611 | G28: NA | H28: =IFERROR((IF($C28="NA","NA",VLOOKUP($A$3,'G5-ML3'!$A$6:$AM$500,10,FALSE))),"NA") -> 6.923871167 | I28: NA | J28: NT | K28: NT
A29: FCAT Level 4 | B29: =IFERROR(VLOOKUP(TEXT($A$3,"0000"),MEM_ML4!$A$3:$O$501,6,FALSE),0) -> 5199 | C29: =IFERROR((IF(OR(B29=0,B29="",B29="NA"),"NA",((IF(VLOOKUP($A$3,'G5-ML4'!$A$6:$AG$500,3,FALSE)>=B29,"100% ("&VLOOKUP($A$3,'G5-ML4'!$A$6:$AG$500,3,FALSE)&")",(ROUND((VLOOKUP($A$3,'G5-ML4'!$A$6:$AG$500,3,FALSE)/B29*100),0))&"% ("&IF(VLOOKUP($A$3,'G5-ML4'!$A$6:$AG$500,3,FALSE)="",0,VLOOKUP($A$3,'G5-ML4'!$A$6:$AG$500,3,FALSE))&")"))))),"0% (0)") -> 96% (4993) | D29: =IFERROR((IF($C29="NA","NA",VLOOKUP($A$3,'G5-ML4'!$A$6:$AM$500,4,FALSE))),"NA") -> 26.19347086 | E29: =IFERROR((IF($C29="NA","NA",ROUND(VLOOKUP($A$3,'G5-ML4'!$A$6:$AM$500,6,FALSE),0)&"% ("&IF(VLOOKUP($A$3,'G5-ML4'!$A$6:$AM$500,5,FALSE)="",0,VLOOKUP($A$3,'G5-ML4'!$A$6:$AM$500,5,FALSE))&")")),"NA") -> 88% (4412) | F29: =IFERROR((IF($C29="NA","NA",VLOOKUP($A$3,'G5-ML4'!$A$6:$AM$500,7,FALSE))),"NA") -> 18.24850791 | G29: NA | H29: =IFERROR((IF($C29="NA","NA",VLOOKUP($A$3,'G5-ML4'!$A$6:$AM$500,10,FALSE))),"NA") -> 7.945503705 | I29: NA | J29: NT | K29: NT
A30: FCAT Level 5 | B30: =IFERROR(VLOOKUP(TEXT($A$3,"0000"),MEM_ML5!$A$3:$M$501,6,FALSE),0) -> 3241 | C30: =IFERROR((IF(OR(B30=0,B30="",B30="NA"),"NA",((IF(VLOOKUP($A$3,'G5-ML5'!$A$6:$AG$500,3,FALSE)>=B30,"100% ("&VLOOKUP($A$3,'G5-ML5'!$A$6:$AG$500,3,FALSE)&")",(ROUND((VLOOKUP($A$3,'G5-ML5'!$A$6:$AG$500,3,FALSE)/B30*100),0))&"% ("&IF(VLOOKUP($A$3,'G5-ML5'!$A$6:$AG$500,3,FALSE)="",0,VLOOKUP($A$3,'G5-ML5'!$A$6:$AG$500,3,FALSE))&")"))))),"0% (0)") -> 96% (3099) | D30: =IFERROR((IF($C30="NA","NA",VLOOKUP($A$3,'G5-ML5'!$A$6:$AM$500,4,FALSE))),"NA") -> 29.19122298 | E30: =IFERROR((IF($C30="NA","NA",ROUND(VLOOKUP($A$3,'G5-ML5'!$A$6:$AM$500,6,FALSE),0)&"% ("&IF(VLOOKUP($A$3,'G5-ML5'!$A$6:$AM$500,5,FALSE)="",0,VLOOKUP($A$3,'G5-ML5'!$A$6:$AM$500,5,FALSE))&")")),"NA") -> 98% (3028) | F30: =IFERROR((IF($C30="NA","NA",VLOOKUP($A$3,'G5-ML5'!$A$6:$AM$500,7,FALSE))),"NA") -> 20.60196838 | G30: NA | H30: =IFERROR((IF($C30="NA","NA",VLOOKUP($A$3,'G5-ML5'!$A$6:$AM$500,10,FALSE))),"NA") -> 8.592191029 | I30: NA | J30: NT | K30: NT
A31: White | B31: =IFERROR(VLOOKUP(TEXT($A$3,"0000"),MEM_W!$A$3:$O$501,9,FALSE),0) -> 2121 | C31: =IFERROR((IF(OR(B31=0,B31="",B31="NA"),"NA",((IF(VLOOKUP($A$3,'G5-MW'!$A$6:$AG$500,3,FALSE)>=B31,"100% ("&VLOOKUP($A$3,'G5-MW'!$A$6:$AG$500,3,FALSE)&")",(ROUND((VLOOKUP($A$3,'G5-MW'!$A$6:$AG$500,3,FALSE)/B31*100),0))&"% ("&IF(VLOOKUP($A$3,'G5-MW'!$A$6:$AG$500,3,FALSE)="",0,VLOOKUP($A$3,'G5-MW'!$A$6:$AG$500,3,FALSE))&")"))))),"0% (0)") -> 90% (1906) | D31: =IFERROR((IF($C31="NA","NA",VLOOKUP($A$3,'G5-MW'!$A$6:$AM$500,4,FALSE))),"NA") -> 23.87145855 | E31: =IFERROR((IF($C31="NA","NA",ROUND(VLOOKUP($A$3,'G5-MW'!$A$6:$AM$500,6,FALSE),0)&"% ("&IF(VLOOKUP($A$3,'G5-MW'!$A$6:$AM$500,5,FALSE)="",0,VLOOKUP($A$3,'G5-MW'!$A$6:$AM$500,5,FALSE))&")")),"NA") -> 72% (1364) | F31: =IFERROR((IF($C31="NA","NA",VLOOKUP($A$3,'G5-MW'!$A$6:$AM$500,7,FALSE))),"NA") -> 16.67806925 | G31: NA | H31: =IFERROR((IF($C31="NA","NA",VLOOKUP($A$3,'G5-MW'!$A$6:$AM$500,10,FALSE))),"NA") -> 7.19910808 | I31: NA | J31: NT | K31: NT
A32: Black | B32: =IFERROR(VLOOKUP(TEXT($A$3,"0000"),MEM_B!$A$3:$O$501,9,FALSE),0) -> 5740 | C32: =IFERROR((IF(OR(B32=0,B32="",B32="NA"),"NA",((IF(VLOOKUP($A$3,'G5-MB'!$A$6:$AG$500,3,FALSE)>=B32,"100% ("&VLOOKUP($A$3,'G5-MB'!$A$6:$AG$500,3,FALSE)&")",(ROUND((VLOOKUP($A$3,'G5-MB'!$A$6:$AG$500,3,FALSE)/B32*100),0))&"% ("&IF(VLOOKUP($A$3,'G5-MB'!$A$6:$AG$500,3,FALSE)="",0,VLOOKUP($A$3,'G5-MB'!$A$6:$AG$500,3,FALSE))&")"))))),"0% (0)") -> 96% (5539) | D32: =IFERROR((IF($C32="NA","NA",VLOOKUP($A$3,'G5-MB'!$A$6:$AM$500,4,FALSE))),"NA") -> 19.48801228 | E32: =IFERROR((IF($C32="NA","NA",ROUND(VLOOKUP($A$3,'G5-MB'!$A$6:$AM$500,6,FALSE),0)&"% ("&IF(VLOOKUP($A$3,'G5-MB'!$A$6:$AM$500,5,FALSE)="",0,VLOOKUP($A$3,'G5-MB'!$A$6:$AM$500,5,FALSE))&")")),"NA") -> 46% (2561) | F32: =IFERROR((IF($C32="NA","NA",VLOOKUP($A$3,'G5-MB'!$A$6:$AM$500,7,FALSE))),"NA") -> 13.26035385 | G32: NA | H32: =IFERROR((IF($C32="NA","NA",VLOOKUP($A$3,'G5-MB'!$A$6:$AM$500,10,FALSE))),"NA") -> 6.228506951 | I32: NA | J32: NT | K32: NT
A33: Hispanic | B33: =IFERROR(VLOOKUP(TEXT($A$3,"0000"),MEM_H!$A$3:$O$501,9,FALSE),0) -> 17117 | C33: =IFERROR((IF(OR(B33=0,B33="",B33="NA"),"NA",((IF(VLOOKUP($A$3,'G5-MH'!$A$6:$AG$500,3,FALSE)>=B33,"100% ("&VLOOKUP($A$3,'G5-MH'!$A$6:$AG$500,3,FALSE)&")",(ROUND((VLOOKUP($A$3,'G5-MH'!$A$6:$AG$500,3,FALSE)/B33*100),0))&"% ("&IF(VLOOKUP($A$3,'G5-MH'!$A$6:$AG$500,3,FALSE)="",0,VLOOKUP($A$3,'G5-MH'!$A$6:$AG$500,3,FALSE))&")"))))),"0% (0)") -> 95% (16273) | D33: =IFERROR((IF($C33="NA","NA",VLOOKUP($A$3,'G5-MH'!$A$6:$AM$500,4,FALSE))),"NA") -> 21.61593437 | E33: =IFERROR((IF($C33="NA","NA",ROUND(VLOOKUP($A$3,'G5-MH'!$A$6:$AM$500,6,FALSE),0)&"% ("&IF(VLOOKUP($A$3,'G5-MH'!$A$6:$AM$500,5,FALSE)="",0,VLOOKUP($A$3,'G5-MH'!$A$6:$AM$500,5,FALSE))&")")),"NA") -> 58% (9506) | F33: =IFERROR((IF($C33="NA","NA",VLOOKUP($A$3,'G5-MH'!$A$6:$AM$500,7,FALSE))),"NA") -> 14.97159712 | G33: NA | H33: =IFERROR((IF($C33="NA","NA",VLOOKUP($A$3,'G5-MH'!$A$6:$AM$500,10,FALSE))),"NA") -> 6.642149573 | I33: NA | J33: NT | K33: NT
A34: Asian | B34: =IFERROR(VLOOKUP(TEXT($A$3,"0000"),MEM_A!$A$3:$O$501,9,FALSE),0) -> 320 | C34: =IFERROR((IF(OR(B34=0,B34="",B34="NA"),"NA",((IF(VLOOKUP($A$3,'G5-MA'!$A$6:$AG$500,3,FALSE)>=B34,"100% ("&VLOOKUP($A$3,'G5-MA'!$A$6:$AG$500,3,FALSE)&")",(ROUND((VLOOKUP($A$3,'G5-MA'!$A$6:$AG$500,3,FALSE)/B34*100),0))&"% ("&IF(VLOOKUP($A$3,'G5-MA'!$A$6:$AG$500,3,FALSE)="",0,VLOOKUP($A$3,'G5-MA'!$A$6:$AG$500,3,FALSE))&")"))))),"0% (0)") -> 91% (291) | D34: =IFERROR((IF($C34="NA","NA",VLOOKUP($A$3,'G5-MA'!$A$6:$AM$500,4,FALSE))),"NA") -> 26.30103093 | E34: =IFERROR((IF($C34="NA","NA",ROUND(VLOOKUP($A$3,'G5-MA'!$A$6:$AM$500,6,FALSE),0)&"% ("&IF(VLOOKUP($A$3,'G5-MA'!$A$6:$AM$500,5,FALSE)="",0,VLOOKUP($A$3,'G5-MA'!$A$6:$AM$500,5,FALSE))&")")),"NA") -> 84% (244) | F34: =IFERROR((IF($C34="NA","NA",VLOOKUP($A$3,'G5-MA'!$A$6:$AM$500,7,FALSE))),"NA") -> 18.37113402 | G34: NA | H34: =IFERROR((IF($C34="NA","NA",VLOOKUP($A$3,'G5-MA'!$A$6:$AM$500,10,FALSE))),"NA") -> 7.930927835 | I34: NA | J34: NT | K34: NT
A35: Am. Indian | B35: =IFERROR(VLOOKUP(TEXT($A$3,"0000"),MEM_I!$A$3:$O$501,9,FALSE),0) -> 25 | C35: =IFERROR((IF(OR(B35=0,B35="",B35="NA"),"NA",((IF(VLOOKUP($A$3,'G5-MI'!$A$6:$AG$500,3,FALSE)>=B35,"100% ("&VLOOKUP($A$3,'G5-MI'!$A$6:$AG$500,3,FALSE)&")",(ROUND((VLOOKUP($A$3,'G5-MI'!$A$6:$AG$500,3,FALSE)/B35*100),0))&"% ("&IF(VLOOKUP($A$3,'G5-MI'!$A$6:$AG$500,3,FALSE)="",0,VLOOKUP($A$3,'G5-MI'!$A$6:$AG$500,3,FALSE))&")"))))),"0% (0)") -> 88% (22) | D35: =IFERROR((IF($C35="NA","NA",VLOOKUP($A$3,'G5-MI'!$A$6:$AM$500,4,FALSE))),"NA") -> 22.63636364 | E35: =IFERROR((IF($C35="NA","NA",ROUND(VLOOKUP($A$3,'G5-MI'!$A$6:$AM$500,6,FALSE),0)&"% ("&IF(VLOOKUP($A$3,'G5-MI'!$A$6:$AM$500,5,FALSE)="",0,VLOOKUP($A$3,'G5-MI'!$A$6:$AM$500,5,FALSE))&")")),"NA") -> 68% (15) | F35: =IFERROR((IF($C35="NA","NA",VLOOKUP($A$3,'G5-MI'!$A$6:$AM$500,7,FALSE))),"NA") -> 15.59090909 | G35: NA | H35: =IFERROR((IF($C35="NA","NA",VLOOKUP($A$3,'G5-MI'!$A$6:$AM$500,10,FALSE))),"NA") -> 7.045454545 | I35: NA | J35: NT | K35: NT
A36: ED | B36: =IFERROR(VLOOKUP(TEXT($A$3,"0000"),MEM_ED!$A$3:$O$501,9,FALSE),0) -> 19195 | C36: =IFERROR((IF(OR(B36=0,B36="",B36="NA"),"NA",((IF(VLOOKUP($A$3,'G5-MED'!$A$6:$AG$500,3,FALSE)>=B36,"100% ("&VLOOKUP($A$3,'G5-MED'!$A$6:$AG$500,3,FALSE)&")",(ROUND((VLOOKUP($A$3,'G5-MED'!$A$6:$AG$500,3,FALSE)/B36*100),0))&"% ("&IF(VLOOKUP($A$3,'G5-MED'!$A$6:$AG$500,3,FALSE)="",0,VLOOKUP($A$3,'G5-MED'!$A$6:$AG$500,3,FALSE))&")"))))),"0% (0)") -> 100% (19330) | D36: =IFERROR((IF($C36="NA","NA",VLOOKUP($A$3,'G5-MED'!$A$6:$AM$500,4,FALSE))),"NA") -> 20.59380238 | E36: =IFERROR((IF($C36="NA","NA",ROUND(VLOOKUP($A$3,'G5-MED'!$A$6:$AM$500,6,FALSE),0)&"% ("&IF(VLOOKUP($A$3,'G5-MED'!$A$6:$AM$500,5,FALSE)="",0,VLOOKUP($A$3,'G5-MED'!$A$6:$AM$500,5,FALSE))&")")),"NA") -> 52% (10148) | F36: =IFERROR((IF($C36="NA","NA",VLOOKUP($A$3,'G5-MED'!$A$6:$AM$500,7,FALSE))),"NA") -> 14.17629591 | G36: NA | H36: =IFERROR((IF($C36="NA","NA",VLOOKUP($A$3,'G5-MED'!$A$6:$AM$500,10,FALSE))),"NA") -> 6.421117434 | I36: NA | J36: NT | K36: NT
A37: ELL | B37: =IFERROR(VLOOKUP(TEXT($A$3,"0000"),MEM_ELL!$A$3:$O$501,9,FALSE),0) -> 6219 | C37: =IFERROR((IF(OR(B37=0,B37="",B37="NA"),"NA",((IF(VLOOKUP($A$3,'G5-MELL'!$A$6:$AG$500,3,FALSE)>=B37,"100% ("&VLOOKUP($A$3,'G5-MELL'!$A$6:$AG$500,3,FALSE)&")",(ROUND((VLOOKUP($A$3,'G5-MELL'!$A$6:$AG$500,3,FALSE)/B37*100),0))&"% ("&IF(VLOOKUP($A$3,'G5-MELL'!$A$6:$AG$500,3,FALSE)="",0,VLOOKUP($A$3,'G5-MELL'!$A$6:$AG$500,3,FALSE))&")"))))),"0% (0)") -> 98% (6082) | D37: =IFERROR((IF($C37="NA","NA",VLOOKUP($A$3,'G5-MELL'!$A$6:$AM$500,4,FALSE))),"NA") -> 17.74810917 | E37: =IFERROR((IF($C37="NA","NA",ROUND(VLOOKUP($A$3,'G5-MELL'!$A$6:$AM$500,6,FALSE),0)&"% ("&IF(VLOOKUP($A$3,'G5-MELL'!$A$6:$AM$500,5,FALSE)="",0,VLOOKUP($A$3,'G5-MELL'!$A$6:$AM$500,5,FALSE))&")")),"NA") -> 36% (2167) | F37: =IFERROR((IF($C37="NA","NA",VLOOKUP($A$3,'G5-MELL'!$A$6:$AM$500,7,FALSE))),"NA") -> 12.14912858 | G37: NA | H37: =IFERROR((IF($C37="NA","NA",VLOOKUP($A$3,'G5-MELL'!$A$6:$AM$500,10,FALSE))),"NA") -> 5.598980598 | I37: NA | J37: NT | K37: NT
A38: SWD | B38: =IFERROR(VLOOKUP(TEXT($A$3,"0000"),MEM_SWD!$A$3:$O$501,9,FALSE),0) -> 2487 | C38: =IFERROR((IF(OR(B38=0,B38="",B38="NA"),"NA",((IF(VLOOKUP($A$3,'G5-MSWD'!$A$6:$AG$500,3,FALSE)>=B38,"100% ("&VLOOKUP($A$3,'G5-MSWD'!$A$6:$AG$500,3,FALSE)&")",(ROUND((VLOOKUP($A$3,'G5-MSWD'!$A$6:$AG$500,3,FALSE)/B38*100),0))&"% ("&IF(VLOOKUP($A$3,'G5-MSWD'!$A$6:$AG$500,3,FALSE)="",0,VLOOKUP($A$3,'G5-MSWD'!$A$6:$AG$500,3,FALSE))&")"))))),"0% (0)") -> 95% (2352) | D38: =IFERROR((IF($C38="NA","NA",VLOOKUP($A$3,'G5-MSWD'!$A$6:$AM$500,4,FALSE))),"NA") -> 16.02470238 | E38: =IFERROR((IF($C38="NA","NA",ROUND(VLOOKUP($A$3,'G5-MSWD'!$A$6:$AM$500,6,FALSE),0)&"% ("&IF(VLOOKUP($A$3,'G5-MSWD'!$A$6:$AM$500,5,FALSE)="",0,VLOOKUP($A$3,'G5-MSWD'!$A$6:$AM$500,5,FALSE))&")")),"NA") -> 28% (651) | F38: =IFERROR((IF($C38="NA","NA",VLOOKUP($A$3,'G5-MSWD'!$A$6:$AM$500,7,FALSE))),"NA") -> 11.04034864 | G38: NA | H38: =IFERROR((IF($C38="NA","NA",VLOOKUP($A$3,'G5-MSWD'!$A$6:$AM$500,10,FALSE))),"NA") -> 4.980952381 | I38: NA | J38: NT | K38: NT
A39: Science - Grade 5
A40: Level of Proficiency at 70% or above | B40: Total # of Students | C40: % of Students Tested | D40: ='G3-5 Matrix'!C19&" ["&'G3-5 Matrix'!C20&"]" -> Overall [68] | F40: ='G3-5 Matrix'!D19&" ["&'G3-5 Matrix'!D20&"]" -> Nature of Science [9] | H40: ='G3-5 Matrix'!E19&" ["&'G3-5 Matrix'!E20&"]" -> Earth & Space Science [20] | J40: ='G3-5 Matrix'!F19&" ["&'G3-5 Matrix'!F20&"]" -> Physical Science [24] | L40: ='G3-5 Matrix'!G19&" ["&'G3-5 Matrix'!G20&"]" -> Life Science [15]
D41: Average Score | E41: % Proficient | F41: Average Score | G41: % Proficient | H41: Average Score | I41: % Proficient | J41: Average Score | K41: % Proficient | L41: Average Score | M41: % Proficient
A42: All students | B42: =IFERROR(VLOOKUP(TEXT($A$3,"0000"),Mem_All!$A$3:$O$501,9,FALSE),0) -> 25417 | C42: =IFERROR((IF(OR(B42=0,B42="",B42="NA"),"NA",((IF(VLOOKUP($A$3,'G5-SALL'!$A$6:$AM$500,3,FALSE)>=B42,"100% ("&VLOOKUP($A$3,'G5-SALL'!$A$6:$AM$500,3,FALSE)&")",(ROUND((VLOOKUP($A$3,'G5-SALL'!$A$6:$AM$500,3,FALSE)/B42*100),0))&"% ("&IF(VLOOKUP($A$3,'G5-SALL'!$A$6:$AM$500,3,FALSE)="",0,VLOOKUP($A$3,'G5-SALL'!$A$6:$AM$500,3,FALSE))&")"))))),"0% (0)") -> 93% (23731) | D42: =IFERROR((IF($C42="NA","NA",VLOOKUP($A$3,'G5-SALL'!$A$6:$AM$500,4,FALSE))),"NA") -> 34.61702415 | E42: =IFERROR((IF($C42="NA","NA",ROUND(VLOOKUP($A$3,'G5-SALL'!$A$6:$AM$500,6,FALSE),0)&"% ("&IF(VLOOKUP($A$3,'G5-SALL'!$A$6:$AM$500,5,FALSE)="",0,VLOOKUP($A$3,'G5-SALL'!$A$6:$AM$500,5,FALSE))&")")),"NA") -> 14% (3261) | F42: =IFERROR((IF($C42="NA","NA",VLOOKUP($A$3,'G5-SALL'!$A$6:$AM$500,7,FALSE))),"NA") -> 3.811423876 | G42: =IFERROR((IF($C42="NA","NA",ROUND(VLOOKUP($A$3,'G5-SALL'!$A$6:$AM$500,9,FALSE),0)&"% ("&IF(VLOOKUP($A$3,'G5-SALL'!$A$6:$AM$500,8,FALSE)="",0,VLOOKUP($A$3,'G5-SALL'!$A$6:$AM$500,8,FALSE))&")")),"NA") -> 12% (2899) | H42: =IFERROR((IF($C42="NA","NA",VLOOKUP($A$3,'G5-SALL'!$A$6:$AM$500,10,FALSE))),"NA") -> 9.231621086 | I42: =IFERROR((IF($C42="NA","NA",ROUND(VLOOKUP($A$3,'G5-SALL'!$A$6:$AM$500,12,FALSE),0)&"% ("&IF(VLOOKUP($A$3,'G5-SALL'!$A$6:$AM$500,11,FALSE)="",0,VLOOKUP($A$3,'G5-SALL'!$A$6:$AM$500,11,FALSE))&")")),"NA") -> 12% (2963) | J42: =IFERROR((IF($C42="NA","NA",VLOOKUP($A$3,'G5-SALL'!$A$6:$AM$500,13,FALSE))),"NA") -> 12.97186381 | K42: =IFERROR((IF($C42="NA","NA",ROUND(VLOOKUP($A$3,'G5-SALL'!$A$6:$AM$500,15,FALSE),0)&"% ("&IF(VLOOKUP($A$3,'G5-SALL'!$A$6:$AM$500,14,FALSE)="",0,VLOOKUP($A$3,'G5-SALL'!$A$6:$AM$500,14,FALSE))&")")),"NA") -> 23% (5550) | L42: =IFERROR((IF($C42="NA","NA",VLOOKUP($A$3,'G5-SALL'!$A$6:$AM$500,16,FALSE))),"NA") -> 8.6026379 | M42: =IFERROR((IF($C42="NA","NA",ROUND(VLOOKUP($A$3,'G5-SALL'!$A$6:$AM$500,18,FALSE),0)&"% ("&IF(VLOOKUP($A$3,'G5-SALL'!$A$6:$AM$500,17,FALSE)="",0,VLOOKUP($A$3,'G5-SALL'!$A$6:$AM$500,17,FALSE))&")")),"NA") -> 28% (6644)

Sheet G3-5 Matrix (hidden)
A2: Grade | B2: Reading | C2: Overall | D2: Vocabulary | E2: Reading Application | F2: Literary Analysis Fiction/Nonfiction | G2: Informational Text/ Research Process
A3: 3 | B3: N of Items | C3: =SUM(D3:G3) -> 56 | D3: 16 | E3: 24 | F3: 12 | G3: 4
A4: 3 | B4: 51% Cut | C4: =ROUND(0.505*C3,2) -> 28.28 | D4: =ROUND(0.505*D3,2) -> 8.08 | E4: 12.12 | F4: 6.06 | G4: 2.02
A5: 4 | B5: N of Items | C5: =SUM(D5:G5) -> 56 | D5: 15 | E5: 24 | F5: 13 | G5: 4
A6: 4 | B6: 51% Cut | C6: =ROUND(0.505*C5,2) -> 28.28 | D6: =ROUND(0.505*D5,2) -> 7.58 | E6: 12.12 | F6: 6.57 | G6: 2.02
A7: 5 | B7: N of Items | C7: =SUM(D7:G7) -> 56 | D7: 15 | E7: 24 | F7: 11 | G7: 6
A8: 5 | B8: 51% Cut | C8: =ROUND(0.505*C7,2) -> 28.28 | D8: =ROUND(0.505*D7,2) -> 7.58 | E8: 12.12 | F8: 5.56 | G8: 3.03
A10: 3 | B10: Math | C10: Overall | D10: Number: Operations, Problems, & Statistics | E10: Number: Fractions | F10: Geometry and Measurement
A11: 3 | B11: N of Items | C11: =SUM(D11:F11) -> 30 | D11: 30 | E11: 0 | F11: 0
A12: 3 | B12: 51% Cut | C12: =ROUND(0.505*C11,2) -> 15.15 | D12: =ROUND(0.505*D11,2) -> 15.15 | E12: 0 | F12: 0
A13: 4 | B13: Math | C13: Overall | D13: Number: Operations & Problems | E13: Number: Base Ten and Fractions | F13: Geometry and Measurement
A14: 4 | B14: N of Items | C14: =SUM(D14:G14) -> 34 | D14: 34 | E14: 0 | F14: 0
A15: 4 | B15: 51% Cut | C15: =ROUND(0.505*C14,2) -> 17.17 | D15: =ROUND(0.505*D14,2) -> 17.17 | E15: 0 | F15: 0
A16: 5 | B16: Math | C16: Overall | D16: Number: Base Ten & Fractions | E16: Expressions, Equations, & Statistics | F16: Geometry and Measurement
A17: 5 | B17: N of Items | C17: =SUM(D17:F17) -> 34 | D17: 24 | E17: 10 | F17: 0
A18: 5 | B18: 51% Cut | C18: =ROUND(0.505*C17,2) -> 17.17 | D18: =ROUND(0.505*D17,2) -> 12.12 | E18: 5.05 | F18: 0
A19: 5 | B19: Science | C19: Overall | D19: Nature of Science | E19: Earth & Space Science | F19: Physical Science | G19: Life Science
A20: 5 | B20: N of Items | C20: =SUM(D20:G20) -> 68 | D20: 9 | E20: 20 | F20: 24 | G20: 15
A21: 5 | B21: 51% Cut | C21: =ROUND(0.505*C20,2) -> 34.34 | D21: =ROUND(0.505*D20,2) -> 4.55 | E21: 10.1 | F21: 12.12 | G21: 7.58

Sheet Mem_All (hidden)
A1: 1 | B1: 2 | C1: 3 | D1: 4 | E1: 5 | F1: 6 | G1: 7 | H1: 8 | I1: 9 | J1: 10 | K1: 11 | L1: 12 | M1: 13 | N1: 14 | O1: 15 | P1: 16 | Q1: 17
A2: SCHOOL_NUMBER | B2: S_SCHL_NAME | C2: Total Of STUDENT_ID | D2: 00 | E2: 01 | F2: 02 | G2: 03 | H2: 04 | I2: 05 | J2: 06 | K2: 07 | L2: 08 | M2: 09 | N2: 10 | O2: 11 | P2: 12 | Q2: PK
A3: 0041 | B3: AIR BASE ELEMENTARY | C3: 737 | D3: 98 | E3: 107 | F3: 117 | G3: 111 | H3: 115 | I3: 116 | Q3: 73
A4: 0070 | B4: CORAL REEF MONTESSORI ACAD CH | C4: 413 | D4: 71 | E4: 54 | F4: 58 | G4: 56 | H4: 43 | I4: 41 | J4: 28 | K4: 31 | L4: 31
A5: 0071 | B5: EUGENIA B. THOMAS K-8 CENTER | C5: 1612 | D5: 148 | E5: 198 | F5: 184 | G5: 194 | H5: 187 | I5: 166 | J5: 151 | K5: 161 | L5: 180 | Q5: 43
A6: 0072 | B6: SUMMERVILLE CHARTER SCHOOL | C6: 429 | E6: 103 | F6: 77 | G6: 84 | H6: 77 | I6: 88
A7: 0073 | B7: MANDARIN LAKES K-8 CENTER | C7: 1112 | D7: 128 | E7: 152 | F7: 136 | G7: 153 | H7: 116 | I7: 120 | J7: 120 | K7: 79 | L7: 108
A8: 0081 | B8: LENORA B. SMITH ELEMENTARY | C8: 429 | D8: 62 | E8: 64 | F8: 68 | G8: 80 | H8: 61 | I8: 56 | Q8: 38
A9: 0091 | B9: BOB GRAHAM EDUCATION CTR | C9: 1716 | D9: 123 | E9: 141 | F9: 161 | G9: 192 | H9: 214 | I9: 194 | J9: 220 | K9: 229 | L9: 242
A10: 0092 | B10: NORMAN S. EDELCUP/SUNNY ISLES | C10: 1778 | D10: 198 | E10: 203 | F10: 212 | G10: 217 | H10: 208 | I10: 166 | J10: 184 | K10: 196 | L10: 194
A11: 0100 | B11: MATER ACADEMY | C11: 745 | D11: 125 | E11: 94 | F11: 149 | G11: 127 | H11: 123 | I11: 127
A12: 0101 | B12: ARCOLA LAKE ELEMENTARY | C12: 512 | D12: 62 | E12: 70 | F12: 70 | G12: 68 | H12: 57 | I12: 87 | Q12: 98
A13: 0102 | B13: MIAMI COMMUNITY CHARTER SCHOOL | C13: 516 | D13: 98 | E13: 94 | F13: 94 | G13: 88 | H13: 72 | I13: 70
A14: 0111 | B14: MAYA ANGELOU ELEMENTARY | C14: 695 | D14: 144 | E14: 116 | F14: 99 | G14: 95 | H14: 85 | I14: 95 | Q14: 61
A15: 0121 | B15: AUBURNDALE ELEMENTARY | C15: 828 | D15: 98 | E15: 148 | F15: 134 | G15: 133 | H15: 132 | I15: 132 | Q15: 51
A16: 0122 | B16: DR ROLANDO ESPINOSA K-8 | C16: 1651 | D16: 152 | E16: 170 | F16: 186 | G16: 183 | H16: 203 | I16: 171 | J16: 183 | K16: 190 | L16: 194 | Q16: 19
A17: 0125 | B17: NORMA BUTLER BOSSARD ELEM | C17: 1253 | D17: 197 | E17: 204 | F17: 174 | G17: 227 | H17: 203 | I17: 229 | Q17: 19
A18: 0161 | B18: AVOCADO ELEMENTARY | C18: 580 | D18: 143 | E18: 147 | F18: 149 | G18: 141
A19: 0201 | B19: BANYAN ELEMENTARY | C19: 365 | D19: 52 | E19: 62 | F19: 64 | G19: 36 | H19: 57 | I19: 54 | Q19: 40
A20: 0211 | B20: DR. MANUEL C. BARREIRO ELEM | C20: 829 | D20: 106 | E20: 120 | F20: 124 | G20: 132 | H20: 163 | I20: 165 | Q20: 19
A21: 0231 | B21: AVENTURA WATERWAYS K-8 CENTER | C21: 1882 | D21: 212 | E21: 235 | F21: 210 | G21: 207 | H21: 216 | I21: 198 | J21: 206 | K21: 186 | L21: 212
A22: 0241 | B22: RUTH K BROAD/BAY HARBOR K-8 | C22: 1269 | D22: 130 | E22: 123 | F22: 157 | G22: 147 | H22: 162 | I22: 126 | J22: 164 | K22: 113 | L22: 128 | Q22: 19
A23: 0251 | B23: ETHEL KOGER BECKHAM ELEMENTARY | C23: 713 | D23: 119 | E23: 110 | F23: 108 | G23: 116 | H23: 115 | I23: 106 | Q23: 39
A24: 0261 | B24: BEL-AIRE ELEMENTARY | C24: 467 | D24: 80 | E24: 73 | F24: 74 | G24: 77 | H24: 57 | I24: 68 | Q24: 38
A25: 0271 | B25: BENT TREE ELEMENTARY | C25: 563 | D25: 103 | E25: 71 | F25: 93 | G25: 85 | H25: 89 | I25: 98 | Q25: 24
A26: 0311 | B26: GOULDS ELEMENTARY | C26: 596 | D26: 110 | E26: 122 | F26: 110 | G26: 81 | H26: 95 | I26: 78
A27: 0312 | B27: MATER GARDENS ACADEMY | C27: 614 | D27: 101 | E27: 104 | F27: 101 | G27: 108 | H27: 99 | I27: 101
A28: 0321 | B28: BISCAYNE ELEMENTARY | C28: 671 | D28: 97 | E28: 89 | F28: 89 | G28: 121 | H28: 107 | I28: 107 | Q28: 61
A29: 0331 | B29: CHAPMAN PARTNERSHIP ECC NORTH | C29: 47 | Q29: 47
A30: 0332 | B30: SOMERSET ACADEMY(SILVER PALMS) | C30: 634 | G30: 66 | H30: 46 | I30: 88 | J30: 164 | K30: 147 | L30: 123
A31: 0339 | B31: SOMERSET ACADEMY CHARTER ELEM | C31: 316 | D31: 45 | E31: 60 | F31: 60 | G31: 60 | H31: 48 | I31: 43
A32: 0341 | B32: ARCH CREEK ELEMENTARY SCHOOL | C32: 574 | D32: 75 | E32: 96 | F32: 96 | G32: 100 | H32: 102 | I32: 105
A33: 0342 | B33: PINECREST ACADEMY SOUTH CAMPUS | C33: 746 | D33: 136 | E33: 134 | F33: 116 | G33: 127 | H33: 112 | I33: 121
A34: 0351 | B34: CHAPMAN PARTNERSHIP ECC SOUTH | C34: 91 | Q34: 91
A35: 0361 | B35: BISCAYNE GARDENS ELEMENTARY | C35: 609 | D35: 109 | E35: 89 | F35: 86 | G35: 92 | H35: 85 | I35: 79 | Q35: 69
A36: 0400 | B36: RENAISSANCE ELEMENTARY CHARTER | C36: 914 | D36: 165 | E36: 156 | F36: 151 | G36: 157 | H36: 151 | I36: 134
A37: 0401 | B37: VAN E. BLANTON ELEMENTARY | C37: 552 | D37: 90 | E37: 81 | F37: 90 | G37: 100 | H37: 73 | I37: 79 | Q37: 39
A38: 0410 | B38: ACADEMIR CHARTER SCHOOL WEST | C38: 611 | D38: 95 | E38: 162 | F38: 121 | G38: 113 | H38: 64 | I38: 56
A39: 0441 | B39: BLUE LAKES ELEMENTARY | C39: 468 | D39: 57 | E39: 60 | F39: 59 | G39: 76 | H39: 74 | I39: 66 | Q39: 76
A40: 0451 | B40: BOWMAN ASHE/DOOLIN K-8 ACAD | C40: 1422 | D40: 140 | E40: 113 | F40: 119 | G40: 127 | H40: 154 | I40: 138 | J40: 149 | K40: 205 | L40: 226 | Q40: 51
A41: 0461 | B41: BRENTWOOD ELEMENTARY | C41: 797 | D41: 135 | E41: 116 | F41: 123 | G41: 140 | H41: 104 | I41: 122 | Q41: 57
A42: 0481 | B42: JAMES H. BRIGHT/JW JOHNSON ES | C42: 753 | D42: 92 | E42: 105 | F42: 114 | G42: 128 | H42: 118 | I42: 133 | Q42: 63
A43: 0510 | B43: ARCHIMEDEAN ACADEMY | C43: 563 | D43: 79 | E43: 128 | F43: 104 | G43: 86 | H43: 81 | I43: 85
A44: 0520 | B44: SOMERSET ACADEMY | C44: 573 | D44: 105 | E44: 100 | F44: 79 | G44: 103 | H44: 93 | I44: 93
A45: 0521 | B45: BROADMOOR ELEMENTARY | C45: 454 | D45: 75 | E45: 69 | F45: 70 | G45: 62 | H45: 63 | I45: 67 | Q45: 48
A46: 0561 | B46: W.J. BRYAN ELEMENTARY | C46: 743 | D46: 119 | E46: 127 | F46: 106 | G46: 124 | H46: 112 | I46: 123 | Q46: 32
A47: 0600 | B47: PINECREST PREP ACADEMY | C47: 642 | D47: 76 | E47: 123 | F47: 109 | G47: 121 | H47: 113 | I47: 100
A48: 0641 | B48: BUNCHE PARK ELEMENTARY | C48: 280 | D48: 43 | E48: 48 | F48: 43 | G48: 40 | H48: 35 | I48: 32 | Q48: 39
A49: 0651 | B49: CAMPBELL DRIVE K-8 CENTER | C49: 766 | D49: 111 | E49: 105 | F49: 96 | G49: 99 | H49: 86 | I49: 102 | J49: 63 | K49: 63 | Q49: 41
A50: 0661 | B50: CARIBBEAN ELEMENTARY | C50: 624 | D50: 109 | E50: 108 | F50: 89 | G50: 109 | H50: 77 | I50: 85 | Q50: 47
A51: 0671 | B51: CALUSA ELEMENTARY | C51: 911 | D51: 139 | E51: 158 | F51: 123 | G51: 143 | H51: 162 | I51: 166 | Q51: 20
A52: 0681 | B52: CAROL CITY ELEMENTARY | C52: 651 | D52: 103 | E52: 87 | F52: 118 | G52: 97 | H52: 84 | I52: 94 | Q52: 68
A53: 0721 | B53: GEORGE WASHINGTON CARVER ELEM | C53: 453 | D53: 66 | E53: 79 | F53: 67 | G53: 85 | H53: 80 | I53: 76
A54: 0761 | B54: FIENBERG/FISHER K-8 CENTER | C54: 841 | D54: 70 | E54: 78 | F54: 78 | G54: 86 | H54: 86 | I54: 89 | J54: 108 | K54: 93 | L54: 86 | Q54: 67
A55: 0771 | B55: WILLIAM A. CHAPMAN ELEMENTARY | C55: 512 | D55: 95 | E55: 64 | F55: 72 | G55: 71 | H55: 54 | I55: 49 | Q55: 107
A56: 0801 | B56: CITRUS GROVE ELEMENTARY | C56: 866 | D56: 120 | E56: 127 | F56: 143 | G56: 134 | H56: 153 | I56: 136 | Q56: 53
A57: 0831 | B57: CLAUDE PEPPER ELEMENTARY | C57: 745 | D57: 95 | E57: 120 | F57: 109 | G57: 124 | H57: 113 | I57: 112 | Q57: 72
A58: 0841 | B58: COCONUT GROVE ELEMENTARY | C58: 377 | D58: 75 | E58: 61 | F58: 50 | G58: 49 | H58: 61 | I58: 53 | Q58: 28
A59: 0861 | B59: COLONIAL DRIVE ELEMENTARY | C59: 281 | D59: 41 | E59: 36 | F59: 43 | G59: 47 | H59: 30 | I59: 45 | Q59: 39
A60: 0881 | B60: COMSTOCK ELEMENTARY | C60: 565 | D60: 88 | E60: 88 | F60: 75 | G60: 91 | H60: 89 | I60: 78 | Q60: 56
A61: 0921 | B61: NEVA KING COOPER EDUCATIONAL | C61: 47 | D61: 3 | F61: 4 | P61: 37 | Q61: 3
A62: 0950 | B62: AVENTURA CITY OF EXCELLENCE | C62: 983 | D62: 108 | E62: 108 | F62: 113 | G62: 107 | H62: 120 | I62: 109 | J62: 109 | K62: 106 | L62: 103
A63: 0961 | B63: CORAL GABLES PREPARATORY ACAD | C63: 793 | D63: 86 | E63: 92 | F63: 86 | G63: 96 | H63: 104 | I63: 89 | J63: 70 | K63: 99 | L63: 52 | Q63: 19
A64: 1001 | B64: CORAL PARK ELEMENTARY | C64: 1103 | D64: 163 | E64: 167 | F64: 156 | G64: 168 | H64: 167 | I64: 206 | Q64: 76
A65: 1010 | B65: CHARTER SCHOOL AT WATERSTONE | C65: 905 | E65: 216 | F65: 193 | G65: 155 | H65: 167 | I65: 174
A66: 1014 | B66: ADVANCED LEARNING CHARTER SCH | C66: 448 | D66: 52 | E66: 101 | F66: 99 | G66: 67 | H66: 68 | I66: 61
A67: 1017 | B67: MATER ACADEMY OF INTL STUDIES | C67: 499 | D67: 124 | E67: 111 | F67: 86 | G67: 82 | H67: 45 | I67: 51
A68: 1020 | B68: YOUTH CO-OP CHARTER SCHOOL | C68: 602 | D68: 84 | E68: 71 | F68: 57 | G68: 55 | H68: 42 | I68: 52 | J68: 63 | K68: 90 | L68: 88
A69: 1041 | B69: CORAL REEF ELEMENTARY | C69: 817 | D69: 131 | E69: 102 | F69: 129 | G69: 135 | H69: 156 | I69: 144 | Q69: 20
A70: 1070 | B70: SOUTH FLORIDA AUTISM CHARTER | C70: 16 | D70: 7 | E70: 3 | F70: 6
A71: 1081 | B71: CORAL TERRACE ELEMENTARY | C71: 498 | D71: 70 | E71: 77 | F71: 85 | G71: 80 | H71: 76 | I71: 90 | Q71: 20
A72: 1121 | B72: CORAL WAY K-8 CENTER | C72: 1537 | D72: 155 | E72: 156 | F72: 154 | G72: 172 | H72: 169 | I72: 186 | J72: 170 | K72: 164 | L72: 181 | Q72: 30
A73: 1161 | B73: CRESTVIEW ELEMENTARY | C73: 488 | D73: 81 | E73: 64 | F73: 69 | G73: 89 | H73: 67 | I73: 99 | Q73: 19
A74: 1241 | B74: CUTLER RIDGE ELEMENTARY | C74: 806 | D74: 118 | E74: 98 | F74: 124 | G74: 159 | H74: 152 | I74: 137 | Q74: 18
A75: 1281 | B75: CYPRESS ELEMENTARY | C75: 342 | D75: 45 | E75: 61 | F75: 36 | G75: 53 | H75: 64 | I75: 64 | Q75: 19
A76: 1331 | B76: DEVON AIRE K-8 CENTER | C76: 1533 | D76: 127 | E76: 173 | F76: 155 | G76: 159 | H76: 165 | I76: 174 | J76: 195 | K76: 178 | L76: 189 | Q76: 18
A77: 1361 | B77: FREDERICK DOUGLASS ELEMENTARY | C77: 360 | D77: 43 | E77: 37 | F77: 38 | G77: 70 | H77: 29 | I77: 30 | Q77: 113
A78: 1371 | B78: MARJORY STONEMAN DOUGLAS ELEM | C78: 1044 | D78: 139 | E78: 166 | F78: 157 | G78: 159 | H78: 159 | I78: 206 | Q78: 58
A79: 1401 | B79: CHARLES R. DREW K-8 CENTER | C79: 366 | D79: 53 | E79: 39 | F79: 37 | G79: 38 | H79: 33 | I79: 40 | J79: 44 | Q79: 82
A80: 1441 | B80: PAUL LAURENCE DUNBAR K-8 CTR | C80: 409 | D80: 55 | E80: 64 | F80: 64 | G80: 62 | H80: 55 | I80: 56 | J80: 34 | Q80: 19
A81: 1481 | B81: JOHN G. DUPUIS ELEMENTARY | C81: 718 | D81: 84 | E81: 94 | F81: 115 | G81: 105 | H81: 108 | I81: 129 | Q81: 83
A82: 1521 | B82: AMELIA EARHART ELEMENTARY | C82: 438 | D82: 56 | E82: 53 | F82: 74 | G82: 79 | H82: 63 | I82: 71 | Q82: 42
A83: 1561 | B83: EARLINGTON HEIGHTS ELEMENTARY | C83: 479 | D83: 83 | E83: 73 | F83: 90 | G83: 73 | H83: 74 | I83: 68 | Q83: 18
A84: 1601 | B84: EDISON PARK K-8 CENTER | C84: 383 | D84: 65 | E84: 61 | F84: 65 | G84: 62 | H84: 40 | I84: 46 | J84: 25 | Q84: 19
A85: 1641 | B85: EMERSON ELEMENTARY | C85: 399 | D85: 65 | E85: 68 | F85: 46 | G85: 75 | H85: 53 | I85: 72 | Q85: 20
A86: 1681 | B86: LILLIE C. EVANS K-8 CENTER | C86: 479 | D86: 42 | E86: 48 | F86: 57 | G86: 43 | H86: 64 | I86: 47 | J86: 61 | K86: 37 | L86: 24 | Q86: 56
A87: 1691 | B87: CHRISTINA M. EVE ELEMENTARY | C87: 632 | D87: 102 | E87: 85 | F87: 111 | G87: 93 | H87: 106 | I87: 112 | Q87: 23
A88: 1721 | B88: EVERGLADES K-8 CENTER | C88: 1143 | D88: 94 | E88: 129 | F88: 117 | G88: 100 | H88: 118 | I88: 118 | J88: 135 | K88: 152 | L88: 142 | Q88: 38
A89: 1761 | B89: DAVID FAIRCHILD ELEMENTARY | C89: 624 | D89: 98 | E89: 102 | F89: 103 | G89: 119 | H89: 88 | I89: 85 | Q89: 29
A90: 1801 | B90: FAIRLAWN ELEMENTARY | C90: 681 | D90: 100 | E90: 118 | F90: 105 | G90: 102 | H90: 119 | I90: 117 | Q90: 20
A91: 1811 | B91: DANTE B. FASCELL ELEMENTARY | C91: 533 | D91: 81 | E91: 85 | F91: 85 | G91: 83 | H91: 80 | I91: 99 | Q91: 20
A92: 1841 | B92: FLAGAMI ELEMENTARY | C92: 473 | D92: 61 | E92: 75 | F92: 78 | G92: 70 | H92: 76 | I92: 85 | Q92: 28
A93: 1881 | B93: HENRY M. FLAGLER ELEMENTARY | C93: 834 | D93: 129 | E93: 143 | F93: 124 | G93: 137 | H93: 120 | I93: 132 | Q93: 49
A94: 1921 | B94: FLAMINGO ELEMENTARY | C94: 767 | D94: 93 | E94: 107 | F94: 115 | G94: 149 | H94: 128 | I94: 155 | Q94: 20
A95: 2001 | B95: FLORIDA CITY ELEMENTARY | C95: 751 | D95: 145 | E95: 140 | F95: 121 | G95: 96 | H95: 118 | I95: 91 | Q95: 40
A96: 2003 | B96: BRIDGEPOINT ACADEMY | C96: 306 | D96: 60 | E96: 37 | F96: 75 | G96: 51 | H96: 43 | I96: 40
A97: 2004 | B97: ISAAC ACADEMY K-8 | C97: 25 | F97: 25
A98: 2006 | B98: RICHARD ALLEN LEADERSHIP ACAD | C98: 83 | D98: 11 | E98: 18 | F98: 11 | G98: 16 | H98: 15 | I98: 12
A99: 2007 | B99: SOMERSET ACADEMY ELEMENTARY | C99: 474 | D99: 75 | E99: 77 | F99: 75 | G99: 98 | H99: 99 | I99: 50
A100: 2012 | B100: SOMERSET ARTS ACADEMY | C100: 292 | D100: 43 | E100: 57 | F100: 34 | G100: 50 | H100: 71 | I100: 37
A101: 2013 | B101: BRIDGEPOINT ACAD GREATER MIAMI | C101: 277 | D101: 81 | E101: 87 | F101: 38 | G101: 24 | H101: 26 | I101: 21
A102: 2021 | B102: GLORIA FLOYD ELEMENTARY | C102: 587 | D102: 100 | E102: 101 | F102: 77 | G102: 89 | H102: 94 | I102: 92 | Q102: 34
A103: 2041 | B103: BENJAMIN FRANKLIN K-8 CENTER | C103: 533 | D103: 70 | E103: 62 | F103: 66 | G103: 70 | H103: 63 | I103: 73 | J103: 66 | K103: 44 | Q103: 19
A104: 2060 | B104: GIBSON CHARTER SCHOOL | C104: 261 | D104: 29 | E104: 26 | F104: 30 | G104: 22 | H104: 21 | I104: 29 | J104: 42 | K104: 33 | L104: 29
A105: 2081 | B105: FULFORD ELEMENTARY | C105: 524 | D105: 97 | E105: 90 | F105: 70 | G105: 83 | H105: 87 | I105: 78 | Q105: 19
A106: 2111 | B106: HIALEAH GARDENS ELEMENTARY | C106: 833 | D106: 141 | E106: 121 | F106: 126 | G106: 134 | H106: 133 | I106: 135 | Q106: 43
A107: 2151 | B107: JACK D. GORDON ELEMENTARY | C107: 1103 | D107: 170 | E107: 153 | F107: 193 | G107: 181 | H107: 187 | I107: 199 | Q107: 20
A108: 2161 | B108: GOLDEN GLADES ELEMENTARY | C108: 265 | D108: 44 | E108: 36 | F108: 34 | G108: 47 | H108: 39 | I108: 31 | Q108: 34
A109: 2181 | B109: JOELLA C. GOOD ELEMENTARY | C109: 927 | D109: 152 | E109: 134 | F109: 142 | G109: 157 | H109: 169 | I109: 155 | Q109: 18
A110: 2191 | B110: SPANISH LAKE ELEMENTARY | C110: 1640 | D110: 265 | E110: 245 | F110: 250 | G110: 305 | H110: 274 | I110: 293 | Q110: 8
A111: 2241 | B111: GRATIGNY ELEMENTARY | C111: 668 | D111: 90 | E111: 77 | F111: 71 | G111: 106 | H111: 73 | I111: 90 | J111: 77 | Q111: 84
A112: 2261 | B112: GREENGLADE ELEMENTARY | C112: 485 | D112: 78 | E112: 57 | F112: 65 | G112: 84 | H112: 91 | I112: 78 | Q112: 32
A113: 2281 | B113: GREYNOLDS PARK ELEMENTARY | C113: 785 | D113: 132 | E113: 116 | F113: 101 | G113: 134 | H113: 108 | I113: 112 | Q113: 82
A114: 2321 | B114: GULFSTREAM ELEMENTARY | C114: 562 | D114: 89 | E114: 86 | F114: 85 | G114: 71 | H114: 71 | I114: 64 | Q114: 96
A115: 2331 | B115: CHARLES R. HADLEY ELEMENTARY | C115: 1025 | D115: 167 | E115: 175 | F115: 175 | G115: 144 | H115: 179 | I115: 149 | Q115: 36
A116: 2341 | B116: JOE HALL ELEMENTARY | C116: 567 | D116: 90 | E116: 64 | F116: 94 | G116: 96 | H116: 93 | I116: 110 | Q116: 20
A117: 2351 | B117: ENEIDA MASSAS HARTNER ELEM | C117: 551 | D117: 98 | E117: 99 | F117: 83 | G117: 91 | H117: 80 | I117: 82 | Q117: 18
A118: 2361 | B118: HIALEAH ELEMENTARY | C118: 665 | D118: 75 | E118: 104 | F118: 112 | G118: 110 | H118: 117 | I118: 121 | Q118: 26
A119: 2371 | B119: WEST HIALEAH GARDENS ELEM | C119: 1157 | D119: 182 | E119: 167 | F119: 203 | G119: 211 | H119: 209 | I119: 170 | Q119: 15
A120: 2401 | B120: HIBISCUS ELEMENTARY | C120: 548 | D120: 85 | E120: 70 | F120: 89 | G120: 87 | H120: 72 | I120: 111 | Q120: 34
A121: 2441 | B121: VIRGINIA A BOONE/HIGHLAND OAKS | C121: 734 | D121: 100 | E121: 136 | F121: 112 | G121: 143 | H121: 123 | I121: 86 | Q121: 34
A122: 2501 | B122: HOLMES ELEMENTARY | C122: 593 | D122: 119 | E122: 111 | F122: 92 | G122: 107 | H122: 68 | I122: 78 | Q122: 18
A123: 2511 | B123: ZORA NEALE HURSTON ELEMENTARY | C123: 746 | D123: 100 | E123: 117 | F123: 88 | G123: 131 | H123: 115 | I123: 133 | Q123: 62
A124: 2521 | B124: OLIVER HOOVER ELEMENTARY | C124: 803 | D124: 115 | E124: 108 | F124: 126 | G124: 139 | H124: 134 | I124: 137 | Q124: 44
A125: 2531 | B125: THENA C. CROWDER EARLY CHLDHD | C125: 51 | Q125: 51
A126: 2541 | B126: HOWARD DRIVE ELEMENTARY | C126: 654 | D126: 73 | E126: 97 | F126: 100 | G126: 98 | H126: 135 | I126: 112 | Q126: 39
A127: 2581 | B127: MADIE IVES ELEMENTARY | C127: 720 | D127: 104 | E127: 137 | F127: 108 | G127: 109 | H127: 122 | I127: 117 | Q127: 23
A128: 2641 | B128: KENDALE ELEMENTARY | C128: 486 | D128: 74 | E128: 73 | F128: 76 | G128: 78 | H128: 76 | I128: 78 | Q128: 31
A129: 2651 | B129: KENDALE LAKES ELEMENTARY | C129: 723 | D129: 125 | E129: 110 | F129: 100 | G129: 104 | H129: 105 | I129: 125 | Q129: 54
A130: 2661 | B130: KENSINGTON PARK ELEMENTARY | C130: 1122 | D130: 161 | E130: 158 | F130: 177 | G130: 200 | H130: 189 | I130: 193 | Q130: 44
A131: 2701 | B131: KENWOOD K-8 CENTER | C131: 1052 | D131: 114 | E131: 90 | F131: 99 | G131: 119 | H131: 112 | I131: 100 | J131: 144 | K131: 123 | L131: 127 | Q131: 24
A132: 2741 | B132: KEY BISCAYNE K-8 CENTER | C132: 1313 | D132: 145 | E132: 151 | F132: 140 | G132: 181 | H132: 158 | I132: 157 | J132: 154 | K132: 140 | L132: 68 | Q132: 19
A133: 2781 | B133: KINLOCH PARK ELEMENTARY | C133: 815 | D133: 127 | E133: 118 | F133: 123 | G133: 131 | H133: 132 | I133: 164 | Q133: 20
A134: 2801 | B134: LAKE STEVENS ELEMENTARY | C134: 286 | D134: 48 | E134: 33 | F134: 43 | G134: 40 | H134: 51 | I134: 42 | Q134: 29
A135: 2821 | B135: LAKEVIEW ELEMENTARY | C135: 421 | D135: 64 | E135: 60 | F135: 56 | G135: 64 | H135: 67 | I135: 81 | Q135: 29
A136: 2881 | B136: LEEWOOD K-8 CENTER | C136: 783 | D136: 91 | E136: 78 | F136: 88 | G136: 102 | H136: 107 | I136: 87 | J136: 76 | K136: 67 | L136: 51 | Q136: 36
A137: 2891 | B137: WILLIAM LEHMAN ELEMENTARY | C137: 618 | D137: 96 | E137: 88 | F137: 86 | G137: 111 | H137: 114 | I137: 96 | Q137: 27
A138: 2901 | B138: LEISURE CITY K-8 CENTER | C138: 1119 | D138: 92 | E138: 110 | F138: 124 | G138: 98 | H138: 126 | I138: 123 | J138: 101 | K138: 113 | L138: 131 | Q138: 101
A139: 2911 | B139: LINDA LENTIN K-8 CENTER | C139: 971 | D139: 91 | E139: 80 | F139: 85 | G139: 105 | H139: 98 | I139: 141 | J139: 122 | K139: 104 | L139: 109 | Q139: 36
A140: 2941 | B140: LAURA C. SAUNDERS ELEMENTARY | C140: 711 | D140: 131 | E140: 127 | F140: 116 | G140: 122 | H140: 97 | I140: 101 | Q140: 17
A141: 2981 | B141: LIBERTY CITY ELEMENTARY | C141: 467 | D141: 64 | E141: 61 | F141: 40 | G141: 62 | H141: 57 | I141: 49 | Q141: 134
A142: 3021 | B142: JESSE J MCCRARY JR ELEMENTARY | C142: 560 | D142: 113 | E142: 92 | F142: 75 | G142: 99 | H142: 75 | I142: 67 | Q142: 39
A143: 3024 | B143: FLORIDA INTERNATIONAL EL ACAD | C143: 446 | D143: 79 | E143: 71 | F143: 88 | G143: 87 | H143: 65 | I143: 56
A144: 3025 | B144: ADVANTAGE ACADEMY SANTA FE | C144: 292 | D144: 61 | E144: 87 | F144: 58 | G144: 25 | H144: 35 | I144: 26
A145: 3026 | B145: ADVANTAGE ACAD AT SUMMERVILLE | C145: 105 | D145: 105
A146: 3027 | B146: ADVANTAGE ACAD AT WATERSTONE | C146: 240 | D146: 240
A147: 3029 | B147: DORAL ACADEMY OF TECHNOLOGY | C147: 203 | J147: 70 | K147: 63 | L147: 70
A148: 3030 | B148: DORAL ACADEMY | C148: 932 | D148: 185 | E148: 172 | F148: 143 | G148: 129 | H148: 150 | I148: 153
A149: 3032 | B149: PALM GLADES PREPATORY ACADEMY | C149: 451 | J149: 187 | K149: 133 | L149: 131
A150: 3033 | B150: SOMERSET OAKS ACADEMY | C150: 51 | D150: 40 | E150: 11
A151: 3034 | B151: BRIDGEPOINT ACAD VILLAGE GREEN | C151: 163 | D151: 60 | E151: 47 | F151: 17 | G151: 17 | H151: 10 | I151: 12
A152: 3035 | B152: RAMZ ACADEMY ELEM MIAMI CAMPUS | C152: 148 | D152: 36 | E152: 34 | F152: 19 | G152: 27 | H152: 11 | I152: 21
A153: 3041 | B153: LORAH PARK ELEMENTARY | C153: 422 | D153: 87 | E153: 65 | F153: 78 | G153: 65 | H153: 50 | I153: 57 | Q153: 20
A154: 3051 | B154: TOUSSAINT L'OUVERTURE ELEM | C154: 469 | D154: 70 | E154: 62 | F154: 68 | G154: 83 | H154: 74 | I154: 76 | Q154: 36
A155: 3061 | B155: LUDLAM ELEMENTARY | C155: 400 | D155: 71 | E155: 67 | F155: 71 | G155: 57 | H155: 57 | I155: 61 | Q155: 16
A156: 3100 | B156: MATER ACADEMY EAST CHARTER | C156: 615 | D156: 154 | E156: 121 | F156: 127 | G156: 82 | H156: 66 | I156: 65
A157: 3101 | B157: FRANK C. MARTIN K-8 CENTER | C157: 1170 | D157: 104 | E157: 117 | F157: 121 | G157: 144 | H157: 131 | I157: 129 | J157: 136 | K157: 138 | L157: 130 | Q157: 20
A158: 3111 | B158: WESLEY MATTHEWS ELEMENTARY | C158: 513 | D158: 81 | E158: 72 | F158: 74 | G158: 84 | H158: 78 | I158: 86 | Q158: 38
A159: 3141 | B159: MEADOWLANE ELEMENTARY | C159: 1093 | D159: 132 | E159: 169 | F159: 176 | G159: 184 | H159: 193 | I159: 219 | Q159: 20
A160: 3181 | B160: MELROSE ELEMENTARY | C160: 768 | D160: 80 | E160: 74 | F160: 100 | G160: 96 | H160: 101 | I160: 77 | Q160: 240
A161: 3191 | B161: ADA MERRITT K-8 CENTER | C161: 726 | D161: 71 | E161: 72 | F161: 68 | G161: 78 | H161: 63 | I161: 73 | J161: 99 | K161: 112 | L161: 90
A162: 3241 | B162: MIAMI GARDENS ELEMENTARY | C162: 286 | D162: 39 | E162: 47 | F162: 43 | G162: 40 | H162: 51 | I162: 38 | Q162: 28
A163: 3261 | B163: MIAMI HEIGHTS ELEMENTARY | C163: 1165 | D163: 185 | E163: 167 | F163: 153 | G163: 200 | H163: 164 | I163: 181 | Q163: 115
A164: 3281 | B164: MIAMI LAKES K-8 CENTER | C164: 1384 | D164: 124 | E164: 152 | F164: 127 | G164: 141 | H164: 167 | I164: 152 | J164: 167 | K164: 151 | L164: 183 | Q164: 20
A165: 3301 | B165: MIAMI PARK ELEMENTARY | C165: 470 | D165: 71 | E165: 73 | F165: 61 | G165: 70 | H165: 59 | I165: 59 | Q165: 77
A166: 3341 | B166: MIAMI SHORES ELEMENTARY | C166: 777 | D166: 112 | E166: 150 | F166: 120 | G166: 134 | H166: 117 | I166: 126 | Q166: 18
A167: 3381 | B167: MIAMI SPRINGS ELEMENTARY | C167: 547 | D167: 66 | E167: 74 | F167: 93 | G167: 83 | H167: 100 | I167: 102 | Q167: 29
A168: 3421 | B168: M.A. MILAM K-8 CENTER | C168: 993 | D168: 72 | E168: 87 | F168: 77 | G168: 96 | H168: 104 | I168: 112 | J168: 125 | K168: 153 | L168: 147 | Q168: 20
A169: 3431 | B169: PHYLLIS RUTH MILLER ELEMENTARY | C169: 689 | D169: 113 | E169: 93 | F169: 95 | G169: 129 | H169: 100 | I169: 99 | Q169: 60
A170: 3501 | B170: MORNINGSIDE K-8 ACADEMY | C170: 443 | D170: 62 | E170: 51 | F170: 70 | G170: 59 | H170: 75 | I170: 65 | J170: 27 | Q170: 34
A171: 3541 | B171: ROBERT RUSSA MOTON ELEMENTARY | C171: 330 | D171: 65 | E171: 62 | F171: 47 | G171: 41 | H171: 43 | I171: 33 | Q171: 39
A172: 3581 | B172: MYRTLE GROVE K-8 CENTER | C172: 430 | D172: 64 | E172: 59 | F172: 60 | G172: 49 | H172: 48 | I172: 48 | J172: 43 | Q172: 59
A173: 3600 | B173: DOWNTOWN MIAMI CHARTER SCHOOL | C173: 644 | D173: 109 | E173: 100 | F173: 94 | G173: 79 | H173: 99 | I173: 92 | J173: 71
A174: 3610 | B174: KEYS GATE CHARTER SCHOOL | C174: 2038 | D174: 206 | E174: 223 | F174: 218 | G174: 219 | H174: 176 | I174: 182 | J174: 241 | K174: 291 | L174: 282
A175: 3621 | B175: COCONUT PALM K-8 ACADEMY | C175: 1219 | D175: 146 | E175: 142 | F175: 164 | G175: 163 | H175: 142 | I175: 137 | J175: 135 | K175: 113 | L175: 77
A176: 3661 | B176: NATURAL BRIDGE ELEMENTARY | C176: 611 | D176: 100 | E176: 83 | F176: 105 | G176: 92 | H176: 87 | I176: 72 | Q176: 72
A177: 3701 | B177: NORLAND ELEMENTARY | C177: 622 | D177: 112 | E177: 88 | F177: 83 | G177: 90 | H177: 97 | I177: 109 | Q177: 43
A178: 3741 | B178: NORTH BEACH ELEMENTARY | C178: 1012 | D178: 144 | E178: 176 | F178: 166 | G178: 176 | H178: 148 | I178: 161 | Q178: 41
A179: 3781 | B179: BARBARA HAWKINS ELEMENTARY | C179: 332 | D179: 52 | E179: 55 | F179: 51 | G179: 67 | H179: 43 | I179: 44 | Q179: 20
A180: 3821 | B180: NORTH COUNTY K-8 CENTER | C180: 363 | D180: 51 | E180: 38 | F180: 52 | G180: 48 | H180: 38 | I180: 35 | J180: 45 | K180: 38 | Q180: 18
A181: 3861 | B181: NORTH GLADE ELEMENTARY | C181: 352 | D181: 57 | E181: 47 | F181: 55 | G181: 71 | H181: 48 | I181: 45 | Q181: 29
A182: 3901 | B182: NORTH HIALEAH ELEMENTARY | C182: 596 | D182: 70 | E182: 85 | F182: 103 | G182: 106 | H182: 107 | I182: 107 | Q182: 18
A183: 3941 | B183: NORTH MIAMI ELEMENTARY | C183: 609 | D183: 100 | E183: 93 | F183: 93 | G183: 81 | H183: 94 | I183: 75 | Q183: 73
A184: 3981 | B184: NORTH TWIN LAKES ELEMENTARY | C184: 580 | D184: 71 | E184: 88 | F184: 79 | G184: 101 | H184: 103 | I184: 81 | Q184: 57
A185: 4000 | B185: MIAMI CHILDREN'S MUSEUM | C185: 302 | D185: 60 | E185: 54 | F185: 52 | G185: 53 | H185: 37 | I185: 46
A186: 4001 | B186: NORWOOD ELEMENTARY | C186: 473 | D186: 71 | E186: 75 | F186: 84 | G186: 74 | H186: 61 | I186: 66 | Q186: 42
A187: 4012 | B187: SOMERSET ACAD AT SILVER PALMS | C187: 612 | D187: 141 | E187: 121 | F187: 126 | G187: 68 | H187: 88 | I187: 68
A188: 4021 | B188: OAK GROVE ELEMENTARY | C188: 690 | D188: 85 | E188: 104 | F188: 82 | G188: 96 | H188: 100 | I188: 107 | J188: 60 | Q188: 56
A189: 4031 | B189: GATEWAY ENVIRONMENTAL K-8 | C189: 1580 | D189: 222 | E189: 246 | F189: 204 | G189: 223 | H189: 204 | I189: 167 | J189: 150 | K189: 128 | Q189: 36
A190: 4061 | B190: OJUS ELEMENTARY | C190: 904 | D190: 152 | E190: 148 | F190: 143 | G190: 156 | H190: 160 | I190: 145
A191: 4070 | B191: EARLY BEGINNINGS ACADEMY-CIVIC | C191: 126 | D191: 26 | E191: 10 | F191: 3 | Q191: 87
A192: 4071 | B192: OLINDA ELEMENTARY | C192: 342 | D192: 48 | E192: 45 | F192: 62 | G192: 56 | H192: 47 | I192: 47 | Q192: 37
A193: 4081 | B193: PRIMARY LEARNING CENTER | C193: 209 | D193: 54 | E193: 50 | F193: 35 | G193: 18 | Q193: 52
A194: 4091 | B194: OLYMPIA HEIGHTS ELEMENTARY | C194: 504 | D194: 73 | E194: 82 | F194: 88 | G194: 77 | H194: 87 | I194: 78 | Q194: 19
A195: 4121 | B195: DR. ROBERT B. INGRAM EL | C195: 389 | D195: 70 | E195: 59 | F195: 71 | G195: 67 | H195: 56 | I195: 46 | Q195: 20
A196: 4171 | B196: ORCHARD VILLA ELEMENTARY | C196: 465 | D196: 81 | E196: 79 | F196: 57 | G196: 76 | H196: 60 | I196: 52 | Q196: 60
A197: 4221 | B197: PALMETTO ELEMENTARY | C197: 616 | D197: 74 | E197: 104 | F197: 80 | G197: 113 | H197: 99 | I197: 101 | Q197: 45
A198: 4241 | B198: PALM LAKES ELEMENTARY | C198: 876 | D198: 96 | E198: 140 | F198: 126 | G198: 157 | H198: 137 | I198: 171 | Q198: 49
A199: 4261 | B199: PALM SPRINGS ELEMENTARY | C199: 724 | D199: 93 | E199: 116 | F199: 111 | G199: 121 | H199: 125 | I199: 119 | Q199: 39
A200: 4281 | B200: PALM SPRINGS NORTH ELEMENTARY | C200: 1016 | D200: 167 | E200: 141 | F200: 173 | G200: 160 | H200: 187 | I200: 160 | Q200: 28
... 273 more rows

Sheet MEM_RL1 (hidden)
A1: 1 | B1: 2 | C1: 3 | D1: 4 | E1: 5 | F1: 6 | G1: 7 | H1: 8 | I1: 9 | J1: 10 | K1: 11
A2: S_SCHOOL_NUM | B2: S_SCHL_NAME | C2: Total Of STUDENT_ID | D2: 03 | E2: 04 | F2: 05 | G2: 06 | H2: 07 | I2: 08 | J2: 09 | K2: 10
A3: 0041 | B3: AIR BASE ELEMENTARY | C3: 6 | D3: 2 | E3: 1 | F3: 3
A4: 0070 | B4: CORAL REEF MONTESSORI ACAD CH | C4: 4 | D4: 2 | E4: 1 | F4: 1
A5: 0071 | B5: EUGENIA B. THOMAS K-8 CENTER | C5: 79 | D5: 9 | E5: 17 | F5: 9 | G5: 15 | H5: 13 | I5: 16
A6: 0072 | B6: SUMMERVILLE CHARTER SCHOOL | C6: 22 | D6: 2 | E6: 8 | F6: 12
A7: 0073 | B7: MANDARIN LAKES K-8 CENTER | C7: 180 | D7: 31 | E7: 23 | F7: 24 | G7: 41 | H7: 22 | I7: 39
A8: 0081 | B8: LENORA B. SMITH ELEMENTARY | C8: 48 | D8: 8 | E8: 18 | F8: 22
A9: 0091 | B9: BOB GRAHAM EDUCATION CTR | C9: 102 | D9: 5 | E9: 10 | F9: 17 | G9: 23 | H9: 25 | I9: 22
A10: 0092 | B10: NORMAN S. EDELCUP/SUNNY ISLES | C10: 78 | D10: 2 | E10: 17 | F10: 11 | G10: 10 | H10: 13 | I10: 25
A11: 0100 | B11: MATER ACADEMY | C11: 17 | D11: 8 | E11: 3 | F11: 6
A12: 0101 | B12: ARCOLA LAKE ELEMENTARY | C12: 46 | D12: 14 | E12: 16 | F12: 16
A13: 0102 | B13: MIAMI COMMUNITY CHARTER SCHOOL | C13: 40 | D13: 6 | E13: 19 | F13: 15
A14: 0111 | B14: MAYA ANGELOU ELEMENTARY | C14: 54 | D14: 16 | E14: 19 | F14: 19
A15: 0121 | B15: AUBURNDALE ELEMENTARY | C15: 55 | D15: 4 | E15: 19 | F15: 32
A16: 0122 | B16: DR ROLANDO ESPINOSA K-8 | C16: 114 | D16: 7 | E16: 21 | F16: 15 | G16: 30 | H16: 22 | I16: 19
A17: 0125 | B17: NORMA BUTLER BOSSARD ELEM | C17: 42 | D17: 10 | E17: 13 | F17: 19
A18: 0161 | B18: AVOCADO ELEMENTARY | C18: 22 | D18: 22
A19: 0201 | B19: BANYAN ELEMENTARY | C19: 5 | E19: 1 | F19: 4
A20: 0211 | B20: DR. MANUEL C. BARREIRO ELEM | C20: 35 | D20: 5 | E20: 17 | F20: 13
A21: 0231 | B21: AVENTURA WATERWAYS K-8 CENTER | C21: 110 | D21: 18 | E21: 15 | F21: 25 | G21: 15 | H21: 20 | I21: 17
A22: 0241 | B22: RUTH K BROAD/BAY HARBOR K-8 | C22: 57 | D22: 5 | E22: 8 | F22: 11 | G22: 14 | H22: 7 | I22: 12
A23: 0251 | B23: ETHEL KOGER BECKHAM ELEMENTARY | C23: 10 | D23: 1 | E23: 6 | F23: 3
A24: 0261 | B24: BEL-AIRE ELEMENTARY | C24: 42 | D24: 8 | E24: 13 | F24: 21
A25: 0271 | B25: BENT TREE ELEMENTARY | C25: 21 | D25: 4 | E25: 7 | F25: 10
A26: 0311 | B26: GOULDS ELEMENTARY | C26: 44 | D26: 10 | E26: 20 | F26: 14
A27: 0312 | B27: MATER GARDENS ACADEMY | C27: 5 | D27: 1 | E27: 4
A28: 0321 | B28: BISCAYNE ELEMENTARY | C28: 55 | D28: 15 | E28: 19 | F28: 21
A29: 0332 | B29: SOMERSET ACADEMY(SILVER PALMS) | C29: 56 | D29: 2 | E29: 5 | F29: 4 | G29: 14 | H29: 18 | I29: 13
A30: 0339 | B30: SOMERSET ACADEMY CHARTER ELEM | C30: 11 | D30: 1 | E30: 4 | F30: 6
A31: 0341 | B31: ARCH CREEK ELEMENTARY SCHOOL | C31: 42 | D31: 7 | E31: 23 | F31: 12
A32: 0342 | B32: PINECREST ACADEMY SOUTH CAMPUS | C32: 13 | D32: 2 | E32: 7 | F32: 4
A33: 0361 | B33: BISCAYNE GARDENS ELEMENTARY | C33: 46 | D33: 10 | E33: 16 | F33: 20
A34: 0400 | B34: RENAISSANCE ELEMENTARY CHARTER | C34: 15 | D34: 1 | E34: 13 | F34: 1
A35: 0401 | B35: VAN E. BLANTON ELEMENTARY | C35: 46 | D35: 18 | E35: 9 | F35: 19
A36: 0410 | B36: ACADEMIR CHARTER SCHOOL WEST | C36: 6 | E36: 4 | F36: 2
A37: 0441 | B37: BLUE LAKES ELEMENTARY | C37: 18 | D37: 1 | E37: 11 | F37: 6
A38: 0451 | B38: BOWMAN ASHE/DOOLIN K-8 ACAD | C38: 172 | D38: 3 | E38: 16 | F38: 10 | G38: 37 | H38: 53 | I38: 53
A39: 0461 | B39: BRENTWOOD ELEMENTARY | C39: 59 | D39: 18 | E39: 19 | F39: 22
A40: 0481 | B40: JAMES H. BRIGHT/JW JOHNSON ES | C40: 74 | D40: 15 | E40: 21 | F40: 38
A41: 0510 | B41: ARCHIMEDEAN ACADEMY | C41: 3 | E41: 2 | F41: 1
A42: 0520 | B42: SOMERSET ACADEMY | C42: 7 | D42: 1 | E42: 4 | F42: 2
A43: 0521 | B43: BROADMOOR ELEMENTARY | C43: 40 | D43: 5 | E43: 17 | F43: 18
A44: 0561 | B44: W.J. BRYAN ELEMENTARY | C44: 46 | D44: 15 | E44: 15 | F44: 16
A45: 0600 | B45: PINECREST PREP ACADEMY | C45: 6 | E45: 5 | F45: 1
A46: 0641 | B46: BUNCHE PARK ELEMENTARY | C46: 25 | D46: 4 | E46: 10 | F46: 11
A47: 0651 | B47: CAMPBELL DRIVE K-8 CENTER | C47: 85 | D47: 14 | E47: 18 | F47: 21 | G47: 15 | H47: 17
A48: 0661 | B48: CARIBBEAN ELEMENTARY | C48: 45 | D48: 12 | E48: 16 | F48: 17
A49: 0671 | B49: CALUSA ELEMENTARY | C49: 20 | D49: 4 | E49: 7 | F49: 9
A50: 0681 | B50: CAROL CITY ELEMENTARY | C50: 63 | D50: 11 | E50: 30 | F50: 22
A51: 0721 | B51: GEORGE WASHINGTON CARVER ELEM | C51: 39 | D51: 7 | E51: 13 | F51: 19
A52: 0761 | B52: FIENBERG/FISHER K-8 CENTER | C52: 95 | D52: 6 | E52: 18 | F52: 17 | G52: 24 | H52: 17 | I52: 13
A53: 0771 | B53: WILLIAM A. CHAPMAN ELEMENTARY | C53: 27 | D53: 10 | E53: 6 | F53: 11
A54: 0801 | B54: CITRUS GROVE ELEMENTARY | C54: 98 | D54: 17 | E54: 40 | F54: 41
A55: 0831 | B55: CLAUDE PEPPER ELEMENTARY | C55: 30 | D55: 4 | E55: 16 | F55: 10
A56: 0841 | B56: COCONUT GROVE ELEMENTARY | C56: 12 | E56: 10 | F56: 2
A57: 0861 | B57: COLONIAL DRIVE ELEMENTARY | C57: 15 | D57: 4 | E57: 5 | F57: 6
A58: 0881 | B58: COMSTOCK ELEMENTARY | C58: 45 | D58: 9 | E58: 20 | F58: 16
A59: 0950 | B59: AVENTURA CITY OF EXCELLENCE | C59: 6 | D59: 1 | G59: 1 | H59: 2 | I59: 2
A60: 0961 | B60: CORAL GABLES PREPARATORY ACAD | C60: 19 | E60: 4 | F60: 3 | G60: 6 | H60: 5 | I60: 1
A61: 1001 | B61: CORAL PARK ELEMENTARY | C61: 28 | E61: 12 | F61: 16
A62: 1010 | B62: CHARTER SCHOOL AT WATERSTONE | C62: 22 | E62: 12 | F62: 10
A63: 1014 | B63: ADVANCED LEARNING CHARTER SCH | C63: 26 | D63: 5 | E63: 16 | F63: 5
A64: 1017 | B64: MATER ACADEMY OF INTL STUDIES | C64: 19 | D64: 3 | E64: 7 | F64: 9
A65: 1020 | B65: YOUTH CO-OP CHARTER SCHOOL | C65: 33 | D65: 4 | E65: 3 | F65: 4 | G65: 7 | H65: 10 | I65: 5
A66: 1041 | B66: CORAL REEF ELEMENTARY | C66: 25 | D66: 3 | E66: 9 | F66: 13
A67: 1081 | B67: CORAL TERRACE ELEMENTARY | C67: 44 | D67: 6 | E67: 16 | F67: 22
A68: 1121 | B68: CORAL WAY K-8 CENTER | C68: 146 | D68: 7 | E68: 29 | F68: 30 | G68: 35 | H68: 28 | I68: 17
A69: 1161 | B69: CRESTVIEW ELEMENTARY | C69: 43 | D69: 7 | E69: 15 | F69: 21
A70: 1241 | B70: CUTLER RIDGE ELEMENTARY | C70: 43 | D70: 5 | E70: 18 | F70: 20
A71: 1281 | B71: CYPRESS ELEMENTARY | C71: 9 | E71: 5 | F71: 4
A72: 1331 | B72: DEVON AIRE K-8 CENTER | C72: 64 | D72: 2 | E72: 7 | F72: 6 | G72: 17 | H72: 20 | I72: 12
A73: 1361 | B73: FREDERICK DOUGLASS ELEMENTARY | C73: 35 | D73: 12 | E73: 11 | F73: 12
A74: 1371 | B74: MARJORY STONEMAN DOUGLAS ELEM | C74: 62 | D74: 16 | E74: 25 | F74: 21
A75: 1401 | B75: CHARLES R. DREW K-8 CENTER | C75: 36 | D75: 4 | E75: 4 | F75: 19 | G75: 9
A76: 1441 | B76: PAUL LAURENCE DUNBAR K-8 CTR | C76: 57 | D76: 7 | E76: 12 | F76: 25 | G76: 13
A77: 1481 | B77: JOHN G. DUPUIS ELEMENTARY | C77: 34 | D77: 2 | E77: 14 | F77: 18
A78: 1521 | B78: AMELIA EARHART ELEMENTARY | C78: 36 | D78: 13 | E78: 11 | F78: 12
A79: 1561 | B79: EARLINGTON HEIGHTS ELEMENTARY | C79: 52 | D79: 3 | E79: 25 | F79: 24
A80: 1601 | B80: EDISON PARK K-8 CENTER | C80: 42 | D80: 10 | E80: 10 | F80: 13 | G80: 9
A81: 1641 | B81: EMERSON ELEMENTARY | C81: 18 | D81: 6 | E81: 5 | F81: 7
A82: 1681 | B82: LILLIE C. EVANS K-8 CENTER | C82: 62 | D82: 5 | E82: 24 | F82: 7 | G82: 16 | H82: 7 | I82: 3
A83: 1691 | B83: CHRISTINA M. EVE ELEMENTARY | C83: 12 | D83: 1 | E83: 5 | F83: 6
A84: 1721 | B84: EVERGLADES K-8 CENTER | C84: 82 | D84: 3 | E84: 10 | F84: 8 | G84: 9 | H84: 30 | I84: 22
A85: 1761 | B85: DAVID FAIRCHILD ELEMENTARY | C85: 10 | D85: 1 | E85: 2 | F85: 7
A86: 1801 | B86: FAIRLAWN ELEMENTARY | C86: 39 | D86: 2 | E86: 17 | F86: 20
A87: 1811 | B87: DANTE B. FASCELL ELEMENTARY | C87: 16 | E87: 9 | F87: 7
A88: 1841 | B88: FLAGAMI ELEMENTARY | C88: 38 | D88: 2 | E88: 15 | F88: 21
A89: 1881 | B89: HENRY M. FLAGLER ELEMENTARY | C89: 59 | D89: 11 | E89: 27 | F89: 21
A90: 1921 | B90: FLAMINGO ELEMENTARY | C90: 87 | D90: 20 | E90: 33 | F90: 34
A91: 2001 | B91: FLORIDA CITY ELEMENTARY | C91: 76 | D91: 9 | E91: 36 | F91: 31
A92: 2003 | B92: BRIDGEPOINT ACADEMY | C92: 6 | D92: 1 | E92: 3 | F92: 2
A93: 2006 | B93: RICHARD ALLEN LEADERSHIP ACAD | C93: 5 | E93: 4 | F93: 1
A94: 2007 | B94: SOMERSET ACADEMY ELEMENTARY | C94: 3 | E94: 1 | F94: 2
A95: 2012 | B95: SOMERSET ARTS ACADEMY | C95: 12 | D95: 1 | E95: 9 | F95: 2
A96: 2013 | B96: BRIDGEPOINT ACAD GREATER MIAMI | C96: 9 | E96: 4 | F96: 5
A97: 2021 | B97: GLORIA FLOYD ELEMENTARY | C97: 24 | D97: 8 | E97: 6 | F97: 10
A98: 2041 | B98: BENJAMIN FRANKLIN K-8 CENTER | C98: 63 | D98: 5 | E98: 11 | F98: 15 | G98: 20 | H98: 12
A99: 2060 | B99: GIBSON CHARTER SCHOOL | C99: 49 | D99: 3 | E99: 6 | F99: 10 | G99: 13 | H99: 7 | I99: 10
A100: 2081 | B100: FULFORD ELEMENTARY | C100: 53 | D100: 12 | E100: 21 | F100: 20
A101: 2111 | B101: HIALEAH GARDENS ELEMENTARY | C101: 34 | D101: 8 | E101: 19 | F101: 7
A102: 2151 | B102: JACK D. GORDON ELEMENTARY | C102: 41 | D102: 8 | E102: 22 | F102: 11
A103: 2161 | B103: GOLDEN GLADES ELEMENTARY | C103: 28 | D103: 6 | E103: 13 | F103: 9
A104: 2181 | B104: JOELLA C. GOOD ELEMENTARY | C104: 60 | D104: 9 | E104: 23 | F104: 28
A105: 2191 | B105: SPANISH LAKE ELEMENTARY | C105: 65 | D105: 9 | E105: 25 | F105: 31
A106: 2241 | B106: GRATIGNY ELEMENTARY | C106: 78 | D106: 14 | E106: 17 | F106: 26 | G106: 21
A107: 2261 | B107: GREENGLADE ELEMENTARY | C107: 18 | E107: 11 | F107: 7
A108: 2281 | B108: GREYNOLDS PARK ELEMENTARY | C108: 68 | D108: 14 | E108: 24 | F108: 30
A109: 2321 | B109: GULFSTREAM ELEMENTARY | C109: 27 | D109: 6 | E109: 7 | F109: 14
A110: 2331 | B110: CHARLES R. HADLEY ELEMENTARY | C110: 32 | D110: 3 | E110: 14 | F110: 15
A111: 2341 | B111: JOE HALL ELEMENTARY | C111: 33 | D111: 4 | E111: 13 | F111: 16
A112: 2351 | B112: ENEIDA MASSAS HARTNER ELEM | C112: 40 | D112: 12 | E112: 15 | F112: 13
A113: 2361 | B113: HIALEAH ELEMENTARY | C113: 52 | D113: 6 | E113: 20 | F113: 26
A114: 2371 | B114: WEST HIALEAH GARDENS ELEM | C114: 58 | D114: 12 | E114: 22 | F114: 24
A115: 2401 | B115: HIBISCUS ELEMENTARY | C115: 34 | D115: 8 | E115: 10 | F115: 16
A116: 2441 | B116: VIRGINIA A BOONE/HIGHLAND OAKS | C116: 20 | D116: 1 | E116: 12 | F116: 7
A117: 2501 | B117: HOLMES ELEMENTARY | C117: 67 | D117: 22 | E117: 19 | F117: 26
A118: 2511 | B118: ZORA NEALE HURSTON ELEMENTARY | C118: 34 | D118: 4 | E118: 19 | F118: 11
A119: 2521 | B119: OLIVER HOOVER ELEMENTARY | C119: 26 | D119: 4 | E119: 12 | F119: 10
A120: 2541 | B120: HOWARD DRIVE ELEMENTARY | C120: 27 | D120: 3 | E120: 14 | F120: 10
A121: 2581 | B121: MADIE IVES ELEMENTARY | C121: 41 | D121: 11 | E121: 12 | F121: 18
A122: 2641 | B122: KENDALE ELEMENTARY | C122: 8 | D122: 1 | E122: 4 | F122: 3
A123: 2651 | B123: KENDALE LAKES ELEMENTARY | C123: 21 | D123: 6 | E123: 11 | F123: 4
A124: 2661 | B124: KENSINGTON PARK ELEMENTARY | C124: 118 | D124: 28 | E124: 47 | F124: 43
A125: 2701 | B125: KENWOOD K-8 CENTER | C125: 68 | D125: 7 | E125: 7 | F125: 11 | G125: 20 | H125: 8 | I125: 15
A126: 2741 | B126: KEY BISCAYNE K-8 CENTER | C126: 31 | D126: 3 | E126: 6 | F126: 5 | G126: 6 | H126: 5 | I126: 6
A127: 2781 | B127: KINLOCH PARK ELEMENTARY | C127: 73 | D127: 11 | E127: 18 | F127: 44
A128: 2801 | B128: LAKE STEVENS ELEMENTARY | C128: 24 | D128: 4 | E128: 10 | F128: 10
A129: 2821 | B129: LAKEVIEW ELEMENTARY | C129: 46 | D129: 12 | E129: 12 | F129: 22
A130: 2881 | B130: LEEWOOD K-8 CENTER | C130: 22 | E130: 5 | F130: 6 | G130: 9 | H130: 2
A131: 2891 | B131: WILLIAM LEHMAN ELEMENTARY | C131: 16 | D131: 2 | E131: 10 | F131: 4
A132: 2901 | B132: LEISURE CITY K-8 CENTER | C132: 170 | D132: 17 | E132: 27 | F132: 31 | G132: 28 | H132: 37 | I132: 30
A133: 2911 | B133: LINDA LENTIN K-8 CENTER | C133: 145 | D133: 12 | E133: 19 | F133: 42 | G133: 26 | H133: 23 | I133: 23
A134: 2941 | B134: LAURA C. SAUNDERS ELEMENTARY | C134: 77 | D134: 23 | E134: 25 | F134: 29
A135: 2981 | B135: LIBERTY CITY ELEMENTARY | C135: 46 | D135: 4 | E135: 25 | F135: 17
A136: 3021 | B136: JESSE J MCCRARY JR ELEMENTARY | C136: 55 | D136: 19 | E136: 21 | F136: 15
A137: 3024 | B137: FLORIDA INTERNATIONAL EL ACAD | C137: 58 | D137: 18 | E137: 21 | F137: 19
A138: 3025 | B138: ADVANTAGE ACADEMY SANTA FE | C138: 4 | E138: 4
A139: 3029 | B139: DORAL ACADEMY OF TECHNOLOGY | C139: 2 | G139: 2
A140: 3030 | B140: DORAL ACADEMY | C140: 13 | D140: 1 | E140: 9 | F140: 3
A141: 3032 | B141: PALM GLADES PREPATORY ACADEMY | C141: 82 | G141: 33 | H141: 25 | I141: 24
A142: 3034 | B142: BRIDGEPOINT ACAD VILLAGE GREEN | C142: 3 | E142: 2 | F142: 1
A143: 3035 | B143: RAMZ ACADEMY ELEM MIAMI CAMPUS | C143: 3 | D143: 1 | E143: 1 | F143: 1
A144: 3041 | B144: LORAH PARK ELEMENTARY | C144: 29 | D144: 10 | E144: 8 | F144: 11
A145: 3051 | B145: TOUSSAINT L'OUVERTURE ELEM | C145: 52 | D145: 14 | E145: 23 | F145: 15
A146: 3061 | B146: LUDLAM ELEMENTARY | C146: 13 | E146: 3 | F146: 10
A147: 3100 | B147: MATER ACADEMY EAST CHARTER | C147: 6 | D147: 4 | E147: 1 | F147: 1
A148: 3101 | B148: FRANK C. MARTIN K-8 CENTER | C148: 14 | E148: 3 | F148: 3 | G148: 3 | H148: 1 | I148: 4
A149: 3111 | B149: WESLEY MATTHEWS ELEMENTARY | C149: 15 | E149: 6 | F149: 9
A150: 3141 | B150: MEADOWLANE ELEMENTARY | C150: 89 | D150: 12 | E150: 25 | F150: 52
A151: 3181 | B151: MELROSE ELEMENTARY | C151: 39 | D151: 5 | E151: 16 | F151: 18
A152: 3191 | B152: ADA MERRITT K-8 CENTER | C152: 7 | E152: 2 | F152: 1 | G152: 2 | H152: 2
A153: 3241 | B153: MIAMI GARDENS ELEMENTARY | C153: 28 | D153: 6 | E153: 8 | F153: 14
A154: 3261 | B154: MIAMI HEIGHTS ELEMENTARY | C154: 58 | D154: 15 | E154: 26 | F154: 17
A155: 3281 | B155: MIAMI LAKES K-8 CENTER | C155: 84 | D155: 5 | E155: 12 | F155: 15 | G155: 16 | H155: 17 | I155: 19
A156: 3301 | B156: MIAMI PARK ELEMENTARY | C156: 54 | D156: 15 | E156: 19 | F156: 20
A157: 3341 | B157: MIAMI SHORES ELEMENTARY | C157: 32 | D157: 15 | E157: 7 | F157: 10
A158: 3381 | B158: MIAMI SPRINGS ELEMENTARY | C158: 26 | D158: 4 | E158: 8 | F158: 14
A159: 3421 | B159: M.A. MILAM K-8 CENTER | C159: 123 | D159: 9 | E159: 18 | F159: 17 | G159: 18 | H159: 30 | I159: 31
A160: 3431 | B160: PHYLLIS RUTH MILLER ELEMENTARY | C160: 38 | D160: 5 | E160: 16 | F160: 17
A161: 3501 | B161: MORNINGSIDE K-8 ACADEMY | C161: 32 | D161: 7 | E161: 8 | F161: 12 | G161: 5
A162: 3541 | B162: ROBERT RUSSA MOTON ELEMENTARY | C162: 23 | D162: 8 | E162: 9 | F162: 6
A163: 3581 | B163: MYRTLE GROVE K-8 CENTER | C163: 47 | D163: 8 | E163: 13 | F163: 17 | G163: 9
A164: 3600 | B164: DOWNTOWN MIAMI CHARTER SCHOOL | C164: 34 | D164: 3 | E164: 6 | F164: 12 | G164: 13
A165: 3610 | B165: KEYS GATE CHARTER SCHOOL | C165: 189 | D165: 13 | E165: 19 | F165: 23 | G165: 27 | H165: 60 | I165: 47
A166: 3621 | B166: COCONUT PALM K-8 ACADEMY | C166: 153 | D166: 18 | E166: 30 | F166: 29 | G166: 33 | H166: 24 | I166: 19
A167: 3661 | B167: NATURAL BRIDGE ELEMENTARY | C167: 55 | D167: 8 | E167: 24 | F167: 23
A168: 3701 | B168: NORLAND ELEMENTARY | C168: 37 | D168: 7 | E168: 9 | F168: 21
A169: 3741 | B169: NORTH BEACH ELEMENTARY | C169: 10 | D169: 2 | E169: 3 | F169: 5
A170: 3781 | B170: BARBARA HAWKINS ELEMENTARY | C170: 23 | D170: 6 | E170: 4 | F170: 13
A171: 3821 | B171: NORTH COUNTY K-8 CENTER | C171: 45 | D171: 8 | E171: 6 | F171: 9 | G171: 13 | H171: 9
A172: 3861 | B172: NORTH GLADE ELEMENTARY | C172: 31 | D172: 5 | E172: 16 | F172: 10
A173: 3901 | B173: NORTH HIALEAH ELEMENTARY | C173: 46 | D173: 13 | E173: 22 | F173: 11
A174: 3941 | B174: NORTH MIAMI ELEMENTARY | C174: 60 | D174: 15 | E174: 30 | F174: 15
A175: 3981 | B175: NORTH TWIN LAKES ELEMENTARY | C175: 31 | D175: 6 | E175: 14 | F175: 11
A176: 4000 | B176: MIAMI CHILDREN'S MUSEUM | C176: 4 | F176: 4
A177: 4001 | B177: NORWOOD ELEMENTARY | C177: 23 | D177: 6 | E177: 9 | F177: 8
A178: 4012 | B178: SOMERSET ACAD AT SILVER PALMS | C178: 12 | D178: 1 | E178: 7 | F178: 4
A179: 4021 | B179: OAK GROVE ELEMENTARY | C179: 74 | D179: 11 | E179: 19 | F179: 25 | G179: 19
A180: 4031 | B180: GATEWAY ENVIRONMENTAL K-8 | C180: 141 | D180: 20 | E180: 36 | F180: 26 | G180: 30 | H180: 29
A181: 4061 | B181: OJUS ELEMENTARY | C181: 31 | D181: 8 | E181: 9 | F181: 14
A182: 4071 | B182: OLINDA ELEMENTARY | C182: 29 | D182: 6 | E182: 16 | F182: 7
A183: 4091 | B183: OLYMPIA HEIGHTS ELEMENTARY | C183: 18 | D183: 3 | E183: 9 | F183: 6
A184: 4121 | B184: DR. ROBERT B. INGRAM EL | C184: 28 | D184: 10 | E184: 11 | F184: 7
A185: 4171 | B185: ORCHARD VILLA ELEMENTARY | C185: 39 | D185: 5 | E185: 18 | F185: 16
A186: 4221 | B186: PALMETTO ELEMENTARY | C186: 15 | D186: 3 | E186: 7 | F186: 5
A187: 4241 | B187: PALM LAKES ELEMENTARY | C187: 64 | D187: 10 | E187: 22 | F187: 32
A188: 4261 | B188: PALM SPRINGS ELEMENTARY | C188: 53 | D188: 11 | E188: 26 | F188: 16
A189: 4281 | B189: PALM SPRINGS NORTH ELEMENTARY | C189: 37 | D189: 3 | E189: 18 | F189: 16
A190: 4301 | B190: PARKVIEW ELEMENTARY | C190: 21 | D190: 9 | E190: 5 | F190: 7
A191: 4341 | B191: PARKWAY ELEMENTARY | C191: 17 | D191: 2 | E191: 8 | F191: 7
A192: 4381 | B192: DR HENRY E PERRINE ACADEMY | C192: 33 | E192: 21 | F192: 12
A193: 4391 | B193: IRVING & BEATRICE PESKOE K-8 | C193: 81 | D193: 14 | E193: 17 | F193: 17 | G193: 19 | H193: 14
A194: 4401 | B194: KELSEY L. PHARR ELEMENTARY | C194: 34 | D194: 10 | E194: 13 | F194: 11
A195: 4421 | B195: PINECREST ELEMENTARY | C195: 16 | D195: 3 | E195: 8 | F195: 5
A196: 4441 | B196: PINE LAKE ELEMENTARY | C196: 49 | D196: 15 | E196: 16 | F196: 18
A197: 4461 | B197: PINE VILLA ELEMENTARY | C197: 30 | D197: 4 | E197: 18 | F197: 8
A198: 4491 | B198: HENRY E.S. REEVES ELEMENTARY | C198: 76 | D198: 23 | E198: 38 | F198: 15
A199: 4501 | B199: POINCIANA PARK ELEMENTARY | C199: 50 | D199: 16 | E199: 19 | F199: 15
A200: 4511 | B200: DR GILBERT L. PORTER ELEM | C200: 37 | D200: 5 | E200: 18 | F200: 14
... 245 more rows

Sheet MEM_RL2 (hidden)
A1: 1 | B1: 2 | C1: 3 | D1: 4 | E1: 5 | F1: 6 | G1: 7 | H1: 8 | I1: 9 | J1: 10 | K1: 11
A2: S_SCHOOL_NUM | B2: S_SCHL_NAME | C2: Total Of STUDENT_ID | D2: 03 | E2: 04 | F2: 05 | G2: 06 | H2: 07 | I2: 08 | J2: 09 | K2: 10
A3: 0041 | B3: AIR BASE ELEMENTARY | C3: 33 | E3: 17 | F3: 16
A4: 0070 | B4: CORAL REEF MONTESSORI ACAD CH | C4: 47 | E4: 11 | F4: 10 | G4: 9 | H4: 8 | I4: 9
A5: 0071 | B5: EUGENIA B. THOMAS K-8 CENTER | C5: 166 | E5: 44 | F5: 25 | G5: 30 | H5: 30 | I5: 37
A6: 0072 | B6: SUMMERVILLE CHARTER SCHOOL | C6: 53 | E6: 24 | F6: 29
A7: 0073 | B7: MANDARIN LAKES K-8 CENTER | C7: 176 | E7: 56 | F7: 44 | G7: 32 | H7: 20 | I7: 24
A8: 0081 | B8: LENORA B. SMITH ELEMENTARY | C8: 41 | E8: 26 | F8: 15
A9: 0091 | B9: BOB GRAHAM EDUCATION CTR | C9: 230 | E9: 43 | F9: 41 | G9: 61 | H9: 43 | I9: 42
A10: 0092 | B10: NORMAN S. EDELCUP/SUNNY ISLES | C10: 141 | E10: 36 | F10: 32 | G10: 22 | H10: 29 | I10: 22
A11: 0100 | B11: MATER ACADEMY | C11: 71 | E11: 30 | F11: 41
A12: 0101 | B12: ARCOLA LAKE ELEMENTARY | C12: 52 | E12: 16 | F12: 36
A13: 0102 | B13: MIAMI COMMUNITY CHARTER SCHOOL | C13: 52 | E13: 22 | F13: 30
A14: 0111 | B14: MAYA ANGELOU ELEMENTARY | C14: 64 | E14: 34 | F14: 30
A15: 0121 | B15: AUBURNDALE ELEMENTARY | C15: 64 | E15: 38 | F15: 26
A16: 0122 | B16: DR ROLANDO ESPINOSA K-8 | C16: 175 | E16: 28 | F16: 32 | G16: 30 | H16: 38 | I16: 47
A17: 0125 | B17: NORMA BUTLER BOSSARD ELEM | C17: 90 | E17: 49 | F17: 41
A18: 0201 | B18: BANYAN ELEMENTARY | C18: 24 | E18: 11 | F18: 13
A19: 0211 | B19: DR. MANUEL C. BARREIRO ELEM | C19: 77 | E19: 36 | F19: 41
A20: 0231 | B20: AVENTURA WATERWAYS K-8 CENTER | C20: 196 | E20: 26 | F20: 39 | G20: 41 | H20: 46 | I20: 44
A21: 0241 | B21: RUTH K BROAD/BAY HARBOR K-8 | C21: 107 | E21: 21 | F21: 26 | G21: 20 | H21: 22 | I21: 18
A22: 0251 | B22: ETHEL KOGER BECKHAM ELEMENTARY | C22: 32 | E22: 13 | F22: 19
A23: 0261 | B23: BEL-AIRE ELEMENTARY | C23: 47 | E23: 25 | F23: 22
A24: 0271 | B24: BENT TREE ELEMENTARY | C24: 48 | E24: 25 | F24: 23
A25: 0311 | B25: GOULDS ELEMENTARY | C25: 66 | E25: 33 | F25: 33
A26: 0312 | B26: MATER GARDENS ACADEMY | C26: 41 | E26: 25 | F26: 16
A27: 0321 | B27: BISCAYNE ELEMENTARY | C27: 66 | E27: 32 | F27: 34
A28: 0332 | B28: SOMERSET ACADEMY(SILVER PALMS) | C28: 145 | E28: 17 | F28: 24 | G28: 31 | H28: 40 | I28: 33
A29: 0339 | B29: SOMERSET ACADEMY CHARTER ELEM | C29: 22 | E29: 12 | F29: 10
A30: 0341 | B30: ARCH CREEK ELEMENTARY SCHOOL | C30: 66 | E30: 28 | F30: 38
A31: 0342 | B31: PINECREST ACADEMY SOUTH CAMPUS | C31: 53 | E31: 34 | F31: 19
A32: 0361 | B32: BISCAYNE GARDENS ELEMENTARY | C32: 58 | E32: 32 | F32: 26
A33: 0400 | B33: RENAISSANCE ELEMENTARY CHARTER | C33: 42 | E33: 22 | F33: 20
A34: 0401 | B34: VAN E. BLANTON ELEMENTARY | C34: 48 | E34: 28 | F34: 20
A35: 0410 | B35: ACADEMIR CHARTER SCHOOL WEST | C35: 35 | E35: 23 | F35: 12
A36: 0441 | B36: BLUE LAKES ELEMENTARY | C36: 23 | E36: 12 | F36: 11
A37: 0451 | B37: BOWMAN ASHE/DOOLIN K-8 ACAD | C37: 204 | E37: 37 | F37: 40 | G37: 23 | H37: 53 | I37: 51
A38: 0461 | B38: BRENTWOOD ELEMENTARY | C38: 91 | E38: 45 | F38: 46
A39: 0481 | B39: JAMES H. BRIGHT/JW JOHNSON ES | C39: 61 | E39: 28 | F39: 33
A40: 0510 | B40: ARCHIMEDEAN ACADEMY | C40: 12 | E40: 7 | F40: 5
A41: 0520 | B41: SOMERSET ACADEMY | C41: 24 | E41: 16 | F41: 8
A42: 0521 | B42: BROADMOOR ELEMENTARY | C42: 43 | E42: 21 | F42: 22
A43: 0561 | B43: W.J. BRYAN ELEMENTARY | C43: 80 | E43: 44 | F43: 36
A44: 0600 | B44: PINECREST PREP ACADEMY | C44: 35 | E44: 18 | F44: 17
A45: 0641 | B45: BUNCHE PARK ELEMENTARY | C45: 18 | E45: 11 | F45: 7
A46: 0651 | B46: CAMPBELL DRIVE K-8 CENTER | C46: 112 | E46: 36 | F46: 37 | G46: 22 | H46: 17
A47: 0661 | B47: CARIBBEAN ELEMENTARY | C47: 67 | E47: 35 | F47: 32
A48: 0671 | B48: CALUSA ELEMENTARY | C48: 42 | E48: 24 | F48: 18
A49: 0681 | B49: CAROL CITY ELEMENTARY | C49: 76 | E49: 43 | F49: 33
A50: 0721 | B50: GEORGE WASHINGTON CARVER ELEM | C50: 40 | E50: 26 | F50: 14
A51: 0761 | B51: FIENBERG/FISHER K-8 CENTER | C51: 133 | E51: 25 | F51: 26 | G51: 30 | H51: 26 | I51: 26
A52: 0771 | B52: WILLIAM A. CHAPMAN ELEMENTARY | C52: 40 | E52: 25 | F52: 15
A53: 0801 | B53: CITRUS GROVE ELEMENTARY | C53: 94 | E53: 53 | F53: 41
A54: 0831 | B54: CLAUDE PEPPER ELEMENTARY | C54: 49 | E54: 29 | F54: 20
A55: 0841 | B55: COCONUT GROVE ELEMENTARY | C55: 28 | E55: 17 | F55: 11
A56: 0861 | B56: COLONIAL DRIVE ELEMENTARY | C56: 27 | E56: 13 | F56: 14
A57: 0881 | B57: COMSTOCK ELEMENTARY | C57: 49 | E57: 26 | F57: 23
A58: 0950 | B58: AVENTURA CITY OF EXCELLENCE | C58: 60 | E58: 17 | F58: 10 | G58: 9 | H58: 12 | I58: 12
A59: 0961 | B59: CORAL GABLES PREPARATORY ACAD | C59: 50 | E59: 8 | F59: 7 | G59: 12 | H59: 17 | I59: 6
A60: 1001 | B60: CORAL PARK ELEMENTARY | C60: 40 | E60: 9 | F60: 31
A61: 1010 | B61: CHARTER SCHOOL AT WATERSTONE | C61: 95 | E61: 51 | F61: 44
A62: 1014 | B62: ADVANCED LEARNING CHARTER SCH | C62: 47 | E62: 25 | F62: 22
A63: 1017 | B63: MATER ACADEMY OF INTL STUDIES | C63: 31 | E63: 14 | F63: 17
A64: 1020 | B64: YOUTH CO-OP CHARTER SCHOOL | C64: 78 | E64: 12 | F64: 9 | G64: 13 | H64: 23 | I64: 21
A65: 1041 | B65: CORAL REEF ELEMENTARY | C65: 53 | E65: 35 | F65: 18
A66: 1081 | B66: CORAL TERRACE ELEMENTARY | C66: 36 | E66: 17 | F66: 19
A67: 1121 | B67: CORAL WAY K-8 CENTER | C67: 185 | E67: 36 | F67: 39 | G67: 37 | H67: 31 | I67: 42
A68: 1161 | B68: CRESTVIEW ELEMENTARY | C68: 51 | E68: 20 | F68: 31
A69: 1241 | B69: CUTLER RIDGE ELEMENTARY | C69: 57 | E69: 37 | F69: 20
A70: 1281 | B70: CYPRESS ELEMENTARY | C70: 30 | E70: 16 | F70: 14
A71: 1331 | B71: DEVON AIRE K-8 CENTER | C71: 159 | E71: 41 | F71: 24 | G71: 32 | H71: 34 | I71: 28
A72: 1361 | B72: FREDERICK DOUGLASS ELEMENTARY | C72: 20 | E72: 12 | F72: 8
A73: 1371 | B73: MARJORY STONEMAN DOUGLAS ELEM | C73: 88 | E73: 36 | F73: 52
A74: 1401 | B74: CHARLES R. DREW K-8 CENTER | C74: 38 | E74: 8 | F74: 13 | G74: 17
A75: 1441 | B75: PAUL LAURENCE DUNBAR K-8 CTR | C75: 49 | E75: 24 | F75: 12 | G75: 13
A76: 1481 | B76: JOHN G. DUPUIS ELEMENTARY | C76: 64 | E76: 23 | F76: 41
A77: 1521 | B77: AMELIA EARHART ELEMENTARY | C77: 40 | E77: 17 | F77: 23
A78: 1561 | B78: EARLINGTON HEIGHTS ELEMENTARY | C78: 40 | E78: 22 | F78: 18
A79: 1601 | B79: EDISON PARK K-8 CENTER | C79: 44 | E79: 17 | F79: 18 | G79: 9
A80: 1641 | B80: EMERSON ELEMENTARY | C80: 24 | E80: 14 | F80: 10
A81: 1681 | B81: LILLIE C. EVANS K-8 CENTER | C81: 81 | E81: 26 | F81: 13 | G81: 20 | H81: 14 | I81: 8
A82: 1691 | B82: CHRISTINA M. EVE ELEMENTARY | C82: 25 | E82: 11 | F82: 14
A83: 1721 | B83: EVERGLADES K-8 CENTER | C83: 130 | E83: 29 | F83: 24 | G83: 24 | H83: 27 | I83: 26
A84: 1761 | B84: DAVID FAIRCHILD ELEMENTARY | C84: 25 | E84: 16 | F84: 9
A85: 1801 | B85: FAIRLAWN ELEMENTARY | C85: 58 | E85: 30 | F85: 28
A86: 1811 | B86: DANTE B. FASCELL ELEMENTARY | C86: 22 | E86: 12 | F86: 10
A87: 1841 | B87: FLAGAMI ELEMENTARY | C87: 38 | E87: 18 | F87: 20
A88: 1881 | B88: HENRY M. FLAGLER ELEMENTARY | C88: 50 | E88: 27 | F88: 23
A89: 1921 | B89: FLAMINGO ELEMENTARY | C89: 69 | E89: 28 | F89: 41
A90: 2001 | B90: FLORIDA CITY ELEMENTARY | C90: 75 | D90: 1 | E90: 41 | F90: 33
A91: 2003 | B91: BRIDGEPOINT ACADEMY | C91: 17 | E91: 9 | F91: 8
A92: 2006 | B92: RICHARD ALLEN LEADERSHIP ACAD | C92: 11 | E92: 5 | F92: 6
A93: 2007 | B93: SOMERSET ACADEMY ELEMENTARY | C93: 17 | E93: 9 | F93: 8
A94: 2012 | B94: SOMERSET ARTS ACADEMY | C94: 20 | E94: 16 | F94: 4
A95: 2013 | B95: BRIDGEPOINT ACAD GREATER MIAMI | C95: 9 | E95: 5 | F95: 4
A96: 2021 | B96: GLORIA FLOYD ELEMENTARY | C96: 36 | E96: 21 | F96: 15
A97: 2041 | B97: BENJAMIN FRANKLIN K-8 CENTER | C97: 94 | E97: 29 | F97: 24 | G97: 24 | H97: 17
A98: 2060 | B98: GIBSON CHARTER SCHOOL | C98: 59 | E98: 6 | F98: 11 | G98: 18 | H98: 15 | I98: 9
A99: 2081 | B99: FULFORD ELEMENTARY | C99: 43 | E99: 24 | F99: 19
A100: 2111 | B100: HIALEAH GARDENS ELEMENTARY | C100: 64 | E100: 25 | F100: 39
A101: 2151 | B101: JACK D. GORDON ELEMENTARY | C101: 78 | E101: 40 | F101: 38
A102: 2161 | B102: GOLDEN GLADES ELEMENTARY | C102: 26 | E102: 11 | F102: 15
A103: 2181 | B103: JOELLA C. GOOD ELEMENTARY | C103: 80 | E103: 48 | F103: 32
A104: 2191 | B104: SPANISH LAKE ELEMENTARY | C104: 132 | E104: 59 | F104: 73
A105: 2241 | B105: GRATIGNY ELEMENTARY | C105: 73 | E105: 25 | F105: 23 | G105: 25
A106: 2261 | B106: GREENGLADE ELEMENTARY | C106: 44 | E106: 30 | F106: 14
A107: 2281 | B107: GREYNOLDS PARK ELEMENTARY | C107: 65 | E107: 35 | F107: 30
A108: 2321 | B108: GULFSTREAM ELEMENTARY | C108: 40 | E108: 23 | F108: 17
A109: 2331 | B109: CHARLES R. HADLEY ELEMENTARY | C109: 77 | E109: 44 | F109: 33
A110: 2341 | B110: JOE HALL ELEMENTARY | C110: 45 | E110: 26 | F110: 19
A111: 2351 | B111: ENEIDA MASSAS HARTNER ELEM | C111: 58 | E111: 30 | F111: 28
A112: 2361 | B112: HIALEAH ELEMENTARY | C112: 65 | E112: 38 | F112: 27
A113: 2371 | B113: WEST HIALEAH GARDENS ELEM | C113: 99 | E113: 66 | F113: 33
A114: 2401 | B114: HIBISCUS ELEMENTARY | C114: 60 | D114: 1 | E114: 26 | F114: 33
A115: 2441 | B115: VIRGINIA A BOONE/HIGHLAND OAKS | C115: 24 | E115: 15 | F115: 9
A116: 2501 | B116: HOLMES ELEMENTARY | C116: 59 | E116: 29 | F116: 30
A117: 2511 | B117: ZORA NEALE HURSTON ELEMENTARY | C117: 52 | E117: 28 | F117: 24
A118: 2521 | B118: OLIVER HOOVER ELEMENTARY | C118: 58 | E118: 26 | F118: 32
A119: 2541 | B119: HOWARD DRIVE ELEMENTARY | C119: 40 | E119: 24 | F119: 16
A120: 2581 | B120: MADIE IVES ELEMENTARY | C120: 65 | E120: 34 | F120: 31
A121: 2641 | B121: KENDALE ELEMENTARY | C121: 24 | E121: 12 | F121: 12
A122: 2651 | B122: KENDALE LAKES ELEMENTARY | C122: 35 | E122: 21 | F122: 14
A123: 2661 | B123: KENSINGTON PARK ELEMENTARY | C123: 117 | E123: 63 | F123: 54
A124: 2701 | B124: KENWOOD K-8 CENTER | C124: 104 | D124: 1 | E124: 21 | F124: 21 | G124: 19 | H124: 19 | I124: 23
A125: 2741 | B125: KEY BISCAYNE K-8 CENTER | C125: 77 | E125: 17 | F125: 14 | G125: 16 | H125: 19 | I125: 11
A126: 2781 | B126: KINLOCH PARK ELEMENTARY | C126: 82 | E126: 45 | F126: 37
A127: 2801 | B127: LAKE STEVENS ELEMENTARY | C127: 29 | E127: 17 | F127: 12
A128: 2821 | B128: LAKEVIEW ELEMENTARY | C128: 50 | E128: 21 | F128: 29
A129: 2881 | B129: LEEWOOD K-8 CENTER | C129: 61 | D129: 2 | E129: 14 | F129: 12 | G129: 14 | H129: 14 | I129: 5
A130: 2891 | B130: WILLIAM LEHMAN ELEMENTARY | C130: 36 | E130: 19 | F130: 17
A131: 2901 | B131: LEISURE CITY K-8 CENTER | C131: 224 | E131: 49 | F131: 53 | G131: 36 | H131: 39 | I131: 47
A132: 2911 | B132: LINDA LENTIN K-8 CENTER | C132: 172 | E132: 28 | F132: 39 | G132: 38 | H132: 26 | I132: 41
A133: 2941 | B133: LAURA C. SAUNDERS ELEMENTARY | C133: 76 | E133: 41 | F133: 35
A134: 2981 | B134: LIBERTY CITY ELEMENTARY | C134: 32 | E134: 17 | F134: 15
A135: 3021 | B135: JESSE J MCCRARY JR ELEMENTARY | C135: 53 | E135: 29 | F135: 24
A136: 3024 | B136: FLORIDA INTERNATIONAL EL ACAD | C136: 47 | E136: 26 | F136: 21
A137: 3025 | B137: ADVANTAGE ACADEMY SANTA FE | C137: 12 | E137: 10 | F137: 2
A138: 3029 | B138: DORAL ACADEMY OF TECHNOLOGY | C138: 4 | G138: 2 | H138: 1 | I138: 1
A139: 3030 | B139: DORAL ACADEMY | C139: 45 | E139: 29 | F139: 16
A140: 3032 | B140: PALM GLADES PREPATORY ACADEMY | C140: 123 | G140: 56 | H140: 34 | I140: 33
A141: 3034 | B141: BRIDGEPOINT ACAD VILLAGE GREEN | C141: 8 | E141: 4 | F141: 4
A142: 3035 | B142: RAMZ ACADEMY ELEM MIAMI CAMPUS | C142: 3 | E142: 3
A143: 3041 | B143: LORAH PARK ELEMENTARY | C143: 46 | E143: 23 | F143: 23
A144: 3051 | B144: TOUSSAINT L'OUVERTURE ELEM | C144: 59 | E144: 27 | F144: 32
A145: 3061 | B145: LUDLAM ELEMENTARY | C145: 19 | E145: 11 | F145: 8
A146: 3100 | B146: MATER ACADEMY EAST CHARTER | C146: 25 | E146: 21 | F146: 4
A147: 3101 | B147: FRANK C. MARTIN K-8 CENTER | C147: 78 | E147: 21 | F147: 18 | G147: 16 | H147: 12 | I147: 11
A148: 3111 | B148: WESLEY MATTHEWS ELEMENTARY | C148: 20 | E148: 9 | F148: 11
A149: 3141 | B149: MEADOWLANE ELEMENTARY | C149: 125 | E149: 55 | F149: 70
A150: 3181 | B150: MELROSE ELEMENTARY | C150: 64 | E150: 37 | F150: 27
A151: 3191 | B151: ADA MERRITT K-8 CENTER | C151: 48 | E151: 7 | F151: 9 | G151: 14 | H151: 12 | I151: 6
A152: 3241 | B152: MIAMI GARDENS ELEMENTARY | C152: 26 | E152: 17 | F152: 9
A153: 3261 | B153: MIAMI HEIGHTS ELEMENTARY | C153: 97 | E153: 56 | F153: 41
A154: 3281 | B154: MIAMI LAKES K-8 CENTER | C154: 172 | E154: 31 | F154: 36 | G154: 34 | H154: 29 | I154: 42
A155: 3301 | B155: MIAMI PARK ELEMENTARY | C155: 45 | E155: 25 | F155: 20
A156: 3341 | B156: MIAMI SHORES ELEMENTARY | C156: 67 | E156: 27 | F156: 40
A157: 3381 | B157: MIAMI SPRINGS ELEMENTARY | C157: 49 | E157: 27 | F157: 22
A158: 3421 | B158: M.A. MILAM K-8 CENTER | C158: 185 | E158: 31 | F158: 32 | G158: 35 | H158: 48 | I158: 39
A159: 3431 | B159: PHYLLIS RUTH MILLER ELEMENTARY | C159: 58 | E159: 29 | F159: 29
A160: 3501 | B160: MORNINGSIDE K-8 ACADEMY | C160: 61 | E160: 28 | F160: 16 | G160: 17
A161: 3541 | B161: ROBERT RUSSA MOTON ELEMENTARY | C161: 38 | D161: 1 | E161: 20 | F161: 17
A162: 3581 | B162: MYRTLE GROVE K-8 CENTER | C162: 47 | E162: 16 | F162: 14 | G162: 17
A163: 3600 | B163: DOWNTOWN MIAMI CHARTER SCHOOL | C163: 86 | E163: 37 | F163: 22 | G163: 27
A164: 3610 | B164: KEYS GATE CHARTER SCHOOL | C164: 314 | E164: 48 | F164: 43 | G164: 70 | H164: 87 | I164: 66
A165: 3621 | B165: COCONUT PALM K-8 ACADEMY | C165: 199 | E165: 54 | F165: 54 | G165: 41 | H165: 28 | I165: 22
A166: 3661 | B166: NATURAL BRIDGE ELEMENTARY | C166: 37 | E166: 26 | F166: 11
A167: 3701 | B167: NORLAND ELEMENTARY | C167: 69 | E167: 39 | F167: 30
A168: 3741 | B168: NORTH BEACH ELEMENTARY | C168: 45 | E168: 27 | F168: 18
A169: 3781 | B169: BARBARA HAWKINS ELEMENTARY | C169: 31 | E169: 18 | F169: 13
A170: 3821 | B170: NORTH COUNTY K-8 CENTER | C170: 56 | E170: 16 | F170: 10 | G170: 15 | H170: 15
A171: 3861 | B171: NORTH GLADE ELEMENTARY | C171: 17 | E171: 10 | F171: 7
A172: 3901 | B172: NORTH HIALEAH ELEMENTARY | C172: 61 | E172: 33 | F172: 28
A173: 3941 | B173: NORTH MIAMI ELEMENTARY | C173: 61 | E173: 34 | F173: 27
A174: 3981 | B174: NORTH TWIN LAKES ELEMENTARY | C174: 59 | E174: 31 | F174: 28
A175: 4000 | B175: MIAMI CHILDREN'S MUSEUM | C175: 17 | E175: 8 | F175: 9
A176: 4001 | B176: NORWOOD ELEMENTARY | C176: 34 | E176: 16 | F176: 18
A177: 4012 | B177: SOMERSET ACAD AT SILVER PALMS | C177: 39 | E177: 26 | F177: 13
A178: 4021 | B178: OAK GROVE ELEMENTARY | C178: 79 | E178: 28 | F178: 31 | G178: 20
A179: 4031 | B179: GATEWAY ENVIRONMENTAL K-8 | C179: 189 | E179: 60 | F179: 50 | G179: 50 | H179: 29
A180: 4061 | B180: OJUS ELEMENTARY | C180: 66 | E180: 34 | F180: 32
A181: 4071 | B181: OLINDA ELEMENTARY | C181: 37 | E181: 20 | F181: 17
A182: 4091 | B182: OLYMPIA HEIGHTS ELEMENTARY | C182: 45 | E182: 26 | F182: 19
A183: 4121 | B183: DR. ROBERT B. INGRAM EL | C183: 40 | E183: 20 | F183: 20
A184: 4171 | B184: ORCHARD VILLA ELEMENTARY | C184: 44 | E184: 24 | F184: 20
A185: 4221 | B185: PALMETTO ELEMENTARY | C185: 24 | E185: 12 | F185: 12
A186: 4241 | B186: PALM LAKES ELEMENTARY | C186: 71 | E186: 29 | F186: 42
A187: 4261 | B187: PALM SPRINGS ELEMENTARY | C187: 71 | E187: 38 | F187: 33
A188: 4281 | B188: PALM SPRINGS NORTH ELEMENTARY | C188: 85 | E188: 47 | F188: 38
A189: 4301 | B189: PARKVIEW ELEMENTARY | C189: 27 | E189: 18 | F189: 9
A190: 4341 | B190: PARKWAY ELEMENTARY | C190: 38 | E190: 23 | F190: 15
A191: 4381 | B191: DR HENRY E PERRINE ACADEMY | C191: 65 | E191: 30 | F191: 35
A192: 4391 | B192: IRVING & BEATRICE PESKOE K-8 | C192: 92 | E192: 27 | F192: 33 | G192: 19 | H192: 13
A193: 4401 | B193: KELSEY L. PHARR ELEMENTARY | C193: 34 | E193: 18 | F193: 16
A194: 4421 | B194: PINECREST ELEMENTARY | C194: 36 | E194: 15 | F194: 21
A195: 4441 | B195: PINE LAKE ELEMENTARY | C195: 44 | E195: 23 | F195: 21
A196: 4461 | B196: PINE VILLA ELEMENTARY | C196: 24 | E196: 16 | F196: 8
A197: 4491 | B197: HENRY E.S. REEVES ELEMENTARY | C197: 79 | E197: 41 | F197: 38
A198: 4501 | B198: POINCIANA PARK ELEMENTARY | C198: 25 | E198: 12 | F198: 13
A199: 4511 | B199: DR GILBERT L. PORTER ELEM | C199: 50 | E199: 21 | F199: 29
A200: 4541 | B200: RAINBOW PARK ELEMENTARY | C200: 32 | E200: 12 | F200: 20
... 249 more rows

Sheet MEM_RL3 (hidden)
A1: 1 | B1: 2 | C1: 3 | D1: 4 | E1: 5 | F1: 6 | G1: 7 | H1: 8 | I1: 9 | J1: 10 | K1: 11
A2: S_SCHOOL_NUM | B2: S_SCHL_NAME | C2: Total Of STUDENT_ID | E2: 04 | F2: 05 | G2: 06 | H2: 07 | I2: 08 | J2: 09 | K2: 10
A3: 0041 | B3: AIR BASE ELEMENTARY | C3: 58 | E3: 28 | F3: 30
A4: 0070 | B4: CORAL REEF MONTESSORI ACAD CH | C4: 54 | E4: 11 | F4: 15 | G4: 6 | H4: 10 | I4: 12
A5: 0071 | B5: EUGENIA B. THOMAS K-8 CENTER | C5: 211 | E5: 37 | F5: 34 | G5: 32 | H5: 47 | I5: 61
A6: 0072 | B6: SUMMERVILLE CHARTER SCHOOL | C6: 45 | E6: 23 | F6: 22
A7: 0073 | B7: MANDARIN LAKES K-8 CENTER | C7: 123 | E7: 24 | F7: 33 | G7: 23 | H7: 19 | I7: 24
A8: 0081 | B8: LENORA B. SMITH ELEMENTARY | C8: 21 | E8: 12 | F8: 9
A9: 0091 | B9: BOB GRAHAM EDUCATION CTR | C9: 322 | E9: 65 | F9: 55 | G9: 52 | H9: 73 | I9: 77
A10: 0092 | B10: NORMAN S. EDELCUP/SUNNY ISLES | C10: 228 | E10: 47 | F10: 44 | G10: 38 | H10: 51 | I10: 48
A11: 0100 | B11: MATER ACADEMY | C11: 67 | E11: 28 | F11: 39
A12: 0101 | B12: ARCOLA LAKE ELEMENTARY | C12: 39 | E12: 17 | F12: 22
A13: 0102 | B13: MIAMI COMMUNITY CHARTER SCHOOL | C13: 35 | E13: 19 | F13: 16
A14: 0111 | B14: MAYA ANGELOU ELEMENTARY | C14: 42 | E14: 13 | F14: 29
A15: 0121 | B15: AUBURNDALE ELEMENTARY | C15: 60 | E15: 30 | F15: 30
A16: 0122 | B16: DR ROLANDO ESPINOSA K-8 | C16: 217 | E16: 38 | F16: 38 | G16: 41 | H16: 57 | I16: 43
A17: 0125 | B17: NORMA BUTLER BOSSARD ELEM | C17: 122 | E17: 52 | F17: 70
A18: 0201 | B18: BANYAN ELEMENTARY | C18: 25 | E18: 14 | F18: 11
A19: 0211 | B19: DR. MANUEL C. BARREIRO ELEM | C19: 91 | E19: 45 | F19: 46
A20: 0231 | B20: AVENTURA WATERWAYS K-8 CENTER | C20: 265 | E20: 43 | F20: 48 | G20: 54 | H20: 53 | I20: 67
A21: 0241 | B21: RUTH K BROAD/BAY HARBOR K-8 | C21: 194 | E21: 38 | F21: 21 | G21: 50 | H21: 41 | I21: 44
A22: 0251 | B22: ETHEL KOGER BECKHAM ELEMENTARY | C22: 63 | E22: 30 | F22: 33
A23: 0261 | B23: BEL-AIRE ELEMENTARY | C23: 24 | E23: 8 | F23: 16
A24: 0271 | B24: BENT TREE ELEMENTARY | C24: 58 | E24: 27 | F24: 31
A25: 0311 | B25: GOULDS ELEMENTARY | C25: 36 | E25: 21 | F25: 15
A26: 0312 | B26: MATER GARDENS ACADEMY | C26: 68 | E26: 31 | F26: 37
A27: 0321 | B27: BISCAYNE ELEMENTARY | C27: 52 | E27: 31 | F27: 21
A28: 0332 | B28: SOMERSET ACADEMY(SILVER PALMS) | C28: 191 | E28: 11 | F28: 29 | G28: 61 | H28: 55 | I28: 35
A29: 0339 | B29: SOMERSET ACADEMY CHARTER ELEM | C29: 25 | E29: 14 | F29: 11
A30: 0341 | B30: ARCH CREEK ELEMENTARY SCHOOL | C30: 50 | E30: 21 | F30: 29
A31: 0342 | B31: PINECREST ACADEMY SOUTH CAMPUS | C31: 63 | E31: 23 | F31: 40
A32: 0361 | B32: BISCAYNE GARDENS ELEMENTARY | C32: 29 | E32: 17 | F32: 12
A33: 0400 | B33: RENAISSANCE ELEMENTARY CHARTER | C33: 62 | E33: 28 | F33: 34
A34: 0401 | B34: VAN E. BLANTON ELEMENTARY | C34: 37 | E34: 18 | F34: 19
A35: 0410 | B35: ACADEMIR CHARTER SCHOOL WEST | C35: 34 | E35: 15 | F35: 19
A36: 0441 | B36: BLUE LAKES ELEMENTARY | C36: 35 | E36: 25 | F36: 10
A37: 0451 | B37: BOWMAN ASHE/DOOLIN K-8 ACAD | C37: 232 | E37: 42 | F37: 35 | G37: 35 | H37: 60 | I37: 60
A38: 0461 | B38: BRENTWOOD ELEMENTARY | C38: 54 | E38: 25 | F38: 29
A39: 0481 | B39: JAMES H. BRIGHT/JW JOHNSON ES | C39: 59 | E39: 30 | F39: 29
A40: 0510 | B40: ARCHIMEDEAN ACADEMY | C40: 42 | E40: 17 | F40: 25
A41: 0520 | B41: SOMERSET ACADEMY | C41: 61 | E41: 31 | F41: 30
A42: 0521 | B42: BROADMOOR ELEMENTARY | C42: 27 | E42: 15 | F42: 12
A43: 0561 | B43: W.J. BRYAN ELEMENTARY | C43: 45 | E43: 18 | F43: 27
A44: 0600 | B44: PINECREST PREP ACADEMY | C44: 47 | E44: 20 | F44: 27
A45: 0641 | B45: BUNCHE PARK ELEMENTARY | C45: 14 | E45: 6 | F45: 8
A46: 0651 | B46: CAMPBELL DRIVE K-8 CENTER | C46: 76 | E46: 19 | F46: 26 | G46: 12 | H46: 19
A47: 0661 | B47: CARIBBEAN ELEMENTARY | C47: 34 | E47: 11 | F47: 23
A48: 0671 | B48: CALUSA ELEMENTARY | C48: 67 | E48: 42 | F48: 25
A49: 0681 | B49: CAROL CITY ELEMENTARY | C49: 25 | E49: 3 | F49: 22
A50: 0721 | B50: GEORGE WASHINGTON CARVER ELEM | C50: 31 | E50: 15 | F50: 16
A51: 0761 | B51: FIENBERG/FISHER K-8 CENTER | C51: 114 | E51: 16 | F51: 19 | G51: 28 | H51: 27 | I51: 24
A52: 0771 | B52: WILLIAM A. CHAPMAN ELEMENTARY | C52: 21 | E52: 12 | F52: 9
A53: 0801 | B53: CITRUS GROVE ELEMENTARY | C53: 57 | E53: 27 | F53: 30
A54: 0831 | B54: CLAUDE PEPPER ELEMENTARY | C54: 63 | E54: 27 | F54: 36
A55: 0841 | B55: COCONUT GROVE ELEMENTARY | C55: 23 | E55: 6 | F55: 17
A56: 0861 | B56: COLONIAL DRIVE ELEMENTARY | C56: 16 | E56: 7 | F56: 9
A57: 0881 | B57: COMSTOCK ELEMENTARY | C57: 40 | E57: 23 | F57: 17
A58: 0950 | B58: AVENTURA CITY OF EXCELLENCE | C58: 174 | E58: 38 | F58: 23 | G58: 29 | H58: 38 | I58: 46
A59: 0961 | B59: CORAL GABLES PREPARATORY ACAD | C59: 112 | E59: 31 | F59: 13 | G59: 16 | H59: 35 | I59: 17
A60: 1001 | B60: CORAL PARK ELEMENTARY | C60: 82 | E60: 37 | F60: 45
A61: 1010 | B61: CHARTER SCHOOL AT WATERSTONE | C61: 86 | E61: 42 | F61: 44
A62: 1014 | B62: ADVANCED LEARNING CHARTER SCH | C62: 33 | E62: 12 | F62: 21
A63: 1017 | B63: MATER ACADEMY OF INTL STUDIES | C63: 28 | E63: 13 | F63: 15
A64: 1020 | B64: YOUTH CO-OP CHARTER SCHOOL | C64: 105 | E64: 8 | F64: 17 | G64: 15 | H64: 29 | I64: 36
A65: 1041 | B65: CORAL REEF ELEMENTARY | C65: 44 | E65: 23 | F65: 21
A66: 1081 | B66: CORAL TERRACE ELEMENTARY | C66: 49 | E66: 22 | F66: 27
A67: 1121 | B67: CORAL WAY K-8 CENTER | C67: 234 | E67: 47 | F67: 37 | G67: 45 | H67: 48 | I67: 57
A68: 1161 | B68: CRESTVIEW ELEMENTARY | C68: 35 | E68: 15 | F68: 20
A69: 1241 | B69: CUTLER RIDGE ELEMENTARY | C69: 79 | E69: 46 | F69: 33
A70: 1281 | B70: CYPRESS ELEMENTARY | C70: 43 | E70: 19 | F70: 24
A71: 1331 | B71: DEVON AIRE K-8 CENTER | C71: 295 | E71: 45 | F71: 49 | G71: 64 | H71: 62 | I71: 75
A72: 1361 | B72: FREDERICK DOUGLASS ELEMENTARY | C72: 10 | E72: 5 | F72: 5
A73: 1371 | B73: MARJORY STONEMAN DOUGLAS ELEM | C73: 83 | E73: 34 | F73: 49
A74: 1401 | B74: CHARLES R. DREW K-8 CENTER | C74: 29 | E74: 12 | F74: 5 | G74: 12
A75: 1441 | B75: PAUL LAURENCE DUNBAR K-8 CTR | C75: 36 | E75: 14 | F75: 15 | G75: 7
A76: 1481 | B76: JOHN G. DUPUIS ELEMENTARY | C76: 60 | E76: 27 | F76: 33
A77: 1521 | B77: AMELIA EARHART ELEMENTARY | C77: 31 | E77: 16 | F77: 15
A78: 1561 | B78: EARLINGTON HEIGHTS ELEMENTARY | C78: 29 | E78: 17 | F78: 12
A79: 1601 | B79: EDISON PARK K-8 CENTER | C79: 19 | E79: 9 | F79: 7 | G79: 3
A80: 1641 | B80: EMERSON ELEMENTARY | C80: 33 | E80: 12 | F80: 21
A81: 1681 | B81: LILLIE C. EVANS K-8 CENTER | C81: 61 | E81: 9 | F81: 13 | G81: 19 | H81: 13 | I81: 7
A82: 1691 | B82: CHRISTINA M. EVE ELEMENTARY | C82: 51 | E82: 25 | F82: 26
A83: 1721 | B83: EVERGLADES K-8 CENTER | C83: 177 | E83: 25 | F83: 36 | G83: 41 | H83: 39 | I83: 36
A84: 1761 | B84: DAVID FAIRCHILD ELEMENTARY | C84: 36 | E84: 17 | F84: 19
A85: 1801 | B85: FAIRLAWN ELEMENTARY | C85: 61 | E85: 37 | F85: 24
A86: 1811 | B86: DANTE B. FASCELL ELEMENTARY | C86: 49 | E86: 22 | F86: 27
A87: 1841 | B87: FLAGAMI ELEMENTARY | C87: 32 | E87: 17 | F87: 15
A88: 1881 | B88: HENRY M. FLAGLER ELEMENTARY | C88: 72 | E88: 31 | F88: 41
A89: 1921 | B89: FLAMINGO ELEMENTARY | C89: 68 | E89: 33 | F89: 35
A90: 2001 | B90: FLORIDA CITY ELEMENTARY | C90: 35 | E90: 19 | F90: 16
A91: 2003 | B91: BRIDGEPOINT ACADEMY | C91: 22 | E91: 12 | F91: 10
A92: 2006 | B92: RICHARD ALLEN LEADERSHIP ACAD | C92: 4 | E92: 2 | F92: 2
A93: 2007 | B93: SOMERSET ACADEMY ELEMENTARY | C93: 36 | E93: 22 | F93: 14
A94: 2012 | B94: SOMERSET ARTS ACADEMY | C94: 33 | E94: 20 | F94: 13
A95: 2013 | B95: BRIDGEPOINT ACAD GREATER MIAMI | C95: 13 | E95: 9 | F95: 4
A96: 2021 | B96: GLORIA FLOYD ELEMENTARY | C96: 60 | E96: 28 | F96: 32
A97: 2041 | B97: BENJAMIN FRANKLIN K-8 CENTER | C97: 39 | E97: 12 | F97: 18 | G97: 5 | H97: 4
A98: 2060 | B98: GIBSON CHARTER SCHOOL | C98: 35 | E98: 5 | F98: 5 | G98: 8 | H98: 9 | I98: 8
A99: 2081 | B99: FULFORD ELEMENTARY | C99: 37 | E99: 16 | F99: 21
A100: 2111 | B100: HIALEAH GARDENS ELEMENTARY | C100: 75 | E100: 42 | F100: 33
A101: 2151 | B101: JACK D. GORDON ELEMENTARY | C101: 91 | E101: 41 | F101: 50
A102: 2161 | B102: GOLDEN GLADES ELEMENTARY | C102: 8 | E102: 4 | F102: 4
A103: 2181 | B103: JOELLA C. GOOD ELEMENTARY | C103: 86 | E103: 42 | F103: 44
A104: 2191 | B104: SPANISH LAKE ELEMENTARY | C104: 163 | E104: 87 | F104: 76
A105: 2241 | B105: GRATIGNY ELEMENTARY | C105: 56 | E105: 16 | F105: 22 | G105: 18
A106: 2261 | B106: GREENGLADE ELEMENTARY | C106: 40 | E106: 21 | F106: 19
A107: 2281 | B107: GREYNOLDS PARK ELEMENTARY | C107: 41 | E107: 21 | F107: 20
A108: 2321 | B108: GULFSTREAM ELEMENTARY | C108: 29 | E108: 17 | F108: 12
A109: 2331 | B109: CHARLES R. HADLEY ELEMENTARY | C109: 75 | E109: 38 | F109: 37
A110: 2341 | B110: JOE HALL ELEMENTARY | C110: 58 | E110: 21 | F110: 37
A111: 2351 | B111: ENEIDA MASSAS HARTNER ELEM | C111: 34 | E111: 15 | F111: 19
A112: 2361 | B112: HIALEAH ELEMENTARY | C112: 56 | E112: 29 | F112: 27
A113: 2371 | B113: WEST HIALEAH GARDENS ELEM | C113: 105 | E113: 64 | F113: 41
A114: 2401 | B114: HIBISCUS ELEMENTARY | C114: 47 | E114: 18 | F114: 29
A115: 2441 | B115: VIRGINIA A BOONE/HIGHLAND OAKS | C115: 50 | E115: 26 | F115: 24
A116: 2501 | B116: HOLMES ELEMENTARY | C116: 27 | E116: 14 | F116: 13
A117: 2511 | B117: ZORA NEALE HURSTON ELEMENTARY | C117: 64 | E117: 29 | F117: 35
A118: 2521 | B118: OLIVER HOOVER ELEMENTARY | C118: 60 | E118: 33 | F118: 27
A119: 2541 | B119: HOWARD DRIVE ELEMENTARY | C119: 45 | E119: 23 | F119: 22
A120: 2581 | B120: MADIE IVES ELEMENTARY | C120: 61 | E120: 32 | F120: 29
A121: 2641 | B121: KENDALE ELEMENTARY | C121: 39 | E121: 19 | F121: 20
A122: 2651 | B122: KENDALE LAKES ELEMENTARY | C122: 54 | E122: 23 | F122: 31
A123: 2661 | B123: KENSINGTON PARK ELEMENTARY | C123: 73 | E123: 33 | F123: 40
A124: 2701 | B124: KENWOOD K-8 CENTER | C124: 189 | E124: 34 | F124: 28 | G124: 35 | H124: 44 | I124: 48
A125: 2741 | B125: KEY BISCAYNE K-8 CENTER | C125: 178 | E125: 31 | F125: 36 | G125: 42 | H125: 41 | I125: 28
A126: 2781 | B126: KINLOCH PARK ELEMENTARY | C126: 67 | E126: 32 | F126: 35
A127: 2801 | B127: LAKE STEVENS ELEMENTARY | C127: 19 | E127: 12 | F127: 7
A128: 2821 | B128: LAKEVIEW ELEMENTARY | C128: 42 | E128: 23 | F128: 19
A129: 2881 | B129: LEEWOOD K-8 CENTER | C129: 102 | E129: 27 | F129: 23 | G129: 15 | H129: 24 | I129: 13
A130: 2891 | B130: WILLIAM LEHMAN ELEMENTARY | C130: 53 | E130: 29 | F130: 24
A131: 2901 | B131: LEISURE CITY K-8 CENTER | C131: 122 | E131: 29 | F131: 16 | G131: 23 | H131: 24 | I131: 30
A132: 2911 | B132: LINDA LENTIN K-8 CENTER | C132: 140 | E132: 22 | F132: 31 | G132: 34 | H132: 29 | I132: 24
A133: 2941 | B133: LAURA C. SAUNDERS ELEMENTARY | C133: 44 | E133: 21 | F133: 23
A134: 2981 | B134: LIBERTY CITY ELEMENTARY | C134: 15 | E134: 9 | F134: 6
A135: 3021 | B135: JESSE J MCCRARY JR ELEMENTARY | C135: 29 | E135: 16 | F135: 13
A136: 3024 | B136: FLORIDA INTERNATIONAL EL ACAD | C136: 16 | E136: 8 | F136: 8
A137: 3025 | B137: ADVANTAGE ACADEMY SANTA FE | C137: 13 | E137: 6 | F137: 7
A138: 3029 | B138: DORAL ACADEMY OF TECHNOLOGY | C138: 36 | G138: 10 | H138: 14 | I138: 12
A139: 3030 | B139: DORAL ACADEMY | C139: 80 | E139: 35 | F139: 45
A140: 3032 | B140: PALM GLADES PREPATORY ACADEMY | C140: 117 | G140: 50 | H140: 33 | I140: 34
A141: 3034 | B141: BRIDGEPOINT ACAD VILLAGE GREEN | C141: 4 | F141: 4
A142: 3041 | B142: LORAH PARK ELEMENTARY | C142: 20 | E142: 11 | F142: 9
A143: 3051 | B143: TOUSSAINT L'OUVERTURE ELEM | C143: 26 | E143: 13 | F143: 13
A144: 3061 | B144: LUDLAM ELEMENTARY | C144: 26 | E144: 14 | F144: 12
A145: 3100 | B145: MATER ACADEMY EAST CHARTER | C145: 24 | E145: 13 | F145: 11
A146: 3101 | B146: FRANK C. MARTIN K-8 CENTER | C146: 193 | E146: 41 | F146: 34 | G146: 29 | H146: 44 | I146: 45
A147: 3111 | B147: WESLEY MATTHEWS ELEMENTARY | C147: 47 | E147: 25 | F147: 22
A148: 3141 | B148: MEADOWLANE ELEMENTARY | C148: 89 | E148: 47 | F148: 42
A149: 3181 | B149: MELROSE ELEMENTARY | C149: 42 | E149: 28 | F149: 14
A150: 3191 | B150: ADA MERRITT K-8 CENTER | C150: 104 | E150: 8 | F150: 19 | G150: 25 | H150: 25 | I150: 27
A151: 3241 | B151: MIAMI GARDENS ELEMENTARY | C151: 15 | E151: 11 | F151: 4
A152: 3261 | B152: MIAMI HEIGHTS ELEMENTARY | C152: 85 | E152: 30 | F152: 55
A153: 3281 | B153: MIAMI LAKES K-8 CENTER | C153: 232 | E153: 37 | F153: 31 | G153: 58 | H153: 42 | I153: 64
A154: 3301 | B154: MIAMI PARK ELEMENTARY | C154: 17 | E154: 8 | F154: 9
A155: 3341 | B155: MIAMI SHORES ELEMENTARY | C155: 65 | E155: 34 | F155: 31
A156: 3381 | B156: MIAMI SPRINGS ELEMENTARY | C156: 41 | E156: 22 | F156: 19
A157: 3421 | B157: M.A. MILAM K-8 CENTER | C157: 176 | E157: 27 | F157: 30 | G157: 41 | H157: 43 | I157: 35
A158: 3431 | B158: PHYLLIS RUTH MILLER ELEMENTARY | C158: 34 | E158: 15 | F158: 19
A159: 3501 | B159: MORNINGSIDE K-8 ACADEMY | C159: 49 | E159: 19 | F159: 26 | G159: 4
A160: 3541 | B160: ROBERT RUSSA MOTON ELEMENTARY | C160: 16 | E160: 9 | F160: 7
A161: 3581 | B161: MYRTLE GROVE K-8 CENTER | C161: 26 | E161: 14 | F161: 6 | G161: 6
A162: 3600 | B162: DOWNTOWN MIAMI CHARTER SCHOOL | C162: 64 | E162: 25 | F162: 26 | G162: 13
A163: 3610 | B163: KEYS GATE CHARTER SCHOOL | C163: 305 | E163: 33 | F163: 45 | G163: 51 | H163: 84 | I163: 92
A164: 3621 | B164: COCONUT PALM K-8 ACADEMY | C164: 155 | E164: 28 | F164: 34 | G164: 38 | H164: 33 | I164: 22
A165: 3661 | B165: NATURAL BRIDGE ELEMENTARY | C165: 37 | E165: 17 | F165: 20
A166: 3701 | B166: NORLAND ELEMENTARY | C166: 40 | E166: 21 | F166: 19
A167: 3741 | B167: NORTH BEACH ELEMENTARY | C167: 71 | E167: 38 | F167: 33
A168: 3781 | B168: BARBARA HAWKINS ELEMENTARY | C168: 20 | E168: 9 | F168: 11
A169: 3821 | B169: NORTH COUNTY K-8 CENTER | C169: 33 | E169: 9 | F169: 8 | G169: 7 | H169: 9
A170: 3861 | B170: NORTH GLADE ELEMENTARY | C170: 25 | E170: 9 | F170: 16
A171: 3901 | B171: NORTH HIALEAH ELEMENTARY | C171: 52 | E171: 17 | F171: 35
A172: 3941 | B172: NORTH MIAMI ELEMENTARY | C172: 32 | E172: 15 | F172: 17
A173: 3981 | B173: NORTH TWIN LAKES ELEMENTARY | C173: 47 | E173: 29 | F173: 18
A174: 4000 | B174: MIAMI CHILDREN'S MUSEUM | C174: 25 | E174: 9 | F174: 16
A175: 4001 | B175: NORWOOD ELEMENTARY | C175: 32 | E175: 14 | F175: 18
A176: 4012 | B176: SOMERSET ACAD AT SILVER PALMS | C176: 38 | E176: 25 | F176: 13
A177: 4021 | B177: OAK GROVE ELEMENTARY | C177: 57 | E177: 14 | F177: 29 | G177: 14
A178: 4031 | B178: GATEWAY ENVIRONMENTAL K-8 | C178: 136 | E178: 35 | F178: 34 | G178: 29 | H178: 38
A179: 4061 | B179: OJUS ELEMENTARY | C179: 85 | E179: 51 | F179: 34
A180: 4071 | B180: OLINDA ELEMENTARY | C180: 18 | E180: 4 | F180: 14
A181: 4091 | B181: OLYMPIA HEIGHTS ELEMENTARY | C181: 48 | E181: 21 | F181: 27
A182: 4121 | B182: DR. ROBERT B. INGRAM EL | C182: 31 | E182: 17 | F182: 14
A183: 4171 | B183: ORCHARD VILLA ELEMENTARY | C183: 13 | E183: 6 | F183: 7
A184: 4221 | B184: PALMETTO ELEMENTARY | C184: 38 | E184: 19 | F184: 19
A185: 4241 | B185: PALM LAKES ELEMENTARY | C185: 83 | E185: 35 | F185: 48
A186: 4261 | B186: PALM SPRINGS ELEMENTARY | C186: 59 | E186: 30 | F186: 29
A187: 4281 | B187: PALM SPRINGS NORTH ELEMENTARY | C187: 77 | E187: 40 | F187: 37
A188: 4301 | B188: PARKVIEW ELEMENTARY | C188: 27 | E188: 12 | F188: 15
A189: 4341 | B189: PARKWAY ELEMENTARY | C189: 24 | E189: 8 | F189: 16
A190: 4381 | B190: DR HENRY E PERRINE ACADEMY | C190: 68 | E190: 38 | F190: 30
A191: 4391 | B191: IRVING & BEATRICE PESKOE K-8 | C191: 64 | E191: 18 | F191: 24 | G191: 17 | H191: 5
A192: 4401 | B192: KELSEY L. PHARR ELEMENTARY | C192: 15 | E192: 5 | F192: 10
A193: 4421 | B193: PINECREST ELEMENTARY | C193: 66 | E193: 27 | F193: 39
A194: 4441 | B194: PINE LAKE ELEMENTARY | C194: 24 | E194: 10 | F194: 14
A195: 4461 | B195: PINE VILLA ELEMENTARY | C195: 15 | E195: 6 | F195: 9
A196: 4491 | B196: HENRY E.S. REEVES ELEMENTARY | C196: 55 | E196: 29 | F196: 26
A197: 4501 | B197: POINCIANA PARK ELEMENTARY | C197: 10 | E197: 4 | F197: 6
A198: 4511 | B198: DR GILBERT L. PORTER ELEM | C198: 70 | E198: 36 | F198: 34
A199: 4541 | B199: RAINBOW PARK ELEMENTARY | C199: 39 | E199: 19 | F199: 20
A200: 4581 | B200: REDLAND ELEMENTARY | C200: 72 | E200: 36 | F200: 36
... 246 more rows

Sheet MEM_RL4 (hidden)
A1: 1 | B1: 2 | C1: 3 | D1: 4 | E1: 5 | F1: 6 | G1: 7 | H1: 8 | I1: 9 | J1: 10 | K1: 11
A2: S_SCHOOL_NUM | B2: S_SCHL_NAME | C2: Total Of STUDENT_ID | E2: 04 | F2: 05 | G2: 06 | H2: 07 | I2: 08 | J2: 09 | K2: 10
A3: 0041 | B3: AIR BASE ELEMENTARY | C3: 92 | E3: 44 | F3: 48
A4: 0070 | B4: CORAL REEF MONTESSORI ACAD CH | C4: 38 | E4: 8 | F4: 11 | G4: 9 | H4: 6 | I4: 4
A5: 0071 | B5: EUGENIA B. THOMAS K-8 CENTER | C5: 207 | E5: 49 | F5: 50 | G5: 42 | H5: 30 | I5: 36
A6: 0072 | B6: SUMMERVILLE CHARTER SCHOOL | C6: 27 | E6: 8 | F6: 19
A7: 0073 | B7: MANDARIN LAKES K-8 CENTER | C7: 39 | E7: 4 | F7: 10 | G7: 11 | H7: 4 | I7: 10
A8: 0081 | B8: LENORA B. SMITH ELEMENTARY | C8: 9 | E8: 3 | F8: 6
A9: 0091 | B9: BOB GRAHAM EDUCATION CTR | C9: 262 | E9: 55 | F9: 55 | G9: 46 | H9: 44 | I9: 62
A10: 0092 | B10: NORMAN S. EDELCUP/SUNNY ISLES | C10: 257 | E10: 56 | F10: 46 | G10: 53 | H10: 50 | I10: 52
A11: 0100 | B11: MATER ACADEMY | C11: 61 | E11: 38 | F11: 23
A12: 0101 | B12: ARCOLA LAKE ELEMENTARY | C12: 15 | E12: 5 | F12: 10
A13: 0102 | B13: MIAMI COMMUNITY CHARTER SCHOOL | C13: 18 | E13: 10 | F13: 8
A14: 0111 | B14: MAYA ANGELOU ELEMENTARY | C14: 27 | E14: 12 | F14: 15
A15: 0121 | B15: AUBURNDALE ELEMENTARY | C15: 60 | E15: 28 | F15: 32
A16: 0122 | B16: DR ROLANDO ESPINOSA K-8 | C16: 222 | E16: 56 | F16: 50 | G16: 45 | H16: 37 | I16: 34
A17: 0125 | B17: NORMA BUTLER BOSSARD ELEM | C17: 114 | E17: 54 | F17: 60
A18: 0201 | B18: BANYAN ELEMENTARY | C18: 40 | E18: 21 | F18: 19
A19: 0211 | B19: DR. MANUEL C. BARREIRO ELEM | C19: 77 | E19: 30 | F19: 47
A20: 0231 | B20: AVENTURA WATERWAYS K-8 CENTER | C20: 251 | E20: 68 | F20: 52 | G20: 50 | H20: 37 | I20: 44
A21: 0241 | B21: RUTH K BROAD/BAY HARBOR K-8 | C21: 192 | E21: 57 | F21: 34 | G21: 44 | H21: 24 | I21: 33
A22: 0251 | B22: ETHEL KOGER BECKHAM ELEMENTARY | C22: 71 | E22: 38 | F22: 33
A23: 0261 | B23: BEL-AIRE ELEMENTARY | C23: 14 | E23: 8 | F23: 6
A24: 0271 | B24: BENT TREE ELEMENTARY | C24: 47 | E24: 21 | F24: 26
A25: 0311 | B25: GOULDS ELEMENTARY | C25: 18 | E25: 9 | F25: 9
A26: 0312 | B26: MATER GARDENS ACADEMY | C26: 55 | E26: 23 | F26: 32
A27: 0321 | B27: BISCAYNE ELEMENTARY | C27: 30 | E27: 13 | F27: 17
A28: 0332 | B28: SOMERSET ACADEMY(SILVER PALMS) | C28: 120 | E28: 8 | F28: 17 | G28: 47 | H28: 20 | I28: 28
A29: 0339 | B29: SOMERSET ACADEMY CHARTER ELEM | C29: 27 | E29: 13 | F29: 14
A30: 0341 | B30: ARCH CREEK ELEMENTARY SCHOOL | C30: 32 | E30: 17 | F30: 15
A31: 0342 | B31: PINECREST ACADEMY SOUTH CAMPUS | C31: 68 | E31: 26 | F31: 42
A32: 0361 | B32: BISCAYNE GARDENS ELEMENTARY | C32: 21 | E32: 8 | F32: 13
A33: 0400 | B33: RENAISSANCE ELEMENTARY CHARTER | C33: 86 | E33: 47 | F33: 39
A34: 0401 | B34: VAN E. BLANTON ELEMENTARY | C34: 22 | E34: 11 | F34: 11
A35: 0410 | B35: ACADEMIR CHARTER SCHOOL WEST | C35: 30 | E35: 13 | F35: 17
A36: 0441 | B36: BLUE LAKES ELEMENTARY | C36: 48 | E36: 19 | F36: 29
A37: 0451 | B37: BOWMAN ASHE/DOOLIN K-8 ACAD | C37: 146 | E37: 35 | F37: 29 | G37: 32 | H37: 17 | I37: 33
A38: 0461 | B38: BRENTWOOD ELEMENTARY | C38: 23 | E38: 5 | F38: 18
A39: 0481 | B39: JAMES H. BRIGHT/JW JOHNSON ES | C39: 46 | E39: 26 | F39: 20
A40: 0510 | B40: ARCHIMEDEAN ACADEMY | C40: 63 | E40: 32 | F40: 31
A41: 0520 | B41: SOMERSET ACADEMY | C41: 74 | E41: 31 | F41: 43
A42: 0521 | B42: BROADMOOR ELEMENTARY | C42: 14 | E42: 5 | F42: 9
A43: 0561 | B43: W.J. BRYAN ELEMENTARY | C43: 48 | E43: 20 | F43: 28
A44: 0600 | B44: PINECREST PREP ACADEMY | C44: 74 | E44: 37 | F44: 37
A45: 0641 | B45: BUNCHE PARK ELEMENTARY | C45: 7 | E45: 4 | F45: 3
A46: 0651 | B46: CAMPBELL DRIVE K-8 CENTER | C46: 33 | E46: 6 | F46: 11 | G46: 9 | H46: 7
A47: 0661 | B47: CARIBBEAN ELEMENTARY | C47: 13 | E47: 6 | F47: 7
A48: 0671 | B48: CALUSA ELEMENTARY | C48: 98 | E48: 43 | F48: 55
A49: 0681 | B49: CAROL CITY ELEMENTARY | C49: 18 | E49: 5 | F49: 13
A50: 0721 | B50: GEORGE WASHINGTON CARVER ELEM | C50: 33 | E50: 17 | F50: 16
A51: 0761 | B51: FIENBERG/FISHER K-8 CENTER | C51: 75 | E51: 16 | F51: 19 | G51: 15 | H51: 12 | I51: 13
A52: 0771 | B52: WILLIAM A. CHAPMAN ELEMENTARY | C52: 15 | E52: 7 | F52: 8
A53: 0801 | B53: CITRUS GROVE ELEMENTARY | C53: 37 | E53: 20 | F53: 17
A54: 0831 | B54: CLAUDE PEPPER ELEMENTARY | C54: 61 | E54: 28 | F54: 33
A55: 0841 | B55: COCONUT GROVE ELEMENTARY | C55: 27 | E55: 17 | F55: 10
A56: 0861 | B56: COLONIAL DRIVE ELEMENTARY | C56: 13 | E56: 1 | F56: 12
A57: 0881 | B57: COMSTOCK ELEMENTARY | C57: 27 | E57: 13 | F57: 14
A58: 0950 | B58: AVENTURA CITY OF EXCELLENCE | C58: 199 | E58: 42 | F58: 49 | G58: 45 | H58: 32 | I58: 31
A59: 0961 | B59: CORAL GABLES PREPARATORY ACAD | C59: 103 | E59: 32 | F59: 27 | G59: 13 | H59: 19 | I59: 12
A60: 1001 | B60: CORAL PARK ELEMENTARY | C60: 146 | E60: 64 | F60: 82
A61: 1010 | B61: CHARTER SCHOOL AT WATERSTONE | C61: 92 | E61: 42 | F61: 50
A62: 1014 | B62: ADVANCED LEARNING CHARTER SCH | C62: 22 | E62: 10 | F62: 12
A63: 1017 | B63: MATER ACADEMY OF INTL STUDIES | C63: 19 | E63: 9 | F63: 10
A64: 1020 | B64: YOUTH CO-OP CHARTER SCHOOL | C64: 72 | E64: 8 | F64: 15 | G64: 14 | H64: 19 | I64: 16
A65: 1041 | B65: CORAL REEF ELEMENTARY | C65: 92 | E65: 40 | F65: 52
A66: 1081 | B66: CORAL TERRACE ELEMENTARY | C66: 22 | E66: 10 | F66: 12
A67: 1121 | B67: CORAL WAY K-8 CENTER | C67: 190 | E67: 33 | F67: 53 | G67: 30 | H67: 29 | I67: 45
A68: 1161 | B68: CRESTVIEW ELEMENTARY | C68: 25 | E68: 9 | F68: 16
A69: 1241 | B69: CUTLER RIDGE ELEMENTARY | C69: 83 | E69: 40 | F69: 43
A70: 1281 | B70: CYPRESS ELEMENTARY | C70: 29 | E70: 15 | F70: 14
A71: 1331 | B71: DEVON AIRE K-8 CENTER | C71: 221 | E71: 43 | F71: 53 | G71: 49 | H71: 40 | I71: 36
A72: 1361 | B72: FREDERICK DOUGLASS ELEMENTARY | C72: 2 | F72: 2
A73: 1371 | B73: MARJORY STONEMAN DOUGLAS ELEM | C73: 97 | E73: 40 | F73: 57
A74: 1401 | B74: CHARLES R. DREW K-8 CENTER | C74: 12 | E74: 7 | F74: 2 | G74: 3
A75: 1441 | B75: PAUL LAURENCE DUNBAR K-8 CTR | C75: 8 | E75: 4 | F75: 3 | G75: 1
A76: 1481 | B76: JOHN G. DUPUIS ELEMENTARY | C76: 55 | E76: 26 | F76: 29
A77: 1521 | B77: AMELIA EARHART ELEMENTARY | C77: 31 | E77: 12 | F77: 19
A78: 1561 | B78: EARLINGTON HEIGHTS ELEMENTARY | C78: 11 | E78: 6 | F78: 5
A79: 1601 | B79: EDISON PARK K-8 CENTER | C79: 9 | E79: 2 | F79: 3 | G79: 4
A80: 1641 | B80: EMERSON ELEMENTARY | C80: 34 | E80: 15 | F80: 19
A81: 1681 | B81: LILLIE C. EVANS K-8 CENTER | C81: 27 | E81: 5 | F81: 11 | G81: 5 | H81: 1 | I81: 5
A82: 1691 | B82: CHRISTINA M. EVE ELEMENTARY | C82: 75 | E82: 35 | F82: 40
A83: 1721 | B83: EVERGLADES K-8 CENTER | C83: 187 | E83: 32 | F83: 37 | G83: 39 | H83: 38 | I83: 41
A84: 1761 | B84: DAVID FAIRCHILD ELEMENTARY | C84: 45 | E84: 23 | F84: 22
A85: 1801 | B85: FAIRLAWN ELEMENTARY | C85: 60 | E85: 26 | F85: 34
A86: 1811 | B86: DANTE B. FASCELL ELEMENTARY | C86: 46 | E86: 21 | F86: 25
A87: 1841 | B87: FLAGAMI ELEMENTARY | C87: 33 | E87: 12 | F87: 21
A88: 1881 | B88: HENRY M. FLAGLER ELEMENTARY | C88: 50 | E88: 21 | F88: 29
A89: 1921 | B89: FLAMINGO ELEMENTARY | C89: 51 | E89: 23 | F89: 28
A90: 2001 | B90: FLORIDA CITY ELEMENTARY | C90: 20 | E90: 15 | F90: 5
A91: 2003 | B91: BRIDGEPOINT ACADEMY | C91: 24 | E91: 13 | F91: 11
A92: 2006 | B92: RICHARD ALLEN LEADERSHIP ACAD | C92: 5 | E92: 2 | F92: 3
A93: 2007 | B93: SOMERSET ACADEMY ELEMENTARY | C93: 63 | E93: 46 | F93: 17
A94: 2012 | B94: SOMERSET ARTS ACADEMY | C94: 25 | E94: 14 | F94: 11
A95: 2013 | B95: BRIDGEPOINT ACAD GREATER MIAMI | C95: 9 | E95: 3 | F95: 6
A96: 2021 | B96: GLORIA FLOYD ELEMENTARY | C96: 52 | E96: 29 | F96: 23
A97: 2041 | B97: BENJAMIN FRANKLIN K-8 CENTER | C97: 24 | E97: 3 | F97: 14 | G97: 2 | H97: 5
A98: 2060 | B98: GIBSON CHARTER SCHOOL | C98: 5 | F98: 1 | G98: 2 | I98: 2
A99: 2081 | B99: FULFORD ELEMENTARY | C99: 26 | E99: 15 | F99: 11
A100: 2111 | B100: HIALEAH GARDENS ELEMENTARY | C100: 68 | E100: 33 | F100: 35
A101: 2151 | B101: JACK D. GORDON ELEMENTARY | C101: 128 | E101: 54 | F101: 74
A102: 2161 | B102: GOLDEN GLADES ELEMENTARY | C102: 6 | E102: 3 | F102: 3
A103: 2181 | B103: JOELLA C. GOOD ELEMENTARY | C103: 66 | E103: 34 | F103: 32
A104: 2191 | B104: SPANISH LAKE ELEMENTARY | C104: 132 | E104: 56 | F104: 76
A105: 2241 | B105: GRATIGNY ELEMENTARY | C105: 23 | E105: 7 | F105: 10 | G105: 6
A106: 2261 | B106: GREENGLADE ELEMENTARY | C106: 40 | E106: 14 | F106: 26
A107: 2281 | B107: GREYNOLDS PARK ELEMENTARY | C107: 41 | E107: 19 | F107: 22
A108: 2321 | B108: GULFSTREAM ELEMENTARY | C108: 23 | E108: 9 | F108: 14
A109: 2331 | B109: CHARLES R. HADLEY ELEMENTARY | C109: 84 | E109: 42 | F109: 42
A110: 2341 | B110: JOE HALL ELEMENTARY | C110: 42 | E110: 17 | F110: 25
A111: 2351 | B111: ENEIDA MASSAS HARTNER ELEM | C111: 28 | E111: 13 | F111: 15
A112: 2361 | B112: HIALEAH ELEMENTARY | C112: 36 | E112: 17 | F112: 19
A113: 2371 | B113: WEST HIALEAH GARDENS ELEM | C113: 81 | E113: 33 | F113: 48
A114: 2401 | B114: HIBISCUS ELEMENTARY | C114: 29 | E114: 7 | F114: 22
A115: 2441 | B115: VIRGINIA A BOONE/HIGHLAND OAKS | C115: 66 | E115: 42 | F115: 24
A116: 2501 | B116: HOLMES ELEMENTARY | C116: 8 | E116: 3 | F116: 5
A117: 2511 | B117: ZORA NEALE HURSTON ELEMENTARY | C117: 56 | E117: 22 | F117: 34
A118: 2521 | B118: OLIVER HOOVER ELEMENTARY | C118: 76 | E118: 34 | F118: 42
A119: 2541 | B119: HOWARD DRIVE ELEMENTARY | C119: 88 | E119: 52 | F119: 36
A120: 2581 | B120: MADIE IVES ELEMENTARY | C120: 51 | E120: 24 | F120: 27
A121: 2641 | B121: KENDALE ELEMENTARY | C121: 54 | E121: 25 | F121: 29
A122: 2651 | B122: KENDALE LAKES ELEMENTARY | C122: 81 | E122: 29 | F122: 52
A123: 2661 | B123: KENSINGTON PARK ELEMENTARY | C123: 62 | E123: 28 | F123: 34
A124: 2701 | B124: KENWOOD K-8 CENTER | C124: 145 | E124: 28 | F124: 22 | G124: 43 | H124: 29 | I124: 23
A125: 2741 | B125: KEY BISCAYNE K-8 CENTER | C125: 184 | E125: 40 | F125: 53 | G125: 42 | H125: 39 | I125: 10
A126: 2781 | B126: KINLOCH PARK ELEMENTARY | C126: 53 | E126: 23 | F126: 30
A127: 2801 | B127: LAKE STEVENS ELEMENTARY | C127: 14 | E127: 6 | F127: 8
A128: 2821 | B128: LAKEVIEW ELEMENTARY | C128: 11 | E128: 4 | F128: 7
A129: 2881 | B129: LEEWOOD K-8 CENTER | C129: 118 | E129: 31 | F129: 37 | G129: 15 | H129: 18 | I129: 17
A130: 2891 | B130: WILLIAM LEHMAN ELEMENTARY | C130: 57 | E130: 31 | F130: 26
A131: 2901 | B131: LEISURE CITY K-8 CENTER | C131: 68 | E131: 15 | F131: 16 | G131: 11 | H131: 9 | I131: 17
A132: 2911 | B132: LINDA LENTIN K-8 CENTER | C132: 60 | E132: 16 | F132: 12 | G132: 9 | H132: 15 | I132: 8
A133: 2941 | B133: LAURA C. SAUNDERS ELEMENTARY | C133: 18 | E133: 6 | F133: 12
A134: 2981 | B134: LIBERTY CITY ELEMENTARY | C134: 10 | E134: 5 | F134: 5
A135: 3021 | B135: JESSE J MCCRARY JR ELEMENTARY | C135: 18 | E135: 7 | F135: 11
A136: 3024 | B136: FLORIDA INTERNATIONAL EL ACAD | C136: 11 | E136: 6 | F136: 5
A137: 3025 | B137: ADVANTAGE ACADEMY SANTA FE | C137: 14 | E137: 6 | F137: 8
A138: 3029 | B138: DORAL ACADEMY OF TECHNOLOGY | C138: 81 | G138: 26 | H138: 25 | I138: 30
A139: 3030 | B139: DORAL ACADEMY | C139: 103 | E139: 44 | F139: 59
A140: 3032 | B140: PALM GLADES PREPATORY ACADEMY | C140: 67 | G140: 26 | H140: 23 | I140: 18
A141: 3034 | B141: BRIDGEPOINT ACAD VILLAGE GREEN | C141: 5 | E141: 3 | F141: 2
A142: 3041 | B142: LORAH PARK ELEMENTARY | C142: 16 | E142: 6 | F142: 10
A143: 3051 | B143: TOUSSAINT L'OUVERTURE ELEM | C143: 13 | E143: 6 | F143: 7
A144: 3061 | B144: LUDLAM ELEMENTARY | C144: 39 | E144: 15 | F144: 24
A145: 3100 | B145: MATER ACADEMY EAST CHARTER | C145: 62 | E145: 23 | F145: 39
A146: 3101 | B146: FRANK C. MARTIN K-8 CENTER | C146: 244 | E146: 52 | F146: 46 | G146: 54 | H146: 48 | I146: 44
A147: 3111 | B147: WESLEY MATTHEWS ELEMENTARY | C147: 43 | E147: 19 | F147: 24
A148: 3141 | B148: MEADOWLANE ELEMENTARY | C148: 83 | E148: 47 | F148: 36
A149: 3181 | B149: MELROSE ELEMENTARY | C149: 24 | E149: 15 | F149: 9
A150: 3191 | B150: ADA MERRITT K-8 CENTER | C150: 163 | E150: 31 | F150: 27 | G150: 33 | H150: 44 | I150: 28
A151: 3241 | B151: MIAMI GARDENS ELEMENTARY | C151: 15 | E151: 6 | F151: 9
A152: 3261 | B152: MIAMI HEIGHTS ELEMENTARY | C152: 77 | E152: 33 | F152: 44
A153: 3281 | B153: MIAMI LAKES K-8 CENTER | C153: 200 | E153: 46 | F153: 51 | G153: 36 | H153: 36 | I153: 31
A154: 3301 | B154: MIAMI PARK ELEMENTARY | C154: 9 | E154: 4 | F154: 5
A155: 3341 | B155: MIAMI SHORES ELEMENTARY | C155: 58 | E155: 29 | F155: 29
A156: 3381 | B156: MIAMI SPRINGS ELEMENTARY | C156: 64 | E156: 33 | F156: 31
A157: 3421 | B157: M.A. MILAM K-8 CENTER | C157: 104 | E157: 19 | F157: 22 | G157: 22 | H157: 18 | I157: 23
A158: 3431 | B158: PHYLLIS RUTH MILLER ELEMENTARY | C158: 46 | E158: 24 | F158: 22
A159: 3501 | B159: MORNINGSIDE K-8 ACADEMY | C159: 24 | E159: 16 | F159: 8
A160: 3541 | B160: ROBERT RUSSA MOTON ELEMENTARY | C160: 6 | E160: 4 | F160: 2
A161: 3581 | B161: MYRTLE GROVE K-8 CENTER | C161: 16 | E161: 1 | F161: 8 | G161: 7
A162: 3600 | B162: DOWNTOWN MIAMI CHARTER SCHOOL | C162: 54 | E162: 16 | F162: 25 | G162: 13
A163: 3610 | B163: KEYS GATE CHARTER SCHOOL | C163: 219 | E163: 48 | F163: 43 | G163: 55 | H163: 32 | I163: 41
A164: 3621 | B164: COCONUT PALM K-8 ACADEMY | C164: 69 | E164: 16 | F164: 11 | G164: 18 | H164: 18 | I164: 6
A165: 3661 | B165: NATURAL BRIDGE ELEMENTARY | C165: 17 | E165: 8 | F165: 9
A166: 3701 | B166: NORLAND ELEMENTARY | C166: 34 | E166: 13 | F166: 21
A167: 3741 | B167: NORTH BEACH ELEMENTARY | C167: 97 | E167: 37 | F167: 60
A168: 3781 | B168: BARBARA HAWKINS ELEMENTARY | C168: 11 | E168: 7 | F168: 4
A169: 3821 | B169: NORTH COUNTY K-8 CENTER | C169: 15 | E169: 3 | F169: 6 | G169: 5 | H169: 1
A170: 3861 | B170: NORTH GLADE ELEMENTARY | C170: 11 | E170: 4 | F170: 7
A171: 3901 | B171: NORTH HIALEAH ELEMENTARY | C171: 36 | E171: 16 | F171: 20
A172: 3941 | B172: NORTH MIAMI ELEMENTARY | C172: 22 | E172: 10 | F172: 12
A173: 3981 | B173: NORTH TWIN LAKES ELEMENTARY | C173: 39 | E173: 22 | F173: 17
A174: 4000 | B174: MIAMI CHILDREN'S MUSEUM | C174: 19 | E174: 11 | F174: 8
A175: 4001 | B175: NORWOOD ELEMENTARY | C175: 29 | E175: 17 | F175: 12
A176: 4012 | B176: SOMERSET ACAD AT SILVER PALMS | C176: 51 | E176: 21 | F176: 30
A177: 4021 | B177: OAK GROVE ELEMENTARY | C177: 41 | E177: 26 | F177: 11 | G177: 4
A178: 4031 | B178: GATEWAY ENVIRONMENTAL K-8 | C178: 100 | E178: 35 | F178: 26 | G178: 27 | H178: 12
A179: 4061 | B179: OJUS ELEMENTARY | C179: 82 | E179: 42 | F179: 40
A180: 4071 | B180: OLINDA ELEMENTARY | C180: 10 | E180: 4 | F180: 6
A181: 4091 | B181: OLYMPIA HEIGHTS ELEMENTARY | C181: 45 | E181: 26 | F181: 19
A182: 4121 | B182: DR. ROBERT B. INGRAM EL | C182: 5 | E182: 2 | F182: 3
A183: 4171 | B183: ORCHARD VILLA ELEMENTARY | C183: 16 | E183: 9 | F183: 7
A184: 4221 | B184: PALMETTO ELEMENTARY | C184: 68 | E184: 36 | F184: 32
A185: 4241 | B185: PALM LAKES ELEMENTARY | C185: 64 | E185: 32 | F185: 32
A186: 4261 | B186: PALM SPRINGS ELEMENTARY | C186: 45 | E186: 23 | F186: 22
A187: 4281 | B187: PALM SPRINGS NORTH ELEMENTARY | C187: 84 | E187: 46 | F187: 38
A188: 4301 | B188: PARKVIEW ELEMENTARY | C188: 28 | E188: 13 | F188: 15
A189: 4341 | B189: PARKWAY ELEMENTARY | C189: 19 | E189: 9 | F189: 10
A190: 4381 | B190: DR HENRY E PERRINE ACADEMY | C190: 71 | E190: 37 | F190: 34
A191: 4391 | B191: IRVING & BEATRICE PESKOE K-8 | C191: 44 | E191: 13 | F191: 18 | G191: 9 | H191: 4
A192: 4401 | B192: KELSEY L. PHARR ELEMENTARY | C192: 10 | E192: 7 | F192: 3
A193: 4421 | B193: PINECREST ELEMENTARY | C193: 110 | E193: 48 | F193: 62
A194: 4441 | B194: PINE LAKE ELEMENTARY | C194: 18 | E194: 6 | F194: 12
A195: 4461 | B195: PINE VILLA ELEMENTARY | C195: 8 | E195: 5 | F195: 3
A196: 4491 | B196: HENRY E.S. REEVES ELEMENTARY | C196: 38 | E196: 15 | F196: 23
A197: 4501 | B197: POINCIANA PARK ELEMENTARY | C197: 14 | E197: 6 | F197: 8
A198: 4511 | B198: DR GILBERT L. PORTER ELEM | C198: 69 | E198: 37 | F198: 32
A199: 4541 | B199: RAINBOW PARK ELEMENTARY | C199: 23 | E199: 8 | F199: 15
A200: 4581 | B200: REDLAND ELEMENTARY | C200: 54 | E200: 22 | F200: 32
... 240 more rows

Sheet MEM_RL5 (hidden)
A1: 1 | B1: 2 | C1: 3 | D1: 4 | E1: 5 | F1: 6 | G1: 7 | H1: 8 | I1: 9 | J1: 10 | K1: 11
A2: S_SCHOOL_NUM | B2: S_SCHL_NAME | C2: Total Of STUDENT_ID | D2: 04 | E2: 05 | F2: 06 | G2: 07 | H2: 08 | I2: 09 | J2: 10
A3: 0041 | B3: AIR BASE ELEMENTARY | C3: 44 | D3: 25 | E3: 19
A4: 0070 | B4: CORAL REEF MONTESSORI ACAD CH | C4: 32 | D4: 12 | E4: 4 | F4: 4 | G4: 6 | H4: 6
A5: 0071 | B5: EUGENIA B. THOMAS K-8 CENTER | C5: 125 | D5: 22 | E5: 40 | F5: 20 | G5: 23 | H5: 20
A6: 0072 | B6: SUMMERVILLE CHARTER SCHOOL | C6: 15 | D6: 10 | E6: 5
A7: 0073 | B7: MANDARIN LAKES K-8 CENTER | C7: 8 | F7: 1 | G7: 3 | H7: 4
A8: 0081 | B8: LENORA B. SMITH ELEMENTARY | C8: 2 | E8: 2
A9: 0091 | B9: BOB GRAHAM EDUCATION CTR | C9: 161 | D9: 38 | E9: 20 | F9: 29 | G9: 42 | H9: 32
A10: 0092 | B10: NORMAN S. EDELCUP/SUNNY ISLES | C10: 130 | D10: 28 | E10: 15 | F10: 29 | G10: 30 | H10: 28
A11: 0100 | B11: MATER ACADEMY | C11: 34 | D11: 19 | E11: 15
A12: 0101 | B12: ARCOLA LAKE ELEMENTARY | C12: 2 | E12: 2
A13: 0102 | B13: MIAMI COMMUNITY CHARTER SCHOOL | C13: 2 | D13: 2
A14: 0111 | B14: MAYA ANGELOU ELEMENTARY | C14: 4 | D14: 2 | E14: 2
A15: 0121 | B15: AUBURNDALE ELEMENTARY | C15: 11 | D15: 6 | E15: 5
A16: 0122 | B16: DR ROLANDO ESPINOSA K-8 | C16: 117 | D16: 35 | E16: 21 | F16: 23 | G16: 16 | H16: 22
A17: 0125 | B17: NORMA BUTLER BOSSARD ELEM | C17: 57 | D17: 26 | E17: 31
A18: 0201 | B18: BANYAN ELEMENTARY | C18: 15 | D18: 9 | E18: 6
A19: 0211 | B19: DR. MANUEL C. BARREIRO ELEM | C19: 46 | D19: 32 | E19: 14
A20: 0231 | B20: AVENTURA WATERWAYS K-8 CENTER | C20: 117 | D20: 35 | E20: 22 | F20: 20 | G20: 18 | H20: 22
A21: 0241 | B21: RUTH K BROAD/BAY HARBOR K-8 | C21: 92 | D21: 25 | E21: 20 | F21: 26 | G21: 8 | H21: 13
A22: 0251 | B22: ETHEL KOGER BECKHAM ELEMENTARY | C22: 43 | D22: 26 | E22: 17
A23: 0261 | B23: BEL-AIRE ELEMENTARY | C23: 2 | D23: 1 | E23: 1
A24: 0271 | B24: BENT TREE ELEMENTARY | C24: 12 | D24: 6 | E24: 6
A25: 0311 | B25: GOULDS ELEMENTARY | C25: 6 | D25: 5 | E25: 1
A26: 0312 | B26: MATER GARDENS ACADEMY | C26: 27 | D26: 14 | E26: 13
A27: 0321 | B27: BISCAYNE ELEMENTARY | C27: 9 | D27: 4 | E27: 5
A28: 0332 | B28: SOMERSET ACADEMY(SILVER PALMS) | C28: 47 | D28: 5 | E28: 8 | F28: 9 | G28: 14 | H28: 11
A29: 0339 | B29: SOMERSET ACADEMY CHARTER ELEM | C29: 6 | D29: 5 | E29: 1
A30: 0341 | B30: ARCH CREEK ELEMENTARY SCHOOL | C30: 10 | D30: 5 | E30: 5
A31: 0342 | B31: PINECREST ACADEMY SOUTH CAMPUS | C31: 31 | D31: 19 | E31: 12
A32: 0361 | B32: BISCAYNE GARDENS ELEMENTARY | C32: 8 | D32: 6 | E32: 2
A33: 0400 | B33: RENAISSANCE ELEMENTARY CHARTER | C33: 59 | D33: 34 | E33: 25
A34: 0401 | B34: VAN E. BLANTON ELEMENTARY | C34: 6 | D34: 2 | E34: 4
A35: 0410 | B35: ACADEMIR CHARTER SCHOOL WEST | C35: 13 | D35: 9 | E35: 4
A36: 0441 | B36: BLUE LAKES ELEMENTARY | C36: 15 | D36: 7 | E36: 8
A37: 0451 | B37: BOWMAN ASHE/DOOLIN K-8 ACAD | C37: 64 | D37: 17 | E37: 16 | F37: 11 | G37: 10 | H37: 10
A38: 0461 | B38: BRENTWOOD ELEMENTARY | C38: 4 | D38: 3 | E38: 1
A39: 0481 | B39: JAMES H. BRIGHT/JW JOHNSON ES | C39: 9 | D39: 7 | E39: 2
A40: 0510 | B40: ARCHIMEDEAN ACADEMY | C40: 39 | D40: 19 | E40: 20
A41: 0520 | B41: SOMERSET ACADEMY | C41: 18 | D41: 10 | E41: 8
A42: 0521 | B42: BROADMOOR ELEMENTARY | C42: 2 | D42: 2
A43: 0561 | B43: W.J. BRYAN ELEMENTARY | C43: 13 | D43: 7 | E43: 6
A44: 0600 | B44: PINECREST PREP ACADEMY | C44: 47 | D44: 31 | E44: 16
A45: 0641 | B45: BUNCHE PARK ELEMENTARY | C45: 1 | D45: 1
A46: 0651 | B46: CAMPBELL DRIVE K-8 CENTER | C46: 7 | D46: 1 | E46: 3 | F46: 3
A47: 0661 | B47: CARIBBEAN ELEMENTARY | C47: 1 | E47: 1
A48: 0671 | B48: CALUSA ELEMENTARY | C48: 88 | D48: 38 | E48: 50
A49: 0681 | B49: CAROL CITY ELEMENTARY | C49: 1 | E49: 1
A50: 0721 | B50: GEORGE WASHINGTON CARVER ELEM | C50: 11 | D50: 5 | E50: 6
A51: 0761 | B51: FIENBERG/FISHER K-8 CENTER | C51: 19 | D51: 3 | E51: 1 | F51: 5 | G51: 6 | H51: 4
A52: 0771 | B52: WILLIAM A. CHAPMAN ELEMENTARY | C52: 2 | D52: 1 | E52: 1
A53: 0801 | B53: CITRUS GROVE ELEMENTARY | C53: 9 | D53: 5 | E53: 4
A54: 0831 | B54: CLAUDE PEPPER ELEMENTARY | C54: 24 | D54: 11 | E54: 13
A55: 0841 | B55: COCONUT GROVE ELEMENTARY | C55: 8 | D55: 3 | E55: 5
A56: 0861 | B56: COLONIAL DRIVE ELEMENTARY | C56: 3 | D56: 2 | E56: 1
A57: 0881 | B57: COMSTOCK ELEMENTARY | C57: 5 | D57: 2 | E57: 3
A58: 0950 | B58: AVENTURA CITY OF EXCELLENCE | C58: 94 | D58: 19 | E58: 25 | F58: 23 | G58: 17 | H58: 10
A59: 0961 | B59: CORAL GABLES PREPARATORY ACAD | C59: 103 | D59: 23 | E59: 34 | F59: 13 | G59: 19 | H59: 14
A60: 1001 | B60: CORAL PARK ELEMENTARY | C60: 66 | D60: 38 | E60: 28
A61: 1010 | B61: CHARTER SCHOOL AT WATERSTONE | C61: 19 | D61: 7 | E61: 12
A62: 1014 | B62: ADVANCED LEARNING CHARTER SCH | C62: 5 | D62: 5
A63: 1017 | B63: MATER ACADEMY OF INTL STUDIES | C63: 3 | D63: 3
A64: 1020 | B64: YOUTH CO-OP CHARTER SCHOOL | C64: 34 | D64: 6 | E64: 3 | F64: 9 | G64: 8 | H64: 8
A65: 1041 | B65: CORAL REEF ELEMENTARY | C65: 83 | D65: 46 | E65: 37
A66: 1081 | B66: CORAL TERRACE ELEMENTARY | C66: 14 | D66: 8 | E66: 6
A67: 1121 | B67: CORAL WAY K-8 CENTER | C67: 83 | D67: 18 | E67: 16 | F67: 18 | G67: 19 | H67: 12
A68: 1161 | B68: CRESTVIEW ELEMENTARY | C68: 10 | D68: 4 | E68: 6
A69: 1241 | B69: CUTLER RIDGE ELEMENTARY | C69: 29 | D69: 8 | E69: 21
A70: 1281 | B70: CYPRESS ELEMENTARY | C70: 14 | D70: 8 | E70: 6
A71: 1331 | B71: DEVON AIRE K-8 CENTER | C71: 138 | D71: 25 | E71: 36 | F71: 27 | G71: 17 | H71: 33
A72: 1371 | B72: MARJORY STONEMAN DOUGLAS ELEM | C72: 38 | D72: 17 | E72: 21
A73: 1401 | B73: CHARLES R. DREW K-8 CENTER | C73: 2 | D73: 1 | F73: 1
A74: 1441 | B74: PAUL LAURENCE DUNBAR K-8 CTR | C74: 1 | D74: 1
A75: 1481 | B75: JOHN G. DUPUIS ELEMENTARY | C75: 16 | D75: 10 | E75: 6
A76: 1521 | B76: AMELIA EARHART ELEMENTARY | C76: 6 | D76: 3 | E76: 3
A77: 1601 | B77: EDISON PARK K-8 CENTER | C77: 1 | D77: 1
A78: 1641 | B78: EMERSON ELEMENTARY | C78: 11 | D78: 3 | E78: 8
A79: 1681 | B79: LILLIE C. EVANS K-8 CENTER | C79: 2 | E79: 1 | F79: 1
A80: 1691 | B80: CHRISTINA M. EVE ELEMENTARY | C80: 46 | D80: 27 | E80: 19
A81: 1721 | B81: EVERGLADES K-8 CENTER | C81: 72 | D81: 14 | E81: 13 | F81: 18 | G81: 13 | H81: 14
A82: 1761 | B82: DAVID FAIRCHILD ELEMENTARY | C82: 51 | D82: 26 | E82: 25
A83: 1801 | B83: FAIRLAWN ELEMENTARY | C83: 12 | D83: 3 | E83: 9
A84: 1811 | B84: DANTE B. FASCELL ELEMENTARY | C84: 29 | D84: 9 | E84: 20
A85: 1841 | B85: FLAGAMI ELEMENTARY | C85: 9 | D85: 5 | E85: 4
A86: 1881 | B86: HENRY M. FLAGLER ELEMENTARY | C86: 22 | D86: 11 | E86: 11
A87: 1921 | B87: FLAMINGO ELEMENTARY | C87: 19 | D87: 8 | E87: 11
A88: 2001 | B88: FLORIDA CITY ELEMENTARY | C88: 5 | D88: 3 | E88: 2
A89: 2003 | B89: BRIDGEPOINT ACADEMY | C89: 13 | D89: 6 | E89: 7
A90: 2006 | B90: RICHARD ALLEN LEADERSHIP ACAD | C90: 2 | D90: 2
A91: 2007 | B91: SOMERSET ACADEMY ELEMENTARY | C91: 28 | D91: 19 | E91: 9
A92: 2012 | B92: SOMERSET ARTS ACADEMY | C92: 10 | D92: 7 | E92: 3
A93: 2013 | B93: BRIDGEPOINT ACAD GREATER MIAMI | C93: 6 | D93: 4 | E93: 2
A94: 2021 | B94: GLORIA FLOYD ELEMENTARY | C94: 16 | D94: 6 | E94: 10
A95: 2041 | B95: BENJAMIN FRANKLIN K-8 CENTER | C95: 6 | D95: 2 | E95: 1 | F95: 2 | G95: 1
A96: 2060 | B96: GIBSON CHARTER SCHOOL | C96: 3 | D96: 1 | F96: 1 | G96: 1
A97: 2081 | B97: FULFORD ELEMENTARY | C97: 5 | D97: 2 | E97: 3
A98: 2111 | B98: HIALEAH GARDENS ELEMENTARY | C98: 27 | D98: 11 | E98: 16
A99: 2151 | B99: JACK D. GORDON ELEMENTARY | C99: 48 | D99: 27 | E99: 21
A100: 2161 | B100: GOLDEN GLADES ELEMENTARY | C100: 4 | D100: 4
A101: 2181 | B101: JOELLA C. GOOD ELEMENTARY | C101: 28 | D101: 15 | E101: 13
A102: 2191 | B102: SPANISH LAKE ELEMENTARY | C102: 58 | D102: 29 | E102: 29
A103: 2241 | B103: GRATIGNY ELEMENTARY | C103: 7 | D103: 1 | E103: 4 | F103: 2
A104: 2261 | B104: GREENGLADE ELEMENTARY | C104: 21 | D104: 11 | E104: 10
A105: 2281 | B105: GREYNOLDS PARK ELEMENTARY | C105: 12 | D105: 6 | E105: 6
A106: 2321 | B106: GULFSTREAM ELEMENTARY | C106: 9 | D106: 6 | E106: 3
A107: 2331 | B107: CHARLES R. HADLEY ELEMENTARY | C107: 43 | D107: 29 | E107: 14
A108: 2341 | B108: JOE HALL ELEMENTARY | C108: 22 | D108: 14 | E108: 8
A109: 2351 | B109: ENEIDA MASSAS HARTNER ELEM | C109: 6 | D109: 1 | E109: 5
A110: 2361 | B110: HIALEAH ELEMENTARY | C110: 15 | D110: 5 | E110: 10
A111: 2371 | B111: WEST HIALEAH GARDENS ELEM | C111: 35 | D111: 16 | E111: 19
A112: 2401 | B112: HIBISCUS ELEMENTARY | C112: 7 | D112: 5 | E112: 2
A113: 2441 | B113: VIRGINIA A BOONE/HIGHLAND OAKS | C113: 40 | D113: 24 | E113: 16
A114: 2511 | B114: ZORA NEALE HURSTON ELEMENTARY | C114: 35 | D114: 11 | E114: 24
A115: 2521 | B115: OLIVER HOOVER ELEMENTARY | C115: 40 | D115: 22 | E115: 18
A116: 2541 | B116: HOWARD DRIVE ELEMENTARY | C116: 37 | D116: 17 | E116: 20
A117: 2581 | B117: MADIE IVES ELEMENTARY | C117: 24 | D117: 14 | E117: 10
A118: 2641 | B118: KENDALE ELEMENTARY | C118: 23 | D118: 13 | E118: 10
A119: 2651 | B119: KENDALE LAKES ELEMENTARY | C119: 35 | D119: 18 | E119: 17
A120: 2661 | B120: KENSINGTON PARK ELEMENTARY | C120: 22 | D120: 10 | E120: 12
A121: 2701 | B121: KENWOOD K-8 CENTER | C121: 77 | D121: 17 | E121: 12 | F121: 18 | G121: 16 | H121: 14
A122: 2741 | B122: KEY BISCAYNE K-8 CENTER | C122: 131 | D122: 40 | E122: 34 | F122: 27 | G122: 27 | H122: 3
A123: 2781 | B123: KINLOCH PARK ELEMENTARY | C123: 19 | D123: 10 | E123: 9
A124: 2801 | B124: LAKE STEVENS ELEMENTARY | C124: 5 | D124: 3 | E124: 2
A125: 2821 | B125: LAKEVIEW ELEMENTARY | C125: 6 | D125: 3 | E125: 3
A126: 2881 | B126: LEEWOOD K-8 CENTER | C126: 74 | D126: 23 | E126: 8 | F126: 20 | G126: 7 | H126: 16
A127: 2891 | B127: WILLIAM LEHMAN ELEMENTARY | C127: 42 | D127: 21 | E127: 21
A128: 2901 | B128: LEISURE CITY K-8 CENTER | C128: 18 | D128: 5 | E128: 5 | F128: 1 | G128: 2 | H128: 5
A129: 2911 | B129: LINDA LENTIN K-8 CENTER | C129: 32 | D129: 7 | E129: 8 | F129: 6 | G129: 3 | H129: 8
A130: 2941 | B130: LAURA C. SAUNDERS ELEMENTARY | C130: 2 | D130: 2
A131: 2981 | B131: LIBERTY CITY ELEMENTARY | C131: 2 | D131: 1 | E131: 1
A132: 3021 | B132: JESSE J MCCRARY JR ELEMENTARY | C132: 1 | E132: 1
A133: 3024 | B133: FLORIDA INTERNATIONAL EL ACAD | C133: 1 | D133: 1
A134: 3025 | B134: ADVANTAGE ACADEMY SANTA FE | C134: 9 | D134: 6 | E134: 3
A135: 3029 | B135: DORAL ACADEMY OF TECHNOLOGY | C135: 78 | F135: 29 | G135: 23 | H135: 26
A136: 3030 | B136: DORAL ACADEMY | C136: 57 | D136: 30 | E136: 27
A137: 3032 | B137: PALM GLADES PREPATORY ACADEMY | C137: 16 | F137: 8 | G137: 3 | H137: 5
A138: 3041 | B138: LORAH PARK ELEMENTARY | C138: 3 | D138: 1 | E138: 2
A139: 3051 | B139: TOUSSAINT L'OUVERTURE ELEM | C139: 5 | D139: 2 | E139: 3
A140: 3061 | B140: LUDLAM ELEMENTARY | C140: 17 | D140: 10 | E140: 7
A141: 3100 | B141: MATER ACADEMY EAST CHARTER | C141: 17 | D141: 8 | E141: 9
A142: 3101 | B142: FRANK C. MARTIN K-8 CENTER | C142: 125 | D142: 13 | E142: 26 | F142: 30 | G142: 30 | H142: 26
A143: 3111 | B143: WESLEY MATTHEWS ELEMENTARY | C143: 31 | D143: 15 | E143: 16
A144: 3141 | B144: MEADOWLANE ELEMENTARY | C144: 19 | D144: 10 | E144: 9
A145: 3181 | B145: MELROSE ELEMENTARY | C145: 7 | D145: 3 | E145: 4
A146: 3191 | B146: ADA MERRITT K-8 CENTER | C146: 106 | D146: 14 | E146: 15 | F146: 22 | G146: 27 | H146: 28
A147: 3241 | B147: MIAMI GARDENS ELEMENTARY | C147: 7 | D147: 5 | E147: 2
A148: 3261 | B148: MIAMI HEIGHTS ELEMENTARY | C148: 29 | D148: 14 | E148: 15
A149: 3281 | B149: MIAMI LAKES K-8 CENTER | C149: 104 | D149: 31 | E149: 11 | F149: 16 | G149: 22 | H149: 24
A150: 3301 | B150: MIAMI PARK ELEMENTARY | C150: 3 | D150: 1 | E150: 2
A151: 3341 | B151: MIAMI SHORES ELEMENTARY | C151: 27 | D151: 15 | E151: 12
A152: 3381 | B152: MIAMI SPRINGS ELEMENTARY | C152: 21 | D152: 9 | E152: 12
A153: 3421 | B153: M.A. MILAM K-8 CENTER | C153: 35 | D153: 4 | E153: 9 | F153: 5 | G153: 10 | H153: 7
A154: 3431 | B154: PHYLLIS RUTH MILLER ELEMENTARY | C154: 16 | D154: 9 | E154: 7
A155: 3501 | B155: MORNINGSIDE K-8 ACADEMY | C155: 4 | D155: 2 | E155: 2
A156: 3581 | B156: MYRTLE GROVE K-8 CENTER | C156: 7 | D156: 4 | E156: 1 | F156: 2
A157: 3600 | B157: DOWNTOWN MIAMI CHARTER SCHOOL | C157: 14 | D157: 8 | E157: 3 | F157: 3
A158: 3610 | B158: KEYS GATE CHARTER SCHOOL | C158: 79 | D158: 17 | E158: 15 | F158: 15 | G158: 14 | H158: 18
A159: 3621 | B159: COCONUT PALM K-8 ACADEMY | C159: 22 | D159: 3 | E159: 4 | F159: 3 | G159: 9 | H159: 3
A160: 3661 | B160: NATURAL BRIDGE ELEMENTARY | C160: 9 | D160: 5 | E160: 4
A161: 3701 | B161: NORLAND ELEMENTARY | C161: 8 | D161: 5 | E161: 3
A162: 3741 | B162: NORTH BEACH ELEMENTARY | C162: 66 | D162: 36 | E162: 30
A163: 3781 | B163: BARBARA HAWKINS ELEMENTARY | C163: 5 | D163: 3 | E163: 2
A164: 3821 | B164: NORTH COUNTY K-8 CENTER | C164: 3 | E164: 1 | F164: 1 | G164: 1
A165: 3861 | B165: NORTH GLADE ELEMENTARY | C165: 6 | D165: 2 | E165: 4
A166: 3901 | B166: NORTH HIALEAH ELEMENTARY | C166: 16 | D166: 11 | E166: 5
A167: 3941 | B167: NORTH MIAMI ELEMENTARY | C167: 2 | E167: 2
A168: 3981 | B168: NORTH TWIN LAKES ELEMENTARY | C168: 11 | D168: 5 | E168: 6
A169: 4000 | B169: MIAMI CHILDREN'S MUSEUM | C169: 13 | D169: 5 | E169: 8
A170: 4001 | B170: NORWOOD ELEMENTARY | C170: 9 | D170: 1 | E170: 8
A171: 4012 | B171: SOMERSET ACAD AT SILVER PALMS | C171: 12 | D171: 6 | E171: 6
A172: 4021 | B172: OAK GROVE ELEMENTARY | C172: 11 | D172: 7 | E172: 4
A173: 4031 | B173: GATEWAY ENVIRONMENTAL K-8 | C173: 38 | D173: 11 | E173: 15 | F173: 5 | G173: 7
A174: 4061 | B174: OJUS ELEMENTARY | C174: 35 | D174: 16 | E174: 19
A175: 4071 | B175: OLINDA ELEMENTARY | C175: 2 | D175: 1 | E175: 1
A176: 4091 | B176: OLYMPIA HEIGHTS ELEMENTARY | C176: 6 | D176: 2 | E176: 4
A177: 4121 | B177: DR. ROBERT B. INGRAM EL | C177: 5 | D177: 3 | E177: 2
A178: 4221 | B178: PALMETTO ELEMENTARY | C178: 46 | D178: 19 | E178: 27
A179: 4241 | B179: PALM LAKES ELEMENTARY | C179: 23 | D179: 13 | E179: 10
A180: 4261 | B180: PALM SPRINGS ELEMENTARY | C180: 17 | D180: 5 | E180: 12
A181: 4281 | B181: PALM SPRINGS NORTH ELEMENTARY | C181: 50 | D181: 28 | E181: 22
A182: 4301 | B182: PARKVIEW ELEMENTARY | C182: 2 | D182: 1 | E182: 1
A183: 4341 | B183: PARKWAY ELEMENTARY | C183: 8 | D183: 6 | E183: 2
A184: 4381 | B184: DR HENRY E PERRINE ACADEMY | C184: 41 | D184: 19 | E184: 22
A185: 4391 | B185: IRVING & BEATRICE PESKOE K-8 | C185: 10 | D185: 3 | E185: 2 | F185: 4 | G185: 1
A186: 4401 | B186: KELSEY L. PHARR ELEMENTARY | C186: 1 | E186: 1
A187: 4421 | B187: PINECREST ELEMENTARY | C187: 95 | D187: 51 | E187: 44
A188: 4441 | B188: PINE LAKE ELEMENTARY | C188: 3 | D188: 3
A189: 4461 | B189: PINE VILLA ELEMENTARY | C189: 1 | D189: 1
A190: 4491 | B190: HENRY E.S. REEVES ELEMENTARY | C190: 10 | D190: 2 | E190: 8
A191: 4501 | B191: POINCIANA PARK ELEMENTARY | C191: 2 | E191: 2
A192: 4511 | B192: DR GILBERT L. PORTER ELEM | C192: 25 | D192: 10 | E192: 15
A193: 4541 | B193: RAINBOW PARK ELEMENTARY | C193: 2 | D193: 1 | E193: 1
A194: 4581 | B194: REDLAND ELEMENTARY | C194: 18 | D194: 9 | E194: 9
A195: 4681 | B195: RIVERSIDE ELEMENTARY | C195: 12 | D195: 6 | E195: 6
A196: 4691 | B196: JANE ROBERTS K-8 CENTER | C196: 65 | D196: 7 | E196: 11 | F196: 15 | G196: 15 | H196: 17
A197: 4721 | B197: ROCKWAY ELEMENTARY | C197: 18 | D197: 7 | E197: 11
A198: 4741 | B198: ROYAL GREEN ELEMENTARY | C198: 19 | D198: 8 | E198: 11
A199: 4761 | B199: ROYAL PALM ELEMENTARY | C199: 28 | D199: 14 | E199: 14
A200: 4801 | B200: GERTRUDE EDELMAN/SABAL PALM EL | C200: 5 | D200: 3 | E200: 2
... 222 more rows

Sheet MEM_ML1 (hidden)
A1: 1 | B1: 2 | C1: 3 | D1: 4 | E1: 5 | F1: 6 | G1: 7 | H1: 8 | I1: 9
A2: S_SCHOOL_NUM | B2: S_SCHL_NAME | C2: Total Of STUDENT_ID | D2: 03 | E2: 04 | F2: 05 | G2: 06 | H2: 07 | I2: 08
A3: 0041 | B3: AIR BASE ELEMENTARY | C3: 15 | D3: 2 | E3: 2 | F3: 11
A4: 0070 | B4: CORAL REEF MONTESSORI ACAD CH | C4: 19 | D4: 1 | E4: 4 | F4: 8 | G4: 3 | H4: 2 | I4: 1
A5: 0071 | B5: EUGENIA B. THOMAS K-8 CENTER | C5: 96 | D5: 8 | E5: 12 | F5: 9 | G5: 20 | H5: 28 | I5: 19
A6: 0072 | B6: SUMMERVILLE CHARTER SCHOOL | C6: 35 | D6: 2 | E6: 10 | F6: 23
A7: 0073 | B7: MANDARIN LAKES K-8 CENTER | C7: 168 | D7: 13 | E7: 26 | F7: 14 | G7: 43 | H7: 33 | I7: 39
A8: 0081 | B8: LENORA B. SMITH ELEMENTARY | C8: 52 | D8: 6 | E8: 20 | F8: 26
A9: 0091 | B9: BOB GRAHAM EDUCATION CTR | C9: 142 | D9: 2 | E9: 19 | F9: 21 | G9: 49 | H9: 27 | I9: 24
A10: 0092 | B10: NORMAN S. EDELCUP/SUNNY ISLES | C10: 63 | D10: 1 | E10: 11 | F10: 14 | G10: 5 | H10: 10 | I10: 22
A11: 0100 | B11: MATER ACADEMY | C11: 21 | D11: 5 | E11: 10 | F11: 6
A12: 0101 | B12: ARCOLA LAKE ELEMENTARY | C12: 36 | D12: 7 | E12: 11 | F12: 18
A13: 0102 | B13: MIAMI COMMUNITY CHARTER SCHOOL | C13: 44 | D13: 4 | E13: 24 | F13: 16
A14: 0111 | B14: MAYA ANGELOU ELEMENTARY | C14: 44 | D14: 11 | E14: 15 | F14: 18
A15: 0121 | B15: AUBURNDALE ELEMENTARY | C15: 40 | D15: 3 | E15: 21 | F15: 16
A16: 0122 | B16: DR ROLANDO ESPINOSA K-8 | C16: 122 | D16: 5 | E16: 18 | F16: 10 | G16: 25 | H16: 28 | I16: 36
A17: 0125 | B17: NORMA BUTLER BOSSARD ELEM | C17: 34 | D17: 8 | E17: 9 | F17: 17
A18: 0161 | B18: AVOCADO ELEMENTARY | C18: 16 | D18: 16
A19: 0201 | B19: BANYAN ELEMENTARY | C19: 8 | E19: 5 | F19: 3
A20: 0211 | B20: DR. MANUEL C. BARREIRO ELEM | C20: 29 | D20: 3 | E20: 10 | F20: 16
A21: 0231 | B21: AVENTURA WATERWAYS K-8 CENTER | C21: 119 | D21: 6 | E21: 9 | F21: 43 | G21: 22 | H21: 18 | I21: 21
A22: 0241 | B22: RUTH K BROAD/BAY HARBOR K-8 | C22: 51 | D22: 4 | E22: 9 | F22: 7 | G22: 13 | H22: 7 | I22: 11
A23: 0251 | B23: ETHEL KOGER BECKHAM ELEMENTARY | C23: 5 | D23: 1 | F23: 4
A24: 0261 | B24: BEL-AIRE ELEMENTARY | C24: 46 | D24: 8 | E24: 13 | F24: 25
A25: 0271 | B25: BENT TREE ELEMENTARY | C25: 22 | D25: 2 | E25: 7 | F25: 13
A26: 0311 | B26: GOULDS ELEMENTARY | C26: 29 | D26: 7 | E26: 12 | F26: 10
A27: 0312 | B27: MATER GARDENS ACADEMY | C27: 5 | E27: 3 | F27: 2
A28: 0321 | B28: BISCAYNE ELEMENTARY | C28: 47 | D28: 9 | E28: 21 | F28: 17
A29: 0332 | B29: SOMERSET ACADEMY(SILVER PALMS) | C29: 82 | D29: 2 | E29: 3 | F29: 13 | G29: 20 | H29: 29 | I29: 15
A30: 0339 | B30: SOMERSET ACADEMY CHARTER ELEM | C30: 14 | D30: 1 | E30: 6 | F30: 7
A31: 0341 | B31: ARCH CREEK ELEMENTARY SCHOOL | C31: 60 | D31: 5 | E31: 27 | F31: 28
A32: 0342 | B32: PINECREST ACADEMY SOUTH CAMPUS | C32: 13 | D32: 1 | E32: 6 | F32: 6
A33: 0361 | B33: BISCAYNE GARDENS ELEMENTARY | C33: 52 | D33: 6 | E33: 27 | F33: 19
A34: 0400 | B34: RENAISSANCE ELEMENTARY CHARTER | C34: 9 | E34: 3 | F34: 6
A35: 0401 | B35: VAN E. BLANTON ELEMENTARY | C35: 32 | D35: 11 | E35: 8 | F35: 13
A36: 0410 | B36: ACADEMIR CHARTER SCHOOL WEST | C36: 15 | E36: 10 | F36: 5
A37: 0441 | B37: BLUE LAKES ELEMENTARY | C37: 25 | D37: 1 | E37: 15 | F37: 9
A38: 0451 | B38: BOWMAN ASHE/DOOLIN K-8 ACAD | C38: 188 | D38: 1 | E38: 18 | F38: 12 | G38: 31 | H38: 68 | I38: 58
A39: 0461 | B39: BRENTWOOD ELEMENTARY | C39: 69 | D39: 11 | E39: 25 | F39: 33
A40: 0481 | B40: JAMES H. BRIGHT/JW JOHNSON ES | C40: 43 | D40: 5 | E40: 12 | F40: 26
A41: 0510 | B41: ARCHIMEDEAN ACADEMY | C41: 3 | F41: 3
A42: 0520 | B42: SOMERSET ACADEMY | C42: 2 | E42: 2
A43: 0521 | B43: BROADMOOR ELEMENTARY | C43: 38 | D43: 5 | E43: 13 | F43: 20
A44: 0561 | B44: W.J. BRYAN ELEMENTARY | C44: 59 | D44: 11 | E44: 16 | F44: 32
A45: 0600 | B45: PINECREST PREP ACADEMY | C45: 13 | E45: 8 | F45: 5
A46: 0641 | B46: BUNCHE PARK ELEMENTARY | C46: 16 | D46: 2 | E46: 2 | F46: 12
A47: 0651 | B47: CAMPBELL DRIVE K-8 CENTER | C47: 99 | D47: 10 | E47: 22 | F47: 30 | G47: 22 | H47: 15
A48: 0661 | B48: CARIBBEAN ELEMENTARY | C48: 55 | D48: 8 | E48: 23 | F48: 24
A49: 0671 | B49: CALUSA ELEMENTARY | C49: 16 | D49: 1 | E49: 7 | F49: 8
A50: 0681 | B50: CAROL CITY ELEMENTARY | C50: 40 | D50: 6 | E50: 17 | F50: 17
A51: 0721 | B51: GEORGE WASHINGTON CARVER ELEM | C51: 30 | D51: 2 | E51: 14 | F51: 14
A52: 0761 | B52: FIENBERG/FISHER K-8 CENTER | C52: 117 | D52: 5 | E52: 26 | F52: 32 | G52: 22 | H52: 13 | I52: 19
A53: 0771 | B53: WILLIAM A. CHAPMAN ELEMENTARY | C53: 23 | D53: 6 | E53: 10 | F53: 7
A54: 0801 | B54: CITRUS GROVE ELEMENTARY | C54: 114 | D54: 13 | E54: 51 | F54: 50
A55: 0831 | B55: CLAUDE PEPPER ELEMENTARY | C55: 32 | D55: 2 | E55: 16 | F55: 14
A56: 0841 | B56: COCONUT GROVE ELEMENTARY | C56: 11 | E56: 7 | F56: 4
A57: 0861 | B57: COLONIAL DRIVE ELEMENTARY | C57: 16 | D57: 2 | E57: 6 | F57: 8
A58: 0881 | B58: COMSTOCK ELEMENTARY | C58: 37 | D58: 8 | E58: 15 | F58: 14
A59: 0950 | B59: AVENTURA CITY OF EXCELLENCE | C59: 11 | D59: 1 | E59: 2 | F59: 1 | H59: 7
A60: 0961 | B60: CORAL GABLES PREPARATORY ACAD | C60: 42 | E60: 4 | F60: 7 | G60: 12 | H60: 14 | I60: 5
A61: 1001 | B61: CORAL PARK ELEMENTARY | C61: 19 | E61: 4 | F61: 15
A62: 1010 | B62: CHARTER SCHOOL AT WATERSTONE | C62: 30 | E62: 11 | F62: 19
A63: 1014 | B63: ADVANCED LEARNING CHARTER SCH | C63: 10 | D63: 1 | E63: 5 | F63: 4
A64: 1017 | B64: MATER ACADEMY OF INTL STUDIES | C64: 15 | D64: 2 | E64: 3 | F64: 10
A65: 1020 | B65: YOUTH CO-OP CHARTER SCHOOL | C65: 26 | D65: 1 | E65: 4 | F65: 3 | G65: 3 | H65: 10 | I65: 5
A66: 1041 | B66: CORAL REEF ELEMENTARY | C66: 23 | D66: 2 | E66: 9 | F66: 12
A67: 1081 | B67: CORAL TERRACE ELEMENTARY | C67: 33 | D67: 3 | E67: 9 | F67: 21
A68: 1121 | B68: CORAL WAY K-8 CENTER | C68: 187 | D68: 4 | E68: 25 | F68: 41 | G68: 31 | H68: 42 | I68: 44
A69: 1161 | B69: CRESTVIEW ELEMENTARY | C69: 43 | D69: 5 | E69: 19 | F69: 19
A70: 1241 | B70: CUTLER RIDGE ELEMENTARY | C70: 38 | D70: 4 | E70: 25 | F70: 9
A71: 1281 | B71: CYPRESS ELEMENTARY | C71: 16 | E71: 7 | F71: 9
A72: 1331 | B72: DEVON AIRE K-8 CENTER | C72: 67 | E72: 11 | F72: 15 | G72: 15 | H72: 18 | I72: 8
A73: 1361 | B73: FREDERICK DOUGLASS ELEMENTARY | C73: 26 | D73: 8 | E73: 7 | F73: 11
A74: 1371 | B74: MARJORY STONEMAN DOUGLAS ELEM | C74: 52 | D74: 8 | E74: 21 | F74: 23
A75: 1401 | B75: CHARLES R. DREW K-8 CENTER | C75: 25 | D75: 4 | E75: 2 | F75: 12 | G75: 7
A76: 1441 | B76: PAUL LAURENCE DUNBAR K-8 CTR | C76: 65 | D76: 6 | E76: 22 | F76: 25 | G76: 12
A77: 1481 | B77: JOHN G. DUPUIS ELEMENTARY | C77: 22 | D77: 1 | E77: 6 | F77: 15
A78: 1521 | B78: AMELIA EARHART ELEMENTARY | C78: 32 | D78: 10 | E78: 13 | F78: 9
A79: 1561 | B79: EARLINGTON HEIGHTS ELEMENTARY | C79: 41 | D79: 1 | E79: 22 | F79: 18
A80: 1601 | B80: EDISON PARK K-8 CENTER | C80: 37 | D80: 7 | E80: 10 | F80: 10 | G80: 10
A81: 1641 | B81: EMERSON ELEMENTARY | C81: 13 | D81: 4 | E81: 4 | F81: 5
A82: 1681 | B82: LILLIE C. EVANS K-8 CENTER | C82: 46 | D82: 4 | E82: 18 | F82: 10 | G82: 11 | H82: 2 | I82: 1
A83: 1691 | B83: CHRISTINA M. EVE ELEMENTARY | C83: 10 | E83: 3 | F83: 7
A84: 1721 | B84: EVERGLADES K-8 CENTER | C84: 84 | D84: 2 | E84: 6 | F84: 6 | G84: 6 | H84: 34 | I84: 30
A85: 1761 | B85: DAVID FAIRCHILD ELEMENTARY | C85: 10 | E85: 1 | F85: 9
A86: 1801 | B86: FAIRLAWN ELEMENTARY | C86: 34 | D86: 1 | E86: 12 | F86: 21
A87: 1811 | B87: DANTE B. FASCELL ELEMENTARY | C87: 16 | E87: 7 | F87: 9
A88: 1841 | B88: FLAGAMI ELEMENTARY | C88: 30 | D88: 1 | E88: 10 | F88: 19
A89: 1881 | B89: HENRY M. FLAGLER ELEMENTARY | C89: 59 | D89: 8 | E89: 25 | F89: 26
A90: 1921 | B90: FLAMINGO ELEMENTARY | C90: 92 | D90: 15 | E90: 23 | F90: 54
A91: 2001 | B91: FLORIDA CITY ELEMENTARY | C91: 55 | D91: 5 | E91: 29 | F91: 21
A92: 2003 | B92: BRIDGEPOINT ACADEMY | C92: 3 | E92: 1 | F92: 2
A93: 2006 | B93: RICHARD ALLEN LEADERSHIP ACAD | C93: 6 | E93: 5 | F93: 1
A94: 2007 | B94: SOMERSET ACADEMY ELEMENTARY | C94: 2 | F94: 2
A95: 2012 | B95: SOMERSET ARTS ACADEMY | C95: 17 | D95: 1 | E95: 11 | F95: 5
A96: 2013 | B96: BRIDGEPOINT ACAD GREATER MIAMI | C96: 13 | E96: 6 | F96: 7
A97: 2021 | B97: GLORIA FLOYD ELEMENTARY | C97: 14 | D97: 3 | E97: 5 | F97: 6
A98: 2041 | B98: BENJAMIN FRANKLIN K-8 CENTER | C98: 58 | D98: 3 | E98: 7 | F98: 16 | G98: 20 | H98: 12
A99: 2060 | B99: GIBSON CHARTER SCHOOL | C99: 52 | D99: 3 | E99: 4 | F99: 10 | G99: 10 | H99: 15 | I99: 10
A100: 2081 | B100: FULFORD ELEMENTARY | C100: 51 | D100: 8 | E100: 16 | F100: 27
A101: 2111 | B101: HIALEAH GARDENS ELEMENTARY | C101: 24 | D101: 5 | E101: 10 | F101: 9
A102: 2151 | B102: JACK D. GORDON ELEMENTARY | C102: 41 | D102: 3 | E102: 22 | F102: 16
A103: 2161 | B103: GOLDEN GLADES ELEMENTARY | C103: 18 | D103: 4 | E103: 7 | F103: 7
A104: 2181 | B104: JOELLA C. GOOD ELEMENTARY | C104: 48 | D104: 6 | E104: 21 | F104: 21
A105: 2191 | B105: SPANISH LAKE ELEMENTARY | C105: 56 | D105: 7 | E105: 26 | F105: 23
A106: 2241 | B106: GRATIGNY ELEMENTARY | C106: 81 | D106: 8 | E106: 15 | F106: 33 | G106: 25
A107: 2261 | B107: GREENGLADE ELEMENTARY | C107: 21 | E107: 11 | F107: 10
A108: 2281 | B108: GREYNOLDS PARK ELEMENTARY | C108: 70 | D108: 12 | E108: 24 | F108: 34
A109: 2321 | B109: GULFSTREAM ELEMENTARY | C109: 26 | D109: 2 | E109: 8 | F109: 16
A110: 2331 | B110: CHARLES R. HADLEY ELEMENTARY | C110: 30 | D110: 2 | E110: 16 | F110: 12
A111: 2341 | B111: JOE HALL ELEMENTARY | C111: 30 | D111: 2 | E111: 10 | F111: 18
A112: 2351 | B112: ENEIDA MASSAS HARTNER ELEM | C112: 39 | D112: 6 | E112: 14 | F112: 19
A113: 2361 | B113: HIALEAH ELEMENTARY | C113: 51 | D113: 4 | E113: 26 | F113: 21
A114: 2371 | B114: WEST HIALEAH GARDENS ELEM | C114: 45 | D114: 6 | E114: 17 | F114: 22
A115: 2401 | B115: HIBISCUS ELEMENTARY | C115: 31 | D115: 3 | E115: 9 | F115: 19
A116: 2441 | B116: VIRGINIA A BOONE/HIGHLAND OAKS | C116: 22 | E116: 13 | F116: 9
A117: 2501 | B117: HOLMES ELEMENTARY | C117: 47 | D117: 14 | E117: 18 | F117: 15
A118: 2511 | B118: ZORA NEALE HURSTON ELEMENTARY | C118: 38 | D118: 2 | E118: 31 | F118: 5
A119: 2521 | B119: OLIVER HOOVER ELEMENTARY | C119: 41 | D119: 4 | E119: 17 | F119: 20
A120: 2541 | B120: HOWARD DRIVE ELEMENTARY | C120: 40 | D120: 3 | E120: 16 | F120: 21
A121: 2581 | B121: MADIE IVES ELEMENTARY | C121: 65 | D121: 9 | E121: 21 | F121: 35
A122: 2641 | B122: KENDALE ELEMENTARY | C122: 8 | D122: 1 | E122: 4 | F122: 3
A123: 2651 | B123: KENDALE LAKES ELEMENTARY | C123: 22 | D123: 4 | E123: 13 | F123: 5
A124: 2661 | B124: KENSINGTON PARK ELEMENTARY | C124: 152 | D124: 24 | E124: 54 | F124: 74
A125: 2701 | B125: KENWOOD K-8 CENTER | C125: 61 | D125: 3 | E125: 7 | F125: 11 | G125: 15 | H125: 11 | I125: 14
A126: 2741 | B126: KEY BISCAYNE K-8 CENTER | C126: 28 | D126: 1 | E126: 5 | F126: 3 | G126: 5 | H126: 6 | I126: 8
A127: 2781 | B127: KINLOCH PARK ELEMENTARY | C127: 65 | D127: 8 | E127: 15 | F127: 42
A128: 2801 | B128: LAKE STEVENS ELEMENTARY | C128: 26 | D128: 3 | E128: 12 | F128: 11
A129: 2821 | B129: LAKEVIEW ELEMENTARY | C129: 30 | D129: 7 | E129: 9 | F129: 14
A130: 2881 | B130: LEEWOOD K-8 CENTER | C130: 30 | D130: 1 | E130: 3 | F130: 8 | G130: 8 | H130: 7 | I130: 3
A131: 2891 | B131: WILLIAM LEHMAN ELEMENTARY | C131: 18 | D131: 1 | E131: 9 | F131: 8
A132: 2901 | B132: LEISURE CITY K-8 CENTER | C132: 172 | D132: 7 | E132: 30 | F132: 25 | G132: 36 | H132: 36 | I132: 38
A133: 2911 | B133: LINDA LENTIN K-8 CENTER | C133: 154 | D133: 9 | E133: 20 | F133: 47 | G133: 31 | H133: 20 | I133: 27
A134: 2941 | B134: LAURA C. SAUNDERS ELEMENTARY | C134: 40 | D134: 14 | E134: 7 | F134: 19
A135: 2981 | B135: LIBERTY CITY ELEMENTARY | C135: 24 | D135: 2 | E135: 12 | F135: 10
A136: 3021 | B136: JESSE J MCCRARY JR ELEMENTARY | C136: 33 | D136: 8 | E136: 9 | F136: 16
A137: 3024 | B137: FLORIDA INTERNATIONAL EL ACAD | C137: 36 | D137: 9 | E137: 12 | F137: 15
A138: 3025 | B138: ADVANTAGE ACADEMY SANTA FE | C138: 3 | E138: 2 | F138: 1
A139: 3030 | B139: DORAL ACADEMY | C139: 16 | D139: 1 | E139: 8 | F139: 7
A140: 3032 | B140: PALM GLADES PREPATORY ACADEMY | C140: 107 | G140: 41 | H140: 39 | I140: 27
A141: 3034 | B141: BRIDGEPOINT ACAD VILLAGE GREEN | C141: 3 | F141: 3
A142: 3035 | B142: RAMZ ACADEMY ELEM MIAMI CAMPUS | C142: 3 | D142: 1 | E142: 1 | F142: 1
A143: 3041 | B143: LORAH PARK ELEMENTARY | C143: 30 | D143: 8 | E143: 8 | F143: 14
A144: 3051 | B144: TOUSSAINT L'OUVERTURE ELEM | C144: 56 | D144: 10 | E144: 23 | F144: 23
A145: 3061 | B145: LUDLAM ELEMENTARY | C145: 16 | E145: 6 | F145: 10
A146: 3100 | B146: MATER ACADEMY EAST CHARTER | C146: 1 | F146: 1
A147: 3101 | B147: FRANK C. MARTIN K-8 CENTER | C147: 17 | E147: 2 | F147: 5 | G147: 4 | H147: 2 | I147: 4
A148: 3111 | B148: WESLEY MATTHEWS ELEMENTARY | C148: 12 | E148: 4 | F148: 8
A149: 3141 | B149: MEADOWLANE ELEMENTARY | C149: 77 | D149: 8 | E149: 22 | F149: 47
A150: 3181 | B150: MELROSE ELEMENTARY | C150: 48 | D150: 3 | E150: 18 | F150: 27
A151: 3191 | B151: ADA MERRITT K-8 CENTER | C151: 7 | F151: 2 | G151: 1 | H151: 2 | I151: 2
A152: 3241 | B152: MIAMI GARDENS ELEMENTARY | C152: 14 | D152: 3 | E152: 4 | F152: 7
A153: 3261 | B153: MIAMI HEIGHTS ELEMENTARY | C153: 59 | D153: 10 | E153: 32 | F153: 17
A154: 3281 | B154: MIAMI LAKES K-8 CENTER | C154: 128 | D154: 5 | E154: 11 | F154: 41 | G154: 20 | H154: 28 | I154: 23
A155: 3301 | B155: MIAMI PARK ELEMENTARY | C155: 45 | D155: 11 | E155: 14 | F155: 20
A156: 3341 | B156: MIAMI SHORES ELEMENTARY | C156: 39 | D156: 10 | E156: 12 | F156: 17
A157: 3381 | B157: MIAMI SPRINGS ELEMENTARY | C157: 39 | D157: 2 | E157: 14 | F157: 23
A158: 3421 | B158: M.A. MILAM K-8 CENTER | C158: 169 | D158: 6 | E158: 20 | F158: 32 | G158: 33 | H158: 52 | I158: 26
A159: 3431 | B159: PHYLLIS RUTH MILLER ELEMENTARY | C159: 41 | D159: 4 | E159: 20 | F159: 17
A160: 3501 | B160: MORNINGSIDE K-8 ACADEMY | C160: 47 | D160: 4 | E160: 7 | F160: 23 | G160: 13
A161: 3541 | B161: ROBERT RUSSA MOTON ELEMENTARY | C161: 28 | D161: 8 | E161: 11 | F161: 9
A162: 3581 | B162: MYRTLE GROVE K-8 CENTER | C162: 44 | D162: 6 | E162: 11 | F162: 17 | G162: 10
A163: 3600 | B163: DOWNTOWN MIAMI CHARTER SCHOOL | C163: 40 | D163: 3 | E163: 14 | F163: 7 | G163: 16
A164: 3610 | B164: KEYS GATE CHARTER SCHOOL | C164: 181 | D164: 7 | E164: 18 | F164: 25 | G164: 24 | H164: 60 | I164: 47
A165: 3621 | B165: COCONUT PALM K-8 ACADEMY | C165: 128 | D165: 11 | E165: 19 | F165: 30 | G165: 32 | H165: 20 | I165: 16
A166: 3661 | B166: NATURAL BRIDGE ELEMENTARY | C166: 49 | D166: 5 | E166: 18 | F166: 26
A167: 3701 | B167: NORLAND ELEMENTARY | C167: 44 | D167: 4 | E167: 14 | F167: 26
A168: 3741 | B168: NORTH BEACH ELEMENTARY | C168: 16 | D168: 2 | E168: 3 | F168: 11
A169: 3781 | B169: BARBARA HAWKINS ELEMENTARY | C169: 19 | D169: 3 | E169: 4 | F169: 12
A170: 3821 | B170: NORTH COUNTY K-8 CENTER | C170: 48 | D170: 3 | E170: 7 | F170: 11 | G170: 15 | H170: 12
A171: 3861 | B171: NORTH GLADE ELEMENTARY | C171: 34 | D171: 5 | E171: 20 | F171: 9
A172: 3901 | B172: NORTH HIALEAH ELEMENTARY | C172: 39 | D172: 8 | E172: 14 | F172: 17
A173: 3941 | B173: NORTH MIAMI ELEMENTARY | C173: 52 | D173: 9 | E173: 25 | F173: 18
A174: 3981 | B174: NORTH TWIN LAKES ELEMENTARY | C174: 27 | D174: 5 | E174: 10 | F174: 12
A175: 4000 | B175: MIAMI CHILDREN'S MUSEUM | C175: 9 | E175: 3 | F175: 6
A176: 4001 | B176: NORWOOD ELEMENTARY | C176: 22 | D176: 4 | E176: 5 | F176: 13
A177: 4012 | B177: SOMERSET ACAD AT SILVER PALMS | C177: 24 | D177: 1 | E177: 7 | F177: 16
A178: 4021 | B178: OAK GROVE ELEMENTARY | C178: 59 | D178: 7 | E178: 15 | F178: 19 | G178: 18
A179: 4031 | B179: GATEWAY ENVIRONMENTAL K-8 | C179: 185 | D179: 15 | E179: 35 | F179: 62 | G179: 40 | H179: 33
A180: 4061 | B180: OJUS ELEMENTARY | C180: 37 | D180: 4 | E180: 8 | F180: 25
A181: 4071 | B181: OLINDA ELEMENTARY | C181: 24 | D181: 3 | E181: 10 | F181: 11
A182: 4091 | B182: OLYMPIA HEIGHTS ELEMENTARY | C182: 10 | D182: 1 | E182: 4 | F182: 5
A183: 4121 | B183: DR. ROBERT B. INGRAM EL | C183: 35 | D183: 10 | E183: 9 | F183: 16
A184: 4171 | B184: ORCHARD VILLA ELEMENTARY | C184: 50 | D184: 4 | E184: 28 | F184: 18
A185: 4221 | B185: PALMETTO ELEMENTARY | C185: 19 | D185: 2 | E185: 9 | F185: 8
A186: 4241 | B186: PALM LAKES ELEMENTARY | C186: 59 | D186: 8 | E186: 17 | F186: 34
A187: 4261 | B187: PALM SPRINGS ELEMENTARY | C187: 58 | D187: 9 | E187: 21 | F187: 28
A188: 4281 | B188: PALM SPRINGS NORTH ELEMENTARY | C188: 36 | D188: 3 | E188: 13 | F188: 20
A189: 4301 | B189: PARKVIEW ELEMENTARY | C189: 18 | D189: 4 | E189: 9 | F189: 5
A190: 4341 | B190: PARKWAY ELEMENTARY | C190: 29 | D190: 2 | E190: 16 | F190: 11
A191: 4381 | B191: DR HENRY E PERRINE ACADEMY | C191: 44 | E191: 26 | F191: 18
A192: 4391 | B192: IRVING & BEATRICE PESKOE K-8 | C192: 86 | D192: 10 | E192: 14 | F192: 18 | G192: 25 | H192: 19
A193: 4401 | B193: KELSEY L. PHARR ELEMENTARY | C193: 24 | D193: 6 | E193: 8 | F193: 10
A194: 4421 | B194: PINECREST ELEMENTARY | C194: 19 | D194: 3 | E194: 7 | F194: 9
A195: 4441 | B195: PINE LAKE ELEMENTARY | C195: 51 | D195: 15 | E195: 20 | F195: 16
A196: 4461 | B196: PINE VILLA ELEMENTARY | C196: 16 | D196: 1 | E196: 7 | F196: 8
A197: 4491 | B197: HENRY E.S. REEVES ELEMENTARY | C197: 52 | D197: 16 | E197: 25 | F197: 11
A198: 4501 | B198: POINCIANA PARK ELEMENTARY | C198: 23 | D198: 11 | E198: 4 | F198: 8
A199: 4511 | B199: DR GILBERT L. PORTER ELEM | C199: 28 | D199: 3 | E199: 13 | F199: 12
A200: 4541 | B200: RAINBOW PARK ELEMENTARY | C200: 30 | D200: 3 | E200: 12 | F200: 15
... 170 more rows

Sheet MEM_ML2 (hidden)
A1: 1 | B1: 2 | C1: 3 | D1: 4 | E1: 5 | F1: 6 | G1: 7 | H1: 8 | I1: 9
A2: S_SCHOOL_NUM | B2: S_SCHL_NAME | C2: Total Of STUDENT_ID | D2: 03 | E2: 04 | F2: 05 | G2: 06 | H2: 07 | I2: 08
A3: 0041 | B3: AIR BASE ELEMENTARY | C3: 48 | E3: 20 | F3: 28
A4: 0070 | B4: CORAL REEF MONTESSORI ACAD CH | C4: 49 | D4: 1 | E4: 16 | F4: 12 | G4: 7 | H4: 10 | I4: 3
A5: 0071 | B5: EUGENIA B. THOMAS K-8 CENTER | C5: 177 | D5: 1 | E5: 44 | F5: 26 | G5: 31 | H5: 34 | I5: 41
A6: 0072 | B6: SUMMERVILLE CHARTER SCHOOL | C6: 41 | E6: 23 | F6: 18
A7: 0073 | B7: MANDARIN LAKES K-8 CENTER | C7: 154 | D7: 13 | E7: 26 | F7: 26 | G7: 44 | H7: 13 | I7: 32
A8: 0081 | B8: LENORA B. SMITH ELEMENTARY | C8: 35 | D8: 2 | E8: 18 | F8: 15
A9: 0091 | B9: BOB GRAHAM EDUCATION CTR | C9: 221 | D9: 2 | E9: 38 | F9: 35 | G9: 52 | H9: 48 | I9: 46
A10: 0092 | B10: NORMAN S. EDELCUP/SUNNY ISLES | C10: 108 | E10: 26 | F10: 25 | G10: 23 | H10: 14 | I10: 20
A11: 0100 | B11: MATER ACADEMY | C11: 41 | D11: 3 | E11: 16 | F11: 22
A12: 0101 | B12: ARCOLA LAKE ELEMENTARY | C12: 55 | D12: 7 | E12: 15 | F12: 33
A13: 0102 | B13: MIAMI COMMUNITY CHARTER SCHOOL | C13: 36 | D13: 1 | E13: 20 | F13: 15
A14: 0111 | B14: MAYA ANGELOU ELEMENTARY | C14: 40 | D14: 2 | E14: 23 | F14: 15
A15: 0121 | B15: AUBURNDALE ELEMENTARY | C15: 53 | D15: 1 | E15: 24 | F15: 28
A16: 0122 | B16: DR ROLANDO ESPINOSA K-8 | C16: 176 | D16: 2 | E16: 24 | F16: 23 | G16: 35 | H16: 46 | I16: 46
A17: 0125 | B17: NORMA BUTLER BOSSARD ELEM | C17: 62 | D17: 1 | E17: 33 | F17: 28
A18: 0161 | B18: AVOCADO ELEMENTARY | C18: 4 | D18: 4
A19: 0201 | B19: BANYAN ELEMENTARY | C19: 25 | E19: 14 | F19: 11
A20: 0211 | B20: DR. MANUEL C. BARREIRO ELEM | C20: 69 | E20: 33 | F20: 36
A21: 0231 | B21: AVENTURA WATERWAYS K-8 CENTER | C21: 189 | D21: 10 | E21: 23 | F21: 31 | G21: 39 | H21: 49 | I21: 37
A22: 0241 | B22: RUTH K BROAD/BAY HARBOR K-8 | C22: 83 | E22: 13 | F22: 19 | G22: 22 | H22: 15 | I22: 14
A23: 0251 | B23: ETHEL KOGER BECKHAM ELEMENTARY | C23: 17 | E23: 10 | F23: 7
A24: 0261 | B24: BEL-AIRE ELEMENTARY | C24: 39 | E24: 17 | F24: 22
A25: 0271 | B25: BENT TREE ELEMENTARY | C25: 54 | D25: 2 | E25: 21 | F25: 31
A26: 0311 | B26: GOULDS ELEMENTARY | C26: 50 | D26: 3 | E26: 24 | F26: 23
A27: 0312 | B27: MATER GARDENS ACADEMY | C27: 22 | D27: 1 | E27: 12 | F27: 9
A28: 0321 | B28: BISCAYNE ELEMENTARY | C28: 51 | D28: 4 | E28: 23 | F28: 24
A29: 0332 | B29: SOMERSET ACADEMY(SILVER PALMS) | C29: 178 | E29: 18 | F29: 24 | G29: 51 | H29: 43 | I29: 42
A30: 0339 | B30: SOMERSET ACADEMY CHARTER ELEM | C30: 19 | E30: 8 | F30: 11
A31: 0341 | B31: ARCH CREEK ELEMENTARY SCHOOL | C31: 50 | D31: 2 | E31: 16 | F31: 32
A32: 0342 | B32: PINECREST ACADEMY SOUTH CAMPUS | C32: 36 | D32: 1 | E32: 19 | F32: 16
A33: 0361 | B33: BISCAYNE GARDENS ELEMENTARY | C33: 44 | D33: 3 | E33: 21 | F33: 20
A34: 0400 | B34: RENAISSANCE ELEMENTARY CHARTER | C34: 42 | D34: 1 | E34: 33 | F34: 8
A35: 0401 | B35: VAN E. BLANTON ELEMENTARY | C35: 41 | D35: 4 | E35: 13 | F35: 24
A36: 0410 | B36: ACADEMIR CHARTER SCHOOL WEST | C36: 26 | E36: 12 | F36: 14
A37: 0441 | B37: BLUE LAKES ELEMENTARY | C37: 35 | E37: 22 | F37: 13
A38: 0451 | B38: BOWMAN ASHE/DOOLIN K-8 ACAD | C38: 212 | D38: 2 | E38: 35 | F38: 20 | G38: 37 | H38: 65 | I38: 53
A39: 0461 | B39: BRENTWOOD ELEMENTARY | C39: 75 | D39: 7 | E39: 36 | F39: 32
A40: 0481 | B40: JAMES H. BRIGHT/JW JOHNSON ES | C40: 47 | D40: 7 | E40: 14 | F40: 26
A41: 0510 | B41: ARCHIMEDEAN ACADEMY | C41: 14 | E41: 7 | F41: 7
A42: 0520 | B42: SOMERSET ACADEMY | C42: 17 | D42: 1 | E42: 9 | F42: 7
A43: 0521 | B43: BROADMOOR ELEMENTARY | C43: 34 | E43: 22 | F43: 12
A44: 0561 | B44: W.J. BRYAN ELEMENTARY | C44: 55 | D44: 3 | E44: 21 | F44: 31
A45: 0600 | B45: PINECREST PREP ACADEMY | C45: 47 | E45: 22 | F45: 25
A46: 0641 | B46: BUNCHE PARK ELEMENTARY | C46: 15 | E46: 8 | F46: 7
A47: 0651 | B47: CAMPBELL DRIVE K-8 CENTER | C47: 82 | D47: 3 | E47: 18 | F47: 26 | G47: 17 | H47: 18
A48: 0661 | B48: CARIBBEAN ELEMENTARY | C48: 46 | D48: 4 | E48: 24 | F48: 18
A49: 0671 | B49: CALUSA ELEMENTARY | C49: 36 | D49: 2 | E49: 19 | F49: 15
A50: 0681 | B50: CAROL CITY ELEMENTARY | C50: 54 | D50: 5 | E50: 31 | F50: 18
A51: 0721 | B51: GEORGE WASHINGTON CARVER ELEM | C51: 45 | D51: 3 | E51: 24 | F51: 18
A52: 0761 | B52: FIENBERG/FISHER K-8 CENTER | C52: 123 | D52: 1 | E52: 23 | F52: 23 | G52: 39 | H52: 19 | I52: 18
A53: 0771 | B53: WILLIAM A. CHAPMAN ELEMENTARY | C53: 22 | D53: 1 | E53: 7 | F53: 14
A54: 0801 | B54: CITRUS GROVE ELEMENTARY | C54: 73 | D54: 3 | E54: 45 | F54: 25
A55: 0831 | B55: CLAUDE PEPPER ELEMENTARY | C55: 47 | D55: 2 | E55: 25 | F55: 20
A56: 0841 | B56: COCONUT GROVE ELEMENTARY | C56: 18 | E56: 11 | F56: 7
A57: 0861 | B57: COLONIAL DRIVE ELEMENTARY | C57: 21 | D57: 2 | E57: 9 | F57: 10
A58: 0881 | B58: COMSTOCK ELEMENTARY | C58: 42 | D58: 1 | E58: 22 | F58: 19
A59: 0950 | B59: AVENTURA CITY OF EXCELLENCE | C59: 58 | E59: 13 | F59: 15 | G59: 7 | H59: 11 | I59: 12
A60: 0961 | B60: CORAL GABLES PREPARATORY ACAD | C60: 65 | E60: 12 | F60: 8 | G60: 11 | H60: 23 | I60: 11
A61: 1001 | B61: CORAL PARK ELEMENTARY | C61: 26 | E61: 11 | F61: 15
A62: 1010 | B62: CHARTER SCHOOL AT WATERSTONE | C62: 78 | E62: 45 | F62: 33
A63: 1014 | B63: ADVANCED LEARNING CHARTER SCH | C63: 36 | D63: 4 | E63: 17 | F63: 15
A64: 1017 | B64: MATER ACADEMY OF INTL STUDIES | C64: 28 | D64: 1 | E64: 14 | F64: 13
A65: 1020 | B65: YOUTH CO-OP CHARTER SCHOOL | C65: 89 | D65: 3 | E65: 7 | F65: 13 | G65: 17 | H65: 25 | I65: 24
A66: 1041 | B66: CORAL REEF ELEMENTARY | C66: 41 | D66: 1 | E66: 27 | F66: 13
A67: 1081 | B67: CORAL TERRACE ELEMENTARY | C67: 42 | D67: 2 | E67: 20 | F67: 20
A68: 1121 | B68: CORAL WAY K-8 CENTER | C68: 191 | D68: 1 | E68: 48 | F68: 29 | G68: 43 | H68: 33 | I68: 37
A69: 1161 | B69: CRESTVIEW ELEMENTARY | C69: 52 | D69: 2 | E69: 21 | F69: 29
A70: 1241 | B70: CUTLER RIDGE ELEMENTARY | C70: 65 | D70: 1 | E70: 39 | F70: 25
A71: 1281 | B71: CYPRESS ELEMENTARY | C71: 30 | E71: 15 | F71: 15
A72: 1331 | B72: DEVON AIRE K-8 CENTER | C72: 164 | D72: 2 | E72: 36 | F72: 20 | G72: 38 | H72: 41 | I72: 27
A73: 1361 | B73: FREDERICK DOUGLASS ELEMENTARY | C73: 24 | D73: 2 | E73: 14 | F73: 8
A74: 1371 | B74: MARJORY STONEMAN DOUGLAS ELEM | C74: 64 | D74: 6 | E74: 29 | F74: 29
A75: 1401 | B75: CHARLES R. DREW K-8 CENTER | C75: 28 | E75: 5 | F75: 10 | G75: 13
A76: 1441 | B76: PAUL LAURENCE DUNBAR K-8 CTR | C76: 41 | D76: 1 | E76: 13 | F76: 13 | G76: 14
A77: 1481 | B77: JOHN G. DUPUIS ELEMENTARY | C77: 56 | D77: 1 | E77: 24 | F77: 31
A78: 1521 | B78: AMELIA EARHART ELEMENTARY | C78: 25 | D78: 3 | E78: 9 | F78: 13
A79: 1561 | B79: EARLINGTON HEIGHTS ELEMENTARY | C79: 41 | D79: 2 | E79: 21 | F79: 18
A80: 1601 | B80: EDISON PARK K-8 CENTER | C80: 28 | D80: 2 | E80: 10 | F80: 9 | G80: 7
A81: 1641 | B81: EMERSON ELEMENTARY | C81: 31 | D81: 2 | E81: 16 | F81: 13
A82: 1681 | B82: LILLIE C. EVANS K-8 CENTER | C82: 73 | E82: 17 | F82: 7 | G82: 20 | H82: 17 | I82: 12
A83: 1691 | B83: CHRISTINA M. EVE ELEMENTARY | C83: 20 | D83: 1 | E83: 6 | F83: 13
A84: 1721 | B84: EVERGLADES K-8 CENTER | C84: 149 | E84: 29 | F84: 22 | G84: 26 | H84: 44 | I84: 28
A85: 1761 | B85: DAVID FAIRCHILD ELEMENTARY | C85: 26 | E85: 12 | F85: 14
A86: 1801 | B86: FAIRLAWN ELEMENTARY | C86: 41 | D86: 1 | E86: 24 | F86: 16
A87: 1811 | B87: DANTE B. FASCELL ELEMENTARY | C87: 50 | E87: 27 | F87: 23
A88: 1841 | B88: FLAGAMI ELEMENTARY | C88: 43 | E88: 21 | F88: 22
A89: 1881 | B89: HENRY M. FLAGLER ELEMENTARY | C89: 43 | D89: 1 | E89: 16 | F89: 26
A90: 1921 | B90: FLAMINGO ELEMENTARY | C90: 70 | D90: 3 | E90: 38 | F90: 29
A91: 2001 | B91: FLORIDA CITY ELEMENTARY | C91: 53 | D91: 4 | E91: 22 | F91: 27
A92: 2003 | B92: BRIDGEPOINT ACADEMY | C92: 10 | D92: 1 | E92: 3 | F92: 6
A93: 2006 | B93: RICHARD ALLEN LEADERSHIP ACAD | C93: 8 | E93: 4 | F93: 4
A94: 2007 | B94: SOMERSET ACADEMY ELEMENTARY | C94: 12 | E94: 7 | F94: 5
A95: 2012 | B95: SOMERSET ARTS ACADEMY | C95: 27 | E95: 19 | F95: 8
A96: 2013 | B96: BRIDGEPOINT ACAD GREATER MIAMI | C96: 12 | E96: 7 | F96: 5
A97: 2021 | B97: GLORIA FLOYD ELEMENTARY | C97: 36 | D97: 4 | E97: 11 | F97: 21
A98: 2041 | B98: BENJAMIN FRANKLIN K-8 CENTER | C98: 72 | D98: 1 | E98: 24 | F98: 14 | G98: 17 | H98: 16
A99: 2060 | B99: GIBSON CHARTER SCHOOL | C99: 51 | E99: 6 | F99: 7 | G99: 17 | H99: 9 | I99: 12
A100: 2081 | B100: FULFORD ELEMENTARY | C100: 34 | D100: 4 | E100: 17 | F100: 13
A101: 2111 | B101: HIALEAH GARDENS ELEMENTARY | C101: 43 | D101: 3 | E101: 20 | F101: 20
A102: 2151 | B102: JACK D. GORDON ELEMENTARY | C102: 71 | D102: 4 | E102: 37 | F102: 30
A103: 2161 | B103: GOLDEN GLADES ELEMENTARY | C103: 23 | D103: 2 | E103: 11 | F103: 10
A104: 2181 | B104: JOELLA C. GOOD ELEMENTARY | C104: 71 | D104: 2 | E104: 37 | F104: 32
A105: 2191 | B105: SPANISH LAKE ELEMENTARY | C105: 75 | D105: 2 | E105: 37 | F105: 36
A106: 2241 | B106: GRATIGNY ELEMENTARY | C106: 68 | D106: 3 | E106: 25 | F106: 19 | G106: 21
A107: 2261 | B107: GREENGLADE ELEMENTARY | C107: 35 | E107: 18 | F107: 17
A108: 2281 | B108: GREYNOLDS PARK ELEMENTARY | C108: 51 | D108: 2 | E108: 24 | F108: 25
A109: 2321 | B109: GULFSTREAM ELEMENTARY | C109: 36 | D109: 4 | E109: 21 | F109: 11
A110: 2331 | B110: CHARLES R. HADLEY ELEMENTARY | C110: 52 | D110: 1 | E110: 26 | F110: 25
A111: 2341 | B111: JOE HALL ELEMENTARY | C111: 47 | D111: 2 | E111: 29 | F111: 16
A112: 2351 | B112: ENEIDA MASSAS HARTNER ELEM | C112: 43 | D112: 5 | E112: 23 | F112: 15
A113: 2361 | B113: HIALEAH ELEMENTARY | C113: 49 | D113: 2 | E113: 30 | F113: 17
A114: 2371 | B114: WEST HIALEAH GARDENS ELEM | C114: 79 | D114: 4 | E114: 40 | F114: 35
A115: 2401 | B115: HIBISCUS ELEMENTARY | C115: 51 | D115: 4 | E115: 22 | F115: 25
A116: 2441 | B116: VIRGINIA A BOONE/HIGHLAND OAKS | C116: 34 | D116: 1 | E116: 17 | F116: 16
A117: 2501 | B117: HOLMES ELEMENTARY | C117: 45 | D117: 7 | E117: 20 | F117: 18
A118: 2511 | B118: ZORA NEALE HURSTON ELEMENTARY | C118: 42 | D118: 1 | E118: 16 | F118: 25
A119: 2521 | B119: OLIVER HOOVER ELEMENTARY | C119: 43 | E119: 21 | F119: 22
A120: 2541 | B120: HOWARD DRIVE ELEMENTARY | C120: 52 | E120: 27 | F120: 25
A121: 2581 | B121: MADIE IVES ELEMENTARY | C121: 67 | D121: 2 | E121: 38 | F121: 27
A122: 2641 | B122: KENDALE ELEMENTARY | C122: 22 | E122: 13 | F122: 9
A123: 2651 | B123: KENDALE LAKES ELEMENTARY | C123: 28 | D123: 2 | E123: 17 | F123: 9
A124: 2661 | B124: KENSINGTON PARK ELEMENTARY | C124: 85 | D124: 2 | E124: 51 | F124: 32
A125: 2701 | B125: KENWOOD K-8 CENTER | C125: 135 | D125: 5 | E125: 21 | F125: 18 | G125: 35 | H125: 21 | I125: 35
A126: 2741 | B126: KEY BISCAYNE K-8 CENTER | C126: 67 | D126: 2 | E126: 15 | F126: 7 | G126: 16 | H126: 14 | I126: 13
A127: 2781 | B127: KINLOCH PARK ELEMENTARY | C127: 83 | D127: 3 | E127: 36 | F127: 44
A128: 2801 | B128: LAKE STEVENS ELEMENTARY | C128: 20 | D128: 1 | E128: 9 | F128: 10
A129: 2821 | B129: LAKEVIEW ELEMENTARY | C129: 37 | D129: 3 | E129: 14 | F129: 20
A130: 2881 | B130: LEEWOOD K-8 CENTER | C130: 58 | D130: 1 | E130: 9 | F130: 14 | G130: 14 | H130: 14 | I130: 6
A131: 2891 | B131: WILLIAM LEHMAN ELEMENTARY | C131: 35 | D131: 1 | E131: 22 | F131: 12
A132: 2901 | B132: LEISURE CITY K-8 CENTER | C132: 181 | D132: 6 | E132: 40 | F132: 32 | G132: 26 | H132: 36 | I132: 41
A133: 2911 | B133: LINDA LENTIN K-8 CENTER | C133: 158 | D133: 3 | E133: 24 | F133: 28 | G133: 33 | H133: 30 | I133: 40
A134: 2941 | B134: LAURA C. SAUNDERS ELEMENTARY | C134: 75 | D134: 5 | E134: 34 | F134: 36
A135: 2981 | B135: LIBERTY CITY ELEMENTARY | C135: 38 | D135: 2 | E135: 24 | F135: 12
A136: 3021 | B136: JESSE J MCCRARY JR ELEMENTARY | C136: 44 | D136: 8 | E136: 23 | F136: 13
A137: 3024 | B137: FLORIDA INTERNATIONAL EL ACAD | C137: 44 | D137: 5 | E137: 25 | F137: 14
A138: 3025 | B138: ADVANTAGE ACADEMY SANTA FE | C138: 8 | E138: 6 | F138: 2
A139: 3029 | B139: DORAL ACADEMY OF TECHNOLOGY | C139: 5 | G139: 3 | I139: 2
A140: 3030 | B140: DORAL ACADEMY | C140: 39 | E140: 24 | F140: 15
A141: 3032 | B141: PALM GLADES PREPATORY ACADEMY | C141: 127 | G141: 63 | H141: 35 | I141: 29
A142: 3034 | B142: BRIDGEPOINT ACAD VILLAGE GREEN | C142: 11 | E142: 7 | F142: 4
A143: 3035 | B143: RAMZ ACADEMY ELEM MIAMI CAMPUS | C143: 2 | E143: 2
A144: 3041 | B144: LORAH PARK ELEMENTARY | C144: 30 | D144: 1 | E144: 8 | F144: 21
A145: 3051 | B145: TOUSSAINT L'OUVERTURE ELEM | C145: 37 | D145: 4 | E145: 19 | F145: 14
A146: 3061 | B146: LUDLAM ELEMENTARY | C146: 11 | E146: 5 | F146: 6
A147: 3100 | B147: MATER ACADEMY EAST CHARTER | C147: 8 | E147: 3 | F147: 5
A148: 3101 | B148: FRANK C. MARTIN K-8 CENTER | C148: 95 | E148: 18 | F148: 19 | G148: 23 | H148: 19 | I148: 16
A149: 3111 | B149: WESLEY MATTHEWS ELEMENTARY | C149: 28 | E149: 18 | F149: 10
A150: 3141 | B150: MEADOWLANE ELEMENTARY | C150: 96 | D150: 4 | E150: 38 | F150: 54
A151: 3181 | B151: MELROSE ELEMENTARY | C151: 40 | D151: 2 | E151: 23 | F151: 15
A152: 3191 | B152: ADA MERRITT K-8 CENTER | C152: 51 | E152: 7 | F152: 10 | G152: 12 | H152: 15 | I152: 7
A153: 3241 | B153: MIAMI GARDENS ELEMENTARY | C153: 31 | D153: 2 | E153: 19 | F153: 10
A154: 3261 | B154: MIAMI HEIGHTS ELEMENTARY | C154: 68 | D154: 4 | E154: 37 | F154: 27
A155: 3281 | B155: MIAMI LAKES K-8 CENTER | C155: 158 | E155: 24 | F155: 30 | G155: 44 | H155: 30 | I155: 30
A156: 3301 | B156: MIAMI PARK ELEMENTARY | C156: 38 | D156: 2 | E156: 21 | F156: 15
A157: 3341 | B157: MIAMI SHORES ELEMENTARY | C157: 48 | D157: 4 | E157: 23 | F157: 21
A158: 3381 | B158: MIAMI SPRINGS ELEMENTARY | C158: 46 | D158: 2 | E158: 28 | F158: 16
A159: 3421 | B159: M.A. MILAM K-8 CENTER | C159: 168 | E159: 21 | F159: 26 | G159: 33 | H159: 49 | I159: 39
A160: 3431 | B160: PHYLLIS RUTH MILLER ELEMENTARY | C160: 57 | D160: 1 | E160: 25 | F160: 31
A161: 3501 | B161: MORNINGSIDE K-8 ACADEMY | C161: 54 | D161: 3 | E161: 29 | F161: 13 | G161: 9
A162: 3541 | B162: ROBERT RUSSA MOTON ELEMENTARY | C162: 29 | D162: 1 | E162: 18 | F162: 10
A163: 3581 | B163: MYRTLE GROVE K-8 CENTER | C163: 30 | D163: 1 | E163: 8 | F163: 10 | G163: 11
A164: 3600 | B164: DOWNTOWN MIAMI CHARTER SCHOOL | C164: 74 | E164: 24 | F164: 21 | G164: 29
A165: 3610 | B165: KEYS GATE CHARTER SCHOOL | C165: 340 | D165: 6 | E165: 31 | F165: 40 | G165: 78 | H165: 109 | I165: 76
A166: 3621 | B166: COCONUT PALM K-8 ACADEMY | C166: 193 | D166: 5 | E166: 30 | F166: 40 | G166: 55 | H166: 37 | I166: 26
A167: 3661 | B167: NATURAL BRIDGE ELEMENTARY | C167: 39 | D167: 2 | E167: 26 | F167: 11
A168: 3701 | B168: NORLAND ELEMENTARY | C168: 46 | D168: 2 | E168: 20 | F168: 24
A169: 3741 | B169: NORTH BEACH ELEMENTARY | C169: 29 | E169: 15 | F169: 14
A170: 3781 | B170: BARBARA HAWKINS ELEMENTARY | C170: 28 | D170: 3 | E170: 13 | F170: 12
A171: 3821 | B171: NORTH COUNTY K-8 CENTER | C171: 47 | D171: 5 | E171: 10 | F171: 11 | G171: 9 | H171: 12
A172: 3861 | B172: NORTH GLADE ELEMENTARY | C172: 22 | E172: 11 | F172: 11
A173: 3901 | B173: NORTH HIALEAH ELEMENTARY | C173: 63 | D173: 4 | E173: 34 | F173: 25
A174: 3941 | B174: NORTH MIAMI ELEMENTARY | C174: 51 | D174: 5 | E174: 25 | F174: 21
A175: 3981 | B175: NORTH TWIN LAKES ELEMENTARY | C175: 51 | D175: 1 | E175: 31 | F175: 19
A176: 4000 | B176: MIAMI CHILDREN'S MUSEUM | C176: 15 | E176: 5 | F176: 10
A177: 4001 | B177: NORWOOD ELEMENTARY | C177: 19 | D177: 2 | E177: 6 | F177: 11
A178: 4012 | B178: SOMERSET ACAD AT SILVER PALMS | C178: 41 | E178: 27 | F178: 14
A179: 4021 | B179: OAK GROVE ELEMENTARY | C179: 64 | D179: 4 | E179: 20 | F179: 22 | G179: 18
A180: 4031 | B180: GATEWAY ENVIRONMENTAL K-8 | C180: 161 | D180: 3 | E180: 49 | F180: 33 | G180: 44 | H180: 32
A181: 4061 | B181: OJUS ELEMENTARY | C181: 38 | D181: 3 | E181: 20 | F181: 15
A182: 4071 | B182: OLINDA ELEMENTARY | C182: 24 | D182: 2 | E182: 15 | F182: 7
A183: 4091 | B183: OLYMPIA HEIGHTS ELEMENTARY | C183: 41 | D183: 1 | E183: 15 | F183: 25
A184: 4121 | B184: DR. ROBERT B. INGRAM EL | C184: 40 | E184: 24 | F184: 16
A185: 4171 | B185: ORCHARD VILLA ELEMENTARY | C185: 29 | D185: 1 | E185: 12 | F185: 16
A186: 4221 | B186: PALMETTO ELEMENTARY | C186: 25 | D186: 1 | E186: 16 | F186: 8
A187: 4241 | B187: PALM LAKES ELEMENTARY | C187: 80 | D187: 2 | E187: 40 | F187: 38
A188: 4261 | B188: PALM SPRINGS ELEMENTARY | C188: 52 | D188: 2 | E188: 31 | F188: 19
A189: 4281 | B189: PALM SPRINGS NORTH ELEMENTARY | C189: 57 | E189: 32 | F189: 25
A190: 4301 | B190: PARKVIEW ELEMENTARY | C190: 24 | D190: 3 | E190: 11 | F190: 10
A191: 4341 | B191: PARKWAY ELEMENTARY | C191: 34 | E191: 19 | F191: 15
A192: 4381 | B192: DR HENRY E PERRINE ACADEMY | C192: 71 | E192: 33 | F192: 38
A193: 4391 | B193: IRVING & BEATRICE PESKOE K-8 | C193: 77 | D193: 3 | E193: 20 | F193: 27 | G193: 17 | H193: 10
A194: 4401 | B194: KELSEY L. PHARR ELEMENTARY | C194: 28 | D194: 3 | E194: 10 | F194: 15
A195: 4421 | B195: PINECREST ELEMENTARY | C195: 42 | E195: 21 | F195: 21
A196: 4441 | B196: PINE LAKE ELEMENTARY | C196: 46 | E196: 24 | F196: 22
A197: 4461 | B197: PINE VILLA ELEMENTARY | C197: 29 | D197: 2 | E197: 19 | F197: 8
A198: 4491 | B198: HENRY E.S. REEVES ELEMENTARY | C198: 68 | D198: 7 | E198: 40 | F198: 21
A199: 4501 | B199: POINCIANA PARK ELEMENTARY | C199: 22 | D199: 4 | E199: 9 | F199: 9
A200: 4511 | B200: DR GILBERT L. PORTER ELEM | C200: 51 | D200: 2 | E200: 29 | F200: 20
... 171 more rows

Sheet MEM_ML3 (hidden)
A1: 1 | B1: 2 | C1: 3 | D1: 4 | E1: 5 | F1: 6 | G1: 7 | H1: 8 | I1: 9
A2: S_SCHOOL_NUM | B2: S_SCHL_NAME | C2: Total Of STUDENT_ID | D2: 03 | E2: 04 | F2: 05 | G2: 06 | H2: 07 | I2: 08
A3: 0041 | B3: AIR BASE ELEMENTARY | C3: 95 | E3: 57 | F3: 38
A4: 0070 | B4: CORAL REEF MONTESSORI ACAD CH | C4: 61 | E4: 12 | F4: 16 | G4: 9 | H4: 10 | I4: 14
A5: 0071 | B5: EUGENIA B. THOMAS K-8 CENTER | C5: 234 | E5: 73 | F5: 36 | G5: 43 | H5: 42 | I5: 40
A6: 0072 | B6: SUMMERVILLE CHARTER SCHOOL | C6: 45 | E6: 23 | F6: 22
A7: 0073 | B7: MANDARIN LAKES K-8 CENTER | C7: 132 | D7: 5 | E7: 34 | F7: 49 | G7: 9 | H7: 15 | I7: 20
A8: 0081 | B8: LENORA B. SMITH ELEMENTARY | C8: 28 | E8: 18 | F8: 10
A9: 0091 | B9: BOB GRAHAM EDUCATION CTR | C9: 282 | D9: 1 | E9: 69 | F9: 49 | G9: 47 | H9: 49 | I9: 67
A10: 0092 | B10: NORMAN S. EDELCUP/SUNNY ISLES | C10: 235 | D10: 1 | E10: 54 | F10: 44 | G10: 50 | H10: 51 | I10: 35
A11: 0100 | B11: MATER ACADEMY | C11: 86 | E11: 37 | F11: 49
A12: 0101 | B12: ARCOLA LAKE ELEMENTARY | C12: 42 | E12: 15 | F12: 27
A13: 0102 | B13: MIAMI COMMUNITY CHARTER SCHOOL | C13: 36 | D13: 1 | E13: 16 | F13: 19
A14: 0111 | B14: MAYA ANGELOU ELEMENTARY | C14: 62 | D14: 1 | E14: 26 | F14: 35
A15: 0121 | B15: AUBURNDALE ELEMENTARY | C15: 90 | E15: 46 | F15: 44
A16: 0122 | B16: DR ROLANDO ESPINOSA K-8 | C16: 253 | E16: 62 | F16: 48 | G16: 59 | H16: 45 | I16: 39
A17: 0125 | B17: NORMA BUTLER BOSSARD ELEM | C17: 168 | D17: 1 | E17: 89 | F17: 78
A18: 0161 | B18: AVOCADO ELEMENTARY | C18: 1 | D18: 1
A19: 0201 | B19: BANYAN ELEMENTARY | C19: 31 | E19: 20 | F19: 11
A20: 0211 | B20: DR. MANUEL C. BARREIRO ELEM | C20: 111 | D20: 1 | E20: 56 | F20: 54
A21: 0231 | B21: AVENTURA WATERWAYS K-8 CENTER | C21: 289 | D21: 2 | E21: 54 | F21: 56 | G21: 57 | H21: 58 | I21: 62
A22: 0241 | B22: RUTH K BROAD/BAY HARBOR K-8 | C22: 193 | D22: 1 | E22: 50 | F22: 33 | G22: 45 | H22: 28 | I22: 36
A23: 0251 | B23: ETHEL KOGER BECKHAM ELEMENTARY | C23: 69 | E23: 34 | F23: 35
A24: 0261 | B24: BEL-AIRE ELEMENTARY | C24: 32 | E24: 21 | F24: 11
A25: 0271 | B25: BENT TREE ELEMENTARY | C25: 53 | E25: 25 | F25: 28
A26: 0311 | B26: GOULDS ELEMENTARY | C26: 60 | E26: 30 | F26: 30
A27: 0312 | B27: MATER GARDENS ACADEMY | C27: 58 | E27: 33 | F27: 25
A28: 0321 | B28: BISCAYNE ELEMENTARY | C28: 66 | D28: 2 | E28: 33 | F28: 31
A29: 0332 | B29: SOMERSET ACADEMY(SILVER PALMS) | C29: 163 | E29: 16 | F29: 24 | G29: 51 | H29: 40 | I29: 32
A30: 0339 | B30: SOMERSET ACADEMY CHARTER ELEM | C30: 35 | E30: 17 | F30: 18
A31: 0341 | B31: ARCH CREEK ELEMENTARY SCHOOL | C31: 57 | E31: 29 | F31: 28
A32: 0342 | B32: PINECREST ACADEMY SOUTH CAMPUS | C32: 80 | E32: 40 | F32: 40
A33: 0361 | B33: BISCAYNE GARDENS ELEMENTARY | C33: 40 | D33: 1 | E33: 17 | F33: 22
A34: 0400 | B34: RENAISSANCE ELEMENTARY CHARTER | C34: 101 | E34: 57 | F34: 44
A35: 0401 | B35: VAN E. BLANTON ELEMENTARY | C35: 54 | D35: 2 | E35: 29 | F35: 23
A36: 0410 | B36: ACADEMIR CHARTER SCHOOL WEST | C36: 34 | E36: 18 | F36: 16
A37: 0441 | B37: BLUE LAKES ELEMENTARY | C37: 36 | E37: 21 | F37: 15
A38: 0451 | B38: BOWMAN ASHE/DOOLIN K-8 ACAD | C38: 207 | E38: 45 | F38: 35 | G38: 37 | H38: 30 | I38: 60
A39: 0461 | B39: BRENTWOOD ELEMENTARY | C39: 58 | D39: 1 | E39: 27 | F39: 30
A40: 0481 | B40: JAMES H. BRIGHT/JW JOHNSON ES | C40: 67 | D40: 2 | E40: 37 | F40: 28
A41: 0510 | B41: ARCHIMEDEAN ACADEMY | C41: 38 | E41: 18 | F41: 20
A42: 0520 | B42: SOMERSET ACADEMY | C42: 63 | E42: 29 | F42: 34
A43: 0521 | B43: BROADMOOR ELEMENTARY | C43: 31 | E43: 15 | F43: 16
A44: 0561 | B44: W.J. BRYAN ELEMENTARY | C44: 63 | E44: 38 | F44: 25
A45: 0600 | B45: PINECREST PREP ACADEMY | C45: 72 | E45: 33 | F45: 39
A46: 0641 | B46: BUNCHE PARK ELEMENTARY | C46: 21 | D46: 2 | E46: 13 | F46: 6
A47: 0651 | B47: CAMPBELL DRIVE K-8 CENTER | C47: 78 | D47: 1 | E47: 28 | F47: 19 | G47: 11 | H47: 19
A48: 0661 | B48: CARIBBEAN ELEMENTARY | C48: 36 | E48: 12 | F48: 24
A49: 0671 | B49: CALUSA ELEMENTARY | C49: 82 | D49: 1 | E49: 50 | F49: 31
A50: 0681 | B50: CAROL CITY ELEMENTARY | C50: 46 | E50: 21 | F50: 25
A51: 0721 | B51: GEORGE WASHINGTON CARVER ELEM | C51: 44 | D51: 2 | E51: 22 | F51: 20
A52: 0761 | B52: FIENBERG/FISHER K-8 CENTER | C52: 116 | E52: 21 | F52: 18 | G52: 20 | H52: 31 | I52: 26
A53: 0771 | B53: WILLIAM A. CHAPMAN ELEMENTARY | C53: 36 | D53: 3 | E53: 18 | F53: 15
A54: 0801 | B54: CITRUS GROVE ELEMENTARY | C54: 63 | E54: 31 | F54: 32
A55: 0831 | B55: CLAUDE PEPPER ELEMENTARY | C55: 65 | E55: 33 | F55: 32
A56: 0841 | B56: COCONUT GROVE ELEMENTARY | C56: 31 | E56: 15 | F56: 16
A57: 0861 | B57: COLONIAL DRIVE ELEMENTARY | C57: 18 | E57: 5 | F57: 13
A58: 0881 | B58: COMSTOCK ELEMENTARY | C58: 42 | E58: 24 | F58: 18
A59: 0950 | B59: AVENTURA CITY OF EXCELLENCE | C59: 153 | E59: 41 | F59: 24 | G59: 30 | H59: 34 | I59: 24
A60: 0961 | B60: CORAL GABLES PREPARATORY ACAD | C60: 120 | E60: 39 | F60: 23 | G60: 15 | H60: 27 | I60: 16
A61: 1001 | B61: CORAL PARK ELEMENTARY | C61: 93 | E61: 54 | F61: 39
A62: 1010 | B62: CHARTER SCHOOL AT WATERSTONE | C62: 130 | E62: 64 | F62: 66
A63: 1014 | B63: ADVANCED LEARNING CHARTER SCH | C63: 39 | E63: 28 | F63: 11
A64: 1017 | B64: MATER ACADEMY OF INTL STUDIES | C64: 30 | E64: 13 | F64: 17
A65: 1020 | B65: YOUTH CO-OP CHARTER SCHOOL | C65: 106 | E65: 13 | F65: 14 | G65: 17 | H65: 32 | I65: 30
A66: 1041 | B66: CORAL REEF ELEMENTARY | C66: 79 | E66: 48 | F66: 31
A67: 1081 | B67: CORAL TERRACE ELEMENTARY | C67: 52 | D67: 1 | E67: 25 | F67: 26
A68: 1121 | B68: CORAL WAY K-8 CENTER | C68: 264 | D68: 2 | E68: 54 | F68: 56 | G68: 55 | H68: 45 | I68: 52
A69: 1161 | B69: CRESTVIEW ELEMENTARY | C69: 53 | E69: 18 | F69: 35
A70: 1241 | B70: CUTLER RIDGE ELEMENTARY | C70: 89 | E70: 43 | F70: 46
A71: 1281 | B71: CYPRESS ELEMENTARY | C71: 40 | E71: 21 | F71: 19
A72: 1331 | B72: DEVON AIRE K-8 CENTER | C72: 269 | E72: 56 | F72: 46 | G72: 50 | H72: 52 | I72: 65
A73: 1361 | B73: FREDERICK DOUGLASS ELEMENTARY | C73: 11 | D73: 2 | E73: 6 | F73: 3
A74: 1371 | B74: MARJORY STONEMAN DOUGLAS ELEM | C74: 109 | E74: 46 | F74: 63
A75: 1401 | B75: CHARLES R. DREW K-8 CENTER | C75: 43 | E75: 16 | F75: 11 | G75: 16
A76: 1441 | B76: PAUL LAURENCE DUNBAR K-8 CTR | C76: 36 | E76: 17 | F76: 12 | G76: 7
A77: 1481 | B77: JOHN G. DUPUIS ELEMENTARY | C77: 65 | E77: 32 | F77: 33
A78: 1521 | B78: AMELIA EARHART ELEMENTARY | C78: 44 | E78: 21 | F78: 23
A79: 1561 | B79: EARLINGTON HEIGHTS ELEMENTARY | C79: 32 | E79: 20 | F79: 12
A80: 1601 | B80: EDISON PARK K-8 CENTER | C80: 32 | D80: 1 | E80: 12 | F80: 13 | G80: 6
A81: 1641 | B81: EMERSON ELEMENTARY | C81: 41 | E81: 16 | F81: 25
A82: 1681 | B82: LILLIE C. EVANS K-8 CENTER | C82: 80 | D82: 1 | E82: 25 | F82: 14 | G82: 22 | H82: 11 | I82: 7
A83: 1691 | B83: CHRISTINA M. EVE ELEMENTARY | C83: 57 | E83: 31 | F83: 26
A84: 1721 | B84: EVERGLADES K-8 CENTER | C84: 184 | D84: 1 | E84: 35 | F84: 32 | G84: 41 | H84: 32 | I84: 43
A85: 1761 | B85: DAVID FAIRCHILD ELEMENTARY | C85: 52 | D85: 1 | E85: 31 | F85: 20
A86: 1801 | B86: FAIRLAWN ELEMENTARY | C86: 75 | E86: 46 | F86: 29
A87: 1811 | B87: DANTE B. FASCELL ELEMENTARY | C87: 41 | E87: 19 | F87: 22
A88: 1841 | B88: FLAGAMI ELEMENTARY | C88: 42 | E88: 22 | F88: 20
A89: 1881 | B89: HENRY M. FLAGLER ELEMENTARY | C89: 79 | D89: 2 | E89: 33 | F89: 44
A90: 1921 | B90: FLAMINGO ELEMENTARY | C90: 74 | D90: 1 | E90: 40 | F90: 33
A91: 2001 | B91: FLORIDA CITY ELEMENTARY | C91: 65 | D91: 1 | E91: 40 | F91: 24
A92: 2003 | B92: BRIDGEPOINT ACADEMY | C92: 26 | E92: 16 | F92: 10
A93: 2006 | B93: RICHARD ALLEN LEADERSHIP ACAD | C93: 7 | E93: 2 | F93: 5
A94: 2007 | B94: SOMERSET ACADEMY ELEMENTARY | C94: 54 | E94: 37 | F94: 17
A95: 2012 | B95: SOMERSET ARTS ACADEMY | C95: 29 | E95: 19 | F95: 10
A96: 2013 | B96: BRIDGEPOINT ACAD GREATER MIAMI | C96: 9 | E96: 6 | F96: 3
A97: 2021 | B97: GLORIA FLOYD ELEMENTARY | C97: 68 | D97: 1 | E97: 33 | F97: 34
A98: 2041 | B98: BENJAMIN FRANKLIN K-8 CENTER | C98: 69 | D98: 1 | E98: 17 | F98: 30 | G98: 12 | H98: 9
A99: 2060 | B99: GIBSON CHARTER SCHOOL | C99: 38 | E99: 6 | F99: 8 | G99: 11 | H99: 6 | I99: 7
A100: 2081 | B100: FULFORD ELEMENTARY | C100: 53 | E100: 32 | F100: 21
A101: 2111 | B101: HIALEAH GARDENS ELEMENTARY | C101: 88 | E101: 49 | F101: 39
A102: 2151 | B102: JACK D. GORDON ELEMENTARY | C102: 131 | E102: 62 | F102: 69
A103: 2161 | B103: GOLDEN GLADES ELEMENTARY | C103: 21 | E103: 12 | F103: 9
A104: 2181 | B104: JOELLA C. GOOD ELEMENTARY | C104: 99 | E104: 50 | F104: 49
A105: 2191 | B105: SPANISH LAKE ELEMENTARY | C105: 169 | E105: 92 | F105: 77
A106: 2241 | B106: GRATIGNY ELEMENTARY | C106: 59 | D106: 3 | E106: 19 | F106: 18 | G106: 19
A107: 2261 | B107: GREENGLADE ELEMENTARY | C107: 44 | E107: 24 | F107: 20
A108: 2281 | B108: GREYNOLDS PARK ELEMENTARY | C108: 60 | E108: 37 | F108: 23
A109: 2321 | B109: GULFSTREAM ELEMENTARY | C109: 33 | E109: 18 | F109: 15
A110: 2331 | B110: CHARLES R. HADLEY ELEMENTARY | C110: 81 | E110: 49 | F110: 32
A111: 2341 | B111: JOE HALL ELEMENTARY | C111: 50 | E111: 19 | F111: 31
A112: 2351 | B112: ENEIDA MASSAS HARTNER ELEM | C112: 53 | D112: 1 | E112: 25 | F112: 27
A113: 2361 | B113: HIALEAH ELEMENTARY | C113: 63 | E113: 34 | F113: 29
A114: 2371 | B114: WEST HIALEAH GARDENS ELEM | C114: 125 | D114: 2 | E114: 85 | F114: 38
A115: 2401 | B115: HIBISCUS ELEMENTARY | C115: 53 | D115: 2 | E115: 23 | F115: 28
A116: 2441 | B116: VIRGINIA A BOONE/HIGHLAND OAKS | C116: 52 | E116: 32 | F116: 20
A117: 2501 | B117: HOLMES ELEMENTARY | C117: 59 | D117: 1 | E117: 25 | F117: 33
A118: 2511 | B118: ZORA NEALE HURSTON ELEMENTARY | C118: 68 | D118: 1 | E118: 30 | F118: 37
A119: 2521 | B119: OLIVER HOOVER ELEMENTARY | C119: 62 | E119: 35 | F119: 27
A120: 2541 | B120: HOWARD DRIVE ELEMENTARY | C120: 67 | E120: 45 | F120: 22
A121: 2581 | B121: MADIE IVES ELEMENTARY | C121: 63 | E121: 33 | F121: 30
A122: 2641 | B122: KENDALE ELEMENTARY | C122: 48 | E122: 29 | F122: 19
A123: 2651 | B123: KENDALE LAKES ELEMENTARY | C123: 62 | E123: 32 | F123: 30
A124: 2661 | B124: KENSINGTON PARK ELEMENTARY | C124: 91 | D124: 2 | E124: 47 | F124: 42
A125: 2701 | B125: KENWOOD K-8 CENTER | C125: 154 | E125: 26 | F125: 25 | G125: 39 | H125: 27 | I125: 37
A126: 2741 | B126: KEY BISCAYNE K-8 CENTER | C126: 181 | E126: 42 | F126: 38 | G126: 39 | H126: 42 | I126: 20
A127: 2781 | B127: KINLOCH PARK ELEMENTARY | C127: 83 | E127: 43 | F127: 40
A128: 2801 | B128: LAKE STEVENS ELEMENTARY | C128: 26 | E128: 15 | F128: 11
A129: 2821 | B129: LAKEVIEW ELEMENTARY | C129: 45 | D129: 2 | E129: 18 | F129: 25
A130: 2881 | B130: LEEWOOD K-8 CENTER | C130: 102 | E130: 30 | F130: 24 | G130: 15 | H130: 19 | I130: 14
A131: 2891 | B131: WILLIAM LEHMAN ELEMENTARY | C131: 53 | E131: 32 | F131: 21
A132: 2901 | B132: LEISURE CITY K-8 CENTER | C132: 158 | D132: 4 | E132: 36 | F132: 30 | G132: 29 | H132: 24 | I132: 35
A133: 2911 | B133: LINDA LENTIN K-8 CENTER | C133: 137 | E133: 29 | F133: 25 | G133: 31 | H133: 30 | I133: 22
A134: 2941 | B134: LAURA C. SAUNDERS ELEMENTARY | C134: 69 | D134: 5 | E134: 35 | F134: 29
A135: 2981 | B135: LIBERTY CITY ELEMENTARY | C135: 34 | E135: 18 | F135: 16
A136: 3021 | B136: JESSE J MCCRARY JR ELEMENTARY | C136: 47 | D136: 2 | E136: 25 | F136: 20
A137: 3024 | B137: FLORIDA INTERNATIONAL EL ACAD | C137: 41 | D137: 4 | E137: 18 | F137: 19
A138: 3025 | B138: ADVANTAGE ACADEMY SANTA FE | C138: 24 | E138: 15 | F138: 9
A139: 3029 | B139: DORAL ACADEMY OF TECHNOLOGY | C139: 51 | G139: 16 | H139: 18 | I139: 17
A140: 3030 | B140: DORAL ACADEMY | C140: 78 | E140: 42 | F140: 36
A141: 3032 | B141: PALM GLADES PREPATORY ACADEMY | C141: 115 | G141: 45 | H141: 29 | I141: 41
A142: 3034 | B142: BRIDGEPOINT ACAD VILLAGE GREEN | C142: 3 | E142: 1 | F142: 2
A143: 3041 | B143: LORAH PARK ELEMENTARY | C143: 42 | D143: 1 | E143: 24 | F143: 17
A144: 3051 | B144: TOUSSAINT L'OUVERTURE ELEM | C144: 39 | E144: 19 | F144: 20
A145: 3061 | B145: LUDLAM ELEMENTARY | C145: 36 | E145: 17 | F145: 19
A146: 3100 | B146: MATER ACADEMY EAST CHARTER | C146: 33 | D146: 1 | E146: 14 | F146: 18
A147: 3101 | B147: FRANK C. MARTIN K-8 CENTER | C147: 222 | E147: 52 | F147: 49 | G147: 30 | H147: 43 | I147: 48
A148: 3111 | B148: WESLEY MATTHEWS ELEMENTARY | C148: 40 | E148: 16 | F148: 24
A149: 3141 | B149: MEADOWLANE ELEMENTARY | C149: 115 | E149: 64 | F149: 51
A150: 3181 | B150: MELROSE ELEMENTARY | C150: 52 | E150: 41 | F150: 11
A151: 3191 | B151: ADA MERRITT K-8 CENTER | C151: 104 | E151: 13 | F151: 15 | G151: 16 | H151: 31 | I151: 29
A152: 3241 | B152: MIAMI GARDENS ELEMENTARY | C152: 19 | D152: 1 | E152: 9 | F152: 9
A153: 3261 | B153: MIAMI HEIGHTS ELEMENTARY | C153: 88 | D153: 1 | E153: 45 | F153: 42
A154: 3281 | B154: MIAMI LAKES K-8 CENTER | C154: 231 | E154: 58 | F154: 38 | G154: 48 | H154: 35 | I154: 52
A155: 3301 | B155: MIAMI PARK ELEMENTARY | C155: 30 | D155: 2 | E155: 14 | F155: 14
A156: 3341 | B156: MIAMI SHORES ELEMENTARY | C156: 80 | D156: 1 | E156: 42 | F156: 37
A157: 3381 | B157: MIAMI SPRINGS ELEMENTARY | C157: 64 | E157: 31 | F157: 33
A158: 3421 | B158: M.A. MILAM K-8 CENTER | C158: 154 | D158: 3 | E158: 29 | F158: 25 | G158: 34 | H158: 28 | I158: 35
A159: 3431 | B159: PHYLLIS RUTH MILLER ELEMENTARY | C159: 44 | E159: 27 | F159: 17
A160: 3501 | B160: MORNINGSIDE K-8 ACADEMY | C160: 42 | E160: 19 | F160: 20 | G160: 3
A161: 3541 | B161: ROBERT RUSSA MOTON ELEMENTARY | C161: 24 | E161: 12 | F161: 12
A162: 3581 | B162: MYRTLE GROVE K-8 CENTER | C162: 42 | D162: 1 | E162: 16 | F162: 12 | G162: 13
A163: 3600 | B163: DOWNTOWN MIAMI CHARTER SCHOOL | C163: 80 | E163: 32 | F163: 28 | G163: 20
A164: 3610 | B164: KEYS GATE CHARTER SCHOOL | C164: 332 | E164: 63 | F164: 62 | G164: 66 | H164: 57 | I164: 84
A165: 3621 | B165: COCONUT PALM K-8 ACADEMY | C165: 165 | D165: 1 | E165: 47 | F165: 38 | G165: 37 | H165: 24 | I165: 18
A166: 3661 | B166: NATURAL BRIDGE ELEMENTARY | C166: 39 | D166: 1 | E166: 16 | F166: 22
A167: 3701 | B167: NORLAND ELEMENTARY | C167: 59 | D167: 1 | E167: 31 | F167: 27
A168: 3741 | B168: NORTH BEACH ELEMENTARY | C168: 71 | E168: 42 | F168: 29
A169: 3781 | B169: BARBARA HAWKINS ELEMENTARY | C169: 29 | E169: 16 | F169: 13
A170: 3821 | B170: NORTH COUNTY K-8 CENTER | C170: 33 | E170: 8 | F170: 7 | G170: 10 | H170: 8
A171: 3861 | B171: NORTH GLADE ELEMENTARY | C171: 20 | E171: 8 | F171: 12
A172: 3901 | B172: NORTH HIALEAH ELEMENTARY | C172: 49 | D172: 1 | E172: 24 | F172: 24
A173: 3941 | B173: NORTH MIAMI ELEMENTARY | C173: 50 | D173: 1 | E173: 28 | F173: 21
A174: 3981 | B174: NORTH TWIN LAKES ELEMENTARY | C174: 49 | E174: 26 | F174: 23
A175: 4000 | B175: MIAMI CHILDREN'S MUSEUM | C175: 34 | E175: 16 | F175: 18
A176: 4001 | B176: NORWOOD ELEMENTARY | C176: 43 | E176: 22 | F176: 21
A177: 4012 | B177: SOMERSET ACAD AT SILVER PALMS | C177: 48 | E177: 30 | F177: 18
A178: 4021 | B178: OAK GROVE ELEMENTARY | C178: 73 | E178: 31 | F178: 28 | G178: 14
A179: 4031 | B179: GATEWAY ENVIRONMENTAL K-8 | C179: 150 | D179: 2 | E179: 56 | F179: 31 | G179: 35 | H179: 26
A180: 4061 | B180: OJUS ELEMENTARY | C180: 105 | D180: 1 | E180: 54 | F180: 50
A181: 4071 | B181: OLINDA ELEMENTARY | C181: 34 | D181: 1 | E181: 14 | F181: 19
A182: 4091 | B182: OLYMPIA HEIGHTS ELEMENTARY | C182: 56 | D182: 1 | E182: 32 | F182: 23
A183: 4121 | B183: DR. ROBERT B. INGRAM EL | C183: 24 | E183: 16 | F183: 8
A184: 4171 | B184: ORCHARD VILLA ELEMENTARY | C184: 27 | E184: 14 | F184: 13
A185: 4221 | B185: PALMETTO ELEMENTARY | C185: 40 | E185: 22 | F185: 18
A186: 4241 | B186: PALM LAKES ELEMENTARY | C186: 89 | E186: 39 | F186: 50
A187: 4261 | B187: PALM SPRINGS ELEMENTARY | C187: 62 | E187: 33 | F187: 29
A188: 4281 | B188: PALM SPRINGS NORTH ELEMENTARY | C188: 91 | E188: 56 | F188: 35
A189: 4301 | B189: PARKVIEW ELEMENTARY | C189: 40 | D189: 2 | E189: 20 | F189: 18
A190: 4341 | B190: PARKWAY ELEMENTARY | C190: 19 | E190: 11 | F190: 8
A191: 4381 | B191: DR HENRY E PERRINE ACADEMY | C191: 68 | E191: 40 | F191: 28
A192: 4391 | B192: IRVING & BEATRICE PESKOE K-8 | C192: 76 | D192: 1 | E192: 27 | F192: 24 | G192: 18 | H192: 6
A193: 4401 | B193: KELSEY L. PHARR ELEMENTARY | C193: 31 | D193: 1 | E193: 19 | F193: 11
A194: 4421 | B194: PINECREST ELEMENTARY | C194: 66 | E194: 32 | F194: 34
A195: 4441 | B195: PINE LAKE ELEMENTARY | C195: 24 | E195: 10 | F195: 14
A196: 4461 | B196: PINE VILLA ELEMENTARY | C196: 20 | E196: 14 | F196: 6
A197: 4491 | B197: HENRY E.S. REEVES ELEMENTARY | C197: 89 | E197: 44 | F197: 45
A198: 4501 | B198: POINCIANA PARK ELEMENTARY | C198: 32 | E198: 16 | F198: 16
A199: 4511 | B199: DR GILBERT L. PORTER ELEM | C199: 78 | E199: 35 | F199: 43
A200: 4541 | B200: RAINBOW PARK ELEMENTARY | C200: 36 | D200: 1 | E200: 18 | F200: 17
... 169 more rows

Sheet MEM_ML4 (hidden)
A1: 1 | B1: 2 | C1: 3 | D1: 4 | E1: 5 | F1: 6 | G1: 7 | H1: 8 | I1: 9
A2: S_SCHOOL_NUM | B2: S_SCHL_NAME | C2: Total Of STUDENT_ID | D2: 03 | E2: 04 | F2: 05 | G2: 06 | H2: 07 | I2: 08
A3: 0041 | B3: AIR BASE ELEMENTARY | C3: 52 | E3: 26 | F3: 26
A4: 0070 | B4: CORAL REEF MONTESSORI ACAD CH | C4: 28 | E4: 7 | F4: 4 | G4: 5 | H4: 3 | I4: 9
A5: 0071 | B5: EUGENIA B. THOMAS K-8 CENTER | C5: 187 | E5: 32 | F5: 50 | G5: 26 | H5: 31 | I5: 48
A6: 0072 | B6: SUMMERVILLE CHARTER SCHOOL | C6: 30 | E6: 13 | F6: 17
A7: 0073 | B7: MANDARIN LAKES K-8 CENTER | C7: 58 | D7: 1 | E7: 18 | F7: 13 | G7: 10 | H7: 6 | I7: 10
A8: 0081 | B8: LENORA B. SMITH ELEMENTARY | C8: 5 | E8: 3 | F8: 2
A9: 0091 | B9: BOB GRAHAM EDUCATION CTR | C9: 282 | E9: 56 | F9: 52 | G9: 44 | H9: 66 | I9: 64
A10: 0092 | B10: NORMAN S. EDELCUP/SUNNY ISLES | C10: 233 | E10: 48 | F10: 35 | G10: 48 | H10: 51 | I10: 51
A11: 0100 | B11: MATER ACADEMY | C11: 60 | E11: 32 | F11: 28
A12: 0101 | B12: ARCOLA LAKE ELEMENTARY | C12: 17 | E12: 11 | F12: 6
A13: 0102 | B13: MIAMI COMMUNITY CHARTER SCHOOL | C13: 26 | E13: 10 | F13: 16
A14: 0111 | B14: MAYA ANGELOU ELEMENTARY | C14: 35 | D14: 1 | E14: 11 | F14: 23
A15: 0121 | B15: AUBURNDALE ELEMENTARY | C15: 52 | E15: 25 | F15: 27
A16: 0122 | B16: DR ROLANDO ESPINOSA K-8 | C16: 176 | E16: 38 | F16: 56 | G16: 32 | H16: 31 | I16: 19
A17: 0125 | B17: NORMA BUTLER BOSSARD ELEM | C17: 112 | E17: 44 | F17: 68
A18: 0161 | B18: AVOCADO ELEMENTARY | C18: 1 | D18: 1
A19: 0201 | B19: BANYAN ELEMENTARY | C19: 28 | E19: 11 | F19: 17
A20: 0211 | B20: DR. MANUEL C. BARREIRO ELEM | C20: 70 | D20: 1 | E20: 29 | F20: 40
A21: 0231 | B21: AVENTURA WATERWAYS K-8 CENTER | C21: 220 | E21: 63 | F21: 34 | G21: 40 | H21: 39 | I21: 44
A22: 0241 | B22: RUTH K BROAD/BAY HARBOR K-8 | C22: 204 | E22: 49 | F22: 31 | G22: 46 | H22: 36 | I22: 42
A23: 0251 | B23: ETHEL KOGER BECKHAM ELEMENTARY | C23: 69 | E23: 35 | F23: 34
A24: 0261 | B24: BEL-AIRE ELEMENTARY | C24: 11 | E24: 4 | F24: 7
A25: 0271 | B25: BENT TREE ELEMENTARY | C25: 40 | E25: 23 | F25: 17
A26: 0311 | B26: GOULDS ELEMENTARY | C26: 26 | E26: 19 | F26: 7
A27: 0312 | B27: MATER GARDENS ACADEMY | C27: 71 | E27: 29 | F27: 42
A28: 0321 | B28: BISCAYNE ELEMENTARY | C28: 34 | E28: 17 | F28: 17
A29: 0332 | B29: SOMERSET ACADEMY(SILVER PALMS) | C29: 103 | E29: 5 | F29: 19 | G29: 32 | H29: 20 | I29: 27
A30: 0339 | B30: SOMERSET ACADEMY CHARTER ELEM | C30: 16 | E30: 11 | F30: 5
A31: 0341 | B31: ARCH CREEK ELEMENTARY SCHOOL | C31: 25 | E31: 17 | F31: 8
A32: 0342 | B32: PINECREST ACADEMY SOUTH CAMPUS | C32: 63 | E32: 30 | F32: 33
A33: 0361 | B33: BISCAYNE GARDENS ELEMENTARY | C33: 20 | E33: 11 | F33: 9
A34: 0400 | B34: RENAISSANCE ELEMENTARY CHARTER | C34: 70 | E34: 38 | F34: 32
A35: 0401 | B35: VAN E. BLANTON ELEMENTARY | C35: 25 | D35: 1 | E35: 14 | F35: 10
A36: 0410 | B36: ACADEMIR CHARTER SCHOOL WEST | C36: 30 | E36: 15 | F36: 15
A37: 0441 | B37: BLUE LAKES ELEMENTARY | C37: 25 | E37: 10 | F37: 15
A38: 0451 | B38: BOWMAN ASHE/DOOLIN K-8 ACAD | C38: 138 | E38: 30 | F38: 38 | G38: 24 | H38: 18 | I38: 28
A39: 0461 | B39: BRENTWOOD ELEMENTARY | C39: 24 | E39: 6 | F39: 18
A40: 0481 | B40: JAMES H. BRIGHT/JW JOHNSON ES | C40: 63 | D40: 1 | E40: 35 | F40: 27
A41: 0510 | B41: ARCHIMEDEAN ACADEMY | C41: 46 | E41: 26 | F41: 20
A42: 0520 | B42: SOMERSET ACADEMY | C42: 59 | E42: 32 | F42: 27
A43: 0521 | B43: BROADMOOR ELEMENTARY | C43: 18 | E43: 7 | F43: 11
A44: 0561 | B44: W.J. BRYAN ELEMENTARY | C44: 40 | D44: 1 | E44: 23 | F44: 16
A45: 0600 | B45: PINECREST PREP ACADEMY | C45: 41 | E45: 26 | F45: 15
A46: 0641 | B46: BUNCHE PARK ELEMENTARY | C46: 8 | E46: 5 | F46: 3
A47: 0651 | B47: CAMPBELL DRIVE K-8 CENTER | C47: 39 | E47: 12 | F47: 18 | G47: 3 | H47: 6
A48: 0661 | B48: CARIBBEAN ELEMENTARY | C48: 18 | E48: 6 | F48: 12
A49: 0671 | B49: CALUSA ELEMENTARY | C49: 97 | E49: 43 | F49: 54
A50: 0681 | B50: CAROL CITY ELEMENTARY | C50: 28 | E50: 8 | F50: 20
A51: 0721 | B51: GEORGE WASHINGTON CARVER ELEM | C51: 23 | E51: 12 | F51: 11
A52: 0761 | B52: FIENBERG/FISHER K-8 CENTER | C52: 63 | E52: 8 | F52: 6 | G52: 17 | H52: 19 | I52: 13
A53: 0771 | B53: WILLIAM A. CHAPMAN ELEMENTARY | C53: 20 | E53: 14 | F53: 6
A54: 0801 | B54: CITRUS GROVE ELEMENTARY | C54: 31 | D54: 1 | E54: 14 | F54: 16
A55: 0831 | B55: CLAUDE PEPPER ELEMENTARY | C55: 56 | E55: 25 | F55: 31
A56: 0841 | B56: COCONUT GROVE ELEMENTARY | C56: 23 | E56: 15 | F56: 8
A57: 0861 | B57: COLONIAL DRIVE ELEMENTARY | C57: 15 | E57: 7 | F57: 8
A58: 0881 | B58: COMSTOCK ELEMENTARY | C58: 37 | E58: 20 | F58: 17
A59: 0950 | B59: AVENTURA CITY OF EXCELLENCE | C59: 175 | E59: 38 | F59: 37 | G59: 40 | H59: 25 | I59: 35
A60: 0961 | B60: CORAL GABLES PREPARATORY ACAD | C60: 84 | E60: 29 | F60: 17 | G60: 11 | H60: 14 | I60: 13
A61: 1001 | B61: CORAL PARK ELEMENTARY | C61: 133 | E61: 52 | F61: 81
A62: 1010 | B62: CHARTER SCHOOL AT WATERSTONE | C62: 61 | E62: 28 | F62: 33
A63: 1014 | B63: ADVANCED LEARNING CHARTER SCH | C63: 29 | E63: 10 | F63: 19
A64: 1017 | B64: MATER ACADEMY OF INTL STUDIES | C64: 17 | E64: 10 | F64: 7
A65: 1020 | B65: YOUTH CO-OP CHARTER SCHOOL | C65: 69 | E65: 6 | F65: 12 | G65: 17 | H65: 12 | I65: 22
A66: 1041 | B66: CORAL REEF ELEMENTARY | C66: 80 | E66: 45 | F66: 35
A67: 1081 | B67: CORAL TERRACE ELEMENTARY | C67: 28 | E67: 14 | F67: 14
A68: 1121 | B68: CORAL WAY K-8 CENTER | C68: 137 | E68: 28 | F68: 36 | G68: 29 | H68: 21 | I68: 23
A69: 1161 | B69: CRESTVIEW ELEMENTARY | C69: 13 | E69: 5 | F69: 8
A70: 1241 | B70: CUTLER RIDGE ELEMENTARY | C70: 64 | E70: 30 | F70: 34
A71: 1281 | B71: CYPRESS ELEMENTARY | C71: 23 | E71: 11 | F71: 12
A72: 1331 | B72: DEVON AIRE K-8 CENTER | C72: 215 | E72: 29 | F72: 46 | G72: 58 | H72: 35 | I72: 47
A73: 1361 | B73: FREDERICK DOUGLASS ELEMENTARY | C73: 5 | E73: 1 | F73: 4
A74: 1371 | B74: MARJORY STONEMAN DOUGLAS ELEM | C74: 94 | D74: 2 | E74: 37 | F74: 55
A75: 1401 | B75: CHARLES R. DREW K-8 CENTER | C75: 14 | E75: 6 | F75: 4 | G75: 4
A76: 1441 | B76: PAUL LAURENCE DUNBAR K-8 CTR | C76: 8 | E76: 3 | F76: 4 | G76: 1
A77: 1481 | B77: JOHN G. DUPUIS ELEMENTARY | C77: 51 | E77: 22 | F77: 29
A78: 1521 | B78: AMELIA EARHART ELEMENTARY | C78: 32 | E78: 13 | F78: 19
A79: 1561 | B79: EARLINGTON HEIGHTS ELEMENTARY | C79: 16 | E79: 7 | F79: 9
A80: 1601 | B80: EDISON PARK K-8 CENTER | C80: 15 | E80: 6 | F80: 8 | G80: 1
A81: 1641 | B81: EMERSON ELEMENTARY | C81: 24 | E81: 8 | F81: 16
A82: 1681 | B82: LILLIE C. EVANS K-8 CENTER | C82: 22 | E82: 3 | F82: 9 | G82: 6 | H82: 3 | I82: 1
A83: 1691 | B83: CHRISTINA M. EVE ELEMENTARY | C83: 75 | E83: 41 | F83: 34
A84: 1721 | B84: EVERGLADES K-8 CENTER | C84: 147 | E84: 23 | F84: 39 | G84: 37 | H84: 27 | I84: 21
A85: 1761 | B85: DAVID FAIRCHILD ELEMENTARY | C85: 46 | E85: 24 | F85: 22
A86: 1801 | B86: FAIRLAWN ELEMENTARY | C86: 60 | E86: 28 | F86: 32
A87: 1811 | B87: DANTE B. FASCELL ELEMENTARY | C87: 28 | E87: 12 | F87: 16
A88: 1841 | B88: FLAGAMI ELEMENTARY | C88: 24 | D88: 1 | E88: 11 | F88: 12
A89: 1881 | B89: HENRY M. FLAGLER ELEMENTARY | C89: 43 | E89: 24 | F89: 19
A90: 1921 | B90: FLAMINGO ELEMENTARY | C90: 42 | D90: 1 | E90: 17 | F90: 24
A91: 2001 | B91: FLORIDA CITY ELEMENTARY | C91: 36 | E91: 23 | F91: 13
A92: 2003 | B92: BRIDGEPOINT ACADEMY | C92: 26 | E92: 15 | F92: 11
A93: 2006 | B93: RICHARD ALLEN LEADERSHIP ACAD | C93: 5 | E93: 4 | F93: 1
A94: 2007 | B94: SOMERSET ACADEMY ELEMENTARY | C94: 45 | E94: 29 | F94: 16
A95: 2012 | B95: SOMERSET ARTS ACADEMY | C95: 13 | E95: 9 | F95: 4
A96: 2013 | B96: BRIDGEPOINT ACAD GREATER MIAMI | C96: 9 | E96: 5 | F96: 4
A97: 2021 | B97: GLORIA FLOYD ELEMENTARY | C97: 44 | E97: 26 | F97: 18
A98: 2041 | B98: BENJAMIN FRANKLIN K-8 CENTER | C98: 26 | E98: 8 | F98: 12 | G98: 4 | H98: 2
A99: 2060 | B99: GIBSON CHARTER SCHOOL | C99: 10 | E99: 2 | F99: 2 | G99: 4 | H99: 2
A100: 2081 | B100: FULFORD ELEMENTARY | C100: 19 | E100: 12 | F100: 7
A101: 2111 | B101: HIALEAH GARDENS ELEMENTARY | C101: 69 | E101: 36 | F101: 33
A102: 2151 | B102: JACK D. GORDON ELEMENTARY | C102: 98 | D102: 1 | E102: 46 | F102: 51
A103: 2161 | B103: GOLDEN GLADES ELEMENTARY | C103: 6 | E103: 3 | F103: 3
A104: 2181 | B104: JOELLA C. GOOD ELEMENTARY | C104: 66 | D104: 1 | E104: 35 | F104: 30
A105: 2191 | B105: SPANISH LAKE ELEMENTARY | C105: 158 | E105: 66 | F105: 92
A106: 2241 | B106: GRATIGNY ELEMENTARY | C106: 21 | E106: 6 | F106: 10 | G106: 5
A107: 2261 | B107: GREENGLADE ELEMENTARY | C107: 33 | E107: 19 | F107: 14
A108: 2281 | B108: GREYNOLDS PARK ELEMENTARY | C108: 27 | E108: 14 | F108: 13
A109: 2321 | B109: GULFSTREAM ELEMENTARY | C109: 15 | E109: 11 | F109: 4
A110: 2331 | B110: CHARLES R. HADLEY ELEMENTARY | C110: 91 | E110: 49 | F110: 42
A111: 2341 | B111: JOE HALL ELEMENTARY | C111: 45 | E111: 21 | F111: 24
A112: 2351 | B112: ENEIDA MASSAS HARTNER ELEM | C112: 22 | E112: 8 | F112: 14
A113: 2361 | B113: HIALEAH ELEMENTARY | C113: 41 | E113: 14 | F113: 27
A114: 2371 | B114: WEST HIALEAH GARDENS ELEM | C114: 94 | E114: 46 | F114: 48
A115: 2401 | B115: HIBISCUS ELEMENTARY | C115: 28 | E115: 9 | F115: 19
A116: 2441 | B116: VIRGINIA A BOONE/HIGHLAND OAKS | C116: 47 | E116: 27 | F116: 20
A117: 2501 | B117: HOLMES ELEMENTARY | C117: 9 | E117: 2 | F117: 7
A118: 2511 | B118: ZORA NEALE HURSTON ELEMENTARY | C118: 67 | E118: 22 | F118: 45
A119: 2521 | B119: OLIVER HOOVER ELEMENTARY | C119: 68 | E119: 33 | F119: 35
A120: 2541 | B120: HOWARD DRIVE ELEMENTARY | C120: 43 | E120: 29 | F120: 14
A121: 2581 | B121: MADIE IVES ELEMENTARY | C121: 38 | E121: 21 | F121: 17
A122: 2641 | B122: KENDALE ELEMENTARY | C122: 34 | E122: 14 | F122: 20
A123: 2651 | B123: KENDALE LAKES ELEMENTARY | C123: 65 | E123: 20 | F123: 45
A124: 2661 | B124: KENSINGTON PARK ELEMENTARY | C124: 47 | E124: 21 | F124: 26
A125: 2701 | B125: KENWOOD K-8 CENTER | C125: 146 | E125: 31 | F125: 24 | G125: 32 | H125: 32 | I125: 27
A126: 2741 | B126: KEY BISCAYNE K-8 CENTER | C126: 184 | E126: 33 | F126: 44 | G126: 46 | H126: 50 | I126: 11
A127: 2781 | B127: KINLOCH PARK ELEMENTARY | C127: 49 | E127: 25 | F127: 24
A128: 2801 | B128: LAKE STEVENS ELEMENTARY | C128: 11 | E128: 6 | F128: 5
A129: 2821 | B129: LAKEVIEW ELEMENTARY | C129: 32 | E129: 15 | F129: 17
A130: 2881 | B130: LEEWOOD K-8 CENTER | C130: 121 | E130: 30 | F130: 32 | G130: 24 | H130: 18 | I130: 17
A131: 2891 | B131: WILLIAM LEHMAN ELEMENTARY | C131: 54 | E131: 30 | F131: 24
A132: 2901 | B132: LEISURE CITY K-8 CENTER | C132: 70 | E132: 17 | F132: 26 | G132: 7 | H132: 12 | I132: 8
A133: 2911 | B133: LINDA LENTIN K-8 CENTER | C133: 66 | E133: 16 | F133: 16 | G133: 14 | H133: 9 | I133: 11
A134: 2941 | B134: LAURA C. SAUNDERS ELEMENTARY | C134: 26 | E134: 15 | F134: 11
A135: 2981 | B135: LIBERTY CITY ELEMENTARY | C135: 6 | E135: 2 | F135: 4
A136: 3021 | B136: JESSE J MCCRARY JR ELEMENTARY | C136: 22 | D136: 1 | E136: 14 | F136: 7
A137: 3024 | B137: FLORIDA INTERNATIONAL EL ACAD | C137: 9 | E137: 5 | F137: 4
A138: 3025 | B138: ADVANTAGE ACADEMY SANTA FE | C138: 9 | E138: 6 | F138: 3
A139: 3029 | B139: DORAL ACADEMY OF TECHNOLOGY | C139: 77 | G139: 18 | H139: 30 | I139: 29
A140: 3030 | B140: DORAL ACADEMY | C140: 93 | E140: 41 | F140: 52
A141: 3032 | B141: PALM GLADES PREPATORY ACADEMY | C141: 48 | G141: 22 | H141: 13 | I141: 13
A142: 3034 | B142: BRIDGEPOINT ACAD VILLAGE GREEN | C142: 2 | E142: 1 | F142: 1
A143: 3041 | B143: LORAH PARK ELEMENTARY | C143: 10 | E143: 7 | F143: 3
A144: 3051 | B144: TOUSSAINT L'OUVERTURE ELEM | C144: 14 | E144: 6 | F144: 8
A145: 3061 | B145: LUDLAM ELEMENTARY | C145: 28 | E145: 17 | F145: 11
A146: 3100 | B146: MATER ACADEMY EAST CHARTER | C146: 41 | D146: 3 | E146: 25 | F146: 13
A147: 3101 | B147: FRANK C. MARTIN K-8 CENTER | C147: 223 | E147: 39 | F147: 44 | G147: 47 | H147: 49 | I147: 44
A148: 3111 | B148: WESLEY MATTHEWS ELEMENTARY | C148: 48 | E148: 23 | F148: 25
A149: 3141 | B149: MEADOWLANE ELEMENTARY | C149: 68 | E149: 37 | F149: 31
A150: 3181 | B150: MELROSE ELEMENTARY | C150: 28 | E150: 14 | F150: 14
A151: 3191 | B151: ADA MERRITT K-8 CENTER | C151: 146 | E151: 21 | F151: 28 | G151: 30 | H151: 38 | I151: 29
A152: 3241 | B152: MIAMI GARDENS ELEMENTARY | C152: 17 | E152: 7 | F152: 10
A153: 3261 | B153: MIAMI HEIGHTS ELEMENTARY | C153: 67 | E153: 26 | F153: 41
A154: 3281 | B154: MIAMI LAKES K-8 CENTER | C154: 174 | E154: 46 | F154: 26 | G154: 25 | H154: 29 | I154: 48
A155: 3301 | B155: MIAMI PARK ELEMENTARY | C155: 11 | E155: 7 | F155: 4
A156: 3341 | B156: MIAMI SHORES ELEMENTARY | C156: 51 | E156: 20 | F156: 31
A157: 3381 | B157: MIAMI SPRINGS ELEMENTARY | C157: 35 | E157: 18 | F157: 17
A158: 3421 | B158: M.A. MILAM K-8 CENTER | C158: 95 | E158: 21 | F158: 17 | G158: 15 | H158: 17 | I158: 25
A159: 3431 | B159: PHYLLIS RUTH MILLER ELEMENTARY | C159: 33 | E159: 16 | F159: 17
A160: 3501 | B160: MORNINGSIDE K-8 ACADEMY | C160: 19 | E160: 9 | F160: 9 | G160: 1
A161: 3541 | B161: ROBERT RUSSA MOTON ELEMENTARY | C161: 2 | E161: 1 | F161: 1
A162: 3581 | B162: MYRTLE GROVE K-8 CENTER | C162: 23 | E162: 13 | F162: 5 | G162: 5
A163: 3600 | B163: DOWNTOWN MIAMI CHARTER SCHOOL | C163: 43 | E163: 16 | F163: 23 | G163: 4
A164: 3610 | B164: KEYS GATE CHARTER SCHOOL | C164: 182 | E164: 32 | F164: 28 | G164: 36 | H164: 39 | I164: 47
A165: 3621 | B165: COCONUT PALM K-8 ACADEMY | C165: 73 | E165: 22 | F165: 15 | G165: 8 | H165: 21 | I165: 7
A166: 3661 | B166: NATURAL BRIDGE ELEMENTARY | C166: 21 | E166: 15 | F166: 6
A167: 3701 | B167: NORLAND ELEMENTARY | C167: 29 | E167: 16 | F167: 13
A168: 3741 | B168: NORTH BEACH ELEMENTARY | C168: 82 | E168: 38 | F168: 44
A169: 3781 | B169: BARBARA HAWKINS ELEMENTARY | C169: 11 | E169: 6 | F169: 5
A170: 3821 | B170: NORTH COUNTY K-8 CENTER | C170: 21 | E170: 8 | F170: 4 | G170: 6 | H170: 3
A171: 3861 | B171: NORTH GLADE ELEMENTARY | C171: 10 | E171: 2 | F171: 8
A172: 3901 | B172: NORTH HIALEAH ELEMENTARY | C172: 38 | E172: 17 | F172: 21
A173: 3941 | B173: NORTH MIAMI ELEMENTARY | C173: 17 | E173: 8 | F173: 9
A174: 3981 | B174: NORTH TWIN LAKES ELEMENTARY | C174: 47 | E174: 26 | F174: 21
A175: 4000 | B175: MIAMI CHILDREN'S MUSEUM | C175: 14 | E175: 5 | F175: 9
A176: 4001 | B176: NORWOOD ELEMENTARY | C176: 27 | E176: 15 | F176: 12
A177: 4012 | B177: SOMERSET ACAD AT SILVER PALMS | C177: 34 | E177: 18 | F177: 16
A178: 4021 | B178: OAK GROVE ELEMENTARY | C178: 45 | E178: 20 | F178: 20 | G178: 5
A179: 4031 | B179: GATEWAY ENVIRONMENTAL K-8 | C179: 76 | E179: 25 | F179: 15 | G179: 18 | H179: 18
A180: 4061 | B180: OJUS ELEMENTARY | C180: 76 | E180: 48 | F180: 28
A181: 4071 | B181: OLINDA ELEMENTARY | C181: 10 | E181: 5 | F181: 5
A182: 4091 | B182: OLYMPIA HEIGHTS ELEMENTARY | C182: 44 | E182: 28 | F182: 16
A183: 4121 | B183: DR. ROBERT B. INGRAM EL | C183: 7 | E183: 2 | F183: 5
A184: 4171 | B184: ORCHARD VILLA ELEMENTARY | C184: 5 | E184: 2 | F184: 3
A185: 4221 | B185: PALMETTO ELEMENTARY | C185: 51 | E185: 22 | F185: 29
A186: 4241 | B186: PALM LAKES ELEMENTARY | C186: 54 | E186: 23 | F186: 31
A187: 4261 | B187: PALM SPRINGS ELEMENTARY | C187: 45 | E187: 26 | F187: 19
A188: 4281 | B188: PALM SPRINGS NORTH ELEMENTARY | C188: 97 | E188: 49 | F188: 48
A189: 4301 | B189: PARKVIEW ELEMENTARY | C189: 20 | E189: 8 | F189: 12
A190: 4341 | B190: PARKWAY ELEMENTARY | C190: 16 | E190: 4 | F190: 12
A191: 4381 | B191: DR HENRY E PERRINE ACADEMY | C191: 47 | E191: 24 | F191: 23
A192: 4391 | B192: IRVING & BEATRICE PESKOE K-8 | C192: 37 | E192: 14 | F192: 16 | G192: 6 | H192: 1
A193: 4401 | B193: KELSEY L. PHARR ELEMENTARY | C193: 8 | E193: 4 | F193: 4
A194: 4421 | B194: PINECREST ELEMENTARY | C194: 87 | E194: 33 | F194: 54
A195: 4441 | B195: PINE LAKE ELEMENTARY | C195: 15 | E195: 3 | F195: 12
A196: 4461 | B196: PINE VILLA ELEMENTARY | C196: 10 | D196: 1 | E196: 4 | F196: 5
A197: 4491 | B197: HENRY E.S. REEVES ELEMENTARY | C197: 41 | E197: 15 | F197: 26
A198: 4501 | B198: POINCIANA PARK ELEMENTARY | C198: 16 | E198: 6 | F198: 10
A199: 4511 | B199: DR GILBERT L. PORTER ELEM | C199: 57 | E199: 28 | F199: 29
A200: 4541 | B200: RAINBOW PARK ELEMENTARY | C200: 26 | E200: 10 | F200: 16
... 165 more rows

Sheet MEM_ML5 (hidden)
A1: 1 | B1: 2 | C1: 3 | D1: 4 | E1: 5 | F1: 6 | G1: 7 | H1: 8 | I1: 9
A2: S_SCHOOL_NUM | B2: S_SCHL_NAME | C2: Total Of STUDENT_ID | D2: 03 | E2: 04 | F2: 05 | G2: 06 | H2: 07 | I2: 08
A3: 0041 | B3: AIR BASE ELEMENTARY | C3: 22 | E3: 9 | F3: 13
A4: 0070 | B4: CORAL REEF MONTESSORI ACAD CH | C4: 18 | E4: 4 | F4: 1 | G4: 4 | H4: 5 | I4: 4
A5: 0071 | B5: EUGENIA B. THOMAS K-8 CENTER | C5: 93 | E5: 8 | F5: 37 | G5: 19 | H5: 8 | I5: 21
A6: 0072 | B6: SUMMERVILLE CHARTER SCHOOL | C6: 11 | E6: 4 | F6: 7
A7: 0073 | B7: MANDARIN LAKES K-8 CENTER | C7: 17 | E7: 2 | F7: 9 | G7: 3 | H7: 1 | I7: 2
A8: 0081 | B8: LENORA B. SMITH ELEMENTARY | C8: 1 | F8: 1
A9: 0091 | B9: BOB GRAHAM EDUCATION CTR | C9: 152 | E9: 29 | F9: 31 | G9: 20 | H9: 37 | I9: 35
A10: 0092 | B10: NORMAN S. EDELCUP/SUNNY ISLES | C10: 195 | E10: 45 | F10: 30 | G10: 26 | H10: 47 | I10: 47
A11: 0100 | B11: MATER ACADEMY | C11: 42 | E11: 23 | F11: 19
A12: 0101 | B12: ARCOLA LAKE ELEMENTARY | C12: 4 | E12: 2 | F12: 2
A13: 0102 | B13: MIAMI COMMUNITY CHARTER SCHOOL | C13: 5 | E13: 2 | F13: 3
A14: 0111 | B14: MAYA ANGELOU ELEMENTARY | C14: 9 | E14: 5 | F14: 4
A15: 0121 | B15: AUBURNDALE ELEMENTARY | C15: 15 | E15: 5 | F15: 10
A16: 0122 | B16: DR ROLANDO ESPINOSA K-8 | C16: 117 | E16: 36 | F16: 19 | G16: 18 | H16: 20 | I16: 24
A17: 0125 | B17: NORMA BUTLER BOSSARD ELEM | C17: 48 | E17: 18 | F17: 30
A18: 0201 | B18: BANYAN ELEMENTARY | C18: 18 | E18: 7 | F18: 11
A19: 0211 | B19: DR. MANUEL C. BARREIRO ELEM | C19: 47 | E19: 32 | F19: 15
A20: 0231 | B20: AVENTURA WATERWAYS K-8 CENTER | C20: 124 | E20: 38 | F20: 21 | G20: 23 | H20: 12 | I20: 30
A21: 0241 | B21: RUTH K BROAD/BAY HARBOR K-8 | C21: 110 | E21: 28 | F21: 22 | G21: 28 | H21: 15 | I21: 17
A22: 0251 | B22: ETHEL KOGER BECKHAM ELEMENTARY | C22: 59 | E22: 34 | F22: 25
A23: 0261 | B23: BEL-AIRE ELEMENTARY | C23: 1 | F23: 1
A24: 0271 | B24: BENT TREE ELEMENTARY | C24: 17 | E24: 10 | F24: 7
A25: 0311 | B25: GOULDS ELEMENTARY | C25: 6 | E25: 3 | F25: 3
A26: 0312 | B26: MATER GARDENS ACADEMY | C26: 39 | E26: 19 | F26: 20
A27: 0321 | B27: BISCAYNE ELEMENTARY | C27: 14 | E27: 5 | F27: 9
A28: 0332 | B28: SOMERSET ACADEMY(SILVER PALMS) | C28: 33 | E28: 4 | F28: 2 | G28: 8 | H28: 15 | I28: 4
A29: 0339 | B29: SOMERSET ACADEMY CHARTER ELEM | C29: 7 | E29: 6 | F29: 1
A30: 0341 | B30: ARCH CREEK ELEMENTARY SCHOOL | C30: 10 | E30: 6 | F30: 4
A31: 0342 | B31: PINECREST ACADEMY SOUTH CAMPUS | C31: 34 | E31: 12 | F31: 22
A32: 0361 | B32: BISCAYNE GARDENS ELEMENTARY | C32: 6 | E32: 3 | F32: 3
A33: 0400 | B33: RENAISSANCE ELEMENTARY CHARTER | C33: 42 | E33: 13 | F33: 29
A34: 0401 | B34: VAN E. BLANTON ELEMENTARY | C34: 7 | E34: 4 | F34: 3
A35: 0410 | B35: ACADEMIR CHARTER SCHOOL WEST | C35: 13 | E35: 9 | F35: 4
A36: 0441 | B36: BLUE LAKES ELEMENTARY | C36: 18 | E36: 6 | F36: 12
A37: 0451 | B37: BOWMAN ASHE/DOOLIN K-8 ACAD | C37: 71 | E37: 19 | F37: 24 | G37: 9 | H37: 11 | I37: 8
A38: 0461 | B38: BRENTWOOD ELEMENTARY | C38: 6 | E38: 3 | F38: 3
A39: 0481 | B39: JAMES H. BRIGHT/JW JOHNSON ES | C39: 29 | E39: 14 | F39: 15
A40: 0510 | B40: ARCHIMEDEAN ACADEMY | C40: 58 | E40: 26 | F40: 32
A41: 0520 | B41: SOMERSET ACADEMY | C41: 43 | E41: 20 | F41: 23
A42: 0521 | B42: BROADMOOR ELEMENTARY | C42: 5 | E42: 3 | F42: 2
A43: 0561 | B43: W.J. BRYAN ELEMENTARY | C43: 14 | E43: 5 | F43: 9
A44: 0600 | B44: PINECREST PREP ACADEMY | C44: 36 | E44: 22 | F44: 14
A45: 0641 | B45: BUNCHE PARK ELEMENTARY | C45: 5 | E45: 4 | F45: 1
A46: 0651 | B46: CAMPBELL DRIVE K-8 CENTER | C46: 16 | E46: 1 | F46: 5 | G46: 8 | H46: 2
A47: 0661 | B47: CARIBBEAN ELEMENTARY | C47: 4 | E47: 2 | F47: 2
A48: 0671 | B48: CALUSA ELEMENTARY | C48: 84 | E48: 35 | F48: 49
A49: 0681 | B49: CAROL CITY ELEMENTARY | C49: 15 | E49: 4 | F49: 11
A50: 0721 | B50: GEORGE WASHINGTON CARVER ELEM | C50: 12 | E50: 4 | F50: 8
A51: 0761 | B51: FIENBERG/FISHER K-8 CENTER | C51: 18 | F51: 3 | G51: 4 | H51: 6 | I51: 5
A52: 0771 | B52: WILLIAM A. CHAPMAN ELEMENTARY | C52: 4 | E52: 2 | F52: 2
A53: 0801 | B53: CITRUS GROVE ELEMENTARY | C53: 14 | E53: 4 | F53: 10
A54: 0831 | B54: CLAUDE PEPPER ELEMENTARY | C54: 27 | E54: 12 | F54: 15
A55: 0841 | B55: COCONUT GROVE ELEMENTARY | C55: 15 | E55: 5 | F55: 10
A56: 0861 | B56: COLONIAL DRIVE ELEMENTARY | C56: 4 | E56: 1 | F56: 3
A57: 0881 | B57: COMSTOCK ELEMENTARY | C57: 8 | E57: 3 | F57: 5
A58: 0950 | B58: AVENTURA CITY OF EXCELLENCE | C58: 136 | E58: 22 | F58: 30 | G58: 30 | H58: 24 | I58: 30
A59: 0961 | B59: CORAL GABLES PREPARATORY ACAD | C59: 76 | E59: 14 | F59: 29 | G59: 11 | H59: 17 | I59: 5
A60: 1001 | B60: CORAL PARK ELEMENTARY | C60: 91 | E60: 39 | F60: 52
A61: 1010 | B61: CHARTER SCHOOL AT WATERSTONE | C61: 15 | E61: 6 | F61: 9
A62: 1014 | B62: ADVANCED LEARNING CHARTER SCH | C62: 19 | E62: 8 | F62: 11
A63: 1017 | B63: MATER ACADEMY OF INTL STUDIES | C63: 10 | E63: 6 | F63: 4
A64: 1020 | B64: YOUTH CO-OP CHARTER SCHOOL | C64: 32 | E64: 7 | F64: 6 | G64: 4 | H64: 10 | I64: 5
A65: 1041 | B65: CORAL REEF ELEMENTARY | C65: 74 | E65: 24 | F65: 50
A66: 1081 | B66: CORAL TERRACE ELEMENTARY | C66: 10 | E66: 5 | F66: 5
A67: 1121 | B67: CORAL WAY K-8 CENTER | C67: 59 | E67: 8 | F67: 13 | G67: 7 | H67: 14 | I67: 17
A68: 1161 | B68: CRESTVIEW ELEMENTARY | C68: 3 | F68: 3
A69: 1241 | B69: CUTLER RIDGE ELEMENTARY | C69: 35 | E69: 12 | F69: 23
A70: 1281 | B70: CYPRESS ELEMENTARY | C70: 16 | E70: 9 | F70: 7
A71: 1331 | B71: DEVON AIRE K-8 CENTER | C71: 161 | E71: 29 | F71: 41 | G71: 28 | H71: 27 | I71: 36
A72: 1361 | B72: FREDERICK DOUGLASS ELEMENTARY | C72: 1 | F72: 1
A73: 1371 | B73: MARJORY STONEMAN DOUGLAS ELEM | C73: 49 | E73: 19 | F73: 30
A74: 1401 | B74: CHARLES R. DREW K-8 CENTER | C74: 7 | E74: 3 | F74: 2 | G74: 2
A75: 1441 | B75: PAUL LAURENCE DUNBAR K-8 CTR | C75: 1 | F75: 1
A76: 1481 | B76: JOHN G. DUPUIS ELEMENTARY | C76: 35 | E76: 16 | F76: 19
A77: 1521 | B77: AMELIA EARHART ELEMENTARY | C77: 11 | E77: 3 | F77: 8
A78: 1561 | B78: EARLINGTON HEIGHTS ELEMENTARY | C78: 2 | F78: 2
A79: 1601 | B79: EDISON PARK K-8 CENTER | C79: 3 | E79: 1 | F79: 1 | G79: 1
A80: 1641 | B80: EMERSON ELEMENTARY | C80: 11 | E80: 5 | F80: 6
A81: 1681 | B81: LILLIE C. EVANS K-8 CENTER | C81: 10 | F81: 4 | G81: 2 | H81: 2 | I81: 2
A82: 1691 | B82: CHRISTINA M. EVE ELEMENTARY | C82: 47 | E82: 22 | F82: 25
A83: 1721 | B83: EVERGLADES K-8 CENTER | C83: 86 | E83: 17 | F83: 19 | G83: 21 | H83: 12 | I83: 17
A84: 1761 | B84: DAVID FAIRCHILD ELEMENTARY | C84: 33 | E84: 16 | F84: 17
A85: 1801 | B85: FAIRLAWN ELEMENTARY | C85: 20 | E85: 3 | F85: 17
A86: 1811 | B86: DANTE B. FASCELL ELEMENTARY | C86: 27 | E86: 8 | F86: 19
A87: 1841 | B87: FLAGAMI ELEMENTARY | C87: 11 | E87: 3 | F87: 8
A88: 1881 | B88: HENRY M. FLAGLER ELEMENTARY | C88: 29 | E88: 19 | F88: 10
A89: 1921 | B89: FLAMINGO ELEMENTARY | C89: 16 | E89: 7 | F89: 9
A90: 2001 | B90: FLORIDA CITY ELEMENTARY | C90: 2 | F90: 2
A91: 2003 | B91: BRIDGEPOINT ACADEMY | C91: 17 | E91: 8 | F91: 9
A92: 2006 | B92: RICHARD ALLEN LEADERSHIP ACAD | C92: 1 | F92: 1
A93: 2007 | B93: SOMERSET ACADEMY ELEMENTARY | C93: 34 | E93: 24 | F93: 10
A94: 2012 | B94: SOMERSET ARTS ACADEMY | C94: 14 | E94: 8 | F94: 6
A95: 2013 | B95: BRIDGEPOINT ACAD GREATER MIAMI | C95: 3 | E95: 1 | F95: 2
A96: 2021 | B96: GLORIA FLOYD ELEMENTARY | C96: 26 | E96: 15 | F96: 11
A97: 2041 | B97: BENJAMIN FRANKLIN K-8 CENTER | C97: 1 | E97: 1
A98: 2081 | B98: FULFORD ELEMENTARY | C98: 7 | E98: 1 | F98: 6
A99: 2111 | B99: HIALEAH GARDENS ELEMENTARY | C99: 44 | E99: 15 | F99: 29
A100: 2151 | B100: JACK D. GORDON ELEMENTARY | C100: 45 | E100: 17 | F100: 28
A101: 2161 | B101: GOLDEN GLADES ELEMENTARY | C101: 4 | E101: 2 | F101: 2
A102: 2181 | B102: JOELLA C. GOOD ELEMENTARY | C102: 36 | E102: 19 | F102: 17
A103: 2191 | B103: SPANISH LAKE ELEMENTARY | C103: 92 | E103: 35 | F103: 57
A104: 2241 | B104: GRATIGNY ELEMENTARY | C104: 8 | E104: 1 | F104: 5 | G104: 2
A105: 2261 | B105: GREENGLADE ELEMENTARY | C105: 30 | E105: 15 | F105: 15
A106: 2281 | B106: GREYNOLDS PARK ELEMENTARY | C106: 19 | E106: 6 | F106: 13
A107: 2321 | B107: GULFSTREAM ELEMENTARY | C107: 18 | E107: 4 | F107: 14
A108: 2331 | B108: CHARLES R. HADLEY ELEMENTARY | C108: 57 | E108: 27 | F108: 30
A109: 2341 | B109: JOE HALL ELEMENTARY | C109: 28 | E109: 12 | F109: 16
A110: 2351 | B110: ENEIDA MASSAS HARTNER ELEM | C110: 9 | E110: 4 | F110: 5
A111: 2361 | B111: HIALEAH ELEMENTARY | C111: 20 | E111: 5 | F111: 15
A112: 2371 | B112: WEST HIALEAH GARDENS ELEM | C112: 35 | E112: 13 | F112: 22
A113: 2401 | B113: HIBISCUS ELEMENTARY | C113: 14 | E113: 3 | F113: 11
A114: 2441 | B114: VIRGINIA A BOONE/HIGHLAND OAKS | C114: 45 | E114: 30 | F114: 15
A115: 2501 | B115: HOLMES ELEMENTARY | C115: 1 | F115: 1
A116: 2511 | B116: ZORA NEALE HURSTON ELEMENTARY | C116: 26 | E116: 10 | F116: 16
A117: 2521 | B117: OLIVER HOOVER ELEMENTARY | C117: 47 | E117: 21 | F117: 26
A118: 2541 | B118: HOWARD DRIVE ELEMENTARY | C118: 35 | E118: 13 | F118: 22
A119: 2581 | B119: MADIE IVES ELEMENTARY | C119: 9 | E119: 3 | F119: 6
A120: 2641 | B120: KENDALE ELEMENTARY | C120: 36 | E120: 13 | F120: 23
A121: 2651 | B121: KENDALE LAKES ELEMENTARY | C121: 49 | E121: 20 | F121: 29
A122: 2661 | B122: KENSINGTON PARK ELEMENTARY | C122: 16 | E122: 7 | F122: 9
A123: 2701 | B123: KENWOOD K-8 CENTER | C123: 87 | E123: 22 | F123: 16 | G123: 14 | H123: 25 | I123: 10
A124: 2741 | B124: KEY BISCAYNE K-8 CENTER | C124: 142 | E124: 40 | F124: 50 | G124: 27 | H124: 19 | I124: 6
A125: 2781 | B125: KINLOCH PARK ELEMENTARY | C125: 14 | E125: 9 | F125: 5
A126: 2801 | B126: LAKE STEVENS ELEMENTARY | C126: 8 | E126: 6 | F126: 2
A127: 2821 | B127: LAKEVIEW ELEMENTARY | C127: 11 | E127: 7 | F127: 4
A128: 2881 | B128: LEEWOOD K-8 CENTER | C128: 67 | E128: 28 | F128: 9 | G128: 12 | H128: 7 | I128: 11
A129: 2891 | B129: WILLIAM LEHMAN ELEMENTARY | C129: 44 | E129: 17 | F129: 27
A130: 2901 | B130: LEISURE CITY K-8 CENTER | C130: 21 | E130: 2 | F130: 8 | G130: 1 | H130: 3 | I130: 7
A131: 2911 | B131: LINDA LENTIN K-8 CENTER | C131: 34 | E131: 3 | F131: 17 | G131: 4 | H131: 6 | I131: 4
A132: 2941 | B132: LAURA C. SAUNDERS ELEMENTARY | C132: 8 | E132: 4 | F132: 4
A133: 2981 | B133: LIBERTY CITY ELEMENTARY | C133: 3 | E133: 1 | F133: 2
A134: 3021 | B134: JESSE J MCCRARY JR ELEMENTARY | C134: 10 | E134: 2 | F134: 8
A135: 3024 | B135: FLORIDA INTERNATIONAL EL ACAD | C135: 3 | E135: 2 | F135: 1
A136: 3025 | B136: ADVANTAGE ACADEMY SANTA FE | C136: 8 | E136: 3 | F136: 5
A137: 3029 | B137: DORAL ACADEMY OF TECHNOLOGY | C137: 68 | G137: 32 | H137: 15 | I137: 21
A138: 3030 | B138: DORAL ACADEMY | C138: 72 | E138: 32 | F138: 40
A139: 3032 | B139: PALM GLADES PREPATORY ACADEMY | C139: 8 | G139: 2 | H139: 2 | I139: 4
A140: 3034 | B140: BRIDGEPOINT ACAD VILLAGE GREEN | C140: 1 | F140: 1
A141: 3035 | B141: RAMZ ACADEMY ELEM MIAMI CAMPUS | C141: 1 | E141: 1
A142: 3041 | B142: LORAH PARK ELEMENTARY | C142: 2 | E142: 2
A143: 3051 | B143: TOUSSAINT L'OUVERTURE ELEM | C143: 9 | E143: 4 | F143: 5
A144: 3061 | B144: LUDLAM ELEMENTARY | C144: 23 | E144: 8 | F144: 15
A145: 3100 | B145: MATER ACADEMY EAST CHARTER | C145: 51 | E145: 24 | F145: 27
A146: 3101 | B146: FRANK C. MARTIN K-8 CENTER | C146: 97 | E146: 19 | F146: 10 | G146: 28 | H146: 22 | I146: 18
A147: 3111 | B147: WESLEY MATTHEWS ELEMENTARY | C147: 28 | E147: 13 | F147: 15
A148: 3141 | B148: MEADOWLANE ELEMENTARY | C148: 49 | E148: 23 | F148: 26
A149: 3181 | B149: MELROSE ELEMENTARY | C149: 8 | E149: 3 | F149: 5
A150: 3191 | B150: ADA MERRITT K-8 CENTER | C150: 120 | E150: 21 | F150: 16 | G150: 37 | H150: 24 | I150: 22
A151: 3241 | B151: MIAMI GARDENS ELEMENTARY | C151: 10 | E151: 8 | F151: 2
A152: 3261 | B152: MIAMI HEIGHTS ELEMENTARY | C152: 63 | E152: 18 | F152: 45
A153: 3281 | B153: MIAMI LAKES K-8 CENTER | C153: 101 | E153: 18 | F153: 9 | G153: 23 | H153: 24 | I153: 27
A154: 3301 | B154: MIAMI PARK ELEMENTARY | C154: 4 | E154: 1 | F154: 3
A155: 3341 | B155: MIAMI SHORES ELEMENTARY | C155: 31 | E155: 15 | F155: 16
A156: 3381 | B156: MIAMI SPRINGS ELEMENTARY | C156: 17 | E156: 8 | F156: 9
A157: 3421 | B157: M.A. MILAM K-8 CENTER | C157: 40 | E157: 8 | F157: 10 | G157: 6 | H157: 5 | I157: 11
A158: 3431 | B158: PHYLLIS RUTH MILLER ELEMENTARY | C158: 17 | E158: 5 | F158: 12
A159: 3501 | B159: MORNINGSIDE K-8 ACADEMY | C159: 9 | E159: 9
A160: 3581 | B160: MYRTLE GROVE K-8 CENTER | C160: 4 | F160: 2 | G160: 2
A161: 3600 | B161: DOWNTOWN MIAMI CHARTER SCHOOL | C161: 15 | E161: 6 | F161: 9
A162: 3610 | B162: KEYS GATE CHARTER SCHOOL | C162: 71 | E162: 21 | F162: 14 | G162: 14 | H162: 12 | I162: 10
A163: 3621 | B163: COCONUT PALM K-8 ACADEMY | C163: 38 | D163: 1 | E163: 13 | F163: 9 | G163: 1 | H163: 9 | I163: 5
A164: 3661 | B164: NATURAL BRIDGE ELEMENTARY | C164: 7 | E164: 5 | F164: 2
A165: 3701 | B165: NORLAND ELEMENTARY | C165: 10 | E165: 6 | F165: 4
A166: 3741 | B166: NORTH BEACH ELEMENTARY | C166: 91 | E166: 43 | F166: 48
A167: 3781 | B167: BARBARA HAWKINS ELEMENTARY | C167: 3 | E167: 2 | F167: 1
A168: 3821 | B168: NORTH COUNTY K-8 CENTER | C168: 3 | E168: 1 | F168: 1 | G168: 1
A169: 3861 | B169: NORTH GLADE ELEMENTARY | C169: 4 | F169: 4
A170: 3901 | B170: NORTH HIALEAH ELEMENTARY | C170: 22 | E170: 10 | F170: 12
A171: 3941 | B171: NORTH MIAMI ELEMENTARY | C171: 7 | E171: 3 | F171: 4
A172: 3981 | B172: NORTH TWIN LAKES ELEMENTARY | C172: 13 | E172: 8 | F172: 5
A173: 4000 | B173: MIAMI CHILDREN'S MUSEUM | C173: 6 | E173: 4 | F173: 2
A174: 4001 | B174: NORWOOD ELEMENTARY | C174: 16 | E174: 9 | F174: 7
A175: 4012 | B175: SOMERSET ACAD AT SILVER PALMS | C175: 5 | E175: 3 | F175: 2
A176: 4021 | B176: OAK GROVE ELEMENTARY | C176: 21 | E176: 8 | F176: 11 | G176: 2
A177: 4031 | B177: GATEWAY ENVIRONMENTAL K-8 | C177: 31 | E177: 12 | F177: 10 | G177: 3 | H177: 6
A178: 4061 | B178: OJUS ELEMENTARY | C178: 43 | E178: 22 | F178: 21
A179: 4071 | B179: OLINDA ELEMENTARY | C179: 4 | E179: 1 | F179: 3
A180: 4091 | B180: OLYMPIA HEIGHTS ELEMENTARY | C180: 11 | E180: 5 | F180: 6
A181: 4121 | B181: DR. ROBERT B. INGRAM EL | C181: 3 | E181: 2 | F181: 1
A182: 4171 | B182: ORCHARD VILLA ELEMENTARY | C182: 1 | E182: 1
A183: 4221 | B183: PALMETTO ELEMENTARY | C183: 56 | E183: 24 | F183: 32
A184: 4241 | B184: PALM LAKES ELEMENTARY | C184: 23 | E184: 12 | F184: 11
A185: 4261 | B185: PALM SPRINGS ELEMENTARY | C185: 28 | E185: 11 | F185: 17
A186: 4281 | B186: PALM SPRINGS NORTH ELEMENTARY | C186: 52 | E186: 29 | F186: 23
A187: 4301 | B187: PARKVIEW ELEMENTARY | C187: 3 | E187: 1 | F187: 2
A188: 4341 | B188: PARKWAY ELEMENTARY | C188: 8 | E188: 4 | F188: 4
A189: 4381 | B189: DR HENRY E PERRINE ACADEMY | C189: 48 | E189: 22 | F189: 26
A190: 4391 | B190: IRVING & BEATRICE PESKOE K-8 | C190: 15 | E190: 3 | F190: 9 | G190: 2 | H190: 1
A191: 4401 | B191: KELSEY L. PHARR ELEMENTARY | C191: 3 | E191: 2 | F191: 1
A192: 4421 | B192: PINECREST ELEMENTARY | C192: 109 | E192: 56 | F192: 53
A193: 4441 | B193: PINE LAKE ELEMENTARY | C193: 2 | E193: 1 | F193: 1
A194: 4461 | B194: PINE VILLA ELEMENTARY | C194: 3 | E194: 2 | F194: 1
A195: 4491 | B195: HENRY E.S. REEVES ELEMENTARY | C195: 8 | E195: 1 | F195: 7
A196: 4501 | B196: POINCIANA PARK ELEMENTARY | C196: 6 | E196: 5 | F196: 1
A197: 4511 | B197: DR GILBERT L. PORTER ELEM | C197: 37 | E197: 17 | F197: 20
A198: 4541 | B198: RAINBOW PARK ELEMENTARY | C198: 14 | E198: 3 | F198: 11
A199: 4581 | B199: REDLAND ELEMENTARY | C199: 17 | E199: 4 | F199: 13
A200: 4681 | B200: RIVERSIDE ELEMENTARY | C200: 30 | E200: 4 | F200: 26
... 155 more rows

Sheet MEM_W (hidden)
A1: 1 | B1: 2 | C1: 3 | D1: 4 | E1: 5 | F1: 6 | G1: 7 | H1: 8 | I1: 9 | J1: 10 | K1: 11 | L1: 12 | M1: 13 | N1: 14 | O1: 15 | P1: 16 | Q1: 17
A2: SCHOOL_NUMBER | B2: S_SCHL_NAME | C2: Total Of STUDENT_ID | D2: 00 | E2: 01 | F2: 02 | G2: 03 | H2: 04 | I2: 05 | J2: 06 | K2: 07 | L2: 08 | M2: 09 | N2: 10 | O2: 11 | P2: 12 | Q2: PK
A3: 0041 | B3: AIR BASE ELEMENTARY | C3: 91 | D3: 16 | E3: 14 | F3: 16 | G3: 10 | H3: 14 | I3: 11 | Q3: 10
A4: 0070 | B4: CORAL REEF MONTESSORI ACAD CH | C4: 57 | D4: 10 | E4: 10 | F4: 5 | G4: 5 | H4: 8 | I4: 5 | J4: 5 | K4: 4 | L4: 5
A5: 0071 | B5: EUGENIA B. THOMAS K-8 CENTER | C5: 135 | D5: 12 | E5: 12 | F5: 16 | G5: 17 | H5: 15 | I5: 18 | J5: 12 | K5: 13 | L5: 16 | Q5: 4
A6: 0072 | B6: SUMMERVILLE CHARTER SCHOOL | C6: 26 | E6: 10 | F6: 2 | G6: 3 | H6: 4 | I6: 7
A7: 0073 | B7: MANDARIN LAKES K-8 CENTER | C7: 36 | D7: 2 | E7: 5 | F7: 6 | G7: 3 | H7: 3 | I7: 4 | J7: 3 | K7: 6 | L7: 4
A8: 0091 | B8: BOB GRAHAM EDUCATION CTR | C8: 91 | D8: 3 | E8: 5 | F8: 9 | G8: 7 | H8: 7 | I8: 10 | J8: 18 | K8: 18 | L8: 14
A9: 0092 | B9: NORMAN S. EDELCUP/SUNNY ISLES | C9: 731 | D9: 79 | E9: 91 | F9: 97 | G9: 94 | H9: 88 | I9: 70 | J9: 75 | K9: 68 | L9: 69
A10: 0100 | B10: MATER ACADEMY | C10: 9 | D10: 1 | E10: 3 | G10: 1 | H10: 3 | I10: 1
A11: 0101 | B11: ARCOLA LAKE ELEMENTARY | C11: 8 | D11: 1 | I11: 2 | Q11: 5
A12: 0102 | B12: MIAMI COMMUNITY CHARTER SCHOOL | C12: 3 | E12: 1 | G12: 1 | I12: 1
A13: 0111 | B13: MAYA ANGELOU ELEMENTARY | C13: 6 | D13: 2 | E13: 2 | G13: 1 | I13: 1
A14: 0121 | B14: AUBURNDALE ELEMENTARY | C14: 11 | G14: 2 | H14: 4 | I14: 1 | Q14: 4
A15: 0122 | B15: DR ROLANDO ESPINOSA K-8 | C15: 101 | D15: 8 | E15: 10 | F15: 8 | G15: 10 | H15: 11 | I15: 9 | J15: 12 | K15: 19 | L15: 13 | Q15: 1
A16: 0125 | B16: NORMA BUTLER BOSSARD ELEM | C16: 89 | D16: 10 | E16: 16 | F16: 8 | G16: 15 | H16: 18 | I16: 21 | Q16: 1
A17: 0161 | B17: AVOCADO ELEMENTARY | C17: 43 | D17: 7 | E17: 8 | F17: 13 | G17: 15
A18: 0201 | B18: BANYAN ELEMENTARY | C18: 17 | D18: 1 | E18: 2 | F18: 5 | G18: 3 | H18: 3 | I18: 3
A19: 0211 | B19: DR. MANUEL C. BARREIRO ELEM | C19: 35 | D19: 4 | E19: 8 | F19: 6 | G19: 4 | H19: 8 | I19: 5
A20: 0231 | B20: AVENTURA WATERWAYS K-8 CENTER | C20: 561 | D20: 67 | E20: 87 | F20: 60 | G20: 50 | H20: 80 | I20: 53 | J20: 50 | K20: 57 | L20: 57
A21: 0241 | B21: RUTH K BROAD/BAY HARBOR K-8 | C21: 516 | D21: 63 | E21: 52 | F21: 68 | G21: 60 | H21: 62 | I21: 48 | J21: 68 | K21: 39 | L21: 48 | Q21: 8
A22: 0251 | B22: ETHEL KOGER BECKHAM ELEMENTARY | C22: 14 | D22: 3 | E22: 2 | F22: 2 | G22: 2 | H22: 4 | I22: 1
A23: 0261 | B23: BEL-AIRE ELEMENTARY | C23: 28 | D23: 5 | E23: 5 | F23: 4 | G23: 2 | H23: 2 | I23: 5 | Q23: 5
A24: 0271 | B24: BENT TREE ELEMENTARY | C24: 24 | D24: 3 | E24: 1 | F24: 4 | G24: 5 | H24: 5 | I24: 5 | Q24: 1
A25: 0311 | B25: GOULDS ELEMENTARY | C25: 9 | D25: 2 | E25: 1 | F25: 2 | H25: 2 | I25: 2
A26: 0312 | B26: MATER GARDENS ACADEMY | C26: 32 | D26: 5 | E26: 5 | F26: 3 | G26: 2 | H26: 6 | I26: 11
A27: 0321 | B27: BISCAYNE ELEMENTARY | C27: 50 | D27: 4 | E27: 7 | F27: 5 | G27: 8 | H27: 13 | I27: 8 | Q27: 5
A28: 0331 | B28: CHAPMAN PARTNERSHIP ECC NORTH | C28: 1 | Q28: 1
A29: 0332 | B29: SOMERSET ACADEMY(SILVER PALMS) | C29: 37 | G29: 1 | H29: 2 | I29: 3 | J29: 17 | K29: 5 | L29: 9
A30: 0339 | B30: SOMERSET ACADEMY CHARTER ELEM | C30: 50 | D30: 4 | E30: 6 | F30: 9 | G30: 8 | H30: 16 | I30: 7
A31: 0341 | B31: ARCH CREEK ELEMENTARY SCHOOL | C31: 5 | D31: 2 | E31: 3
A32: 0342 | B32: PINECREST ACADEMY SOUTH CAMPUS | C32: 28 | D32: 3 | E32: 4 | F32: 5 | G32: 5 | H32: 6 | I32: 5
A33: 0351 | B33: CHAPMAN PARTNERSHIP ECC SOUTH | C33: 1 | Q33: 1
A34: 0361 | B34: BISCAYNE GARDENS ELEMENTARY | C34: 6 | D34: 1 | E34: 1 | G34: 1 | H34: 1 | I34: 1 | Q34: 1
A35: 0400 | B35: RENAISSANCE ELEMENTARY CHARTER | C35: 67 | D35: 11 | E35: 7 | F35: 8 | G35: 13 | H35: 12 | I35: 16
A36: 0401 | B36: VAN E. BLANTON ELEMENTARY | C36: 1 | I36: 1
A37: 0410 | B37: ACADEMIR CHARTER SCHOOL WEST | C37: 11 | D37: 1 | E37: 1 | F37: 1 | G37: 3 | H37: 4 | I37: 1
A38: 0441 | B38: BLUE LAKES ELEMENTARY | C38: 58 | D38: 5 | E38: 11 | F38: 6 | G38: 8 | H38: 8 | I38: 12 | Q38: 8
A39: 0451 | B39: BOWMAN ASHE/DOOLIN K-8 ACAD | C39: 65 | D39: 11 | E39: 6 | F39: 3 | G39: 10 | H39: 8 | I39: 6 | J39: 7 | K39: 5 | L39: 8 | Q39: 1
A40: 0461 | B40: BRENTWOOD ELEMENTARY | C40: 2 | D40: 1 | E40: 1
A41: 0481 | B41: JAMES H. BRIGHT/JW JOHNSON ES | C41: 4 | D41: 1 | E41: 2 | H41: 1
A42: 0510 | B42: ARCHIMEDEAN ACADEMY | C42: 78 | D42: 10 | E42: 15 | F42: 8 | G42: 18 | H42: 11 | I42: 16
A43: 0520 | B43: SOMERSET ACADEMY | C43: 29 | D43: 1 | E43: 5 | F43: 4 | G43: 2 | H43: 4 | I43: 13
A44: 0521 | B44: BROADMOOR ELEMENTARY | C44: 11 | D44: 1 | E44: 4 | F44: 2 | G44: 1 | H44: 2 | I44: 1
A45: 0561 | B45: W.J. BRYAN ELEMENTARY | C45: 18 | D45: 4 | E45: 2 | F45: 5 | G45: 1 | H45: 3 | I45: 2 | Q45: 1
A46: 0600 | B46: PINECREST PREP ACADEMY | C46: 24 | D46: 4 | E46: 1 | F46: 2 | G46: 2 | H46: 7 | I46: 8
A47: 0641 | B47: BUNCHE PARK ELEMENTARY | C47: 2 | D47: 1 | G47: 1
A48: 0651 | B48: CAMPBELL DRIVE K-8 CENTER | C48: 21 | D48: 4 | E48: 1 | F48: 2 | G48: 4 | I48: 4 | J48: 1 | K48: 5
A49: 0661 | B49: CARIBBEAN ELEMENTARY | C49: 10 | D49: 1 | E49: 2 | F49: 2 | G49: 2 | H49: 1 | I49: 1 | Q49: 1
A50: 0671 | B50: CALUSA ELEMENTARY | C50: 98 | D50: 7 | E50: 13 | F50: 9 | G50: 18 | H50: 19 | I50: 29 | Q50: 3
A51: 0681 | B51: CAROL CITY ELEMENTARY | C51: 4 | E51: 2 | G51: 1 | H51: 1
A52: 0721 | B52: GEORGE WASHINGTON CARVER ELEM | C52: 44 | D52: 10 | E52: 3 | F52: 5 | G52: 8 | H52: 10 | I52: 8
A53: 0761 | B53: FIENBERG/FISHER K-8 CENTER | C53: 114 | D53: 7 | E53: 10 | F53: 11 | G53: 13 | H53: 15 | I53: 13 | J53: 19 | K53: 9 | L53: 8 | Q53: 9
A54: 0771 | B54: WILLIAM A. CHAPMAN ELEMENTARY | C54: 10 | E54: 3 | F54: 1 | G54: 3 | H54: 1 | I54: 2
A55: 0801 | B55: CITRUS GROVE ELEMENTARY | C55: 7 | D55: 2 | E55: 1 | G55: 1 | I55: 1 | Q55: 2
A56: 0831 | B56: CLAUDE PEPPER ELEMENTARY | C56: 36 | D56: 9 | E56: 5 | F56: 4 | G56: 1 | H56: 9 | I56: 4 | Q56: 4
A57: 0841 | B57: COCONUT GROVE ELEMENTARY | C57: 122 | D57: 26 | E57: 16 | F57: 16 | G57: 20 | H57: 18 | I57: 20 | Q57: 6
A58: 0861 | B58: COLONIAL DRIVE ELEMENTARY | C58: 5 | E58: 1 | F58: 1 | G58: 1 | I58: 1 | Q58: 1
A59: 0881 | B59: COMSTOCK ELEMENTARY | C59: 5 | D59: 1 | F59: 1 | I59: 2 | Q59: 1
A60: 0921 | B60: NEVA KING COOPER EDUCATIONAL | C60: 6 | P60: 6
A61: 0950 | B61: AVENTURA CITY OF EXCELLENCE | C61: 563 | D61: 66 | E61: 47 | F61: 69 | G61: 56 | H61: 78 | I61: 80 | J61: 64 | K61: 52 | L61: 51
A62: 0961 | B62: CORAL GABLES PREPARATORY ACAD | C62: 132 | D62: 14 | E62: 15 | F62: 12 | G62: 22 | H62: 22 | I62: 22 | J62: 8 | K62: 8 | L62: 8 | Q62: 1
A63: 1001 | B63: CORAL PARK ELEMENTARY | C63: 30 | D63: 5 | E63: 4 | F63: 3 | G63: 5 | H63: 6 | I63: 5 | Q63: 2
A64: 1010 | B64: CHARTER SCHOOL AT WATERSTONE | C64: 85 | E64: 17 | F64: 20 | G64: 14 | H64: 12 | I64: 22
A65: 1014 | B65: ADVANCED LEARNING CHARTER SCH | C65: 13 | E65: 2 | F65: 2 | G65: 3 | H65: 3 | I65: 3
A66: 1017 | B66: MATER ACADEMY OF INTL STUDIES | C66: 5 | D66: 2 | E66: 1 | G66: 1 | H66: 1
A67: 1020 | B67: YOUTH CO-OP CHARTER SCHOOL | C67: 7 | F67: 1 | I67: 1 | K67: 1 | L67: 4
A68: 1041 | B68: CORAL REEF ELEMENTARY | C68: 304 | D68: 44 | E68: 40 | F68: 49 | G68: 46 | H68: 60 | I68: 59 | Q68: 6
A69: 1070 | B69: SOUTH FLORIDA AUTISM CHARTER | C69: 2 | E69: 2
A70: 1081 | B70: CORAL TERRACE ELEMENTARY | C70: 10 | E70: 5 | F70: 2 | H70: 2 | I70: 1
A71: 1121 | B71: CORAL WAY K-8 CENTER | C71: 117 | D71: 9 | E71: 4 | F71: 5 | G71: 21 | H71: 14 | I71: 17 | J71: 18 | K71: 13 | L71: 14 | Q71: 2
A72: 1161 | B72: CRESTVIEW ELEMENTARY | C72: 1 | G72: 1
A73: 1241 | B73: CUTLER RIDGE ELEMENTARY | C73: 111 | D73: 14 | E73: 7 | F73: 14 | G73: 21 | H73: 27 | I73: 28
A74: 1281 | B74: CYPRESS ELEMENTARY | C74: 28 | D74: 1 | E74: 9 | F74: 2 | G74: 5 | H74: 4 | I74: 7
A75: 1331 | B75: DEVON AIRE K-8 CENTER | C75: 195 | D75: 10 | E75: 22 | F75: 22 | G75: 18 | H75: 25 | I75: 25 | J75: 25 | K75: 23 | L75: 23 | Q75: 2
A76: 1361 | B76: FREDERICK DOUGLASS ELEMENTARY | C76: 5 | D76: 2 | Q76: 3
A77: 1371 | B77: MARJORY STONEMAN DOUGLAS ELEM | C77: 18 | E77: 4 | F77: 2 | G77: 3 | H77: 5 | I77: 3 | Q77: 1
A78: 1401 | B78: CHARLES R. DREW K-8 CENTER | C78: 1 | E78: 1
A79: 1441 | B79: PAUL LAURENCE DUNBAR K-8 CTR | C79: 8 | D79: 3 | E79: 1 | F79: 2 | G79: 2
A80: 1481 | B80: JOHN G. DUPUIS ELEMENTARY | C80: 23 | D80: 3 | E80: 4 | F80: 6 | G80: 1 | H80: 2 | I80: 4 | Q80: 3
A81: 1521 | B81: AMELIA EARHART ELEMENTARY | C81: 9 | D81: 1 | E81: 1 | F81: 2 | G81: 3 | H81: 2
A82: 1561 | B82: EARLINGTON HEIGHTS ELEMENTARY | C82: 1 | H82: 1
A83: 1601 | B83: EDISON PARK K-8 CENTER | C83: 4 | D83: 4
A84: 1641 | B84: EMERSON ELEMENTARY | C84: 20 | D84: 6 | E84: 1 | F84: 3 | G84: 3 | H84: 3 | I84: 3 | Q84: 1
A85: 1691 | B85: CHRISTINA M. EVE ELEMENTARY | C85: 25 | D85: 6 | F85: 3 | G85: 5 | H85: 4 | I85: 5 | Q85: 2
A86: 1721 | B86: EVERGLADES K-8 CENTER | C86: 47 | D86: 3 | E86: 1 | F86: 4 | G86: 8 | H86: 3 | I86: 4 | J86: 5 | K86: 9 | L86: 10
A87: 1761 | B87: DAVID FAIRCHILD ELEMENTARY | C87: 116 | D87: 23 | E87: 17 | F87: 19 | G87: 21 | H87: 14 | I87: 15 | Q87: 7
A88: 1801 | B88: FAIRLAWN ELEMENTARY | C88: 5 | E88: 1 | F88: 1 | H88: 3
A89: 1811 | B89: DANTE B. FASCELL ELEMENTARY | C89: 12 | D89: 3 | E89: 1 | G89: 1 | H89: 4 | I89: 3
A90: 1841 | B90: FLAGAMI ELEMENTARY | C90: 8 | E90: 1 | G90: 1 | H90: 1 | I90: 5
A91: 1881 | B91: HENRY M. FLAGLER ELEMENTARY | C91: 15 | D91: 2 | E91: 1 | F91: 5 | G91: 4 | H91: 1 | Q91: 2
A92: 1921 | B92: FLAMINGO ELEMENTARY | C92: 49 | D92: 8 | E92: 13 | F92: 13 | G92: 9 | I92: 4 | Q92: 2
A93: 2001 | B93: FLORIDA CITY ELEMENTARY | C93: 13 | D93: 2 | E93: 3 | F93: 5 | H93: 1 | I93: 1 | Q93: 1
A94: 2003 | B94: BRIDGEPOINT ACADEMY | C94: 24 | D94: 1 | E94: 5 | F94: 6 | G94: 6 | H94: 3 | I94: 3
A95: 2004 | B95: ISAAC ACADEMY K-8 | C95: 8 | F95: 8
A96: 2007 | B96: SOMERSET ACADEMY ELEMENTARY | C96: 61 | D96: 5 | E96: 6 | F96: 17 | G96: 12 | H96: 11 | I96: 10
A97: 2012 | B97: SOMERSET ARTS ACADEMY | C97: 96 | D97: 13 | E97: 21 | F97: 10 | G97: 18 | H97: 23 | I97: 11
A98: 2013 | B98: BRIDGEPOINT ACAD GREATER MIAMI | C98: 51 | D98: 15 | E98: 15 | F98: 11 | G98: 4 | H98: 5 | I98: 1
A99: 2021 | B99: GLORIA FLOYD ELEMENTARY | C99: 54 | D99: 11 | E99: 5 | F99: 5 | G99: 9 | H99: 17 | I99: 5 | Q99: 2
A100: 2041 | B100: BENJAMIN FRANKLIN K-8 CENTER | C100: 3 | E100: 1 | I100: 1 | K100: 1
A101: 2081 | B101: FULFORD ELEMENTARY | C101: 7 | D101: 1 | E101: 1 | F101: 2 | G101: 1 | H101: 1 | I101: 1
A102: 2111 | B102: HIALEAH GARDENS ELEMENTARY | C102: 13 | F102: 5 | G102: 2 | H102: 1 | I102: 4 | Q102: 1
A103: 2151 | B103: JACK D. GORDON ELEMENTARY | C103: 71 | D103: 8 | E103: 17 | F103: 12 | G103: 4 | H103: 14 | I103: 15 | Q103: 1
A104: 2161 | B104: GOLDEN GLADES ELEMENTARY | C104: 3 | D104: 1 | G104: 1 | H104: 1
A105: 2181 | B105: JOELLA C. GOOD ELEMENTARY | C105: 25 | D105: 3 | E105: 2 | F105: 3 | G105: 6 | H105: 4 | I105: 5 | Q105: 2
A106: 2191 | B106: SPANISH LAKE ELEMENTARY | C106: 39 | D106: 8 | E106: 4 | F106: 6 | G106: 8 | H106: 6 | I106: 6 | Q106: 1
A107: 2241 | B107: GRATIGNY ELEMENTARY | C107: 11 | D107: 2 | E107: 2 | F107: 2 | G107: 2 | J107: 1 | Q107: 2
A108: 2261 | B108: GREENGLADE ELEMENTARY | C108: 12 | D108: 3 | G108: 1 | H108: 3 | I108: 5
A109: 2281 | B109: GREYNOLDS PARK ELEMENTARY | C109: 49 | D109: 6 | E109: 9 | F109: 6 | G109: 12 | H109: 5 | I109: 6 | Q109: 5
A110: 2321 | B110: GULFSTREAM ELEMENTARY | C110: 62 | D110: 10 | E110: 6 | F110: 7 | G110: 9 | H110: 12 | I110: 7 | Q110: 11
A111: 2331 | B111: CHARLES R. HADLEY ELEMENTARY | C111: 26 | D111: 3 | E111: 3 | F111: 2 | G111: 6 | H111: 5 | I111: 5 | Q111: 2
A112: 2341 | B112: JOE HALL ELEMENTARY | C112: 24 | D112: 1 | E112: 5 | F112: 3 | G112: 4 | H112: 5 | I112: 4 | Q112: 2
A113: 2351 | B113: ENEIDA MASSAS HARTNER ELEM | C113: 15 | D113: 4 | E113: 3 | F113: 1 | G113: 4 | H113: 1 | I113: 1 | Q113: 1
A114: 2361 | B114: HIALEAH ELEMENTARY | C114: 11 | E114: 1 | F114: 1 | G114: 3 | H114: 2 | I114: 3 | Q114: 1
A115: 2371 | B115: WEST HIALEAH GARDENS ELEM | C115: 11 | E115: 1 | F115: 1 | G115: 4 | H115: 2 | I115: 3
A116: 2401 | B116: HIBISCUS ELEMENTARY | C116: 1 | I116: 1
A117: 2441 | B117: VIRGINIA A BOONE/HIGHLAND OAKS | C117: 272 | D117: 39 | E117: 42 | F117: 43 | G117: 46 | H117: 53 | I117: 39 | Q117: 10
A118: 2501 | B118: HOLMES ELEMENTARY | C118: 1 | I118: 1
A119: 2511 | B119: ZORA NEALE HURSTON ELEMENTARY | C119: 20 | D119: 2 | E119: 2 | F119: 1 | G119: 4 | H119: 1 | I119: 9 | Q119: 1
A120: 2521 | B120: OLIVER HOOVER ELEMENTARY | C120: 44 | D120: 2 | E120: 7 | F120: 7 | G120: 6 | H120: 7 | I120: 12 | Q120: 3
A121: 2541 | B121: HOWARD DRIVE ELEMENTARY | C121: 245 | D121: 27 | E121: 40 | F121: 35 | G121: 31 | H121: 52 | I121: 39 | Q121: 21
A122: 2581 | B122: MADIE IVES ELEMENTARY | C122: 14 | D122: 4 | E122: 3 | F122: 1 | G122: 2 | H122: 2 | I122: 1 | Q122: 1
A123: 2641 | B123: KENDALE ELEMENTARY | C123: 67 | D123: 12 | E123: 10 | F123: 9 | G123: 9 | H123: 16 | I123: 9 | Q123: 2
A124: 2651 | B124: KENDALE LAKES ELEMENTARY | C124: 46 | D124: 6 | E124: 2 | F124: 9 | G124: 5 | H124: 11 | I124: 13
A125: 2661 | B125: KENSINGTON PARK ELEMENTARY | C125: 18 | D125: 3 | F125: 3 | G125: 2 | H125: 6 | I125: 3 | Q125: 1
A126: 2701 | B126: KENWOOD K-8 CENTER | C126: 145 | D126: 11 | E126: 7 | F126: 19 | G126: 11 | H126: 22 | I126: 20 | J126: 19 | K126: 14 | L126: 20 | Q126: 2
A127: 2741 | B127: KEY BISCAYNE K-8 CENTER | C127: 267 | D127: 18 | E127: 30 | F127: 22 | G127: 45 | H127: 32 | I127: 32 | J127: 37 | K127: 31 | L127: 15 | Q127: 5
A128: 2781 | B128: KINLOCH PARK ELEMENTARY | C128: 12 | D128: 6 | E128: 2 | G128: 1 | I128: 3
A129: 2801 | B129: LAKE STEVENS ELEMENTARY | C129: 7 | D129: 2 | F129: 1 | I129: 2 | Q129: 2
A130: 2821 | B130: LAKEVIEW ELEMENTARY | C130: 6 | E130: 4 | I130: 2
A131: 2881 | B131: LEEWOOD K-8 CENTER | C131: 188 | D131: 22 | E131: 25 | F131: 23 | G131: 26 | H131: 25 | I131: 19 | J131: 16 | K131: 14 | L131: 14 | Q131: 4
A132: 2891 | B132: WILLIAM LEHMAN ELEMENTARY | C132: 88 | D132: 14 | E132: 13 | F132: 7 | G132: 20 | H132: 15 | I132: 17 | Q132: 2
A133: 2901 | B133: LEISURE CITY K-8 CENTER | C133: 26 | D133: 2 | F133: 3 | G133: 3 | H133: 5 | I133: 3 | J133: 2 | K133: 3 | L133: 1 | Q133: 4
A134: 2911 | B134: LINDA LENTIN K-8 CENTER | C134: 4 | F134: 1 | L134: 3
A135: 2941 | B135: LAURA C. SAUNDERS ELEMENTARY | C135: 12 | D135: 3 | E135: 1 | F135: 4 | G135: 2 | H135: 1 | I135: 1
A136: 2981 | B136: LIBERTY CITY ELEMENTARY | C136: 1 | Q136: 1
A137: 3025 | B137: ADVANTAGE ACADEMY SANTA FE | C137: 35 | D137: 7 | E137: 9 | F137: 5 | G137: 7 | H137: 4 | I137: 3
A138: 3026 | B138: ADVANTAGE ACAD AT SUMMERVILLE | C138: 8 | D138: 8
A139: 3027 | B139: ADVANTAGE ACAD AT WATERSTONE | C139: 17 | D139: 17
A140: 3029 | B140: DORAL ACADEMY OF TECHNOLOGY | C140: 13 | J140: 2 | K140: 2 | L140: 9
A141: 3030 | B141: DORAL ACADEMY | C141: 68 | D141: 8 | E141: 11 | F141: 5 | G141: 7 | H141: 13 | I141: 24
A142: 3032 | B142: PALM GLADES PREPATORY ACADEMY | C142: 20 | J142: 10 | K142: 4 | L142: 6
A143: 3033 | B143: SOMERSET OAKS ACADEMY | C143: 17 | D143: 15 | E143: 2
A144: 3034 | B144: BRIDGEPOINT ACAD VILLAGE GREEN | C144: 2 | E144: 1 | H144: 1
A145: 3035 | B145: RAMZ ACADEMY ELEM MIAMI CAMPUS | C145: 2 | D145: 1 | E145: 1
A146: 3041 | B146: LORAH PARK ELEMENTARY | C146: 2 | G146: 1 | I146: 1
A147: 3051 | B147: TOUSSAINT L'OUVERTURE ELEM | C147: 4 | D147: 1 | G147: 1 | H147: 2
A148: 3061 | B148: LUDLAM ELEMENTARY | C148: 74 | D148: 12 | E148: 15 | F148: 12 | G148: 9 | H148: 6 | I148: 16 | Q148: 4
A149: 3100 | B149: MATER ACADEMY EAST CHARTER | C149: 13 | D149: 6 | E149: 2 | F149: 3 | H149: 1 | I149: 1
A150: 3101 | B150: FRANK C. MARTIN K-8 CENTER | C150: 75 | D150: 3 | E150: 12 | F150: 4 | G150: 6 | H150: 7 | I150: 13 | J150: 9 | K150: 9 | L150: 12
A151: 3111 | B151: WESLEY MATTHEWS ELEMENTARY | C151: 24 | D151: 1 | E151: 3 | G151: 9 | H151: 6 | I151: 5
A152: 3141 | B152: MEADOWLANE ELEMENTARY | C152: 13 | D152: 2 | E152: 2 | F152: 4 | G152: 1 | H152: 3 | I152: 1
A153: 3181 | B153: MELROSE ELEMENTARY | C153: 2 | F153: 1 | H153: 1
A154: 3191 | B154: ADA MERRITT K-8 CENTER | C154: 211 | D154: 17 | E154: 17 | F154: 17 | G154: 27 | H154: 28 | I154: 26 | J154: 26 | K154: 29 | L154: 24
A155: 3241 | B155: MIAMI GARDENS ELEMENTARY | C155: 8 | G155: 3 | I155: 1 | Q155: 4
A156: 3261 | B156: MIAMI HEIGHTS ELEMENTARY | C156: 29 | D156: 2 | E156: 3 | F156: 5 | G156: 6 | H156: 4 | I156: 6 | Q156: 3
A157: 3281 | B157: MIAMI LAKES K-8 CENTER | C157: 122 | D157: 11 | E157: 10 | F157: 9 | G157: 6 | H157: 19 | I157: 13 | J157: 14 | K157: 14 | L157: 20 | Q157: 6
A158: 3301 | B158: MIAMI PARK ELEMENTARY | C158: 3 | D158: 1 | H158: 1 | I158: 1
A159: 3341 | B159: MIAMI SHORES ELEMENTARY | C159: 97 | D159: 10 | E159: 26 | F159: 9 | G159: 16 | H159: 19 | I159: 17
A160: 3381 | B160: MIAMI SPRINGS ELEMENTARY | C160: 49 | D160: 7 | E160: 8 | F160: 3 | G160: 8 | H160: 11 | I160: 10 | Q160: 2
A161: 3421 | B161: M.A. MILAM K-8 CENTER | C161: 7 | F161: 1 | H161: 1 | I161: 1 | J161: 2 | K161: 1 | L161: 1
A162: 3431 | B162: PHYLLIS RUTH MILLER ELEMENTARY | C162: 45 | D162: 11 | E162: 6 | F162: 4 | G162: 11 | H162: 2 | I162: 1 | Q162: 10
A163: 3501 | B163: MORNINGSIDE K-8 ACADEMY | C163: 9 | E163: 3 | F163: 1 | G163: 1 | H163: 1 | I163: 1 | J163: 1 | Q163: 1
A164: 3541 | B164: ROBERT RUSSA MOTON ELEMENTARY | C164: 6 | E164: 2 | G164: 4
A165: 3581 | B165: MYRTLE GROVE K-8 CENTER | C165: 1 | D165: 1
